Workbook

Sheet Cover Sheet
A1: Cobble Hill / Mill Bay Area Preliminary Groundwater Budgets
A4: This spreadsheet was developed to assist the BCMOE in assessing applications for groundwater licenses. This study was undertaken to understand the water resources under eleven aquifer areas on Vancouver Island in the Cobble Hill and Mill Bay area by calculating water budgets for each.
A7: Please use the buttons below to navigate to each of the Summary and Aquifer Detail sheets.
B9: Summary Sheet Links | G9: Bedrock Aquifer Links | L9: Surficial Aquifer Links

Sheet Aquifer Dashboard
C1: Aquifer Dashboard
C4: This sheet shows the net total volume of groundwater gain or loss on a monthly basis. The water balance details are provided in the tables below the graph.
B7: Summary Sheet Links | C7: Please use the Aquifer Selection box and Condition check boxes to display the desired information.
G8: Aquifer Selection | J8: Condition | Q8: Worksheet | S8: Data Set | U8: Jan | V8: Feb | W8: Mar | X8: Apr | Y8: May | Z8: Jun | AA8: Jul | AB8: Aug | AC8: Sep | AD8: Oct | AE8: Nov | AF8: Dec
Q9: 3 Yr Avg Hot Cold | S9: AverageNet | T9: TRUE | U9: =IF($T$9=TRUE,VLOOKUP("Average YearNet Total (Gain - Loss)",$A$38:$N$79,COLUMN(C49),FALSE),#N/A) -> 106411.1283 | V9: 26421.27492 | W9: -32284.8779 | X9: -117385.3968 | Y9: -185662.2998 | Z9: -205102.2829 | AA9: -210878.9003 | AB9: -185143.1975 | AC9: -157534.1788 | AD9: -60797.31149 | AE9: 114445.0289 | AF9: 118033.9893
Q10: Bedrock 198 | S10: HotDryNet | T10: TRUE | U10: =IF($T$10=TRUE,VLOOKUP("Hot/Dry (1989)Net Total (Gain - Loss)",$A$38:$N$79,COLUMN(C49),FALSE),#N/A) -> 63998.32101 | V10: -12841.31589 | W10: 31139.53037 | X10: -129786.0448 | Y10: -190623.755 | Z10: -204010.5903 | AA10: -206079.6319 | AB10: -182689.5011 | AC10: -163479.2021 | AD10: -112566.9186 | AE10: -11058.55256 | AF10: 29749.22669
Q11: Bedrock 200 | S11: ColdWetNet | T11: TRUE | U11: =IF($T$11=TRUE,VLOOKUP("Cold/Wet (1999)Net Total (Gain - Loss)",$A$38:$N$79,COLUMN(C68),FALSE),#N/A) -> 302889.1466 | V11: 308240.5799 | W11: 19773.49917 | X11: -162498.8465 | Y11: -170064.6775 | Z11: -196703.5632 | AA11: -215678.1687 | AB11: -185143.1975 | AC11: -159933.813 | AD11: 11571.9462 | AE11: 116799.7452 | AF11: 143395.6204
Q12: Bedrock 202
Q13: Bedrock 203
Q14: Bedrock 204 | U14: =C79 ->  | V14: =D79 -> 
Q15: Bedrock 207
Q16: Surficial AQ 197
Q17: Surficial AQ 199
Q18: Surficial AQ 201 | U18: =VLOOKUP("Cold/Wet (1999)Net Total (Gain - Loss)",$A$38:$N$79,COLUMN(C79)) -> 
Q19: Surficial AQ 205
Q20: Surficial AQ 206
P22: Aquifer | Q22: =INDEX(WorksheetList,Q23) -> Surficial AQ 206
Q23: 11
B36: Monthly Gains and Loses (m3) | C36: Average Year
B37: Source | C37: Jan | D37: Feb | E37: Mar | F37: Apr | G37: May | H37: Jun | I37: Jul | J37: Aug | K37: Sep | L37: Oct | M37: Nov | N37: Dec | O37: Total
A38: =$C$36&B38 -> Average YearDirect Recharge to 206 | B38: =INDIRECT("'"&$Q$22&"'"&"!"&"B9") -> Direct Recharge to 206 | C38: =IFERROR(VLOOKUP($C$36&$B38,INDIRECT("'"&$Q$22&"'"&"!"&"A9:O50"),COLUMN(C38),FALSE)," ") -> 229577.034 | D38: 149537.6395 | E38: 107916.9886 | F38: 25916.37605 | G38: -31195.24461 | H38: -49192.50112 | I38: -47992.68401 | J38: -21596.70781 | K38: -7198.902602 | L38: 78927.67867 | M38: 242168.0087 | N38: 236078.5151 | O38: =IF(COUNT(C38:N38)<>0,SUM(C38:N38)," ") -> 912946.2004
A39: =$C$36&B39 -> Average YearLeakage down to 207 | B39: =IF(OFFSET(INDIRECT("'"&$Q$22&"'"&"!"&"B9"),ROW(B30)+1,0)>0,OFFSET(INDIRECT("'"&$Q$22&"'"&"!"&"B9"),ROW(B30)+1,0)," ") -> Leakage down to 207 | C39: -62536.3112 | D39: -60220.15152 | E39: -67168.63054 | F39: -66396.57732 | G39: -69484.79022 | H39: -66396.57732 | I39: -67168.63054 | J39: -65624.52409 | K39: -62536.3112 | L39: -63308.36442 | M39: -60220.15152 | N39: -60992.20475 | O39: =IF(COUNT(C39:N39)<>0,SUM(C39:N39)," ") -> -772053.2246
A40: Average YearLateral Groundwater | B40: =IF(OFFSET(INDIRECT("'"&$Q$22&"'"&"!"&"B9"),ROW(B31)+1,0)>0,OFFSET(INDIRECT("'"&$Q$22&"'"&"!"&"B9"),ROW(B31)+1,0)," ") -> Lateral Groundwater | C40: -30269.8296 | D40: -29148.7248 | E40: -32512.0392 | F40: -32138.3376 | G40: -33633.144 | H40: -32138.3376 | I40: -32512.0392 | J40: -31764.636 | K40: -30269.8296 | L40: -30643.5312 | M40: -29148.7248 | N40: -29522.4264 | O40: -373701.6
A41: Average YearLateral Groundwater | B41: Lateral Groundwater | C41: -30269.8296 | D41: -29148.7248 | E41: -32512.0392 | F41: -32138.3376 | G41: -33633.144 | H41: -32138.3376 | I41: -32512.0392 | J41: -31764.636 | K41: -30269.8296 | L41: -30643.5312 | M41: -29148.7248 | N41: -29522.4264 | O41: -373701.6
A42: Average YearSurface Water | B42: Surface Water | C42: -45931.98552 | D42: -40324.47918 | E42: -29128.58576 | F42: -14083.76232 | G42: -4993.769341 | H42: -2025.464931 | I42: -1202.888247 | J42: -390.7239252 | K42: -328.5100557 | L42: -3015.160044 | M42: -21309.16139 | N42: -45403.10928 | O42: -208137.6
A43: Average YearSurface Water | B43: Surface Water | C43: -45931.98552 | D43: -40324.47918 | E43: -29128.58576 | F43: -14083.76232 | G43: -4993.769341 | H43: -2025.464931 | I43: -1202.888247 | J43: -390.7239252 | K43: -328.5100557 | L43: -3015.160044 | M43: -21309.16139 | N43: -45403.10928 | O43: -208137.6
A44: Average YearWater Well Useage | B44: Water Well Useage | C44: -34535.4 | D44: -37413.35 | E44: -43169.25 | F44: -46047.2 | G44: -51803.1 | H44: -57559 | I44: -63314.9 | J44: -66192.85 | K44: -57559 | L44: -46047.2 | M44: -40291.3 | N44: -31657.45 | O44: -575590
A45: Average YearNet Gain | B45: Net Gain | C45: 279684.6546 | D45: 193527.9804 | E45: 139693.6276 | F45: 41280.4804 | G45: 5447.748372 | H45: 2209.598107 | I45: 1312.241724 | J45: 426.244282 | K45: 358.3746062 | L45: 82216.94417 | M45: 265414.3666 | N45: 285609.1797 | O45: 1297181.441
A46: Average YearNet Loss | B46: Net Loss | C46: -173273.5263 | D46: -167106.7055 | E46: -171978.5055 | F46: -158665.8772 | G46: -191110.0482 | H46: -207311.881 | I46: -212191.142 | J46: -185569.4418 | K46: -157892.5535 | L46: -143014.2557 | M46: -150969.3377 | N46: -167575.1904 | O46: -2086658.465
A47: Average YearNet Total (Gain - Loss) | B47: Net Total (Gain - Loss) | C47: 106411.1283 | D47: 26421.27492 | E47: -32284.8779 | F47: -117385.3968 | G47: -185662.2998 | H47: -205102.2829 | I47: -210878.9003 | J47: -185143.1975 | K47: -157534.1788 | L47: -60797.31149 | M47: 114445.0289 | N47: 118033.9893 | O47: -789477.0242
A48: Average Year
A49: Average Year
B51: Monthly Gains and Loses (m3) | C51: Hot/Dry (1989)
B52: Source | C52: Jan | D52: Feb | E52: Mar | F52: Apr | G52: May | H52: Jun | I52: Jul | J52: Aug | K52: Sep | L52: Oct | M52: Nov | N52: Dec | O52: Total
A53: =$C$51&B53 -> Hot/Dry (1989)Direct Recharge to 206 | B53: =INDIRECT("'"&$Q$22&"'"&"!"&"B9") -> Direct Recharge to 206 | C53: =IFERROR(VLOOKUP($C$51&$B53,INDIRECT("'"&$Q$22&"'"&"!"&"A9:O50"),COLUMN(C53),FALSE)," ") -> 188309.9816 | D53: 107983.539 | E53: 167904.1324 | F53: 10078.46364 | G53: -39593.96431 | H53: -50392.31822 | I53: -43193.41561 | J53: -17997.25651 | K53: -11998.171 | L53: 30595.33606 | M53: 120101.6917 | N53: 152376.7717 | O53: =IF(COUNT(C53:N53)<>0,SUM(C53:N53)," ") -> 614174.7906
A54: =$C$51&B54 -> Hot/Dry (1989)Leakage down to 207 | B54: =IF(OFFSET(INDIRECT("'"&$Q$22&"'"&"!"&"B9"),ROW(B30)+1,0)>0,OFFSET(INDIRECT("'"&$Q$22&"'"&"!"&"B9"),ROW(B30)+1,0)," ") -> Leakage down to 207 | C54: -63308.36442 | D54: -58676.04507 | E54: -64852.47087 | F54: -64080.41764 | G54: -67168.63054 | H54: -64852.47087 | I54: -67168.63054 | J54: -66396.57732 | K54: -63308.36442 | L54: -65624.52409 | M54: -62536.3112 | N54: -64080.41764 | O54: =IF(COUNT(C54:N54)<>0,SUM(C54:N54)," ") -> -772053.2246
A55: Hot/Dry (1989)Lateral Groundwater | B55: =IF(OFFSET(INDIRECT("'"&$Q$22&"'"&"!"&"B9"),ROW(B31)+1,0)>0,OFFSET(INDIRECT("'"&$Q$22&"'"&"!"&"B9"),ROW(B31)+1,0)," ") -> Lateral Groundwater | C55: -30643.5312 | D55: -28401.3216 | E55: -31390.9344 | F55: -31017.2328 | G55: -32512.0392 | H55: -31390.9344 | I55: -32512.0392 | J55: -32138.3376 | K55: -30643.5312 | L55: -31764.636 | M55: -30269.8296 | N55: -31017.2328 | O55: -373701.6
A56: Hot/Dry (1989)Lateral Groundwater | B56: Lateral Groundwater | C56: -30643.5312 | D56: -28401.3216 | E56: -31390.9344 | F56: -31017.2328 | G56: -32512.0392 | H56: -31390.9344 | I56: -32512.0392 | J56: -32138.3376 | K56: -30643.5312 | L56: -31764.636 | M56: -30269.8296 | N56: -31017.2328 | O56: -373701.6
A57: Hot/Dry (1989)Surface Water | B57: Surface Water | C57: -45931.98552 | D57: -40324.47918 | E57: -29128.58576 | F57: -14083.76232 | G57: -4993.769341 | H57: -2025.464931 | I57: -1202.888247 | J57: -390.7239252 | K57: -328.5100557 | L57: -3015.160044 | M57: -21309.16139 | N57: -45403.10928 | O57: -208137.6
A58: Hot/Dry (1989)Surface Water | B58: Surface Water | C58: -45931.98552 | D58: -40324.47918 | E58: -29128.58576 | F58: -14083.76232 | G58: -4993.769341 | H58: -2025.464931 | I58: -1202.888247 | J58: -390.7239252 | K58: -328.5100557 | L58: -3015.160044 | M58: -21309.16139 | N58: -45403.10928 | O58: -208137.6
A59: Hot/Dry (1989)Water Well Useage | B59: Water Well Useage | C59: -34535.4 | D59: -37413.35 | E59: -43169.25 | F59: -46047.2 | G59: -51803.1 | H59: -57559 | I59: -63314.9 | J59: -66192.85 | K59: -57559 | L59: -46047.2 | M59: -40291.3 | N59: -31657.45 | O59: -575590
A60: Hot/Dry (1989)Net Gain | B60: Net Gain | C60: 238417.6021 | D60: 151973.88 | E60: 199680.7714 | F60: 25442.568 | G60: 5447.748372 | H60: 2209.598107 | I60: 1312.241724 | J60: 426.244282 | K60: 358.3746062 | L60: 33884.60156 | M60: 143348.0496 | N60: 201907.4364 | O60: 1004409.116
A61: Hot/Dry (1989)Net Loss | B61: Net Loss | C61: -174419.2811 | D61: -164815.1959 | E61: -168541.241 | F61: -155228.6128 | G61: -196071.5034 | H61: -206220.1884 | I61: -207391.8736 | J61: -183115.7453 | K61: -163837.5767 | L61: -146451.5201 | M61: -154406.6022 | N61: -172158.2097 | O61: -2092657.55
A62: Hot/Dry (1989)Net Total (Gain - Loss) | B62: Net Total (Gain - Loss) | C62: 63998.32101 | D62: -12841.31589 | E62: 31139.53037 | F62: -129786.0448 | G62: -190623.755 | H62: -204010.5903 | I62: -206079.6319 | J62: -182689.5011 | K62: -163479.2021 | L62: -112566.9186 | M62: -11058.55256 | N62: 29749.22669 | O62: -1088248.434
A63: Hot/Dry (1989)
A64: Hot/Dry (1989)
B66: Monthly Gains and Loses (m3) | C66: Cold/Wet (1999)
B67: Source | C67: Jan | D67: Feb | E67: Mar | F67: Apr | G67: May | H67: Jun | I67: Jul | J67: Aug | K67: Sep | L67: Oct | M67: Nov | N67: Dec | O67: Total
A68: =$C$66&B68 -> Cold/Wet (1999)Direct Recharge to 206 | B68: =INDIRECT("'"&$Q$22&"'"&"!"&"B9") -> Direct Recharge to 206 | C68: =IFERROR(VLOOKUP($C$66&$B68,INDIRECT("'"&$Q$22&"'"&"!"&"A9:O50"),COLUMN(C68),FALSE)," ") -> 426055.0523 | D68: 431356.9445 | E68: 159975.3657 | F68: -19197.07361 | G68: -15597.6223 | H68: -40793.78141 | I68: -52791.95242 | J68: -21596.70781 | K68: -9598.536803 | L68: 151296.9364 | M68: 244522.7251 | N68: 261440.1462 | O68: =IF(COUNT(C68:N68)<>0,SUM(C68:N68)," ") -> 1515071.496
A69: =$C$66&B69 -> Cold/Wet (1999)Leakage down to 207 | B69: =IF(OFFSET(INDIRECT("'"&$Q$22&"'"&"!"&"B9"),ROW(B30)+1,0)>0,OFFSET(INDIRECT("'"&$Q$22&"'"&"!"&"B9"),ROW(B30)+1,0)," ") -> Leakage down to 207 | C69: -62536.3112 | D69: -60220.15152 | E69: -67168.63054 | F69: -66396.57732 | G69: -69484.79022 | H69: -66396.57732 | I69: -67168.63054 | J69: -65624.52409 | K69: -62536.3112 | L69: -63308.36442 | M69: -60220.15152 | N69: -60992.20475 | O69: =IF(COUNT(C69:N69)<>0,SUM(C69:N69)," ") -> -772053.2246
A70: Cold/Wet (1999)Lateral Groundwater | B70: =IF(OFFSET(INDIRECT("'"&$Q$22&"'"&"!"&"B9"),ROW(B31)+1,0)>0,OFFSET(INDIRECT("'"&$Q$22&"'"&"!"&"B9"),ROW(B31)+1,0)," ") -> Lateral Groundwater | C70: -30269.8296 | D70: -29148.7248 | E70: -32512.0392 | F70: -32138.3376 | G70: -33633.144 | H70: -32138.3376 | I70: -32512.0392 | J70: -31764.636 | K70: -30269.8296 | L70: -30643.5312 | M70: -29148.7248 | N70: -29522.4264 | O70: -373701.6
A71: Cold/Wet (1999)Lateral Groundwater | B71: Lateral Groundwater | C71: -30269.8296 | D71: -29148.7248 | E71: -32512.0392 | F71: -32138.3376 | G71: -33633.144 | H71: -32138.3376 | I71: -32512.0392 | J71: -31764.636 | K71: -30269.8296 | L71: -30643.5312 | M71: -29148.7248 | N71: -29522.4264 | O71: -373701.6
A72: Cold/Wet (1999)Surface Water | B72: Surface Water | C72: -45931.98552 | D72: -40324.47918 | E72: -29128.58576 | F72: -14083.76232 | G72: -4993.769341 | H72: -2025.464931 | I72: -1202.888247 | J72: -390.7239252 | K72: -328.5100557 | L72: -3015.160044 | M72: -21309.16139 | N72: -45403.10928 | O72: -208137.6
A73: Cold/Wet (1999)Surface Water | B73: Surface Water | C73: -45931.98552 | D73: -40324.47918 | E73: -29128.58576 | F73: -14083.76232 | G73: -4993.769341 | H73: -2025.464931 | I73: -1202.888247 | J73: -390.7239252 | K73: -328.5100557 | L73: -3015.160044 | M73: -21309.16139 | N73: -45403.10928 | O73: -208137.6
A74: Cold/Wet (1999)Water Well Useage | B74: Water Well Useage | C74: -34535.4 | D74: -37413.35 | E74: -43169.25 | F74: -46047.2 | G74: -51803.1 | H74: -57559 | I74: -63314.9 | J74: -66192.85 | K74: -57559 | L74: -46047.2 | M74: -40291.3 | N74: -31657.45 | O74: -575590
A75: Cold/Wet (1999)Net Gain | B75: Net Gain | C75: 476162.6729 | D75: 475347.2854 | E75: 191752.0047 | F75: 15364.10435 | G75: 5447.748372 | H75: 2209.598107 | I75: 1312.241724 | J75: 426.244282 | K75: 358.3746062 | L75: 154586.2019 | M75: 267769.0829 | N75: 310970.8108 | O75: 1901706.37
A76: Cold/Wet (1999)Net Loss | B76: Net Loss | C76: -173273.5263 | D76: -167106.7055 | E76: -171978.5055 | F76: -177862.9508 | G76: -175512.4259 | H76: -198913.1613 | I76: -216990.4104 | J76: -185569.4418 | K76: -160292.1877 | L76: -143014.2557 | M76: -150969.3377 | N76: -167575.1904 | O76: -2089058.099
A77: Cold/Wet (1999)Net Total (Gain - Loss) | B77: Net Total (Gain - Loss) | C77: 302889.1466 | D77: 308240.5799 | E77: 19773.49917 | F77: -162498.8465 | G77: -170064.6775 | H77: -196703.5632 | I77: -215678.1687 | J77: -185143.1975 | K77: -159933.813 | L77: 11571.9462 | M77: 116799.7452 | N77: 143395.6204 | O77: -187351.7289
A78: Cold/Wet (1999)
A79: Cold/Wet (1999)
A82: =A79 -> Cold/Wet (1999)

Sheet Climate Dashboard
A1: Climate Dashboard
A4: Summary Sheet Links | B4: This page provides the climate information use to develop the groundwater models. The climate data is provided in the tables below the graph.
B6: Please use the check boxes below to select which information you would like to show on the graph.
E7: Condition | I7: Data | AN7: Hot/Dry | AO7: TRUE | AQ7: Temp. (°C) | AR7: FALSE
AN8: 30 Year Average | AO8: TRUE | AQ8: Precipitation (mm) | AR8: FALSE
AN9: Cold/Wet | AO9: TRUE | AQ9: Actual Evapotranspiration (mm) | AR9: FALSE
AQ10: Sum of Surplus Water (mm) | AR10: TRUE
AQ11: Soil Moisture Storage (mm) | AR11: FALSE
AN36: =AN42 -> Hot/Dry Sum of Surplus Water (mm)
B37: Shawnigan Creek | AO37: 1 | AP37: =AO37+1 -> 2 | AQ37: =AP37+1 -> 3 | AR37: 4 | AS37: 5 | AT37: 6 | AU37: 7 | AV37: 8 | AW37: 9 | AX37: 10 | AY37: 11 | AZ37: 12 | BA37: 13 | BB37: 14 | BC37: 15 | BD37: 16 | BE37: 17 | BF37: 18 | BG37: 19 | BH37: 20 | BI37: 21 | BJ37: 22 | BK37: 23 | BL37: 24 | BM37: 25 | BN37: 26 | BO37: 27 | BP37: 28 | BQ37: 29 | BR37: 30 | BS37: 31 | BT37: 32 | BU37: 33 | BV37: 34 | BW37: 35 | BX37: 36
A38: Hot/Dry | B38: Month-Year | C38: 1987-01-01 | D38: 1987-02-01 | E38: 1987-03-01 | F38: 1987-04-01 | G38: 1987-05-01 | H38: 1987-06-01 | I38: 1987-07-01 | J38: 1987-08-01 | K38: 1987-09-01 | L38: 1987-10-01 | M38: 1987-11-01 | N38: 1987-12-01 | O38: 1988-01-01 | P38: 1988-02-01 | Q38: 1988-03-01 | R38: 1988-04-01 | S38: 1988-05-01 | T38: 1988-06-01 | U38: 1988-07-01 | V38: 1988-08-01 | W38: 1988-09-01 | X38: 1988-10-01 | Y38: 1988-11-01 | Z38: 1988-12-01 | AA38: 1989-01-01 | AB38: 1989-02-01 | AC38: 1989-03-01 | AD38: 1989-04-01 | AE38: 1989-05-01 | AF38: 1989-06-01 | AG38: 1989-07-01 | AH38: 1989-08-01 | AI38: 1989-09-01 | AJ38: 1989-10-01 | AK38: 1989-11-01 | AL38: 1989-12-01 | AO38: =IF(OR($AO$8=TRUE,AND($AO$7=TRUE,$AO$9=TRUE)),TEXT(AO37,"d"),IF(AND($AO$7=TRUE,$AO$9=FALSE),C38,C50)) -> 1 | AP38: =IF(OR($AO$8=TRUE,AND($AO$7=TRUE,$AO$9=TRUE)),TEXT(AP37,"d"),IF(AND($AO$7=TRUE,$AO$9=FALSE),D38,D50)) -> 2 | AQ38: 3 | AR38: 4 | AS38: 5 | AT38: 6 | AU38: 7 | AV38: 8 | AW38: 9 | AX38: 10 | AY38: 11 | AZ38: 12 | BA38: 13 | BB38: 14 | BC38: 15 | BD38: 16 | BE38: 17 | BF38: 18 | BG38: 19 | BH38: 20 | BI38: 21 | BJ38: 22 | BK38: 23 | BL38: 24 | BM38: 25 | BN38: 26 | BO38: 27 | BP38: 28 | BQ38: 29 | BR38: 30 | BS38: 31 | BT38: =IF(OR($AO$8=TRUE,AND($AO$7=TRUE,$AO$9=TRUE)),TEXT(BT37,"##"),IF(AND($AO$7=TRUE,$AO$9=FALSE),AH38,AH50)) -> 32 | BU38: =IF(OR($AO$8=TRUE,AND($AO$7=TRUE,$AO$9=TRUE)),TEXT(BU37,"##"),IF(AND($AO$7=TRUE,$AO$9=FALSE),AI38,AI50)) -> 33 | BV38: =IF(OR($AO$8=TRUE,AND($AO$7=TRUE,$AO$9=TRUE)),TEXT(BV37,"##"),IF(AND($AO$7=TRUE,$AO$9=FALSE),AJ38,AJ50)) -> 34 | BW38: =IF(OR($AO$8=TRUE,AND($AO$7=TRUE,$AO$9=TRUE)),TEXT(BW37,"##"),IF(AND($AO$7=TRUE,$AO$9=FALSE),AK38,AK50)) -> 35 | BX38: =IF(OR($AO$8=TRUE,AND($AO$7=TRUE,$AO$9=TRUE)),TEXT(BX37,"##"),IF(AND($AO$7=TRUE,$AO$9=FALSE),AL38,AL50)) -> 36
B39: Temp. (°C) | C39: 3.5 | D39: 5.6 | E39: 6.6 | F39: 9.5 | G39: 12.4 | H39: 15.8 | I39: 17.3 | J39: 17.8 | K39: 16.3 | L39: 11.6 | M39: 7.4 | N39: 2.8 | O39: 2.7 | P39: 5.1 | Q39: 6 | R39: 9.2 | S39: 11.9 | T39: 14.1 | U39: 17.4 | V39: 17.6 | W39: 14.4 | X39: 11.3 | Y39: 6.2 | Z39: 4.1 | AA39: 2.9 | AB39: -0.7 | AC39: 3.9 | AD39: 10 | AE39: 12.3 | AF39: 15.9 | AG39: 16.7 | AH39: 16.8 | AI39: 16.2 | AJ39: 10.1 | AK39: 6.6 | AL39: 5 | AN39: =$A$38&" "&B39 -> Hot/Dry Temp. (°C) | AO39: =IF(AND($AO$7=TRUE,$AR7=TRUE),C39,#N/A) ->  | AY39: =IF(AND($AO$7=TRUE,$AR7=TRUE),M39,#N/A) ->  | BI39: =IF(AND($AO$7=TRUE,$AR7=TRUE),W39,#N/A) ->  | BS39: =IF(AND($AO$7=TRUE,$AR7=TRUE),AG39,#N/A) -> 
B40: Precipitation (mm) | C40: 214.2 | D40: 70.4 | E40: 120.2 | F40: 65 | G40: 56 | H40: 6.8 | I40: 14.2 | J40: 18.4 | K40: 5.6 | L40: 13.8 | M40: 156.8 | N40: 211.2 | O40: 144.2 | P40: 52.4 | Q40: 148.8 | R40: 96 | S40: 60.6 | T40: 38.4 | U40: 23.8 | V40: 16.8 | W40: 80 | X40: 88.4 | Y40: 233.4 | Z40: 139.4 | AA40: 166.1 | AB40: 90 | AC40: 157.2 | AD40: 62.6 | AE40: 42.2 | AF40: 28.2 | AG40: 28 | AH40: 30 | AI40: 2.6 | AJ40: 69.6 | AK40: 123.4 | AL40: 142.8 | AN40: =$A$38&" "&B40 -> Hot/Dry Precipitation (mm)
B41: Actual Evapotranspiration (mm) | C41: 10.3 | D41: 18.3 | E41: 28.60644685 | F41: 48.7 | G41: 75 | H41: 68.8 | I41: 48.2 | J41: 34.4 | K41: 13.6 | L41: 15.8 | M41: 24.7 | N41: 7.452005138 | O41: 8.5 | P41: 17.8 | Q41: 27.50699665 | R41: 49.3 | S41: 75.6 | T41: 79.4 | U41: 67.8 | V41: 39.8 | W41: 74.1 | X41: 49.8 | Y41: 21.7 | Z41: 12.7 | AA41: 9.151093766 | AB41: 0 | AC41: 17.25856031 | AD41: 54.2 | AE41: 75.2 | AF41: 70.2 | AG41: 64 | AH41: 45 | AI41: 12.6 | AJ41: 44.1 | AK41: 23.3 | AL41: 15.8 | AN41: =$A$38&" "&B41 -> Hot/Dry Actual Evapotranspiration (mm)
B42: Sum of Surplus Water (mm) | C42: 203.9 | D42: 52.1 | E42: 91.6 | F42: 16.3 | G42: -19 | H42: -62 | I42: -34 | J42: -16 | K42: -8 | L42: -2 | M42: 132.1 | N42: 203.7 | O42: 135.7 | P42: 34.6 | Q42: 121.2930033 | R42: 46.7 | S42: -15 | T42: -41 | U42: -44 | V42: -23 | W42: 5.9 | X42: 38.6 | Y42: 211.7 | Z42: 126.7 | AA42: 156.9489062 | AB42: 90 | AC42: 139.9414397 | AD42: 8.4 | AE42: -33 | AF42: -42 | AG42: -36 | AH42: -15 | AI42: -10 | AJ42: 25.5 | AK42: 100.1 | AL42: 127 | AN42: =$A$38&" "&B42 -> Hot/Dry Sum of Surplus Water (mm) | AO42: 203.9 | AP42: 52.1 | AQ42: 91.6 | AR42: 16.3 | AS42: -19 | AT42: -62 | AU42: -34 | AV42: -16 | AW42: -8 | AX42: -2 | AY42: 132.1 | AZ42: 203.7 | BA42: 135.7 | BB42: 34.6 | BC42: 121.2930033 | BD42: 46.7 | BE42: -15 | BF42: -41 | BG42: -44 | BH42: -23 | BI42: 5.9 | BJ42: 38.6 | BK42: 211.7 | BL42: 126.7 | BM42: 156.9489062 | BN42: 90 | BO42: 139.9414397 | BP42: 8.4 | BQ42: -33 | BR42: -42 | BS42: -36 | BT42: -15 | BU42: -10 | BV42: 25.5 | BW42: 100.1 | BX42: 127
B43: Soil Moisture Storage (mm) | C43: 150 | D43: 150 | E43: 150 | F43: 150 | G43: 131 | H43: 69 | I43: 35 | J43: 19 | K43: 11 | L43: 9 | M43: 141 | N43: 150 | O43: 150 | P43: 150 | Q43: 150 | R43: 150 | S43: 135 | T43: 94 | U43: 50 | V43: 27 | W43: 33 | X43: 72 | Y43: 150 | Z43: 150 | AA43: 150 | AB43: 150 | AC43: 150 | AD43: 150 | AE43: 117 | AF43: 75 | AG43: 39 | AH43: 24 | AI43: 14 | AJ43: 39 | AK43: 140 | AL43: 150 | AN43: =$A$38&" "&B43 -> Hot/Dry Soil Moisture Storage (mm)
A44: 30 Year Average | B44: Month-Year | C44: 1 | D44: 2 | E44: 3 | F44: 4 | G44: 5 | H44: 6 | I44: 7 | J44: 8 | K44: 9 | L44: 10 | M44: 11 | N44: 12 | O44: 13 | P44: 14 | Q44: 15 | R44: 16 | S44: 17 | T44: 18 | U44: 19 | V44: 20 | W44: 21 | X44: 22 | Y44: 23 | Z44: 24 | AA44: 25 | AB44: 26 | AC44: 27 | AD44: 28 | AE44: 29 | AF44: 30 | AG44: 31 | AH44: 32 | AI44: 33 | AJ44: 34 | AK44: 35 | AL44: 36
B45: Temp. (°C) | C45: 3.1 | D45: 4.286666667 | E45: 6 | F45: 8.7 | G45: 12.1 | H45: 15.1 | I45: 17.6 | J45: 17.8 | K45: 14.8 | L45: 10 | M45: 5.5 | N45: 3.1 | O45: 3.1 | P45: 4.286666667 | Q45: 6 | R45: 8.7 | S45: 12.1 | T45: 15.1 | U45: 17.6 | V45: 17.8 | W45: 14.8 | X45: 10 | Y45: 5.5 | Z45: 3.1 | AA45: 3.1 | AB45: 4.286666667 | AC45: 6 | AD45: 8.7 | AE45: 12.1 | AF45: 15.1 | AG45: 17.6 | AH45: 17.8 | AI45: 14.8 | AJ45: 10 | AK45: 5.5 | AL45: 3.1 | AN45: =$A$44&" "&B45 -> 30 Year Average Temp. (°C) | AO45: =IF(AND($AO$8=TRUE,$AR7=TRUE),C45,#N/A) ->  | AY45: =IF(AND($AO$8=TRUE,$AR7=TRUE),M45,#N/A) ->  | BI45: =IF(AND($AO$8=TRUE,$AR7=TRUE),W45,#N/A) ->  | BS45: =IF(AND($AO$8=TRUE,$AR7=TRUE),AG45,#N/A) -> 
B46: Precipitation (mm) | C46: 201.4133333 | D46: 138.7166667 | E46: 117.9133333 | F46: 68.48333333 | G46: 48.85 | H46: 39.46 | I46: 23.25333333 | J46: 28.33666667 | K46: 37.37333333 | L46: 109.71 | M46: 220.86 | N46: 206.1566667 | O46: 201.4133333 | P46: 138.7166667 | Q46: 117.9133333 | R46: 68.48333333 | S46: 48.85 | T46: 39.46 | U46: 23.25333333 | V46: 28.33666667 | W46: 37.37333333 | X46: 109.71 | Y46: 220.86 | Z46: 206.1566667 | AA46: 201.4133333 | AB46: 138.7166667 | AC46: 117.9133333 | AD46: 68.48333333 | AE46: 48.85 | AF46: 39.46 | AG46: 23.25333333 | AH46: 28.33666667 | AI46: 37.37333333 | AJ46: 109.71 | AK46: 220.86 | AL46: 206.1566667 | AN46: =$A$44&" "&B46 -> 30 Year Average Precipitation (mm)
B47: Actual Evapotranspiration (mm) | C47: 10.06997446 | D47: 14.08297087 | E47: 27.96880049 | F47: 46.88306106 | G47: 74.85 | H47: 80.46 | I47: 63.25333333 | J47: 46.33666667 | K47: 43.37333333 | L47: 43.92690802 | M47: 19.02256276 | N47: 9.394581029 | O47: 10.06997446 | P47: 14.08297087 | Q47: 27.96880049 | R47: 46.88306106 | S47: 74.85 | T47: 80.46 | U47: 63.25333333 | V47: 46.33666667 | W47: 43.37333333 | X47: 43.92690802 | Y47: 19.02256276 | Z47: 9.394581029 | AA47: 10.06997446 | AB47: 14.08297087 | AC47: 27.96880049 | AD47: 46.88306106 | AE47: 74.85 | AF47: 80.46 | AG47: 63.25333333 | AH47: 46.33666667 | AI47: 43.37333333 | AJ47: 43.92690802 | AK47: 19.02256276 | AL47: 9.394581029 | AN47: =$A$44&" "&B47 -> 30 Year Average Actual Evapotranspiration (mm)
B48: Sum of Surplus Water (mm) | C48: 191.3433589 | D48: 124.6336958 | E48: 89.94453284 | F48: 21.60027227 | G48: -26 | H48: -41 | I48: -40 | J48: -18 | K48: -6 | L48: 65.78309198 | M48: 201.8374372 | N48: 196.7620856 | O48: 191.3433589 | P48: 124.6336958 | Q48: 89.94453284 | R48: 21.60027227 | S48: -26 | T48: -41 | U48: -40 | V48: -18 | W48: -6 | X48: 65.78309198 | Y48: 201.8374372 | Z48: 196.7620856 | AA48: 191.3433589 | AB48: 124.6336958 | AC48: 89.94453284 | AD48: 21.60027227 | AE48: -26 | AF48: -41 | AG48: -40 | AH48: -18 | AI48: -6 | AJ48: 65.78309198 | AK48: 201.8374372 | AL48: 196.7620856 | AN48: =$A$44&" "&B48 -> 30 Year Average Sum of Surplus Water (mm) | AO48: 191.3433589 | AP48: 124.6336958 | AQ48: 89.94453284 | AR48: 21.60027227 | AS48: -26 | AT48: -41 | AU48: -40 | AV48: -18 | AW48: -6 | AX48: 65.78309198 | AY48: 201.8374372 | AZ48: 196.7620856 | BA48: 191.3433589 | BB48: 124.6336958 | BC48: 89.94453284 | BD48: 21.60027227 | BE48: -26 | BF48: -41 | BG48: -40 | BH48: -18 | BI48: -6 | BJ48: 65.78309198 | BK48: 201.8374372 | BL48: 196.7620856 | BM48: 191.3433589 | BN48: 124.6336958 | BO48: 89.94453284 | BP48: 21.60027227 | BQ48: -26 | BR48: -41 | BS48: -40 | BT48: -18 | BU48: -6 | BV48: 65.78309198 | BW48: 201.8374372 | BX48: 196.7620856
B49: Soil Moisture Storage (mm) | C49: 150 | D49: 150 | E49: 150 | F49: 150 | G49: 124 | H49: 83 | I49: 43 | J49: 25 | K49: 19 | L49: 84.78309198 | M49: 150 | N49: 150 | O49: 150 | P49: 150 | Q49: 150 | R49: 150 | S49: 124 | T49: 83 | U49: 43 | V49: 25 | W49: 19 | X49: 84.78309198 | Y49: 150 | Z49: 150 | AA49: 150 | AB49: 150 | AC49: 150 | AD49: 150 | AE49: 124 | AF49: 83 | AG49: 43 | AH49: 25 | AI49: 19 | AJ49: 84.78309198 | AK49: 150 | AL49: 150 | AN49: =$A$44&" "&B49 -> 30 Year Average Soil Moisture Storage (mm)
A50: Cold/Wet | B50: Month-Year | C50: 1997-01-01 | D50: 1997-02-01 | E50: 1997-03-01 | F50: 1997-04-01 | G50: 1997-05-01 | H50: 1997-06-01 | I50: 1997-07-01 | J50: 1997-08-01 | K50: 1997-09-01 | L50: 1997-10-01 | M50: 1997-11-01 | N50: 1997-12-01 | O50: 1998-01-01 | P50: 1998-02-01 | Q50: 1998-03-01 | R50: 1998-04-01 | S50: 1998-05-01 | T50: 1998-06-01 | U50: 1998-07-01 | V50: 1998-08-01 | W50: 1998-09-01 | X50: 1998-10-01 | Y50: 1998-11-01 | Z50: 1998-12-01 | AA50: 1999-01-01 | AB50: 1999-02-01 | AC50: 1999-03-01 | AD50: 1999-04-01 | AE50: 1999-05-01 | AF50: 1999-06-01 | AG50: 1999-07-01 | AH50: 1999-08-01 | AI50: 1999-09-01 | AJ50: 1999-10-01 | AK50: 1999-11-01 | AL50: 1999-12-01
B51: Temp. (°C) | C51: 2.7 | D51: 4.7 | E51: 5.4 | F51: 8.3 | G51: 13.5 | H51: 14.6 | I51: 17.6 | J51: 18.5 | K51: 15.4 | L51: 9.9 | M51: 6.9 | N51: 4.4 | O51: 3.1 | P51: 5.5 | Q51: 6.7 | R51: 8.9 | S51: 13 | T51: 16.1 | U51: 18.9 | V51: 18.8 | W51: 16 | X51: 10.1 | Y51: 7 | Z51: 2.9 | AA51: 3.9 | AB51: 3.7 | AC51: 4.7 | AD51: 7.7 | AE51: 9.9 | AF51: 13.7 | AG51: 16.5 | AH51: 18 | AI51: 14.5 | AJ51: 9.3 | AK51: 6.4 | AL51: 4.3 | AN51: =$A$50&" "&B51 -> Cold/Wet Temp. (°C) | AO51: =IF(AND($AO$9=TRUE,$AR7=TRUE),C51,#N/A) ->  | AY51: =IF(AND($AO$9=TRUE,$AR7=TRUE),M51,#N/A) ->  | BI51: =IF(AND($AO$9=TRUE,$AR7=TRUE),W51,#N/A) ->  | BS51: =IF(AND($AO$9=TRUE,$AR7=TRUE),AG51,#N/A) -> 
B52: Precipitation (mm) | C52: 258.6 | D52: 74.9 | E52: 278 | F52: 107 | G52: 77 | H52: 85.6 | I52: 29.8 | J52: 36.4 | K52: 113.2 | L52: 215 | M52: 156.4 | N52: 133.6 | O52: 278.6 | P52: 153.8 | Q52: 94.6 | R52: 18.2 | S52: 42.8 | T52: 25.6 | U52: 60.8 | V52: 1.8 | W52: 18.2 | X52: 96.2 | Y52: 398 | Z52: 299.2 | AA52: 369 | AB52: 373.2 | AC52: 156.2 | AD52: 27.2 | AE52: 48.4 | AF52: 44.2 | AG52: 9.2 | AH52: 30.4 | AI52: 23.8 | AJ52: 168.4 | AK52: 227.8 | AL52: 232.4 | AN52: =$A$50&" "&B52 -> Cold/Wet Precipitation (mm)
B53: Actual Evapotranspiration (mm) | C53: 8.072359129 | D53: 15.67342597 | E53: 23.80735902 | F53: 43.2281069 | G53: 85 | H53: 94.6 | I53: 88.8 | J53: 66.4 | K53: 78.9 | L53: 42.3 | M53: 23.7 | N53: 13.2 | O53: 8.665978852 | P53: 17.57008444 | Q53: 28.6988796 | R53: 43.2 | S53: 70.8 | T53: 64.6 | U53: 81.8 | V53: 21.8 | W53: 24.2 | X53: 41.7 | Y53: 22.9 | Z53: 7.58410118 | AA53: 13.9 | AB53: 13.68108304 | AC53: 22.86687313 | AD53: 43.2 | AE53: 61.4 | AF53: 78.2 | AG53: 53.2 | AH53: 48.4 | AI53: 31.8 | AJ53: 42.3 | AK53: 24 | AL53: 14.5 | AN53: =$A$50&" "&B53 -> Cold/Wet Actual Evapotranspiration (mm)
B54: Sum of Surplus Water (mm) | C54: 250.5276409 | D54: 59.22657403 | E54: 254.192641 | F54: 63.7718931 | G54: -8 | H54: -9 | I54: -59 | J54: -30 | K54: 34.3 | L54: 172.7 | M54: 132.7 | N54: 120.4 | O54: 269.9340211 | P54: 136.2299156 | Q54: 65.9011204 | R54: -25 | S54: -28 | T54: -39 | U54: -21 | V54: -20 | W54: -6 | X54: 54.5 | Y54: 375.1 | Z54: 291.6 | AA54: 355.1 | AB54: 359.518917 | AC54: 133.3331269 | AD54: -16 | AE54: -13 | AF54: -34 | AG54: -44 | AH54: -18 | AI54: -8 | AJ54: 126.1 | AK54: 203.8 | AL54: 217.9 | AN54: =$A$50&" "&B54 -> Cold/Wet Sum of Surplus Water (mm) | AO54: 250.5276409 | AP54: 59.22657403 | AQ54: 254.192641 | AR54: 63.7718931 | AS54: -8 | AT54: -9 | AU54: -59 | AV54: -30 | AW54: 34.3 | AX54: 172.7 | AY54: 132.7 | AZ54: 120.4 | BA54: 269.9340211 | BB54: 136.2299156 | BC54: 65.9011204 | BD54: -25 | BE54: -28 | BF54: -39 | BG54: -21 | BH54: -20 | BI54: -6 | BJ54: 54.5 | BK54: 375.1 | BL54: 291.6 | BM54: 355.1 | BN54: 359.518917 | BO54: 133.3331269 | BP54: -16 | BQ54: -13 | BR54: -34 | BS54: -44 | BT54: -18 | BU54: -8 | BV54: 126.1 | BW54: 203.8 | BX54: 217.9
B55: Soil Moisture Storage (mm) | C55: 150 | D55: 150 | E55: 150 | F55: 150 | G55: 142 | H55: 133 | I55: 74 | J55: 44 | K55: 78 | L55: 150 | M55: 150 | N55: 150 | O55: 150 | P55: 150 | Q55: 150 | R55: 125 | S55: 97 | T55: 58 | U55: 37 | V55: 17 | W55: 11 | X55: 66 | Y55: 150 | Z55: 150 | AA55: 150 | AB55: 150 | AC55: 150 | AD55: 134 | AE55: 121 | AF55: 87 | AG55: 43 | AH55: 25 | AI55: 17 | AJ55: 143 | AK55: 150 | AL55: 150 | AN55: =$A$50&" "&B55 -> Cold/Wet Soil Moisture Storage (mm)
F59: =SUM(C46:N46) -> 1240.526667

Sheet Aquifer Summary
A1: Aquifer Summary
B4: Please use the buttons below to navigate to the Cover Sheet or any of the Summary Sheets.
L5: Table L5
L6: Comparison of Recharge Rate by Aquifer and Condition
A8: Aquifer | B8: Infiltration (m3/yr) | E8: Groundwater to/from Creek (m3/yr) | F8: Groundwater to/from Ocean (m3/yr) | G8: Groundwater Out to other Aquifer (m3/yr) | H8: Groundwater In from other Aquifers (m3/yr) | I8: Surface Water Contribution (m3/yr) | J8: Water Useage (m3/yr) | L8: Aquifer | M8: Infiltration Rate (m3/yr/m2)
B9: Cold, Wet | C9: 30 yr Average | D9: Hot, Dry | M9: Cold, Wet | N9: 30 yr Average | O9: Hot, Dry
A10: Bedrock 198 | B10: =SUM('Bedrock 198'!U39:U41) -> 618220.6283 | C10: =SUM('Bedrock 198'!U9:U11) -> 618220.6283 | D10: =SUM('Bedrock 198'!U24:U26) -> 618220.6283 | E10: =SUMIF('Bedrock 198'!D82:D97,"Koksilah River",'Bedrock 198'!M82:M97)+SUMIF('Bedrock 198'!D82:D97,"Inlet",'Bedrock 198'!M82:M97) -> -37179.07973 | F10: =SUMIF('Bedrock 198'!D82:D97,"Ocean",'Bedrock 198'!M82:M97) -> 0 | G10: =SUMIFS('Bedrock 198'!M82:M97,'Bedrock 198'!D82:D97,"AQ*",'Bedrock 198'!C82:C97,"Out")+SUMIFS('Bedrock 198'!M82:M97,'Bedrock 198'!D82:D97,"Leakage*",'Bedrock 198'!C82:C97,"Out") -> -20236.0213 | H10: =SUMIFS('Bedrock 198'!M82:M97,'Bedrock 198'!D82:D97,"AQ*",'Bedrock 198'!C82:C97,"In")+SUMIFS('Bedrock 198'!M82:M97,'Bedrock 198'!D82:D97,"Leakage*",'Bedrock 198'!C82:C97,"In") -> 788843.9881 | I10: 0 | J10: =SUM('Bedrock 198'!AB102:AB108) -> 238252 | L10: Bedrock 198 | M10: =SUM('Bedrock 198'!T39) -> 0.1 | N10: =SUM('Bedrock 198'!T9) -> 0.1 | O10: =SUM('Bedrock 198'!T24) -> 0.1
A11: Bedrock 200 | B11: ='Bedrock 200'!$U$39 -> 23859859.98 | C11: ='Bedrock 200'!$U$9 -> 14377386.53 | D11: ='Bedrock 200'!$U$24 -> 9672232.994 | E11: =SUMIFS('Bedrock 200'!M82:M118,'Bedrock 200'!D82:D118,"*River")+SUMIFS('Bedrock 200'!M82:M118,'Bedrock 200'!D82:D118,"*Creek") -> -10990746.51 | F11: =SUMIFS('Bedrock 200'!M82:M118,'Bedrock 200'!D82:D118,"Ocean",'Bedrock 200'!C82:C118,"Out") -> 0 | G11: =SUMIFS('Bedrock 200'!M82:M118,'Bedrock 200'!D82:D118,"N/A",'Bedrock 200'!C82:C118,"Out")+SUMIFS('Bedrock 200'!M82:M118,'Bedrock 200'!D82:D118,"AQ*",'Bedrock 200'!C82:C118,"Out") -> -4135103.549 | H11: =SUMIFS('Bedrock 200'!M82:M118,'Bedrock 200'!D82:D118,"N/A",'Bedrock 200'!C82:C118,"In")+SUMIFS('Bedrock 200'!M82:M118,'Bedrock 200'!D82:D118,"AQ*",'Bedrock 200'!C82:C118,"In") -> 674169.6 | I11: ='Bedrock 200'!I128 -> -1986768 | J11: =SUM('Bedrock 200'!AB103:AB109) -> 45230 | L11: Bedrock 200 | M11: ='Bedrock 200'!$T$39 -> 0.8856702148 | N11: ='Bedrock 200'!$T$9 -> 0.5336838953 | O11: ='Bedrock 200'!$T$24 -> 0.3590301317
A12: Bedrock 202 | B12: ='Bedrock 202'!$U$39 -> 14606582.29 | C12: ='Bedrock 202'!$U$9 -> 8801580.544 | D12: ='Bedrock 202'!$U$24 -> 5921169.16 | E12: =SUMIFS('Bedrock 202'!M82:M129,'Bedrock 202'!D82:D129,"*River")+SUMIFS('Bedrock 202'!M82:M129,'Bedrock 202'!D82:D129,"*Creek") -> -680441.4225 | F12: =SUMIFS('Bedrock 202'!M82:M129,'Bedrock 202'!D82:D129,"Ocean",'Bedrock 202'!C82:C129,"Out") -> 0 | G12: =SUMIFS('Bedrock 202'!M82:M129,'Bedrock 202'!D82:D129,"N/A",'Bedrock 202'!C82:C129,"Out")+SUMIFS('Bedrock 202'!M82:M129,'Bedrock 202'!D82:D129,"AQ*",'Bedrock 202'!C82:C129,"Out") -> -12571613.27 | H12: =SUMIFS('Bedrock 202'!M82:M129,'Bedrock 202'!D82:D129,"N/A",'Bedrock 202'!C82:C129,"In")+SUMIFS('Bedrock 202'!M82:M129,'Bedrock 202'!D82:D129,"AQ*",'Bedrock 202'!C82:C129,"In")+SUMIFS('Bedrock 202'!M82:M129,'Bedrock 202'!D82:D129,"Leakage*",'Bedrock 202'!C82:C129,"In") -> 633789.9 | I12: ='Bedrock 202'!I137 -> 1173139.2 | J12: =SUM('Bedrock 202'!AB104:AB110) -> 191855 | L12: Bedrock 202 | M12: ='Bedrock 202'!$T$39 -> 0.7734727058 | N12: ='Bedrock 202'!$T$9 -> 0.4660763336 | O12: ='Bedrock 202'!$T$24 -> 0.3135478678
A13: Bedrock 203 | B13: ='Bedrock 203'!$U$39 -> 25782231.43 | C13: ='Bedrock 203'!$U$9 -> 15535762.04 | D13: ='Bedrock 203'!$U$24 -> 10451517.72 | E13: =SUMIFS('Bedrock 203'!M82:M117,'Bedrock 203'!D82:D117,"*river")+SUMIFS('Bedrock 203'!M82:M117,'Bedrock 203'!D82:D117,"*creek") -> 0 | F13: =SUMIFS('Bedrock 203'!M82:M117,'Bedrock 203'!D82:D117,"ocean") -> 0 | G13: =SUMIFS('Bedrock 203'!M82:M117,'Bedrock 203'!D82:D117,"N/A",'Bedrock 203'!C82:C117,"Out")+SUMIFS('Bedrock 203'!M82:M117,'Bedrock 203'!D82:D117,"AQ*",'Bedrock 203'!C82:C117,"Out") -> -5851.613743 | H13: =SUMIFS('Bedrock 203'!M82:M117,'Bedrock 203'!D82:D117,"N/A",'Bedrock 203'!C82:C117,"In")+SUMIFS('Bedrock 203'!M82:M117,'Bedrock 203'!D82:D117,"AQ*",'Bedrock 203'!C82:C117,"In") -> 37954.56174 | I13: ='Bedrock 203'!I125 -> -16339122.34 | J13: =SUM('Bedrock 203'!AB103:AB109) -> 492906 | L13: Bedrock 203 | M13: ='Bedrock 203'!$T$39 -> 0.8312337917 | N13: ='Bedrock 203'!$T$9 -> 0.500881796 | O13: ='Bedrock 203'!$T$24 -> 0.3369628703
A14: Bedrock 204 | B14: ='Bedrock 204'!$U$39 -> 6874387.977 | C14: ='Bedrock 204'!$U$9 -> 4142343.382 | D14: ='Bedrock 204'!$U$24 -> 2786717.2 | E14: =SUMIFS('Bedrock 204'!M82:M135,'Bedrock 204'!D82:D135,"*River")+SUMIFS('Bedrock 204'!M82:M135,'Bedrock 204'!D82:D135,"*CREEK") -> -2953635.854 | F14: =SUMIFS('Bedrock 204'!M82:M135,'Bedrock 204'!D82:D135,"OCEAN") -> -4465004.905 | G14: =SUMIFS('Bedrock 204'!M82:M135,'Bedrock 204'!D82:D135,"N/A",'Bedrock 204'!C82:C135,"Out")+SUMIFS('Bedrock 204'!M82:M135,'Bedrock 204'!D82:D135,"AQ*",'Bedrock 204'!C82:C135,"Out")+SUMIFS('Bedrock 204'!M82:M135,'Bedrock 204'!D82:D135,"Leakage*",'Bedrock 204'!C82:C135,"Out")+SUMIFS('Bedrock 204'!M82:M135,'Bedrock 204'!D82:D135,"Under*",'Bedrock 204'!C82:C135,"Out") -> -5070479.531 | H14: =SUMIFS('Bedrock 204'!M82:M135,'Bedrock 204'!D82:D135,"N/A",'Bedrock 204'!C82:C135,"In")+SUMIFS('Bedrock 204'!M82:M135,'Bedrock 204'!D82:D135,"AQ*",'Bedrock 204'!C82:C135,"In")+SUMIFS('Bedrock 204'!M82:M135,'Bedrock 204'!D82:D135,"Leakage*",'Bedrock 204'!C82:C135,"In")+SUMIFS('Bedrock 204'!M82:M135,'Bedrock 204'!D82:D135,"Under*",'Bedrock 204'!C82:C135,"In") -> 11921102.06 | I14: ='Bedrock 204'!I143 -> 978246.72 | J14: =SUM('Bedrock 204'!AB103:AB109) -> 608120 | L14: Bedrock 204 | M14: ='Bedrock 204'!$T$39 -> 0.6001995819 | N14: ='Bedrock 204'!$T$9 -> 0.3616660529 | O14: ='Bedrock 204'!$T$24 -> 0.2433069684
A15: Bedrock 207 | B15: ='Bedrock 207'!$U$39 -> 16022181.78 | C15: ='Bedrock 207'!$U$9 -> 9654587.269 | D15: ='Bedrock 207'!$U$24 -> 6495020.31 | E15: =SUMIFS('Bedrock 207'!M82:M126,'Bedrock 207'!D82:D126,"*River")+SUMIFS('Bedrock 207'!M82:M126,'Bedrock 207'!D82:D126,"*creek") -> -2614056.767 | F15: =SUMIFS('Bedrock 207'!M82:M126,'Bedrock 207'!D82:D126,"ocean") -> -6854892.245 | G15: =SUMIFS('Bedrock 207'!M82:M126,'Bedrock 207'!D82:D126,"AQ*",'Bedrock 207'!C82:C126,"out")+SUMIFS('Bedrock 207'!M82:M126,'Bedrock 207'!D82:D126,"N/A*",'Bedrock 207'!C82:C126,"out")+SUMIFS('Bedrock 207'!M82:M126,'Bedrock 207'!D82:D126,"Leakage*",'Bedrock 207'!C82:C126,"out") -> -6623.139221 | H15: =SUMIFS('Bedrock 207'!M82:M126,'Bedrock 207'!D82:D126,"AQ*",'Bedrock 207'!C82:C126,"in")+SUMIFS('Bedrock 207'!M82:M126,'Bedrock 207'!D82:D126,"N/A*",'Bedrock 207'!C82:C126,"in")+SUMIFS('Bedrock 207'!M82:M126,'Bedrock 207'!D82:D126,"Leakage*",'Bedrock 207'!C82:C126,"in") -> 1348314.688 | I15: ='Bedrock 207'!I135 -> 1793767.68 | J15: =SUM('Bedrock 207'!AB101:AB107) -> 413057 | L15: Bedrock 207 | M15: ='Bedrock 207'!$T$39 -> 0.71114748 | N15: ='Bedrock 207'!$T$9 -> 0.4285206286 | O15: ='Bedrock 207'!$T$24 -> 0.288282669
A16: Surficial 197 | B16: ='Surficial AQ 197'!$U$39 -> 17836680.63 | C16: ='Surficial AQ 197'!$U$9 -> 10747961.3 | D16: ='Surficial AQ 197'!$U$24 -> 7230575.995 | E16: =SUMIF('Surficial AQ 197'!D83:D95,"Shawnigan Creek",'Surficial AQ 197'!M83:M95) -> 0 | F16: =SUMIF('Surficial AQ 197'!D83:D95,"Ocean",'Surficial AQ 197'!M83:M95) -> -3220260.307 | G16: =SUMIFS('Surficial AQ 197'!M83:M95,'Surficial AQ 197'!D83:D95,"AQ*",'Surficial AQ 197'!C83:C95,"Out") -> -2661205.553 | H16: =SUMIFS('Surficial AQ 197'!M83:M95,'Surficial AQ 197'!D83:D95,"AQ*",'Surficial AQ 197'!C83:C95,"In") -> 271672.9041 | I16: ='Surficial AQ 197'!I101 -> -741332.7 | J16: =SUM('Surficial AQ 197'!AB106:AB112) -> 4576581 | L16: Surficial 197 | M16: ='Surficial AQ 197'!$T$39 -> 0.6076898759 | N16: ='Surficial AQ 197'!$T$9 -> 0.3661795267 | O16: ='Surficial AQ 197'!$T$24 -> 0.2463433596
A17: Surficial 199 | B17: ='Surficial AQ 199'!$U$39 -> 2243461.852 | C17: ='Surficial AQ 199'!$U$9 -> 1351856.978 | D17: ='Surficial AQ 199'!$U$24 -> 909447.3213 | E17: =SUMIFS('Surficial AQ 199'!M82:M88,'Surficial AQ 199'!D82:D88,"*river")+SUMIFS('Surficial AQ 199'!M82:M88,'Surficial AQ 199'!D82:D88,"*creek") -> -2056385.208 | F17: =SUMIFS('Surficial AQ 199'!M82:M88,'Surficial AQ 199'!D82:D88,"ocean*") -> 0 | G17: =SUMIFS('Surficial AQ 199'!M82:M88,'Surficial AQ 199'!D82:D88,"AQ*",'Surficial AQ 199'!C82:C88,"out")+SUMIFS('Surficial AQ 199'!M82:M88,'Surficial AQ 199'!D82:D88,"leakage*",'Surficial AQ 199'!C82:C88,"out")+SUMIFS('Surficial AQ 199'!M82:M88,'Surficial AQ 199'!D82:D88,"n/a*",'Surficial AQ 199'!C82:C88,"out") -> -79659.70636 | H17: =SUMIFS('Surficial AQ 199'!M82:M88,'Surficial AQ 199'!D82:D88,"AQ*",'Surficial AQ 199'!C82:C88,"in")+SUMIFS('Surficial AQ 199'!M82:M88,'Surficial AQ 199'!D82:D88,"leakage*",'Surficial AQ 199'!C82:C88,"in")+SUMIFS('Surficial AQ 199'!M82:M88,'Surficial AQ 199'!D82:D88,"n/a*",'Surficial AQ 199'!C82:C88,"in") -> 1778226.363 | I17: ='Surficial AQ 199'!I94 -> 0 | J17: =SUM('Surficial AQ 199'!AB102:AB108) -> 295251 | L17: Surficial 199 | M17: ='Surficial AQ 199'!$T$39 -> 0.6839822721 | N17: ='Surficial AQ 199'!$T$9 -> 0.4121515177 | O17: ='Surficial AQ 199'!$T$24 -> 0.2772705248
A18: Surficial 201 | B18: ='Surficial AQ 201'!$U$39 -> 1405296.637 | C18: ='Surficial AQ 201'!$U$9 -> 846798.4706 | D18: ='Surficial AQ 201'!$U$24 -> 569674.6129 | E18: ='Surficial AQ 201'!M82 -> -2759.4 | F18: 0 | G18: ='Surficial AQ 201'!M83 -> -633789.9 | H18: 0 | I18: ='Surficial AQ 201'!I89 -> 157680 | J18: =SUM('Surficial AQ 201'!AB102:AB108) -> 44135 | L18: Surficial 201 | M18: ='Surficial AQ 201'!$T$39 -> 0.6651872828 | N18: ='Surficial AQ 201'!$T$9 -> 0.4008261023 | O18: ='Surficial AQ 201'!$T$24 -> 0.2696514727
A19: Surficial 205 | B19: ='Surficial AQ 205'!$U$39 -> 1710341.944 | C19: ='Surficial AQ 205'!$U$9 -> 1030611.548 | D19: ='Surficial AQ 205'!$U$24 -> 693332.8944 | E19: ='Surficial AQ 205'!M83 -> -302745.6 | F19: 0 | G19: ='Surficial AQ 205'!M82+'Surficial AQ 205'!M84 -> -656114.319 | H19: 0 | I19: ='Surficial AQ 205'!I90 -> -170294.4 | J19: =SUM('Surficial AQ 205'!AB102:AB108) -> 132804 | L19: Surficial 205 | M19: ='Surficial AQ 205'!$T$39 -> 0.6267992862 | N19: ='Surficial AQ 205'!$T$9 -> 0.3776944048 | O19: ='Surficial AQ 205'!$T$24 -> 0.2540898706
A20: Surficial 206 | B20: ='Surficial AQ 206'!$U$39 -> 1515071.496 | C20: ='Surficial AQ 206'!$U$9 -> 912946.2004 | D20: ='Surficial AQ 206'!$U$24 -> 614174.7906 | E20: ='Surficial AQ 206'!M83 -> -108799.2 | F20: ='Surficial AQ 206'!M82 -> -264902.4 | G20: ='Surficial AQ 206'!M84 -> -772053.2246 | H20: 0 | I20: ='Surficial AQ 206'!I91 -> 18921.6 | J20: =SUM('Surficial AQ 206'!AB101:AB107) -> 575590 | L20: Surficial 206 | M20: ='Surficial AQ 206'!$T$39 -> 0.5887177648 | N20: ='Surficial AQ 206'!$T$9 -> 0.3547473819 | O20: ='Surficial AQ 206'!$T$24 -> 0.2386525064
A21: Total | B21: =SUM(B10:B20) -> 112474316.6 | C21: =SUM(C10:C20) -> 68020054.89 | D21: 45962083.63 | E21: -19746749.04 | F21: -14805059.86 | G21: -26612729.83 | H21: 17454074.06 | I21: -15115762.24 | J21: 7613781
B22: Based on Leakage from AQ 197 and AQ 199 | M22: Leakage from above
A25: Table L3 | B25: Summary of Water balance Gains/Losses by Aquifer for Average Annual Conditions (m3/year)
A26: Aquifer | G26: Average Year | J26: Total Useage
C27: Ave. Recharge | F27: Spreadsheet Check | G27: Gains | H27: Losses | I27: Water Balance | J27: Total Useage
A28: =A16 -> Surficial 197 | C28: =C16 -> 10747961.3 | F28: =H28+G28 -> -4140184.219 | G28: ='Surficial AQ 197'!$U$18 -> 11019634.21 | H28: ='Surficial AQ 197'!$U$19 -> -15159818.43 | I28: ='Surficial AQ 197'!$U$20 -> -4140184.219 | J28: =J16 -> 4576581
A29: =A10 -> Bedrock 198 | C29: =C10 -> 618220.6283 | F29: =H29+G29 -> 531739.5082 | G29: ='Bedrock 198'!$U$17 -> 827406.6092 | H29: ='Bedrock 198'!$U$18 -> -295667.101 | I29: ='Bedrock 198'!$U$19 -> 531739.5082 | J29: =J10 -> 238252
A30: =A17 -> Surficial 199 | C30: =C17 -> 1351856.978 | F30: 450447.1334 | G30: ='Surficial AQ 199'!$U$17 -> 3130083.341 | H30: ='Surficial AQ 199'!$U$18 -> -2679636.208 | I30: ='Surficial AQ 199'!$U$19 -> 450447.1334 | J30: =J17 -> 295251
A31: =A11 -> Bedrock 200 | C31: =C11 -> 14377386.53 | F31: -2106291.926 | G31: ='Bedrock 200'!$U$15 -> 15051556.13 | H31: ='Bedrock 200'!$U$16 -> -17157848.06 | I31: ='Bedrock 200'!$U$17 -> -2106291.926 | J31: =J11 -> 45230
A32: =A18 -> Surficial 201 | C32: =C18 -> 846798.4706 | F32: =H32+G32 -> 323794.1706 | G32: ='Surficial AQ 201'!$U$16 -> 1004478.471 | H32: ='Surficial AQ 201'!$U$17 -> -680684.3 | I32: ='Surficial AQ 201'!$U$18 -> 323794.1706 | J32: =J18 -> 44135
A33: =A12 -> Bedrock 202 | C33: =C12 -> 8801580.544 | F33: -2835400.051 | G33: ='Bedrock 202'!$U$16 -> 14304227.19 | H33: ='Bedrock 202'!$U$17 -> -17139627.24 | I33: ='Bedrock 202'!$U$18 -> -2835400.051 | J33: =J12 -> 191855
A34: =A13 -> Bedrock 203 | C34: =C13 -> 15535762.04 | F34: -1264163.36 | G34: ='Bedrock 203'!$U$15 -> 15573716.6 | H34: ='Bedrock 203'!$U$16 -> -16837879.96 | I34: ='Bedrock 203'!$U$17 -> -1264163.36 | J34: =J13 -> 492906
A35: =A14 -> Bedrock 204 | C35: =C14 -> 4142343.382 | F35: 3944451.87 | G35: ='Bedrock 204'!$U$16 -> 17558812.01 | H35: ='Bedrock 204'!$U$17 -> -13614360.14 | I35: ='Bedrock 204'!$U$18 -> 3944451.87 | J35: =J14 -> 608120
A36: =A19 -> Surficial 205 | C36: =C19 -> 1030611.548 | F36: =H36+G36 -> -231346.7712 | G36: ='Surficial AQ 205'!$U$16 -> 1030611.548 | H36: ='Surficial AQ 205'!$U$17 -> -1261958.319 | I36: ='Surficial AQ 205'!$U$18 -> -231346.7712 | J36: =J19 -> 132804
A37: =A20 -> Surficial 206 | C37: =C20 -> 912946.2004 | F37: =H37+G37 -> -789477.0242 | G37: ='Surficial AQ 206'!$U$16 -> 1140005.4 | H37: ='Surficial AQ 206'!$U$17 -> -1929482.425 | I37: ='Surficial AQ 206'!$U$18 -> -789477.0242 | J37: =J20 -> 575590
A38: =A15 -> Bedrock 207 | C38: =C15 -> 9654587.269 | F38: 2908040.486 | G38: ='Bedrock 207'!$U$17 -> 12796669.64 | H38: ='Bedrock 207'!$U$18 -> -9888629.151 | I38: ='Bedrock 207'!$U$19 -> 2908040.486 | J38: =J15 -> 413057
C39: =SUM(C28:C38) -> 68020054.89 | F39: =SUM(F28:F38) -> -3208390.184 | G39: =SUM(G28:G38) -> 93437201.14 | H39: =SUM(H28:H38) -> -96645591.33 | I39: =SUM(I28:I38) -> -3208390.184 | J39: =SUM(J28:J38) -> 7613781
A43: Table L2 | B43: Summary of Water balance Gains/Losses by Aquifer for Wet/Cold Conditions (m3/year)
A44: Aquifer | G44: Average Year | J44: Total Useage
B45: Cold, Wet | F45: Spreadsheet Check | G45: Gains | H45: Losses | I45: Water Balance | J45: Total Useage
A46: =A28 -> Surficial 197 | B46: =B16 -> 17836680.63 | F46: =H46+G46 -> 2948535.105 | G46: ='Surficial AQ 197'!$U$48 -> 18108353.53 | H46: ='Surficial AQ 197'!$U$49 -> -15159818.43 | I46: ='Surficial AQ 197'!$U$50 -> 2948535.105 | J46: =J16 -> 4576581
A47: =A29 -> Bedrock 198 | B47: =B10 -> 618220.6283 | F47: =H47+G47 -> 531739.5082 | G47: ='Bedrock 198'!$U$47 -> 827406.6092 | H47: ='Bedrock 198'!$U$48 -> -295667.101 | I47: ='Bedrock 198'!$U$49 -> 531739.5082 | J47: =J10 -> 238252
A48: =A30 -> Surficial 199 | B48: =B17 -> 2243461.852 | F48: 1342052.008 | G48: ='Surficial AQ 199'!$U$47 -> 4021688.215 | H48: ='Surficial AQ 199'!$U$48 -> -2679636.208 | I48: ='Surficial AQ 199'!$U$49 -> 1342052.008 | J48: =J17 -> 295251
A49: =A31 -> Bedrock 200 | B49: =B11 -> 23859859.98 | F49: 7376181.528 | G49: ='Bedrock 200'!$U$45 -> 24534029.58 | H49: ='Bedrock 200'!$U$46 -> -17157848.06 | I49: ='Bedrock 200'!$U$47 -> 7376181.528 | J49: =J11 -> 45230
A50: =A32 -> Surficial 201 | B50: =B18 -> 1405296.637 | F50: =H50+G50 -> 882292.3372 | G50: ='Surficial AQ 201'!$U$46 -> 1562976.637 | H50: ='Surficial AQ 201'!$U$47 -> -680684.3 | I50: =J38='Surficial AQ 201'!$U$48 -> FALSE | J50: =J18 -> 44135
A51: Bedrock 202 | B51: =B12 -> 14606582.29 | F51: =H51+G51 -> 2969601.691 | G51: ='Bedrock 202'!$U$46 -> 20109228.93 | H51: ='Bedrock 202'!$U$47 -> -17139627.24 | I51: ='Bedrock 202'!$U$48 -> 2969601.691 | J51: =J12 -> 191855
A52: Bedrock 203 | B52: =B13 -> 25782231.43 | F52: 8976847.442 | G52: ='Bedrock 203'!$U$45 -> 25814334.38 | H52: ='Bedrock 203'!$U$46 -> -16837486.94 | I52: ='Bedrock 203'!$U$47 -> 8976847.442 | J52: =J13 -> 492906
A53: Bedrock 204 | B53: =B14 -> 6874387.977 | F53: 6676496.465 | G53: ='Bedrock 204'!$U$46 -> 20290856.6 | H53: ='Bedrock 204'!$U$47 -> -13614360.14 | I53: ='Bedrock 204'!$U$48 -> 6676496.465 | J53: =J14 -> 608120
A54: Surficial 205 | B54: =B19 -> 1710341.944 | F54: =H54+G54 -> 448383.6251 | G54: ='Surficial AQ 205'!$U$46 -> 1710341.944 | H54: ='Surficial AQ 205'!$U$47 -> -1261958.319 | I54: ='Surficial AQ 205'!$U$48 -> 448383.6251 | J54: =J19 -> 132804
A55: Surficial 206 | B55: =B20 -> 1515071.496 | F55: =H55+G55 -> -187351.7289 | G55: ='Surficial AQ 206'!$U$46 -> 1742130.696 | H55: ='Surficial AQ 206'!$U$47 -> -1929482.425 | I55: ='Surficial AQ 206'!$U$48 -> -187351.7289 | J55: =J20 -> 575590
A56: Bedrock 207 | B56: =B15 -> 16022181.78 | F56: =H56+G56 -> 9275634.992 | G56: ='Bedrock 207'!$U$47 -> 19164264.14 | H56: ='Bedrock 207'!$U$48 -> -9888629.151 | I56: ='Bedrock 207'!$U$49 -> 9275634.992 | J56: =J15 -> 413057
B57: =SUM(B46:B56) -> 112474316.6 | F57: =SUM(F46:F56) -> 41240412.97 | G57: =SUM(G46:G56) -> 137885611.3 | H57: =SUM(H46:H56) -> -96645198.31 | I57: =SUM(I46:I56) -> 40358120.64 | J57: =SUM(J46:J56) -> 7613781
A61: Table L4 | B61: Summary of Water balance Gains/Losses by Aquifer for Hot - Dry Conditions (m3/year)
A62: Aquifer | G62: Average Year | J62: Total Useage
D63: Hot, Dry | F63: Spreadsheet Check | G63: Gains | H63: Losses | I63: Water Balance | J63: Total Useage
A64: =A46 -> Surficial 197 | D64: =D16 -> 7230575.995 | F64: =H64+G64 -> -7657569.527 | G64: ='Surficial AQ 197'!$U$33 -> 7502248.9 | H64: ='Surficial AQ 197'!$U$34 -> -15159818.43 | I64: ='Surficial AQ 197'!$U$35 -> -7657569.527 | J64: =J16 -> 4576581
A65: Bedrock 198 | D65: =D10 -> 618220.6283 | F65: =H65+G65 -> 531739.5082 | G65: ='Bedrock 198'!$U$32 -> 827406.6092 | H65: ='Bedrock 198'!$U$33 -> -295667.101 | I65: ='Bedrock 198'!$U$34 -> 531739.5082 | J65: =J10 -> 238252
A66: Surficial 199 | D66: =D17 -> 909447.3213 | F66: 8037.476493 | G66: ='Surficial AQ 199'!$U$32 -> 2687673.684 | H66: ='Surficial AQ 199'!$U$33 -> -2679636.208 | I66: ='Surficial AQ 199'!$U$34 -> 8037.476493 | J66: =J17 -> 295251
A67: Bedrock 200 | D67: =D11 -> 9672232.994 | F67: -6811445.463 | G67: ='Bedrock 200'!$U$30 -> 10346402.59 | H67: ='Bedrock 200'!$U$31 -> -17157848.06 | I67: ='Bedrock 200'!$U$32 -> -6811445.463 | J67: =J11 -> 45230
A68: Surficial 201 | D68: =D18 -> 569674.6129 | F68: =H68+G68 -> 46670.31288 | G68: ='Surficial AQ 201'!$U$31 -> 727354.6129 | H68: ='Surficial AQ 201'!$U$32 -> -680684.3 | I68: ='Surficial AQ 201'!$U$33 -> 46670.31288 | J68: =J18 -> 44135
A69: Bedrock 202 | D69: =D12 -> 5921169.16 | F69: =H69+G69 -> -5715811.435 | G69: ='Bedrock 202'!$U$31 -> 11423815.81 | H69: ='Bedrock 202'!$U$32 -> -17139627.24 | I69: ='Bedrock 202'!$U$33 -> -5715811.435 | J69: =J12 -> 191855
A70: Bedrock 203 | D70: =D13 -> 10451517.72 | F70: -6328151.424 | G70: ='Bedrock 203'!$U$30 -> 10509728.53 | H70: ='Bedrock 203'!$U$31 -> -16837879.96 | I70: ='Bedrock 203'!$U$32 -> -6328151.424 | J70: =J13 -> 492906
A71: Bedrock 204 | D71: =D14 -> 2786717.2 | F71: 2588825.687 | G71: ='Bedrock 204'!$U$31 -> 16203185.83 | H71: ='Bedrock 204'!$U$32 -> -13614360.14 | I71: ='Bedrock 204'!$U$33 -> 2588825.687 | J71: =J14 -> 608120
A72: Surficial 205 | D72: =D19 -> 693332.8944 | F72: =H72+G72 -> -568625.4246 | G72: ='Surficial AQ 205'!$U$31 -> 693332.8944 | H72: ='Surficial AQ 205'!$U$32 -> -1261958.319 | I72: ='Surficial AQ 205'!$U$33 -> -568625.4246 | J72: =J19 -> 132804
A73: Surficial 206 | D73: =D20 -> 614174.7906 | F73: =H73+G73 -> -1088248.434 | G73: ='Surficial AQ 206'!$U$31 -> 841233.9906 | H73: ='Surficial AQ 206'!$U$32 -> -1929482.425 | I73: ='Surficial AQ 206'!$U$33 -> -1088248.434 | J73: =J20 -> 575590
A74: Bedrock 207 | D74: =D15 -> 6495020.31 | F74: =H74+G74 -> -251526.4732 | G74: ='Bedrock 207'!$U$32 -> 9637102.678 | H74: ='Bedrock 207'!$U$33 -> -9888629.151 | I74: ='Bedrock 207'!$U$34 -> -251526.4732 | J74: =J15 -> 413057
D75: =SUM(D64:D74) -> 45962083.63 | F75: =SUM(F64:F74) -> -25246105.19 | G75: =SUM(G64:G74) -> 71399486.13 | H75: =SUM(H64:H74) -> -96645591.33 | I75: =SUM(I64:I74) -> -25246105.19 | J75: =SUM(J64:J74) -> 7613781

Sheet Summary Graphs (hidden)
A1: Figure M-1: Temperature | N1: Figure M-4: Precipitation | AA1: Figure M-6: Conditions during Cold/Wet Year
J18: Sum of Surplus Water
R22: Average
A25: Figure M-2: Actual Evapotranspiration | N25: Figure M-5: Sum of Surplus Water | AA25: Figure M-7: Conditions during the 30 Year Average
A49: Figure M-3: Potential Soil Water | AA49: Figure M-8: Conditions during Hot/Dry Year

Sheet Monthly Factors
A1: Monthly Water Balance Factors
A4: Please use the buttons below to navigate to the Cover Sheet or any of the Summary Sheets.
A8: Surplus Water Monthly Factors - Hot/Dry (1989)
A9: Month | B9: Jan | C9: Feb | D9: Mar | E9: Apr | F9: May | G9: Jun | H9: Jul | I9: Aug | J9: Sep | K9: Oct | L9: Nov | M9: Dec | N9: Sum
A10: Sum of Surplus Water (mm) | B10: ='Climate Dashboard'!AA42 -> 156.9489062 | C10: ='Climate Dashboard'!AB42 -> 90 | D10: ='Climate Dashboard'!AC42 -> 139.9414397 | E10: ='Climate Dashboard'!AD42 -> 8.4 | F10: ='Climate Dashboard'!AE42 -> -33 | G10: ='Climate Dashboard'!AF42 -> -42 | H10: ='Climate Dashboard'!AG42 -> -36 | I10: ='Climate Dashboard'!AH42 -> -15 | J10: ='Climate Dashboard'!AI42 -> -10 | K10: ='Climate Dashboard'!AJ42 -> 25.5 | L10: ='Climate Dashboard'!AK42 -> 100.1 | M10: ='Climate Dashboard'!AL42 -> 127 | N10: =SUM(B10:M10) -> 511.8903459
A11: Factor | B11: =B10/$N$10 -> 0.3066064978 | C11: 0.1758189048 | D11: 0.273381674 | E11: 0.01640976445 | F11: -0.06446693176 | G11: -0.08204882224 | H11: -0.07032756192 | I11: -0.0293031508 | J11: -0.01953543387 | K11: 0.04981535636 | L11: 0.195549693 | M11: 0.2481000101 | N11: =SUM(B11:M11) -> 1
A13: Surplus Water Monthly Factors - Average Year
A14: Month | B14: Jan | C14: Feb | D14: Mar | E14: Apr | F14: May | G14: Jun | H14: Jul | I14: Aug | J14: Sep | K14: Oct | L14: Nov | M14: Dec | N14: Sum
A15: Sum of Surplus Water (mm) | B15: ='Climate Dashboard'!AA48 -> 191.3433589 | C15: ='Climate Dashboard'!AB48 -> 124.6336958 | D15: ='Climate Dashboard'!AC48 -> 89.94453284 | E15: ='Climate Dashboard'!AD48 -> 21.60027227 | F15: ='Climate Dashboard'!AE48 -> -26 | G15: ='Climate Dashboard'!AF48 -> -41 | H15: ='Climate Dashboard'!AG48 -> -40 | I15: ='Climate Dashboard'!AH48 -> -18 | J15: ='Climate Dashboard'!AI48 -> -6 | K15: ='Climate Dashboard'!AJ48 -> 65.78309198 | L15: ='Climate Dashboard'!AK48 -> 201.8374372 | M15: ='Climate Dashboard'!AL48 -> 196.7620856 | N15: =SUM(B15:M15) -> 760.9044746
A16: Factor | B16: =B15/$N$15 -> 0.2514683055 | C16: 0.1637967708 | D16: 0.1182073911 | E16: 0.02838762682 | F16: -0.03416986083 | G16: -0.05388324207 | H16: -0.05256901665 | I16: -0.02365605749 | J16: -0.007885352498 | K16: 0.08645381144 | L16: 0.26525989 | M16: 0.2585897339 | N16: =SUM(B16:M16) -> 1
A18: Surplus Water Monthly Factors - Cold/Wet (1999)
A19: Month | B19: Jan | C19: Feb | D19: Mar | E19: Apr | F19: May | G19: Jun | H19: Jul | I19: Aug | J19: Sep | K19: Oct | L19: Nov | M19: Dec | N19: Sum
A20: Sum of Surplus Water (mm) | B20: ='Climate Dashboard'!AA54 -> 355.1 | C20: ='Climate Dashboard'!AB54 -> 359.518917 | D20: ='Climate Dashboard'!AC54 -> 133.3331269 | E20: ='Climate Dashboard'!AD54 -> -16 | F20: ='Climate Dashboard'!AE54 -> -13 | G20: ='Climate Dashboard'!AF54 -> -34 | H20: ='Climate Dashboard'!AG54 -> -44 | I20: ='Climate Dashboard'!AH54 -> -18 | J20: ='Climate Dashboard'!AI54 -> -8 | K20: ='Climate Dashboard'!AJ54 -> 126.1 | L20: ='Climate Dashboard'!AK54 -> 203.8 | M20: ='Climate Dashboard'!AL54 -> 217.9 | N20: =SUM(B20:M20) -> 1262.752044
A21: Factor | B21: =B20/$N$20 -> 0.2812111861 | C21: =C20/$N$20 -> 0.2847106197 | D21: 0.1055893178 | E21: -0.01267073776 | F21: -0.01029497443 | G21: -0.02692531773 | H21: -0.03484452883 | I21: -0.01425457998 | J21: -0.006335368879 | K21: 0.09986125195 | L21: 0.1613935222 | M21: 0.1725596098 | N21: =SUM(B21:M21) -> 1
A23: Shawnigan Stream Flow Monthly Factors
A24: Month | B24: Jan | C24: Feb | D24: Mar | E24: Apr | F24: May | G24: Jun | H24: Jul | I24: Aug | J24: Sep | K24: Oct | L24: Nov | M24: Dec | N24: Total
A25: 1977-2006 Average Flow (m3/s) | B25: 5.881724138 | C25: 5.163666667 | D25: 3.73 | E25: 1.803466667 | F25: 0.6394666667 | G25: 0.2593666667 | H25: 0.1540333333 | I25: 0.05003333333 | J25: 0.04206666667 | K25: 0.3861 | L25: 2.7287 | M25: 5.814 | N25: =SUM(B25:M25) -> 26.65262414
A26: Factor | B26: =B25/$N$25 -> 0.2206808646 | C26: 0.1937395222 | D26: 0.1399486963 | E26: 0.06766563237 | F26: 0.0239926344 | G26: 0.009731374491 | H26: 0.005779293346 | I26: 0.001877238544 | J26: 0.001578331141 | K26: 0.01448637845 | L26: 0.1023801629 | M26: 0.2181398713 | N26: =SUM(B26:M26) -> 1
A27: AQ202 Stream Flow (m3) | B27: =B26*'Bedrock 202'!$U$14 -> 258889.3729 | C27: =C26*'Bedrock 202'!$U$14 -> 227283.4281 | D27: =D26*'Bedrock 202'!$U$14 -> 164179.3016 | E27: =E26*'Bedrock 202'!$U$14 -> 79381.20583 | F27: =F26*'Bedrock 202'!$U$14 -> 28146.69992 | G27: =G26*'Bedrock 202'!$U$14 -> 11416.25689 | H27: =H26*'Bedrock 202'!$U$14 -> 6779.915572 | I27: =I26*'Bedrock 202'!$U$14 -> 2202.262124 | J27: =J26*'Bedrock 202'!$U$14 -> 1851.602132 | K27: =K26*'Bedrock 202'!$U$14 -> 16994.53843 | L27: =L26*'Bedrock 202'!$U$14 -> 120106.1824 | M27: =M26*'Bedrock 202'!$U$14 -> 255908.4341 | N27: =SUM(B27:M27) -> 1173139.2
A29: Water Consumption Factors
A30: Month | B30: Jan | C30: Feb | D30: Mar | E30: Apr | F30: May | G30: Jun | H30: Jul | I30: Aug | J30: Sep | K30: Oct | L30: Nov | M30: Dec | N30: Total
A31: Factor | B31: 0.06 | C31: 0.065 | D31: 0.075 | E31: 0.08 | F31: 0.09 | G31: 0.1 | H31: 0.11 | I31: 0.115 | J31: 0.1 | K31: 0.08 | L31: 0.07 | M31: 0.055 | N31: =SUM(B31:M31) -> 1
A32: AQ202 Water Consumption (m3) | B32: =B31*'Bedrock 202'!$U$15 -> -11511.3 | C32: =C31*'Bedrock 202'!$U$15 -> -12470.575 | D32: =D31*'Bedrock 202'!$U$15 -> -14389.125 | E32: =E31*'Bedrock 202'!$U$15 -> -15348.4 | F32: =F31*'Bedrock 202'!$U$15 -> -17266.95 | G32: =G31*'Bedrock 202'!$U$15 -> -19185.5 | H32: =H31*'Bedrock 202'!$U$15 -> -21104.05 | I32: =I31*'Bedrock 202'!$U$15 -> -22063.325 | J32: =J31*'Bedrock 202'!$U$15 -> -19185.5 | K32: =K31*'Bedrock 202'!$U$15 -> -15348.4 | L32: =L31*'Bedrock 202'!$U$15 -> -13429.85 | M32: =M31*'Bedrock 202'!$U$15 -> -10552.025 | N32: =SUM(B32:M32) -> -191855
A34: Koksilah Stream Flow Monthly Factors
A35: Month | B35: Jan | C35: Feb | D35: Mar | E35: Apr | F35: May | G35: Jun | H35: Jul | I35: Aug | J35: Sep | K35: Oct | L35: Nov | M35: Dec | N35: Total
A36: 1977-2006 Average Flow (m3/s) | B36: 21.66533333 | C36: 19.20766667 | D36: 13.696 | E36: 8.162 | F36: 3.217766667 | G36: 1.622833333 | H36: 0.8382 | I36: 0.4010333333 | J36: 0.6095333333 | K36: 4.774733333 | L36: 18.523 | M36: 21.71733333 | N36: =SUM(B36:M36) -> 114.4354333
A37: Factor | B37: =B36/$N$36 -> 0.1893236448 | C37: 0.1678471965 | D37: 0.11968321 | E37: 0.07132406251 | F37: 0.02811862177 | G37: 0.01418121369 | H37: 0.007324654398 | I37: 0.00350445069 | J37: 0.00532643881 | K37: 0.04172425615 | L37: 0.1618642012 | M37: 0.1897780495 | N37: =SUM(B37:M37) -> 1
A38: AQ202 Stream Flow (m3) | B38: =B37*'Bedrock 202'!$U$14 -> 222102.9892 | C38: =C37*'Bedrock 202'!$U$14 -> 196908.1258 | D38: =D37*'Bedrock 202'!$U$14 -> 140405.0652 | E38: =E37*'Bedrock 202'!$U$14 -> 83673.05363 | F38: =F37*'Bedrock 202'!$U$14 -> 32987.05745 | G38: =G37*'Bedrock 202'!$U$14 -> 16636.53768 | H38: =H37*'Bedrock 202'!$U$14 -> 8592.8392 | I38: =I37*'Bedrock 202'!$U$14 -> 4111.208479 | J38: =J37*'Bedrock 202'!$U$14 -> 6248.654164 | K38: =K37*'Bedrock 202'!$U$14 -> 48948.36048 | L38: =L37*'Bedrock 202'!$U$14 -> 189889.2394 | M38: =M37*'Bedrock 202'!$U$14 -> 222636.0692 | N38: =SUM(B38:M38) -> 1173139.2
A40: Horizontal Inflow Factors
A41: Month | B41: Jan | C41: Feb | D41: Mar | E41: Apr | F41: May | G41: Jun | H41: Jul | I41: Aug | J41: Sep | K41: Oct | L41: Nov | M41: Dec | N41: Total
A42: Average Factor | B42: 0.081 | C42: 0.078 | D42: 0.087 | E42: 0.086 | F42: 0.09 | G42: 0.086 | H42: 0.087 | I42: 0.085 | J42: 0.081 | K42: 0.082 | L42: 0.078 | M42: 0.079 | N42: =SUM(B42:M42) -> 1
A43: Hot/dry | B43: 0.082 | C43: 0.076 | D43: 0.084 | E43: 0.083 | F43: 0.087 | G43: 0.084 | H43: 0.087 | I43: 0.086 | J43: 0.082 | K43: 0.085 | L43: 0.081 | M43: 0.083 | N43: =SUM(B43:M43) -> 1
A44: Cold/Wet | B44: 0.081 | C44: 0.078 | D44: 0.087 | E44: 0.086 | F44: 0.09 | G44: 0.086 | H44: 0.087 | I44: 0.085 | J44: 0.081 | K44: 0.082 | L44: 0.078 | M44: 0.079 | N44: =SUM(B44:M44) -> 1
A46: Aquifer/Stream Factor
A47: Month | B47: Jan | C47: Feb | D47: Mar | E47: Apr | F47: May | G47: Jun | H47: Jul | I47: Aug | J47: Sep | K47: Oct | L47: Nov | M47: Dec | N47: Total
A48: Factor | B48: 0.084 | C48: 0.077 | D48: 0.082 | E48: 0.077 | F48: 0.081 | G48: 0.08 | H48: 0.087 | I48: 0.088 | J48: 0.086 | K48: 0.089 | L48: 0.083 | M48: 0.086 | N48: 1
A50: Irrigation Use Factor
A51: Month | B51: Jan | C51: Feb | D51: Mar | E51: Apr | F51: May | G51: Jun | H51: Jul | I51: Aug | J51: Sep | K51: Oct | L51: Nov | M51: Dec | N51: Total
A52: Factor | B52: 0 | C52: 0 | D52: 0 | E52: 0 | F52: 0.1 | G52: 0.25 | H52: 0.3 | I52: 0.3 | J52: 0.05 | K52: 0 | L52: 0 | M52: 0 | N52: 1

Sheet Bedrock 198
B1: CHM Aquifer Criteria: Aquifer #0198 Cowichan Station (Bedrock) | W1: Table A-1
B2: AQ tag | C2: 198 Cowichan Station | W2: CHM Aquifer Criteria: Aquifer #0198 Cowichan Station (Bedrock)
B3: Perimeter (km) | C3: 16.12
B4: Area (km2) | C4: 6.18 | W4: BCMOE Criteria
B5: Aquifer materials | C5: Bedrock | W5: AQ tag | AA5: 198 Cowichan Station
B6: Table A-3 Monthly Summary of AQ198 Water Budgets | Q6: Table A-2 Annual Summary of AQ198 Water Budgets | W6: AQ classification | AA6: IIIC(7)
B7: Monthly Gains and Loses (m3) | C7: Average Year | Q7: Summary - 30 Year Average | X7: AQ type | AB7: BCMOE / SLR Classsification = 5a
C8: Jan | D8: Feb | E8: Mar | F8: Apr | G8: May | H8: Jun | I8: Jul | J8: Aug | K8: Sep | L8: Oct | M8: Nov | N8: Dec | O8: Total | Q8: Gains and Losses | R8: Source | S8: Area (m2) | T8: Infiltration/Exfiltration Factor | U8: Q (m3/yr) | X8: Location | AB8: Cowichan Station / Duncan South of Koksilah River; west-southwest of Cowichan Bay & east of Koksilah River
A9: =$C$7&B9 -> Average YearLeakage down from surficial sediment | B9: Leakage down from surficial sediment | C9: =C56*$U$9 -> 3123.572312 | D9: 3007.884449 | E9: 3354.948039 | F9: 3316.385418 | G9: 3470.635902 | H9: 3316.385418 | I9: 3354.948039 | J9: 3277.822797 | K9: 3123.572312 | L9: 3162.134933 | M9: 3007.884449 | N9: 3046.44707 | O9: =SUM(C9:N9) -> 38562.62114 | Q9: Gain | R9: Leakage down from surficial sediment | S9: =38.5626211386*10000 -> 385626.2114 | T9: 0.1 | U9: =S9*T9 -> 38562.62114 | X9: Perimeter (km) | AB9: 16.12
A10: Average YearLeakage down from 197 | B10: Leakage down from 197 | C10: =C56*$U$10 -> 40499.86236 | D10: =D56*$U$10 -> 38999.86746 | E10: 43499.85217 | F10: 42999.85387 | G10: 44999.84707 | H10: 42999.85387 | I10: 43499.85217 | J10: 42499.85557 | K10: 40499.86236 | L10: 40999.86066 | M10: 38999.86746 | N10: 39499.86576 | O10: =SUM(C10:N10) -> 499998.3008 | Q10: Gain | R10: Leakage down from 197 | S10: =G96 -> 4999983.008 | T10: =F96 -> 0.1 | U10: =M96 -> 499998.3008 | X10: Area (km2) | AB10: 6.18
A11: Average YearLeakage down from 199 | B11: Leakage down from 199 | C11: =C56*$U$11 -> 6452.436215 | D11: =D56*$U$11 -> 6213.457096 | E11: 6930.394453 | F11: 6850.734747 | G11: 7169.373572 | H11: 6850.734747 | I11: 6930.394453 | J11: 6771.07504 | K11: 6452.436215 | L11: 6532.095921 | M11: 6213.457096 | N11: 6293.116802 | O11: 79659.70636 | Q11: Gain | R11: Leakage down from 199 | S11: =G97 -> 796597.0636 | T11: =F97 -> 0.1 | U11: =M97 -> 79659.70636 | X11: Aquifer materials | AB11: Bedrock
A12: Average YearLateral Groundwater | B12: Lateral Groundwater | C12: =C56*$U$12 -> -4650.623183 | D12: =D56*$U$12 -> -4478.37788 | E12: -4995.113789 | F12: -4937.698688 | G12: -5167.359093 | H12: -4937.698688 | I12: -4995.113789 | J12: -4880.283587 | K12: -4650.623183 | L12: -4708.038284 | M12: -4478.37788 | N12: -4535.792981 | O12: -57415.10103 | Q12: Loss | R12: Lateral Groundwater | S12: -- | T12: -- | U12: =SUMIF(M82:M95, "<0") -> -57415.10103 | X12: Lithostratographic unit | AB12: Nanaimo Series
A13: Average YearLateral Groundwater | B13: Lateral Groundwater | C13: =C56*$U$13 -> 16944.06446 | D13: 16316.50651 | E13: 18199.18034 | F13: 17989.99436 | G13: 18826.73829 | H13: 17989.99436 | I13: 18199.18034 | J13: 17780.80838 | K13: 16944.06446 | L13: 17153.25044 | M13: 16316.50651 | N13: 16525.6925 | O13: 209185.981 | Q13: Gain | R13: Lateral Groundwater | S13: -- | T13: -- | U13: =SUMIF(M82:M95, ">0") -> 209185.981 | X13: Productivity | AB13: Low
A14: Average YearSurface Water | B14: Surface Water | C14: =C57*$U$14 -> 0 | D14: 0 | E14: 0 | F14: 0 | G14: 0 | H14: 0 | I14: 0 | J14: 0 | K14: 0 | L14: 0 | M14: 0 | N14: 0 | O14: 0 | Q14: Loss | R14: Surface Water | S14: -- | T14: -- | U14: =SUMIF(I102,"<0") -> 0 | X14: Vulnerability | AB14: Low
A15: Average YearSurface Water | B15: Surface Water | C15: =C57*$U$15 -> 0 | D15: 0 | E15: 0 | F15: 0 | G15: 0 | H15: 0 | I15: 0 | J15: 0 | K15: 0 | L15: 0 | M15: 0 | N15: 0 | O15: 0 | Q15: Gain | R15: Surface Water | S15: -- | T15: -- | U15: =SUMIF(I102,">0") -> 0 | X15: Demand | AB15: Low
A16: Average YearWell Water Usage | B16: Well Water Usage | C16: =C58*$U$16 -> -14295.12 | D16: -15486.38 | E16: -17868.9 | F16: -19060.16 | G16: -21442.68 | H16: -23825.2 | I16: -26207.72 | J16: -27398.98 | K16: -23825.2 | L16: -19060.16 | M16: -16677.64 | N16: -13103.86 | O16: -238252 | Q16: Loss | R16: Water Usage | S16: -- | T16: -- | U16: =E115 -> -238252 | X16: Use | AB16: Domestic
A17: Average YearNet Gain | B17: Net Gain | C17: =SUMIF(C9:C16, ">0") -> 67019.93535 | D17: =SUMIF(D9:D16, ">0") -> 64537.71552 | E17: =SUMIF(E9:E16, ">0") -> 71984.375 | F17: 71156.96839 | G17: 74466.59483 | H17: 71156.96839 | I17: 71984.375 | J17: 70329.56179 | K17: 67019.93535 | L17: 67847.34196 | M17: 64537.71552 | N17: 65365.12213 | O17: 827406.6092 | Q17: Net Gain | U17: =SUMIF(U9:U16, ">0") -> 827406.6092
A18: Average YearNet Loss | B18: Net Loss | C18: =SUMIF(C9:C16, "<0") -> -18945.74318 | D18: =SUMIF(D9:D16, "<0") -> -19964.75788 | E18: =SUMIF(E9:E16, "<0") -> -22864.01379 | F18: -23997.85869 | G18: -26610.03909 | H18: -28762.89869 | I18: -31202.83379 | J18: -32279.26359 | K18: -28475.82318 | L18: -23768.19828 | M18: -21156.01788 | N18: =SUMIF(N9:N16, "<0") -> -17639.65298 | O18: -295667.101 | Q18: Net Loss | U18: =SUMIF(U9:U16, "<0") -> -295667.101 | W18: Location
A19: Average YearNet Total (Gain - Loss) | B19: Net Total (Gain - Loss) | C19: =SUM(C17:C18) -> 48074.19216 | D19: =SUM(D17:D18) -> 44572.95764 | E19: 49120.36121 | F19: 47159.10971 | G19: 47856.55574 | H19: 42394.06971 | I19: 40781.54121 | J19: 38050.2982 | K19: 38544.11216 | L19: 44079.14367 | M19: 43381.69764 | N19: =SUM(N17:N18) -> 47725.46915 | O19: 531739.5082 | Q19: Net Total (Gain - Loss) | U19: =SUM(U17:U18) -> 531739.5082 | X19: NTS 50000 | AB19: Straddles 092B/12 & 092B/013
X20: TRIM 20000 | AB20: 092B.072
X21: Lat / Long (Centre) | AB21: 48o44'34" / 123o40'2"
B22: Monthly Gains and Loses (m3) | C22: Hot/Dry (1989) | Q22: Summary - Hot/Dry (1989) | X22: UTM Zone 10 (Centre) | AB22: 450940E / 5399080N
C23: Jan | D23: Feb | E23: Mar | F23: Apr | G23: May | H23: Jun | I23: Jul | J23: Aug | K23: Sep | L23: Oct | M23: Nov | N23: Dec | O23: Total | Q23: Gains and Losses | R23: Source | S23: Area (m2) | T23: Infiltration/Exfiltration Factor | U23: Q (m3/yr)
A24: =$C$22&B24 -> Hot/Dry (1989)Leakage down from surficial sediment | B24: Leakage down from surficial sediment | C24: =C63*$U$24 -> 3162.134933 | D24: =D63*$U$24 -> 2930.759207 | E24: 3239.260176 | F24: 3200.697555 | G24: 3354.948039 | H24: 3239.260176 | I24: 3354.948039 | J24: 3316.385418 | K24: 3162.134933 | L24: 3277.822797 | M24: 3123.572312 | N24: 3200.697555 | O24: =SUM(C24:N24) -> 38562.62114 | Q24: Gain | R24: Leakage down from surficial sediment | S24: =38.5626211386*10000 -> 385626.2114 | T24: 0.1 | U24: =S24*T24 -> 38562.62114 | W24: Climate
A25: Hot/Dry (1989)Leakage down from 197 | B25: Leakage down from 197 | C25: =C63*$U$25 -> 40999.86066 | D25: =D63*$U$25 -> 37999.87086 | E25: 41999.85727 | F25: 41499.85896 | G25: 43499.85217 | H25: 41999.85727 | I25: 43499.85217 | J25: 42999.85387 | K25: 40999.86066 | L25: 42499.85557 | M25: 40499.86236 | N25: 41499.85896 | O25: =SUM(C25:N25) -> 499998.3008 | Q25: Gain | R25: Leakage down from 197 | S25: =G96 -> 4999983.008 | T25: =F96 -> 0.1 | U25: =M96 -> 499998.3008 | X25: Nearest active EC weather station / distance / elevation | AB25: EC1012573 Duncan Kelvin Creek / 2.67 km to west-southwest ; EC1017230 Shawnigan Lake / 7.1 km to south
A26: Hot/Dry (1989)Leakage down from 199 | B26: Leakage down from 199 | C26: =C63*$U$26 -> 6532.095921 | D26: =D63*$U$26 -> 6054.137683 | E26: 6691.415334 | F26: 6611.755628 | G26: 6930.394453 | H26: 6691.415334 | I26: 6930.394453 | J26: 6850.734747 | K26: 6532.095921 | L26: 6771.07504 | M26: 6452.436215 | N26: 6611.755628 | O26: 79659.70636 | Q26: Gain | R26: Leakage down from 199 | S26: =G97 -> 796597.0636 | T26: =F97 -> 0.1 | U26: =M97 -> 79659.70636 | X26: IDF Curve | AB26: Unknown
A27: Hot/Dry (1989)Lateral Groundwater | B27: Lateral Groundwater | C27: =C63*$U$27 -> -4708.038284 | D27: =D63*$U$27 -> -4363.547678 | E27: -4822.868486 | F27: -4765.453385 | G27: -4995.113789 | H27: -4822.868486 | I27: -4995.113789 | J27: -4937.698688 | K27: -4708.038284 | L27: -4880.283587 | M27: -4650.623183 | N27: -4765.453385 | O27: -57415.10103 | Q27: Loss | R27: Lateral Groundwater | S27: -- | T27: -- | U27: =SUMIF(M82:M95, "<0") -> -57415.10103
A28: Hot/Dry (1989)Lateral Groundwater | B28: Lateral Groundwater | C28: =C63*$U$28 -> 17153.25044 | D28: =D63*$U$28 -> 15898.13455 | E28: 17571.6224 | F28: 17362.43642 | G28: 18199.18034 | H28: 17571.6224 | I28: 18199.18034 | J28: 17989.99436 | K28: 17153.25044 | L28: 17780.80838 | M28: 16944.06446 | N28: 17362.43642 | O28: 209185.981 | Q28: Gain | R28: Lateral Groundwater | S28: -- | T28: -- | U28: =SUMIF(M82:M95, ">0") -> 209185.981 | W28: Physiography
A29: Hot/Dry (1989)Surface Water | B29: Surface Water | C29: =C64*$U$29 -> 0 | D29: =D64*$U$29 -> 0 | E29: 0 | F29: 0 | G29: 0 | H29: 0 | I29: 0 | J29: 0 | K29: 0 | L29: 0 | M29: 0 | N29: 0 | O29: 0 | Q29: Loss | R29: Surface Water | S29: -- | T29: -- | U29: =SUMIF(I102,"<0") -> 0 | X29: Physiographic zone | AB29: Canadian Cordillera / Western System / Coastal Trough / Georgia Depression / Nanaimo Lowland
A30: Hot/Dry (1989)Surface Water | B30: Surface Water | C30: =C64*$U$30 -> 0 | D30: =D64*$U$30 -> 0 | E30: 0 | F30: 0 | G30: 0 | H30: 0 | I30: 0 | J30: 0 | K30: 0 | L30: 0 | M30: 0 | N30: 0 | O30: 0 | Q30: Gain | R30: Surface Water | S30: -- | T30: -- | U30: =SUMIF(I102,">0") -> 0 | X30: Elevation range (m amsl) | AB30: 0 - 60 m amsl
A31: Hot/Dry (1989)Well Water Usage | B31: Well Water Usage | C31: =$U$31*C65 -> -14295.12 | D31: =$U$31*D65 -> -15486.38 | E31: -17868.9 | F31: -19060.16 | G31: -21442.68 | H31: -23825.2 | I31: -26207.72 | J31: -27398.98 | K31: -23825.2 | L31: -19060.16 | M31: -16677.64 | N31: -13103.86 | O31: -238252 | Q31: Loss | R31: Water Usage | S31: -- | T31: -- | U31: =E115 -> -238252 | X31: Distance to marine | AB31: Abuts Cowichan Bay at NE corner
A32: Hot/Dry (1989)Net Gain | B32: Net Gain | C32: =SUMIF(C24:C31, ">0") -> 67847.34196 | D32: =SUMIF(D24:D31, ">0") -> 62882.9023 | E32: =SUMIF(E24:E31, ">0") -> 69502.15518 | F32: 68674.74857 | G32: 71984.375 | H32: 69502.15518 | I32: 71984.375 | J32: 71156.96839 | K32: 67847.34196 | L32: 70329.56179 | M32: 67019.93535 | N32: 68674.74857 | O32: 827406.6092 | Q32: Net Gain | U32: =SUMIF(U24:U31, ">0") -> 827406.6092 | X32: Geomorphological setting | AB32: Glacial outwash fan
A33: Hot/Dry (1989)Net Loss | B33: Net Loss | C33: =SUMIF(C24:C31, "<0") -> -19003.15828 | D33: =SUMIF(D24:D31, "<0") -> -19849.92768 | E33: =SUMIF(E24:E31, "<0") -> -22691.76849 | F33: -23825.61339 | G33: -26437.79379 | H33: -28648.06849 | I33: -31202.83379 | J33: -32336.67869 | K33: -28533.23828 | L33: -23940.44359 | M33: -21328.26318 | N33: =SUMIF(N24:N31, "<0") -> -17869.31339 | O33: -295667.101 | Q33: Net Loss | U33: =SUMIF(U24:U31, "<0") -> -295667.101 | X33: Topography | AB33: Gentle hillslope on west / level areas on east
A34: Hot/Dry (1989)Net Total (Gain - Loss) | B34: Net Total (Gain - Loss) | C34: =SUM(C32:C33) -> 48844.18367 | D34: =SUM(D32:D33) -> 43032.97462 | E34: 46810.38669 | F34: 44849.13518 | G34: 45546.58121 | H34: 40854.08669 | I34: 40781.54121 | J34: 38820.28971 | K34: 39314.10367 | L34: 46389.1182 | M34: 45691.67216 | N34: =SUM(N32:N33) -> 50805.43518 | O34: 531739.5082 | Q34: Net Total (Gain - Loss) | U34: =SUM(U32:U33) -> 531739.5082 | X34: Terrain | AB34: Undulating to hummocky on west edge / planar to undulating elsewhere
X35: Aspect | AB35: East / east-northeast
X36: Slope | AB36: Planar to slightly concave eastwards
B37: Monthly Gains and Loses (m3) | C37: Cold/Wet (1999) | Q37: Summary - Wet/Cold (1999) | X37: XS max grade (m/m) | AB37: 0.0207 to east-northeast
C38: Jan | D38: Feb | E38: Mar | F38: Apr | G38: May | H38: Jun | I38: Jul | J38: Aug | K38: Sep | L38: Oct | M38: Nov | N38: Dec | O38: Total | Q38: Gains and Losses | R38: Source | S38: Area (m2) | T38: Infiltration/Exfiltration Factor | U38: Q (m3/yr) | X38: Roughness coefficient | AB38: 0.50 (partly cleared / deciduous - coniferous cover)
A39: =$C$37&B39 -> Cold/Wet (1999)Leakage down from surficial sediment | B39: Leakage down from surficial sediment | C39: =C70*$U$39 -> 3123.572312 | D39: =D70*$U$39 -> 3007.884449 | E39: 3354.948039 | F39: 3316.385418 | G39: 3470.635902 | H39: 3316.385418 | I39: 3354.948039 | J39: 3277.822797 | K39: 3123.572312 | L39: 3162.134933 | M39: 3007.884449 | N39: 3046.44707 | O39: =SUM(C39:N39) -> 38562.62114 | Q39: Gain | R39: Leakage down from surficial sediment | S39: =38.5626211386*10000 -> 385626.2114 | T39: 0.1 | U39: =S39*T39 -> 38562.62114
A40: Cold/Wet (1999)Leakage down from 197 | B40: Leakage down from 197 | C40: =C70*$U$40 -> 40499.86236 | D40: =D70*$U$40 -> 38999.86746 | E40: 43499.85217 | F40: 42999.85387 | G40: 44999.84707 | H40: 42999.85387 | I40: 43499.85217 | J40: 42499.85557 | K40: 40499.86236 | L40: 40999.86066 | M40: 38999.86746 | N40: 39499.86576 | O40: =SUM(C40:N40) -> 499998.3008 | Q40: Gain | R40: Leakage down from 197 | S40: =G96 -> 4999983.008 | T40: =F96 -> 0.1 | U40: =M96 -> 499998.3008 | W40: Geology
A41: Cold/Wet (1999)Leakage down from 199 | B41: Leakage down from 199 | C41: =C70*$U$41 -> 6452.436215 | D41: =D70*$U$41 -> 6213.457096 | E41: 6930.394453 | F41: 6850.734747 | G41: 7169.373572 | H41: 6850.734747 | I41: 6930.394453 | J41: 6771.07504 | K41: 6452.436215 | L41: 6532.095921 | M41: 6213.457096 | N41: 6293.116802 | O41: 79659.70636 | Q41: Gain | R41: Leakage down from 199 | S41: =G97 -> 796597.0636 | T41: =F97 -> 0.1 | U41: =M97 -> 79659.70636 | X41: Terrane | AB41: Overlap
A42: Cold/Wet (1999)Lateral Groundwater | B42: Lateral Groundwater | C42: =C70*$U$42 -> -4650.623183 | D42: =D70*$U$42 -> -4478.37788 | E42: -4995.113789 | F42: -4937.698688 | G42: -5167.359093 | H42: -4937.698688 | I42: -4995.113789 | J42: -4880.283587 | K42: -4650.623183 | L42: -4708.038284 | M42: -4478.37788 | N42: -4535.792981 | O42: -57415.10103 | Q42: Loss | R42: Lateral Groundwater | S42: -- | T42: -- | U42: =SUMIF(M82:M95, "<0") -> -57415.10103 | X42: Bedrock (age ; formation ; lithology) | AB42: Upper Cretaceous; Nanaimo Group (uKN); mainly shale + subordinate sandstone
A43: Cold/Wet (1999)Lateral Groundwater | B43: Lateral Groundwater | C43: =C70*$U$43 -> 16944.06446 | D43: =D70*$U$43 -> 16316.50651 | E43: 18199.18034 | F43: 17989.99436 | G43: 18826.73829 | H43: 17989.99436 | I43: 18199.18034 | J43: 17780.80838 | K43: 16944.06446 | L43: 17153.25044 | M43: 16316.50651 | N43: 16525.6925 | O43: 209185.981 | Q43: Gain | R43: Lateral Groundwater | S43: -- | T43: -- | U43: =SUMIF(M82:M95, ">0") -> 209185.981 | X43: Structure | AB43: 2 E-ESE thrust faults cross centre of AQ
A44: Cold/Wet (1999)Surface Water | B44: Surface Water | C44: =C71*$U$44 -> 0 | D44: =D71*$U$44 -> 0 | E44: 0 | F44: 0 | G44: 0 | H44: 0 | I44: 0 | J44: 0 | K44: 0 | L44: 0 | M44: 0 | N44: 0 | O44: 0 | Q44: Loss | R44: Surface Water | S44: -- | T44: -- | U44: =SUMIF(I102,"<0") -> 0 | X44: Surficial (formation; lithology; thickness) | AB44: Vashon Drift : Cowichan Head Formations, morainal; silt-sand-gravel; deep blankets (> 30 - 70 m)
A45: Cold/Wet (1999)Surface Water | B45: Surface Water | C45: =C71*$U$45 -> 0 | D45: =D71*$U$45 -> 0 | E45: 0 | F45: 0 | G45: 0 | H45: 0 | I45: 0 | J45: 0 | K45: 0 | L45: 0 | M45: 0 | N45: 0 | O45: 0 | Q45: Gain | R45: Surface Water | S45: -- | T45: -- | U45: =SUMIF(I102,">0") -> 0 | X45: Surficial designation (1993) | AB45: W // dMbh/$LGp // sgFGf
A46: Cold/Wet (1999)Well Water Usage | B46: Well Water Usage | C46: =$U$46*C72 -> -14295.12 | D46: =$U$46*D72 -> -15486.38 | E46: -17868.9 | F46: -19060.16 | G46: -21442.68 | H46: -23825.2 | I46: -26207.72 | J46: -27398.98 | K46: -23825.2 | L46: -19060.16 | M46: -16677.64 | N46: -13103.86 | O46: -238252 | Q46: Loss | R46: Water Usage | S46: -- | T46: -- | U46: =E115 -> -238252 | X46: Soils (association; parent; texture; drainage; type; comments) | AB46: FF2/d (Finlayson SA); marine; si-cy; imperfect; GLE.DYB ; stone-free, fine-textured soils
A47: Cold/Wet (1999)Net Gain | B47: Net Gain | C47: =SUMIF(C39:C46, ">0") -> 67019.93535 | D47: =SUMIF(D39:D46, ">0") -> 64537.71552 | E47: =SUMIF(E39:E46, ">0") -> 71984.375 | F47: 71156.96839 | G47: 74466.59483 | H47: 71156.96839 | I47: 71984.375 | J47: 70329.56179 | K47: 67019.93535 | L47: 67847.34196 | M47: 64537.71552 | N47: 65365.12213 | O47: 827406.6092 | Q47: Net Gain | U47: =SUMIF(U39:U46, ">0") -> 827406.6092 | X47: Restrictive layers | AB47: Yes - surface si-cy soils, dense till
A48: Cold/Wet (1999)Net Loss | B48: Net Loss | C48: =SUMIF(C39:C46, "<0") -> -18945.74318 | D48: =SUMIF(D39:D46, "<0") -> -19964.75788 | E48: =SUMIF(E39:E46, "<0") -> -22864.01379 | F48: -23997.85869 | G48: -26610.03909 | H48: -28762.89869 | I48: -31202.83379 | J48: -32279.26359 | K48: -28475.82318 | L48: -23768.19828 | M48: -21156.01788 | N48: =SUMIF(N39:N46, "<0") -> -17639.65298 | O48: -295667.101 | Q48: Net Loss | U48: =SUMIF(U39:U46, "<0") -> -295667.101 | X48: Estimated permeability | AB48: Low @ surface from dominant M-LG / high at bedrock ct from dominant FG
A49: Cold/Wet (1999)Net Total (Gain - Loss) | B49: Net Total (Gain - Loss) | C49: =SUM(C47:C48) -> 48074.19216 | D49: =SUM(D47:D48) -> 44572.95764 | E49: 49120.36121 | F49: 47159.10971 | G49: 47856.55574 | H49: 42394.06971 | I49: 40781.54121 | J49: 38050.2982 | K49: 38544.11216 | L49: 44079.14367 | M49: 43381.69764 | N49: =SUM(N47:N48) -> 47725.46915 | O49: 531739.5082 | Q49: Net Total (Gain - Loss) | U49: =SUM(U47:U48) -> 531739.5082
W50: Hydrology
X51: GW / SW basin coincidence | AB51: No
B52: Table A-4 Monthly Coefficients used in Calculations for AQ198 | X52: Catchments | AB52: Koksilah / Garnett
B53: Monthly Factors | C53: 30 Year Average | X53: Drainage regime | AB53: Radial
C54: Jan | D54: Feb | E54: Mar | F54: Apr | G54: May | H54: Jun | I54: Jul | J54: Aug | K54: Sep | L54: Oct | M54: Nov | N54: Dec | X54: Surface waters | AB54: Five small streams, radial drainage / west & north boundaries ~ 100 m from Koksilah River
B55: Surplus Water | C55: ='Monthly Factors'!B16 -> 0.2514683055 | D55: ='Monthly Factors'!C16 -> 0.1637967708 | E55: ='Monthly Factors'!D16 -> 0.1182073911 | F55: ='Monthly Factors'!E16 -> 0.02838762682 | G55: ='Monthly Factors'!F16 -> -0.03416986083 | H55: ='Monthly Factors'!G16 -> -0.05388324207 | I55: ='Monthly Factors'!H16 -> -0.05256901665 | J55: ='Monthly Factors'!I16 -> -0.02365605749 | K55: ='Monthly Factors'!J16 -> -0.007885352498 | L55: ='Monthly Factors'!K16 -> 0.08645381144 | M55: ='Monthly Factors'!L16 -> 0.26525989 | N55: ='Monthly Factors'!M16 -> 0.2585897339 | X55: Runoff coefficient | AB55: ~70% cleared-agricultural / ~30% forested / flat - rolling terrain / = 0.35
B56: Leakance/ Lateral Ground Water | C56: ='Monthly Factors'!B42 -> 0.081 | D56: ='Monthly Factors'!C42 -> 0.078 | E56: ='Monthly Factors'!D42 -> 0.087 | F56: ='Monthly Factors'!E42 -> 0.086 | G56: ='Monthly Factors'!F42 -> 0.09 | H56: ='Monthly Factors'!G42 -> 0.086 | I56: ='Monthly Factors'!H42 -> 0.087 | J56: ='Monthly Factors'!I42 -> 0.085 | K56: ='Monthly Factors'!J42 -> 0.081 | L56: ='Monthly Factors'!K42 -> 0.082 | M56: ='Monthly Factors'!L42 -> 0.078 | N56: ='Monthly Factors'!M42 -> 0.079 | X56: Nearest Active EC hydrometric station; distance; type | AB56: EC 08HA003 Koksilah River @ Cowichan Station; 200 m SW; active realtime
B57: Surface Water | C57: ='Monthly Factors'!B26 -> 0.2206808646 | D57: ='Monthly Factors'!C26 -> 0.1937395222 | E57: ='Monthly Factors'!D26 -> 0.1399486963 | F57: ='Monthly Factors'!E26 -> 0.06766563237 | G57: ='Monthly Factors'!F26 -> 0.0239926344 | H57: ='Monthly Factors'!G26 -> 0.009731374491 | I57: ='Monthly Factors'!H26 -> 0.005779293346 | J57: ='Monthly Factors'!I26 -> 0.001877238544 | K57: ='Monthly Factors'!J26 -> 0.001578331141 | L57: ='Monthly Factors'!K26 -> 0.01448637845 | M57: ='Monthly Factors'!L26 -> 0.1023801629 | N57: ='Monthly Factors'!M26 -> 0.2181398713
B58: Water Usage | C58: ='Monthly Factors'!B31 -> 0.06 | D58: ='Monthly Factors'!C31 -> 0.065 | E58: ='Monthly Factors'!D31 -> 0.075 | F58: ='Monthly Factors'!E31 -> 0.08 | G58: ='Monthly Factors'!F31 -> 0.09 | H58: ='Monthly Factors'!G31 -> 0.1 | I58: ='Monthly Factors'!H31 -> 0.11 | J58: ='Monthly Factors'!I31 -> 0.115 | K58: ='Monthly Factors'!J31 -> 0.1 | L58: ='Monthly Factors'!K31 -> 0.08 | M58: ='Monthly Factors'!L31 -> 0.07 | N58: ='Monthly Factors'!M31 -> 0.055 | W58: Land Cover
X59: Vegetation zone | AB59: CgF-wC
B60: Monthly Factors | C60: Hot/Dry (1989) | X60: Primary land uses | AB60: Agricultural / forestry
C61: Jan | D61: Feb | E61: Mar | F61: Apr | G61: May | H61: Jun | I61: Jul | J61: Aug | K61: Sep | L61: Oct | M61: Nov | N61: Dec | X61: Degree of development | AB61: Moderate to high, mainly agricultural. Very low impervious cover
B62: Surplus Water | C62: ='Monthly Factors'!B11 -> 0.3066064978 | D62: ='Monthly Factors'!C11 -> 0.1758189048 | E62: ='Monthly Factors'!D11 -> 0.273381674 | F62: ='Monthly Factors'!E11 -> 0.01640976445 | G62: ='Monthly Factors'!F11 -> -0.06446693176 | H62: ='Monthly Factors'!G11 -> -0.08204882224 | I62: ='Monthly Factors'!H11 -> -0.07032756192 | J62: ='Monthly Factors'!I11 -> -0.0293031508 | K62: ='Monthly Factors'!J11 -> -0.01953543387 | L62: ='Monthly Factors'!K11 -> 0.04981535636 | M62: ='Monthly Factors'!L11 -> 0.195549693 | N62: ='Monthly Factors'!M11 -> 0.2481000101 | X62: Evapotranspiration potential | AB62: Negligible, confined
B63: Leakance/ Lateral Ground Water | C63: ='Monthly Factors'!B43 -> 0.082 | D63: ='Monthly Factors'!C43 -> 0.076 | E63: ='Monthly Factors'!D43 -> 0.084 | F63: ='Monthly Factors'!E43 -> 0.083 | G63: ='Monthly Factors'!F43 -> 0.087 | H63: ='Monthly Factors'!G43 -> 0.084 | I63: ='Monthly Factors'!H43 -> 0.087 | J63: ='Monthly Factors'!I43 -> 0.086 | K63: ='Monthly Factors'!J43 -> 0.082 | L63: ='Monthly Factors'!K43 -> 0.085 | M63: ='Monthly Factors'!L43 -> 0.081 | N63: ='Monthly Factors'!M43 -> 0.083 | X63: Relative environmental sensitivity | AB63: Low
B64: Surface Water | C64: ='Monthly Factors'!B26 -> 0.2206808646 | D64: ='Monthly Factors'!C26 -> 0.1937395222 | E64: ='Monthly Factors'!D26 -> 0.1399486963 | F64: ='Monthly Factors'!E26 -> 0.06766563237 | G64: ='Monthly Factors'!F26 -> 0.0239926344 | H64: ='Monthly Factors'!G26 -> 0.009731374491 | I64: ='Monthly Factors'!H26 -> 0.005779293346 | J64: ='Monthly Factors'!I26 -> 0.001877238544 | K64: ='Monthly Factors'!J26 -> 0.001578331141 | L64: ='Monthly Factors'!K26 -> 0.01448637845 | M64: ='Monthly Factors'!L26 -> 0.1023801629 | N64: ='Monthly Factors'!M26 -> 0.2181398713 | AB64: Cgf-wC
B65: Water Usage | C65: ='Monthly Factors'!B31 -> 0.06 | D65: ='Monthly Factors'!C31 -> 0.065 | E65: ='Monthly Factors'!D31 -> 0.075 | F65: ='Monthly Factors'!E31 -> 0.08 | G65: ='Monthly Factors'!F31 -> 0.09 | H65: ='Monthly Factors'!G31 -> 0.1 | I65: ='Monthly Factors'!H31 -> 0.11 | J65: ='Monthly Factors'!I31 -> 0.115 | K65: ='Monthly Factors'!J31 -> 0.1 | L65: ='Monthly Factors'!K31 -> 0.08 | M65: ='Monthly Factors'!L31 -> 0.07 | N65: ='Monthly Factors'!M31 -> 0.055 | W65: Hydrogeology
B67: Monthly Factors | C67: Cold/Wet (1999)
C68: Jan | D68: Feb | E68: Mar | F68: Apr | G68: May | H68: Jun | I68: Jul | J68: Aug | K68: Sep | L68: Oct | M68: Nov | N68: Dec
B69: Surplus Water | C69: ='Monthly Factors'!B21 -> 0.2812111861 | D69: ='Monthly Factors'!C21 -> 0.2847106197 | E69: ='Monthly Factors'!D21 -> 0.1055893178 | F69: ='Monthly Factors'!E21 -> -0.01267073776 | G69: ='Monthly Factors'!F21 -> -0.01029497443 | H69: ='Monthly Factors'!G21 -> -0.02692531773 | I69: ='Monthly Factors'!H21 -> -0.03484452883 | J69: ='Monthly Factors'!I21 -> -0.01425457998 | K69: ='Monthly Factors'!J21 -> -0.006335368879 | L69: ='Monthly Factors'!K21 -> 0.09986125195 | M69: ='Monthly Factors'!L21 -> 0.1613935222 | N69: ='Monthly Factors'!M21 -> 0.1725596098 | X69: Groundwater occurrence (primary / secondary) | AB69: Void infillings - bedding partings, bedrock fractures & faults
B70: Leakance/ Lateral Ground Water | C70: ='Monthly Factors'!B44 -> 0.081 | D70: ='Monthly Factors'!C44 -> 0.078 | E70: ='Monthly Factors'!D44 -> 0.087 | F70: ='Monthly Factors'!E44 -> 0.086 | G70: ='Monthly Factors'!F44 -> 0.09 | H70: ='Monthly Factors'!G44 -> 0.086 | I70: ='Monthly Factors'!H44 -> 0.087 | J70: ='Monthly Factors'!I44 -> 0.085 | K70: ='Monthly Factors'!J44 -> 0.081 | L70: ='Monthly Factors'!K44 -> 0.082 | M70: ='Monthly Factors'!L44 -> 0.078 | N70: ='Monthly Factors'!M44 -> 0.079 | X70: Primary porosity | AB70: Low
B71: Surface Water | C71: ='Monthly Factors'!B26 -> 0.2206808646 | D71: ='Monthly Factors'!C26 -> 0.1937395222 | E71: ='Monthly Factors'!D26 -> 0.1399486963 | F71: ='Monthly Factors'!E26 -> 0.06766563237 | G71: ='Monthly Factors'!F26 -> 0.0239926344 | H71: ='Monthly Factors'!G26 -> 0.009731374491 | I71: ='Monthly Factors'!H26 -> 0.005779293346 | J71: ='Monthly Factors'!I26 -> 0.001877238544 | K71: ='Monthly Factors'!J26 -> 0.001578331141 | L71: ='Monthly Factors'!K26 -> 0.01448637845 | M71: ='Monthly Factors'!L26 -> 0.1023801629 | N71: ='Monthly Factors'!M26 -> 0.2181398713 | X71: Secondary porosity | AB71: Low to moderate (probable low open void space due to ductile rock)
B72: Water Usage | C72: ='Monthly Factors'!B31 -> 0.06 | D72: ='Monthly Factors'!C31 -> 0.065 | E72: ='Monthly Factors'!D31 -> 0.075 | F72: ='Monthly Factors'!E31 -> 0.08 | G72: ='Monthly Factors'!F31 -> 0.09 | H72: ='Monthly Factors'!G31 -> 0.1 | I72: ='Monthly Factors'!H31 -> 0.11 | J72: ='Monthly Factors'!I31 -> 0.115 | K72: ='Monthly Factors'!J31 -> 0.1 | L72: ='Monthly Factors'!K31 -> 0.08 | M72: ='Monthly Factors'!L31 -> 0.07 | N72: ='Monthly Factors'!M31 -> 0.055 | X72: Confinement | AB72: Confined / thick overburden with K-restrictive layers / water-bearing units below sea level; WP = 0 to 41 m, avg 3.6 m
X73: Aquifer thickness | AB73: Bedrock aquifer / assume < 150 m
X74: Hydraulic anisotropy | AB74: High
X75: Hydraulic gradient | AB75: Unknown - confined
X76: Storage potential | AB76: Low - secondary voids only
X77: Yield potential | AB77: Low; WP = 0.06 - 1.26 L/s / average 0.13 L/s
B78: TABLE A-5 | X78: Flow velocities | AB78: Low - moderate
B79: Groundwater Flow Components: Aquifer #0198, Cowichan Station (Bedrock) | X79: Flow directions | AB79: E / ENE towards Cowichan Bay / modified E - ESE by thrust faults
B80: Groundwater Flow | C80: Direction of Flow | D80: Source or Receptor of Water | E80: Length (m) | F80: Depth (m) | G80: Area (m) | H80: Hydraulic Conductivity (m/s) - K | I80: Distance (m) - dL | J80: Hydraulic Head (m) - dh | M80: GW Flow (m3/yr) | X80: Static water levels | AB80: WP = variable 0.5 - 49.7 m bgs / avg 9.7 m bgs
J81: Year 1 | K81: Year 2 | L81: Year 3 | M81: Year 1 | N81: Year 2 | O81: Year 2 | X81: Hydraulic connection with surface waters | AB81: None
B82: QGW1 | C82: Out | D82: Inlet | E82: 1560 | F82: 200 | G82: =E82*F82 -> 312000 | H82: 1e-08 | I82: 150 | J82: 20 | M82: =-(G82*H82*(J82/I82)*60*60*24*365) -> -13118.976 | X82: Hydraulic connection to adjacent AQ
B83: QGW2 | C83: Out | D83: Koksilah River | E83: 1700 | F83: 200 | G83: =E83*F83 -> 340000 | H83: 1e-08 | I83: 165 | J83: 20 | M83: -12996.65455 | Y83: Over / Under | AB83: Overlain by surficial AQ197 & AQ199
B84: QGW3 | C84: Out | D84: AQ 186 | E84: 445 | F84: 200 | G84: 89000 | H84: 1e-08 | I84: 150 | J84: 20 | M84: -3742.272 | Y84: Upgradient | AB84: Upgradient contact with bedrock AQ 196 (not in study area)
B85: QGW4 | C85: Out | D85: AQ 186 | E85: 130 | F85: 200 | G85: 26000 | H85: 1e-08 | I85: 225 | J85: 20 | M85: -728.832 | Y85: Downgradient | AB85: Downgradient contact with undeveloped extension of bedrock AQ198
B86: QGW5 | C86: Out | D86: AQ 186 | E86: 1500 | F86: 200 | G86: 300000 | H86: 1e-08 | I86: 550 | J86: 40 | M86: -6880.581818 | X86: Vulnerability to surface contamination | AB86: Low - confined
B87: QGW6 | C87: Out | D87: AQ 186 | E87: 90 | F87: 200 | G87: 18000 | H87: 1e-08 | I87: 270 | J87: 20 | M87: -420.48 | X87: Recharge
B88: QGW7 | C88: Out | D88: AQ 186 | E88: 1560 | F88: 200 | G88: 312000 | H88: 1e-08 | I88: 465 | J88: 40 | M88: -8463.855484 | Y88: Vertical inflow | AB88: None from precipitation-snowmelt, stream loss, irrigation, sewage disposal. Low to moderate recharge from overlying surficial AQ197 & AQ199
B89: QGW8 | C89: Out | D89: Koksilah River | E89: 2675 | F89: 200 | G89: 535000 | H89: 1e-08 | I89: 305 | J89: 20 | M89: -11063.44918 | Y89: Lateral inflow | AB89: Low - moderate lateral inflow from upgradient bedrock sources AQ196 (not in study area); possible increased K along thrust faults
B90: QGW9 | C90: In | D90: AQ 197 | E90: -- | F90: -- | G90: -- | H90: -- | I90: -- | J90: -- | K90: -- | L90: -- | M90: =-'Surficial AQ 197'!M87 -> 204984 | Y90: Temporal variability | AB90: Low, confined
B91: QGW10 | C91: Zero | D91: AQ 197 | E91: 760 | F91: 200 | G91: 152000 | H91: 1e-08 | I91: 1 | J91: 0 | M91: 0 | Y91: MBR | AB91: Negligible
B92: QGW11 | C92: In | D92: AQ 197 | E92: 90 | F92: 200 | G92: 18000 | H92: 1e-08 | I92: 1705 | J92: 20 | M92: =(G92*H92*(J92/I92)*60*60*24*365) -> 66.58627566 | X92: Discharge
B93: QGW12 | C93: Zero | D93: AQ 197 | E93: 535 | F93: 200 | G93: 107000 | H93: 1e-08 | I93: 1 | J93: 0 | M93: =-(G93*H93*(J93/I93)*60*60*24*365) -> 0 | Y93: Evapotranspiration | AB93: Negligible, confined
B94: QGW13 | C94: In | D94: AQ 197 | E94: 130 | F94: 200 | G94: 26000 | H94: 1e-08 | I94: 2800 | J94: 20 | M94: =(G94*H94*(J94/I94)*60*60*24*365) -> 58.56685714 | Y94: Outflow to marine | AB94: Low
B95: QGW14 | C95: In | D95: AQ 197 | E95: 1115 | F95: 200 | G95: 223000 | H95: 1e-08 | I95: 690 | J95: 40 | M95: =(G95*H95*(J95/I95)*60*60*24*365) -> 4076.827826 | Y95: Outflow to surface waters | AB95: None
B96: QGW15 | C96: In | D96: Leakage from AQ 197 | E96: Leakance Factor (m/yr) = | F96: ='Surficial AQ 197'!T11 -> 0.1 | G96: ='Surficial AQ 197'!S11 -> 4999983.008 | H96: -- | I96: -- | J96: -- | M96: =-'Surficial AQ 197'!U11 -> 499998.3008 | Y96: Outflow to other AQ | AB96: None
B97: QGW16 | C97: In | D97: Leakage from AQ 199 | E97: Leakance Factor (m/yr) = | F97: ='Surficial AQ 199'!T10 -> 0.1 | G97: ='Surficial AQ 199'!S10 -> 796597.0636 | H97: -- | I97: -- | J97: -- | M97: =-'Surficial AQ 199'!U10 -> 79659.70636 | Y97: Temporal variability | AB97: None
B98: Total | M98: =SUM(M82:M97) -> 731428.8871 | N98: =SUM(N82:N97) -> 0 | O98: =SUM(O82:O97) -> 0
X99: Groundwater Development
B100: Surface Water Contributions | C100: Cold Water Creek? | D100: Observed Vertical Gradient | E100: Percent Permeable | F100: Length (m) | G100: Width (m) | H100: Flux (m/s) | I100: SW Flow (m3/yr) | L100: Comment | Y100: Nearest BCMOE Observation Wells; distance; completion / relevance | AB100: Well #233; 1.4 km SE; completed in surficial AQ197; irrelevant
I101: Year 1 | J101: Year 2 | K101: Year 3 | Y101: Total Annual Water Use (m3/yr) as reported by Hatfield (2015) | AC101: SUMS
B102: None | Z102: Industrial | AB102: 109500 | AC102: Total Commercial and Industrial
B103: Total | I103: =SUM(I102:I102) -> 0 | J103: =SUM(J102:J102) -> 0 | K103: =SUM(K102:K102) -> 0 | Z103: Commercial | AB103: 7300 | AC103: =AB102+AB103 -> 116800
Z104: Domestic | AB104: 53687 | AC104: Total Irrigation
B105: Water Well Usage | C105: Water Well Usage Volume (m3/yr) | L105: Comments | Z105: Irrigation from GW (MoAg) | AB105: 0 | AC105: =AB105 -> 0
C106: Year 1 | F106: Year 2 | I106: Year 3 | Z106: BCMOE Obs | AB106: 0
C107: Total Volume Removed | D107: Adjustment Factor | E107: Adjusted Volume Removed | F107: Total Volume Removed | G107: Adjustment Factor | H107: Adjusted Volume Removed | I107: Total Volume Removed | J107: Adjustment Factor | K107: Adjusted Volume Removed | Z107: Other | AB107: 67300 | AC107: Total Domestic + Water Systems + Other
B108: Industrial | C108: =AB102 -> 109500 | D108: 1 | E108: =C108*D108 -> 109500 | L108: Assuming 100% consumptive | Z108: Water Supply Systems | AB108: 465 | AC108: =AB104+AB107+AB108 -> 121452
B109: Commercial | C109: 7300 | D109: 1 | E109: =C109*D109 -> 7300 | L109: Assuming 100% consumptive
B110: Domestic | C110: 53687 | D110: 1 | E110: 53687 | L110: Assuming 100% consumptive
B111: Irrigation | C111: 0 | D111: 1 | E111: 0 | L111: Assuming 100% consumptive
B112: BCMOE Obs | C112: 0 | D112: 1 | E112: 0 | L112: Assuming 100% consumptive
B113: Other | C113: 67300 | D113: 1 | E113: 67300 | L113: Assuming 100% consumptive
B114: Water Supply Systems | C114: 465 | D114: 1 | E114: 465 | L114: Assuming 100% consumptive
B115: Total | E115: =-SUM(E108:E114) -> -238252 | H115: =-SUM(H108:H114) -> 0 | K115: =-SUM(K108:K114) -> 0

Sheet Bedrock 200
B1: Groundwater Impacts: Aquifer #0200, Kelvin Creek (Bedrock) | W1: TABLE B-1
B2: AQ tag | C2: 200 Kelvin Creek | W2: CHM Aquifer Criteria: Aquifer #0200, Kelvin Creek (Bedrock)
B3: Perimeter (km) | C3: 24.06
B4: Area (km2) | C4: 26.9 | W4: BCMOE Criteria
B5: Aquifer materials | C5: Bedrock | X5: AQ tag | AB5: 200 Kelvin Creek
B6: Table B-4 Monthly Summary of AQ200 Water Budgets | Q6: Table B-3 Annual Summary of AQ200 Water Budgets | X6: AQ classification | AB6: IIIB(9)
B7: Monthly Gains and Loses (m3) | C7: Average Year | Q7: Summary - 30 Year Average | X7: AQ type | AB7: BCMOE Classification = 6b (SLR Classification = 6a / 6b / 5a-5b)
B8: Source | C8: Jan | D8: Feb | E8: Mar | F8: Apr | G8: May | H8: Jun | I8: Jul | J8: Aug | K8: Sep | L8: Oct | M8: Nov | N8: Dec | O8: Total | Q8: Gains and Losses | R8: Source | S8: Area (m2) | T8: Infiltration Rate | U8: Q (m3/yr) | X8: Location | AB8: Cobble Hill / Duncan (between Koksilah River & Kelvin Creek)
A9: =$C$7&B9 -> Average YearDirect Recharge to 200 | B9: Direct Recharge to 200 | C9: =C55*$U$9 -> 3615457.028 | D9: =D55*$U$9 -> 2354969.486 | E9: 1699513.353 | F9: 408139.8835 | G9: -491273.2968 | H9: -774700.1988 | I9: -755805.072 | J9: -340112.2824 | K9: -113370.7608 | L9: 1242979.864 | M9: 3813743.97 | N9: 3717844.557 | O9: =SUM(C9:N9) -> 14377386.53 | Q9: Gain | R9: Direct Recharge to 200 | S9: 26939892.06 | T9: =U9/S9 -> 0.5336838953 | U9: =S58 -> 14377386.53 | X9: Perimeter (km) | AB9: 24.06
A10: =$C$7&B10 -> Average YearLateral Groundwater | B10: Lateral Groundwater | C10: =C56*$U$10 -> -1225193.855 | D10: -1179816.304 | E10: -1315948.955 | F10: -1300823.105 | G10: -1361326.505 | H10: -1300823.105 | I10: -1315948.955 | J10: -1285697.255 | K10: -1225193.855 | L10: -1240319.705 | M10: -1179816.304 | N10: -1194942.154 | O10: -15125850.06 | Q10: Loss | R10: Lateral Groundwater | S10: -- | T10: -- | U10: =SUMIF(M82:M118, "<0") -> -15125850.06 | X10: Area (km2) | AB10: 26.9
A11: Average YearLateral Groundwater | B11: Lateral Groundwater | C11: =C56*$U$11 -> 54607.7376 | D11: 52585.2288 | E11: 58652.7552 | F11: 57978.5856 | G11: 60675.264 | H11: 57978.5856 | I11: 58652.7552 | J11: 57304.416 | K11: 54607.7376 | L11: 55281.9072 | M11: 52585.2288 | N11: 53259.3984 | O11: 674169.6 | Q11: Gain | R11: Lateral Groundwater | S11: -- | T11: -- | U11: =SUMIF(M82:M118, ">0") -> 674169.6 | X11: Aquifer materials | AB11: Bedrock
A12: Average YearSurface Water | B12: Surface Water | C12: =C57*$U$12 -> -438441.6799 | D12: -384915.4831 | E12: -278045.5914 | F12: -134435.9131 | G12: -47667.79826 | H12: -19333.98344 | I12: -11482.11508 | J12: -3729.637468 | K12: -3135.777804 | L12: -28781.07314 | M12: -203405.6314 | N12: -433393.3159 | O12: -1986768 | Q12: Loss | R12: Surface Water | S12: -- | T12: -- | U12: =SUMIF(I123:I127,"<0") -> -1986768 | X12: Lithostratographic unit | AB12: Sicker Volcanics
A13: Average YearSurface Water | B13: Surface Water | C13: =C57*$U$13 -> 0 | D13: 0 | E13: 0 | F13: 0 | G13: 0 | H13: 0 | I13: 0 | J13: 0 | K13: 0 | L13: 0 | M13: 0 | N13: 0 | O13: 0 | Q13: Gain | R13: Surface Water | S13: -- | T13: -- | U13: =SUMIF(I123:I127,">0") -> 0 | X13: Productivity | AB13: Low
A14: Average YearWater Well Usage | B14: Water Well Usage | C14: =C58*$U$14 -> -2713.8 | D14: -2939.95 | E14: -3392.25 | F14: -3618.4 | G14: -4070.7 | H14: -4523 | I14: -4975.3 | J14: -5201.45 | K14: -4523 | L14: -3618.4 | M14: -3166.1 | N14: -2487.65 | O14: -45230 | Q14: Loss | R14: Water Well Usage | S14: -- | T14: -- | U14: =E140 -> -45230 | X14: Vulnerability | AB14: Moderate
A15: Average YearNet Gain | B15: Net Gain | C15: =SUMIF(C9:C14, ">0") -> 3670064.766 | D15: =SUMIF(D9:D14, ">0") -> 2407554.714 | E15: =SUMIF(E9:E14, ">0") -> 1758166.108 | F15: 466118.4691 | G15: 60675.264 | H15: 57978.5856 | I15: 58652.7552 | J15: 57304.416 | K15: 54607.7376 | L15: 1298261.771 | M15: 3866329.198 | N15: 3771103.956 | O15: 17526817.74 | Q15: Net Gain | U15: =SUMIF(U9:U14, ">0") -> 15051556.13 | X15: Demand | AB15: Low
A16: Average YearNet Loss | B16: Net Loss | C16: =SUMIF(C9:C14, "<0") -> -1666349.335 | D16: =SUMIF(D9:D14, "<0") -> -1567671.737 | E16: =SUMIF(E9:E14, "<0") -> -1597386.796 | F16: -1438877.418 | G16: -1904338.3 | H16: -2099380.287 | I16: -2088211.442 | J16: -1634740.625 | K16: -1346223.393 | L16: -1272719.178 | M16: -1386388.036 | N16: -1630823.12 | O16: -19633109.67 | Q16: Net Loss | U16: =SUMIF(U9:U14, "<0") -> -17157848.06 | X16: Use | AB16: Domestic
A17: Average YearNet Total (Gain - Loss) | B17: Net Total (Gain - Loss) | C17: =SUM(C15:C16) -> 2003715.431 | D17: =SUM(D15:D16) -> 839882.9769 | E17: 160779.3119 | F17: -972758.9488 | G17: -1843663.036 | H17: -2041401.701 | I17: -2029558.687 | J17: -1577436.209 | K17: -1291615.656 | L17: 25542.59362 | M17: 2479941.163 | N17: 2140280.836 | O17: -2106291.926 | Q17: Net Total (Gain - Loss) | U17: =SUM(U15:U16) -> -2106291.926
W18: Location
X19: NTS 50000 | AB19: 092B/12
X20: TRIM 20000 | AB20: Straddles 092B.062 & 092B.072
X21: Lat / Long (Centre) | AB21: 48o41'49" / 123o41'34"
B22: Monthly Gains and Loses (m3) | C22: Hot/Dry (1989) | Q22: Summary - Hot/Dry (1989) | X22: UTM Zone 10 (Centre) | AB22: 448940E / 5393900N
B23: Source | C23: Jan | D23: Feb | E23: Mar | F23: Apr | G23: May | H23: Jun | I23: Jul | J23: Aug | K23: Sep | L23: Oct | M23: Nov | N23: Dec | O23: Total | Q23: Gains and Losses | R23: Source | S23: Area (m2) | T23: Infiltration Rate | U23: Q (m3/yr)
A24: =$C$22&B24 -> Hot/Dry (1989)Direct Recharge to 200 | B24: Direct Recharge to 200 | C24: =$U$24*C62 -> 2965569.484 | D24: =$U$24*D62 -> 1700561.412 | E24: 2644211.247 | F24: 158719.0651 | G24: -623539.1844 | H24: -793595.3256 | I24: -680224.5648 | J24: -283426.902 | K24: -188951.268 | L24: 481825.7334 | M24: 1891402.193 | N24: 2399681.104 | O24: =SUM(C24:N24) -> 9672232.994 | Q24: Gain | R24: Direct Recharge to 200 | S24: 26939892.06 | T24: =U24/S24 -> 0.3590301317 | U24: =R58 -> 9672232.994 | W24: Climate
A25: =$C$22&B25 -> Hot/Dry (1989)Lateral Groundwater | B25: Lateral Groundwater | C25: =$U$25*C63 -> -1240319.705 | D25: =$U$25*D63 -> -1149564.604 | E25: -1270571.405 | F25: -1255445.555 | G25: -1315948.955 | H25: -1270571.405 | I25: -1315948.955 | J25: -1300823.105 | K25: -1240319.705 | L25: -1285697.255 | M25: -1225193.855 | N25: -1255445.555 | O25: -15125850.06 | Q25: Loss | R25: Lateral Groundwater | S25: -- | T25: -- | U25: =SUMIF(M82:M118, "<0") -> -15125850.06 | X25: Nearest active EC weather station / distance / elevation | AB25: EC1012573 Duncan Kelvin Creek / 1.7 km to northwest; EC1017230 Shawnigan Lake / 4.3 km to southeast
A26: Hot/Dry (1989)Lateral Groundwater | B26: Lateral Groundwater | C26: =$U$26*C63 -> 55281.9072 | D26: =$U$26*D63 -> 51236.8896 | E26: 56630.2464 | F26: 55956.0768 | G26: 58652.7552 | H26: 56630.2464 | I26: 58652.7552 | J26: 57978.5856 | K26: 55281.9072 | L26: 57304.416 | M26: 54607.7376 | N26: 55956.0768 | O26: 674169.6 | Q26: Gain | R26: Lateral Groundwater | S26: -- | T26: -- | U26: =SUMIF(M82:M118, ">0") -> 674169.6 | X26: IDF Curve | AB26: Unknown
A27: Hot/Dry (1989)Surface Water | B27: Surface Water | C27: =$U$27*C64 -> -438441.6799 | D27: =$U$27*D64 -> -384915.4831 | E27: -278045.5914 | F27: -134435.9131 | G27: -47667.79826 | H27: -19333.98344 | I27: -11482.11508 | J27: -3729.637468 | K27: -3135.777804 | L27: -28781.07314 | M27: -203405.6314 | N27: -433393.3159 | O27: -1986768 | Q27: Loss | R27: Surface Water | S27: -- | T27: -- | U27: =SUMIF(I123:I127,"<0") -> -1986768
A28: Hot/Dry (1989)Surface Water | B28: Surface Water | C28: =$U$28*C64 -> 0 | D28: =$U$28*D64 -> 0 | E28: 0 | F28: 0 | G28: 0 | H28: 0 | I28: 0 | J28: 0 | K28: 0 | L28: 0 | M28: 0 | N28: 0 | O28: 0 | Q28: Gain | R28: Surface Water | S28: -- | T28: -- | U28: =SUMIF(I123:I127,">0") -> 0 | W28: Physiography
A29: Hot/Dry (1989)Water Well Usage | B29: Water Well Usage | C29: =$U$29*C65 -> -2713.8 | D29: =$U$29*D65 -> -2939.95 | E29: -3392.25 | F29: -3618.4 | G29: -4070.7 | H29: -4523 | I29: -4975.3 | J29: -5201.45 | K29: -4523 | L29: -3618.4 | M29: -3166.1 | N29: -2487.65 | O29: -45230 | Q29: Loss | R29: Water Well Usage | S29: -- | T29: -- | U29: =E140 -> -45230 | X29: Physiographic zone | AB29: Canadian Cordillera / Western System / Outer Mountain Area / Insular Mountains / Vancouver Island Ranges
A30: Hot/Dry (1989)Net Gain | B30: Net Gain | C30: =SUMIF(C24:C29, ">0") -> 3020851.392 | D30: =SUMIF(D24:D29, ">0") -> 1751798.302 | E30: =SUMIF(E24:E29, ">0") -> 2700841.494 | F30: 214675.1419 | G30: 58652.7552 | H30: 56630.2464 | I30: 58652.7552 | J30: 57978.5856 | K30: 55281.9072 | L30: 539130.1494 | M30: 1946009.93 | N30: 2455637.18 | O30: 12916139.84 | Q30: Net Gain | U30: =SUMIF(U24:U29, ">0") -> 10346402.59 | X30: Elevation range (m amsl) | AB30: 40 - 480 m amsl
A31: Hot/Dry (1989)Net Loss | B31: Net Loss | C31: =SUMIF(C24:C29, "<0") -> -1681475.185 | D31: =SUMIF(D24:D29, "<0") -> -1537420.037 | E31: =SUMIF(E24:E29, "<0") -> -1552009.246 | F31: -1393499.868 | G31: -1991226.638 | H31: -2088023.714 | I31: -2012630.935 | J31: -1593181.094 | K31: -1436929.75 | L31: -1318096.728 | M31: -1431765.586 | N31: -1691326.521 | O31: -19727585.3 | Q31: Net Loss | U31: =SUMIF(U24:U29, "<0") -> -17157848.06 | X31: Distance to marine | AB31: 4.12 NE
A32: Hot/Dry (1989)Net Total (Gain - Loss) | B32: Net Total (Gain - Loss) | C32: =SUM(C30:C31) -> 1339376.207 | D32: =SUM(D30:D31) -> 214378.2642 | E32: 1148832.248 | F32: -1178824.726 | G32: -1932573.882 | H32: -2031393.467 | I32: -1953978.18 | J32: -1535202.509 | K32: -1381647.843 | L32: -778966.5785 | M32: 514244.3443 | N32: 764310.6598 | O32: -6811445.463 | Q32: Net Total (Gain - Loss) | U32: =SUM(U30:U31) -> -6811445.463 | X32: Geomorphological setting | AB32: Upland / foothills area with draped glacial moraine
X33: Topography | AB33: Locally rugged. Three N-elongated, sub-conical hills , local fluvial incisions
X34: Terrain | AB34: Rugged to rolling in upland areas, rolling to undulating between topographic highs
X35: Aspect | AB35: Radial around central hills, generally towards east
X36: Slope | AB36: Mainly radial & convex / planar, concave along west edge
B37: Monthly Gains and Loses (m3) | C37: Cold/Wet (1999) | Q37: Summary - Wet/Cold (1999) | X37: XS max grade (m/m) | AB37: 0.0630 to east-northeast
B38: Source | C38: Jan | D38: Feb | E38: Mar | F38: Apr | G38: May | H38: Jun | I38: Jul | J38: Aug | K38: Sep | L38: Oct | M38: Nov | N38: Dec | O38: Total | Q38: Gains and Losses | R38: Source | S38: Area (m2) | T38: Infiltration Rate | U38: Q (m3/yr) | X38: Roughness coefficient | AB38: 0.65 (mainly coniferous cover)
A39: =$C$37&B39 -> Cold/Wet (1999)Direct Recharge to 200 | B39: Direct Recharge to 200 | C39: =$U$39*C55 -> 5999998.559 | D39: =$U$39*D55 -> 3908168.016 | E39: 2820411.801 | F39: 677324.8013 | G39: -815288.095 | H39: -1285646.611 | I39: -1254289.377 | J39: -564430.2196 | K39: -188143.4065 | L39: 2062775.836 | M39: 6329063.835 | N39: 6169914.845 | O39: =SUM(C39:N39) -> 23859859.98 | Q39: Gain | R39: Direct Recharge to 200 | S39: 26939892.06 | T39: =U39/S39 -> 0.8856702148 | U39: =T58 -> 23859859.98
A40: =$C$37&B40 -> Cold/Wet (1999)Lateral Groundwater | B40: Lateral Groundwater | C40: =$U$40*C70 -> -1225193.855 | D40: =$U$40*D70 -> -1179816.304 | E40: -1315948.955 | F40: -1300823.105 | G40: -1361326.505 | H40: -1300823.105 | I40: -1315948.955 | J40: -1285697.255 | K40: -1225193.855 | L40: -1240319.705 | M40: -1179816.304 | N40: -1194942.154 | O40: -15125850.06 | Q40: Loss | R40: Lateral Groundwater | S40: -- | T40: -- | U40: =SUMIF(M82:M118, "<0") -> -15125850.06 | W40: Geology
A41: Cold/Wet (1999)Lateral Groundwater | B41: Lateral Groundwater | C41: =$U$41*C70 -> 54607.7376 | D41: =$U$41*D70 -> 52585.2288 | E41: 58652.7552 | F41: 57978.5856 | G41: 60675.264 | H41: 57978.5856 | I41: 58652.7552 | J41: 57304.416 | K41: 54607.7376 | L41: 55281.9072 | M41: 52585.2288 | N41: 53259.3984 | O41: 674169.6 | Q41: Gain | R41: Lateral Groundwater | S41: -- | T41: -- | U41: =SUMIF(M82:M118, ">0") -> 674169.6 | X41: Terrane | AB41: Overlap / Wrangellia
A42: Cold/Wet (1999)Surface Water | B42: Surface Water | C42: =$U$42*C71 -> -438441.6799 | D42: =$U$42*D71 -> -384915.4831 | E42: -278045.5914 | F42: -134435.9131 | G42: -47667.79826 | H42: -19333.98344 | I42: -11482.11508 | J42: -3729.637468 | K42: -3135.777804 | L42: -28781.07314 | M42: -203405.6314 | N42: -433393.3159 | O42: -1986768 | Q42: Loss | R42: Surface Water | S42: -- | T42: -- | U42: =SUMIF(I123:I127,"<0") -> -1986768 | X42: Bedrock (age ; formation ; lithology)
A43: Cold/Wet (1999)Surface Water | B43: Surface Water | C43: =$U$43*C71 -> 0 | D43: =$U$43*D71 -> 0 | E43: 0 | F43: 0 | G43: 0 | H43: 0 | I43: 0 | J43: 0 | K43: 0 | L43: 0 | M43: 0 | N43: 0 | O43: 0 | Q43: Gain | R43: Surface Water | S43: -- | T43: -- | U43: =SUMIF(I123:I127,">0") -> 0 | Y43: Primary | AB43: SE half = Devonian Sicker Group (muDSiD) & Triassic Karmutsen Fm Volcanics (uTrVK); basaltic (55%)
A44: Cold/Wet (1999)Water Well Usage | B44: Water Well Usage | C44: =$U$44*C72 -> -2713.8 | D44: =$U$44*D72 -> -2939.95 | E44: -3392.25 | F44: -3618.4 | G44: -4070.7 | H44: -4523 | I44: -4975.3 | J44: -5201.45 | K44: -4523 | L44: -3618.4 | M44: -3166.1 | N44: -2487.65 | O44: -45230 | Q44: Loss | R44: Water Well Usage | S44: -- | T44: -- | U44: =E140 -> -45230 | Y44: Secondary | AB44: NW half, E & SE fringes = Jurassic Island Plutonic Suite (EMJlgd); granodioritic (35%)
A45: Cold/Wet (1999)Net Gain | B45: Net Gain | C45: =SUMIF(C39:C44, ">0") -> 6054606.297 | D45: =SUMIF(D39:D44, ">0") -> 3960753.245 | E45: =SUMIF(E39:E44, ">0") -> 2879064.557 | F45: 735303.3869 | G45: 60675.264 | H45: 57978.5856 | I45: 58652.7552 | J45: 57304.416 | K45: 54607.7376 | L45: 2118057.743 | M45: 6381649.064 | N45: 6223174.243 | O45: 28641827.29 | Q45: Net Gain | U45: =SUMIF(U39:U44, ">0") -> 24534029.58 | Y45: Tertiary | AB45: North end = Upper Cretaceous Nanaimo Group (uKN), shale(5%); Central / SE areas = Carboniferous-Permian Buttle Lake Formation (PnPBM); limestone (5%)
A46: Cold/Wet (1999)Net Loss | B46: Net Loss | C46: =SUMIF(C39:C44, "<0") -> -1666349.335 | D46: =SUMIF(D39:D44, "<0") -> -1567671.737 | E46: =SUMIF(E39:E44, "<0") -> -1597386.796 | F46: -1438877.418 | G46: -2228353.098 | H46: -2610326.7 | I46: -2586695.747 | J46: -1859058.562 | K46: -1420996.039 | L46: -1272719.178 | M46: -1386388.036 | N46: -1630823.12 | O46: -21265645.77 | Q46: Net Loss | U46: =SUMIF(U39:U44, "<0") -> -17157848.06
A47: Cold/Wet (1999)Net Total (Gain - Loss) | B47: Net Total (Gain - Loss) | C47: =SUM(C45:C46) -> 4388256.963 | D47: =SUM(D45:D46) -> 2393081.507 | E47: 1281677.76 | F47: -703574.031 | G47: -2167677.834 | H47: -2552348.114 | I47: -2528042.992 | J47: -1801754.146 | K47: -1366388.301 | L47: 845338.5656 | M47: 4995261.028 | N47: 4592351.123 | O47: 7376181.528 | Q47: Net Total (Gain - Loss) | U47: =SUM(U45:U46) -> 7376181.528 | X47: Structure | AB47: AQ lies NW of major NE splay of San Juan Fault. N and NNW mapped faults cross east-centre
X48: Surficial (formation; lithology; thickness) | AB48: Vashon Drift Formation, morainal; silt-sand; shallow blankets & veneers (> 5 m)
X49: Surficial designation (1993) | AB49: Generally Cb-Cv // R ; E flank = Cb //sgFG
X50: Soils (association; parent; texture; drainage; type; comments) | AB50: Generally RL5R0S1/ed (Rosewall/Shawingan SAs), E & SE flanks - S1v/ed; colluvial / moraine; gsl / si-s; rapid - good; O.HFP / DU.DYB ; coarse-textured soils + duric zones
Q51: Table B-2. Direct Recharge Calculation for AQ200 | X51: Restrictive layers | AB51: RL soils - no / S soils yes (near-urface duric layers)
B52: Table B-5 Monthly Coefficients used in Calculations for AQ200 | R52: Direct Recharge Calculation | X52: Estimated permeability | AB52: RL soils - high; S soils low to moderate
B53: Monthly Factors | C53: 30 Year Average | R53: Hot/Dry | S53: Average | T53: Cold/Wet
C54: Jan | D54: Feb | E54: Mar | F54: Apr | G54: May | H54: Jun | I54: Jul | J54: Aug | K54: Sep | L54: Oct | M54: Nov | N54: Dec | Q54: Surplus (mm) | R54: =SUM('Climate Dashboard'!AA42:AL42) -> 511.8903459 | S54: =SUM('Climate Dashboard'!C48:AL48)/3 -> 760.9044746 | T54: =SUM('Climate Dashboard'!AA54:AL54) -> 1262.752044 | W54: Hydrology
B55: Surplus Water | C55: ='Monthly Factors'!B16 -> 0.2514683055 | D55: ='Monthly Factors'!C16 -> 0.1637967708 | E55: ='Monthly Factors'!D16 -> 0.1182073911 | F55: ='Monthly Factors'!E16 -> 0.02838762682 | G55: ='Monthly Factors'!F16 -> -0.03416986083 | H55: ='Monthly Factors'!G16 -> -0.05388324207 | I55: ='Monthly Factors'!H16 -> -0.05256901665 | J55: ='Monthly Factors'!I16 -> -0.02365605749 | K55: ='Monthly Factors'!J16 -> -0.007885352498 | L55: ='Monthly Factors'!K16 -> 0.08645381144 | M55: ='Monthly Factors'!L16 -> 0.26525989 | N55: ='Monthly Factors'!M16 -> 0.2585897339 | Q55: Station Coeffiecient Factor | R55: 1.12 | S55: 1.12 | T55: 1.12 | X55: GW / SW basin coincidence | AB55: No
B56: Leakance/ Lateral Ground Water | C56: ='Monthly Factors'!B42 -> 0.081 | D56: ='Monthly Factors'!C42 -> 0.078 | E56: ='Monthly Factors'!D42 -> 0.087 | F56: ='Monthly Factors'!E42 -> 0.086 | G56: ='Monthly Factors'!F42 -> 0.09 | H56: ='Monthly Factors'!G42 -> 0.086 | I56: ='Monthly Factors'!H42 -> 0.087 | J56: ='Monthly Factors'!I42 -> 0.085 | K56: ='Monthly Factors'!J42 -> 0.081 | L56: ='Monthly Factors'!K42 -> 0.082 | M56: ='Monthly Factors'!L42 -> 0.078 | N56: ='Monthly Factors'!M42 -> 0.079 | Q56: Infiltration Coefficient | R56: 0.6262329817 | S56: 0.6262329817 | T56: 0.6262329817 | X56: Catchments | AB56: Kelvin / Koksilah
B57: Surface Water | C57: ='Monthly Factors'!B26 -> 0.2206808646 | D57: ='Monthly Factors'!C26 -> 0.1937395222 | E57: ='Monthly Factors'!D26 -> 0.1399486963 | F57: ='Monthly Factors'!E26 -> 0.06766563237 | G57: ='Monthly Factors'!F26 -> 0.0239926344 | H57: ='Monthly Factors'!G26 -> 0.009731374491 | I57: ='Monthly Factors'!H26 -> 0.005779293346 | J57: ='Monthly Factors'!I26 -> 0.001877238544 | K57: ='Monthly Factors'!J26 -> 0.001578331141 | L57: ='Monthly Factors'!K26 -> 0.01448637845 | M57: ='Monthly Factors'!L26 -> 0.1023801629 | N57: ='Monthly Factors'!M26 -> 0.2181398713 | Q57: Area (m2) | R57: =S9 -> 26939892.06 | S57: =S9 -> 26939892.06 | T57: =S9 -> 26939892.06 | X57: Drainage regime | AB57: Radial, concentrated along SE border with Koksilah River
B58: Water Usage | C58: ='Monthly Factors'!B31 -> 0.06 | D58: ='Monthly Factors'!C31 -> 0.065 | E58: ='Monthly Factors'!D31 -> 0.075 | F58: ='Monthly Factors'!E31 -> 0.08 | G58: ='Monthly Factors'!F31 -> 0.09 | H58: ='Monthly Factors'!G31 -> 0.1 | I58: ='Monthly Factors'!H31 -> 0.11 | J58: ='Monthly Factors'!I31 -> 0.115 | K58: ='Monthly Factors'!J31 -> 0.1 | L58: ='Monthly Factors'!K31 -> 0.08 | M58: ='Monthly Factors'!L31 -> 0.07 | N58: ='Monthly Factors'!M31 -> 0.055 | Q58: Q (m3/yr) | R58: =(R54/1000)*R55*R56*R57 -> 9672232.994 | S58: =(S54/1000)*S55*S56*S57 -> 14377386.53 | T58: =(T54/1000)*T55*T56*T57 -> 23859859.98 | X58: Surface waters | AB58: One small tribuary of Kelvin Ck along NW side; two small tributaries of Koksilah River in SE area; scattered small wetlands; SE border formed by Koksilah River
Q59: Average Infiltration Rate | R59: =R58/R57 -> 0.3590301317 | S59: =S58/S57 -> 0.5336838953 | T59: =T58/T57 -> 0.8856702148 | X59: Runoff coefficient | AB59: ~35% forested / 50% cleared-forested / 10% rural residential; rolling to rugged terrain / moderate slope = 0.45
B60: Monthly Factors | C60: Hot/Dry (1989) | X60: Nearest Active EC hydrometric station; distance; type | AB60: EC 08HA003 Koksilah River @ Cowichan Station; 1.93 km NE; active realtime + Shawnigan Creek @ Mill Bay; 6.97 km SE (inactive)
C61: Jan | D61: Feb | E61: Mar | F61: Apr | G61: May | H61: Jun | I61: Jul | J61: Aug | K61: Sep | L61: Oct | M61: Nov | N61: Dec | X61: Surface water diversions ; relevance | AB61: 15 within and along AQ boundaries, Koksilah River, Kelvin Creek, unnamed streams, springs; relevant
B62: Surplus Water | C62: ='Monthly Factors'!B11 -> 0.3066064978 | D62: ='Monthly Factors'!C11 -> 0.1758189048 | E62: ='Monthly Factors'!D11 -> 0.273381674 | F62: ='Monthly Factors'!E11 -> 0.01640976445 | G62: ='Monthly Factors'!F11 -> -0.06446693176 | H62: ='Monthly Factors'!G11 -> -0.08204882224 | I62: ='Monthly Factors'!H11 -> -0.07032756192 | J62: ='Monthly Factors'!I11 -> -0.0293031508 | K62: ='Monthly Factors'!J11 -> -0.01953543387 | L62: ='Monthly Factors'!K11 -> 0.04981535636 | M62: ='Monthly Factors'!L11 -> 0.195549693 | N62: ='Monthly Factors'!M11 -> 0.2481000101
B63: Leakance/ Lateral Ground Water | C63: ='Monthly Factors'!B43 -> 0.082 | D63: ='Monthly Factors'!C43 -> 0.076 | E63: ='Monthly Factors'!D43 -> 0.084 | F63: ='Monthly Factors'!E43 -> 0.083 | G63: ='Monthly Factors'!F43 -> 0.087 | H63: ='Monthly Factors'!G43 -> 0.084 | I63: ='Monthly Factors'!H43 -> 0.087 | J63: ='Monthly Factors'!I43 -> 0.086 | K63: ='Monthly Factors'!J43 -> 0.082 | L63: ='Monthly Factors'!K43 -> 0.085 | M63: ='Monthly Factors'!L43 -> 0.081 | N63: ='Monthly Factors'!M43 -> 0.083 | W63: Land Cover
B64: Surface Water | C64: ='Monthly Factors'!B26 -> 0.2206808646 | D64: ='Monthly Factors'!C26 -> 0.1937395222 | E64: ='Monthly Factors'!D26 -> 0.1399486963 | F64: ='Monthly Factors'!E26 -> 0.06766563237 | G64: ='Monthly Factors'!F26 -> 0.0239926344 | H64: ='Monthly Factors'!G26 -> 0.009731374491 | I64: ='Monthly Factors'!H26 -> 0.005779293346 | J64: ='Monthly Factors'!I26 -> 0.001877238544 | K64: ='Monthly Factors'!J26 -> 0.001578331141 | L64: ='Monthly Factors'!K26 -> 0.01448637845 | M64: ='Monthly Factors'!L26 -> 0.1023801629 | N64: ='Monthly Factors'!M26 -> 0.2181398713 | X64: Vegetation zone | AB64: Cgf-wC
B65: Water Usage | C65: ='Monthly Factors'!B31 -> 0.06 | D65: ='Monthly Factors'!C31 -> 0.065 | E65: ='Monthly Factors'!D31 -> 0.075 | F65: ='Monthly Factors'!E31 -> 0.08 | G65: ='Monthly Factors'!F31 -> 0.09 | H65: ='Monthly Factors'!G31 -> 0.1 | I65: ='Monthly Factors'!H31 -> 0.11 | J65: ='Monthly Factors'!I31 -> 0.115 | K65: ='Monthly Factors'!J31 -> 0.1 | L65: ='Monthly Factors'!K31 -> 0.08 | M65: ='Monthly Factors'!L31 -> 0.07 | N65: ='Monthly Factors'!M31 -> 0.055 | X65: Primary land uses | AB65: Forestry / rural residential
X66: Degree of development | AB66: Low to moderate, mainly forestry & rural residential. Very low impervious cover
B67: Monthly Factors | C67: Cold/Wet (1999) | X67: Evapotranspiration potential | AB67: High
C68: Jan | D68: Feb | E68: Mar | F68: Apr | G68: May | H68: Jun | I68: Jul | J68: Aug | K68: Sep | L68: Oct | M68: Nov | N68: Dec | X68: Relative environmental sensitivity | AB68: Low
B69: Surplus Water | C69: ='Monthly Factors'!B21 -> 0.2812111861 | D69: ='Monthly Factors'!C21 -> 0.2847106197 | E69: ='Monthly Factors'!D21 -> 0.1055893178 | F69: ='Monthly Factors'!E21 -> -0.01267073776 | G69: ='Monthly Factors'!F21 -> -0.01029497443 | H69: ='Monthly Factors'!G21 -> -0.02692531773 | I69: ='Monthly Factors'!H21 -> -0.03484452883 | J69: ='Monthly Factors'!I21 -> -0.01425457998 | K69: ='Monthly Factors'!J21 -> -0.006335368879 | L69: ='Monthly Factors'!K21 -> 0.09986125195 | M69: ='Monthly Factors'!L21 -> 0.1613935222 | N69: ='Monthly Factors'!M21 -> 0.1725596098
B70: Leakance/ Lateral Ground Water | C70: ='Monthly Factors'!B44 -> 0.081 | D70: ='Monthly Factors'!C44 -> 0.078 | E70: ='Monthly Factors'!D44 -> 0.087 | F70: ='Monthly Factors'!E44 -> 0.086 | G70: ='Monthly Factors'!F44 -> 0.09 | H70: ='Monthly Factors'!G44 -> 0.086 | I70: ='Monthly Factors'!H44 -> 0.087 | J70: ='Monthly Factors'!I44 -> 0.085 | K70: ='Monthly Factors'!J44 -> 0.081 | L70: ='Monthly Factors'!K44 -> 0.082 | M70: ='Monthly Factors'!L44 -> 0.078 | N70: ='Monthly Factors'!M44 -> 0.079 | W70: Hydrogeology
B71: Surface Water | C71: ='Monthly Factors'!B26 -> 0.2206808646 | D71: ='Monthly Factors'!C26 -> 0.1937395222 | E71: ='Monthly Factors'!D26 -> 0.1399486963 | F71: ='Monthly Factors'!E26 -> 0.06766563237 | G71: ='Monthly Factors'!F26 -> 0.0239926344 | H71: ='Monthly Factors'!G26 -> 0.009731374491 | I71: ='Monthly Factors'!H26 -> 0.005779293346 | J71: ='Monthly Factors'!I26 -> 0.001877238544 | K71: ='Monthly Factors'!J26 -> 0.001578331141 | L71: ='Monthly Factors'!K26 -> 0.01448637845 | M71: ='Monthly Factors'!L26 -> 0.1023801629 | N71: ='Monthly Factors'!M26 -> 0.2181398713 | X71: Groundwater occurrence (primary / secondary) | AB71: Void infillings - bedrock fractures & faults, karst solution cavities
B72: Water Usage | C72: ='Monthly Factors'!B31 -> 0.06 | D72: ='Monthly Factors'!C31 -> 0.065 | E72: ='Monthly Factors'!D31 -> 0.075 | F72: ='Monthly Factors'!E31 -> 0.08 | G72: ='Monthly Factors'!F31 -> 0.09 | H72: ='Monthly Factors'!G31 -> 0.1 | I72: ='Monthly Factors'!H31 -> 0.11 | J72: ='Monthly Factors'!I31 -> 0.115 | K72: ='Monthly Factors'!J31 -> 0.1 | L72: ='Monthly Factors'!K31 -> 0.08 | M72: ='Monthly Factors'!L31 -> 0.07 | N72: ='Monthly Factors'!M31 -> 0.055 | X72: Primary porosity | AB72: Low
X73: Secondary porosity | AB73: Moderate (probable good open void space due to brittle rock & local karst solution cavities)
X74: Confinement | AB74: Unconfined to semiconfined - assume bedrock fractures / karst cavities generally daylight to surface. East fringe locally semi-confined by duric till blankets; WP = 0 to 28.7 m, avg 3.0 m
X75: Aquifer thickness | AB75: Bedrock aquifer / assume < 150 m
X76: Hydraulic anisotropy | AB76: High
B77: TABLE B-6 | X77: Storage potential | AB77: Low - moderate due to proximity / presence of large structures & brittle rocks
B78: Groundwater Flow Components: Aquifer #0200, Kelvin Creek (Bedrock) | X78: Yield potential | AB78: Low - moderate; WP = 0.02 - 1.58 L/s / average 0.19 L/s
X79: Flow velocities | AB79: Moderate to high
B80: Groundwater Flow | C80: Direction of Flow | D80: Source or Receptor of Water | E80: Length (m) | F80: Depth (m) | G80: Area (m) | H80: Hydraulic Conductivity (m/s) - K | I80: Distance (m) - dL | J80: Hydraulic Head (m) - dh | M80: GW Flow (m3/yr) | X80: Flow directions | AB80: Radial, generally E or SE to Koksilah River
J81: Year 1 | K81: Year 2 | L81: Year 3 | M81: Year 1 | N81: Year 2 | O81: Year 2 | X81: Static water levels | AB81: WP = variable 0 - 44.2 m bgs / avg 11.9 m bgs
B82: QGW1 | C82: Zero | D82: N/A | E82: =6.5*370 -> 2405 | F82: 200 | G82: =E82*F82 -> 481000 | H82: 1e-06 | I82: 1 | J82: 0 | M82: =-(G82*H82*(J82/I82))*60*60*24*365 -> 0 | X82: Hydraulic connection with surface waters | AB82: High - likely provides baseflow to Koksilah River mainstem & tributaries + Kelvin Creek tributaries
B83: QGW2 | C83: Out | D83: Koksilah River | E83: =1*370 -> 370 | F83: 180 | G83: =E83*F83 -> 66600 | H83: 1e-06 | I83: 930 | J83: 140 | M83: =-(G83*H83*(J83/I83))*60*60*24*365 -> -316173.8323 | X83: Hydraulic connection to adjacent AQ
B84: QGW3 | C84: Out | D84: Koksilah River | E84: =0.4*370 -> 148 | F84: 180 | G84: 26640 | H84: 1e-05 | I84: 600 | J84: 40 | M84: -560079.36 | Y84: Over / Under | AB84: None
B85: QGW4 | C85: Out | D85: Koksilah River | E85: =1.4*370 -> 518 | F85: 180 | G85: 93240 | H85: 1e-06 | I85: 735 | J85: 100 | M85: -400056.6857 | Y85: Upgradient | AB85: Upgradient contact with undeveloped extension of bedrock AQ 200 (not in study area)
B86: QGW5 | C86: Out | D86: Koksilah River | E86: =0.3*370 -> 111 | F86: 180 | G86: 19980 | H86: 1e-05 | I86: 310 | J86: 40 | M86: -813018.4258 | Y86: Downgradient | AB86: Downgradient contacts with bedrock AQ202 (in study area), bedrock AQ 196 (not in study area), and undeveloped extension of AQ200
B87: QGW6 | C87: Out | D87: Koksilah River | E87: =1.9*370 -> 703 | F87: 180 | G87: 126540 | H87: 1e-06 | I87: 540 | J87: 60 | M87: -443396.16 | X87: Vulnerability to surface contamination | AB87: High
B88: QGW7 | C88: Out | D88: Koksilah River | E88: =0.3*370 -> 111 | F88: 180 | G88: 19980 | H88: 1e-05 | I88: 245 | J88: 40 | M88: -1028717.192 | X88: Recharge
B89: QGW8 | C89: Out | D89: Koksilah River | E89: =1.3*370 -> 481 | F89: 100 | G89: 48100 | H89: 1e-06 | I89: 210 | J89: 60 | M89: -433394.7429 | Y89: Vertical inflow | AB89: Mainly precipitation, limited snowmelt / sewerage. Negligible to low from stream loss.
B90: QGW9 | C90: Out | D90: Koksilah River | E90: =0.5*370 -> 185 | F90: 100 | G90: 18500 | H90: 1e-05 | I90: 520 | J90: 100 | M90: -1121953.846 | Y90: Lateral inflow | AB90: Low - moderate lateral inflow from upgradient bedrock sources / possible increased K along faults
B91: QGW10 | C91: Out | D91: Koksilah River | E91: =1.3*370 -> 481 | F91: 100 | G91: 48100 | H91: 1e-06 | I91: 375 | J91: 60 | M91: -242701.056 | Y91: Temporal variability | AB91: High, linked to precipitation trends
B92: QGW11 | C92: Out | D92: Koksilah River | E92: =0.8*370 -> 296 | F92: 80 | G92: 23680 | H92: 1e-05 | I92: 290 | J92: 60 | M92: -1545046.51 | Y92: MBR | AB92: High from internal and upgradient (west and southwest) rocky hills
B93: QGW12 | C93: Out | D93: Koksilah River | E93: =3.1*370 -> 1147 | F93: 80 | G93: 91760 | H93: 1e-06 | I93: 275 | J93: 60 | K93: - | L93: - | M93: -631362.1876 | X93: Discharge
B94: QGW13 | C94: Out | D94: Koksilah River | E94: =0.5*370 -> 185 | F94: 80 | G94: 14800 | H94: 1e-05 | I94: 230 | J94: 40 | M94: -811709.2174 | Y94: Evapotranspiration potential | AB94: High
B95: QGW14 | C95: Out | D95: Koksilah River | E95: =4*370 -> 1480 | F95: 140 | G95: 207200 | H95: 1e-06 | I95: 1160 | J95: 80 | M95: -450638.5655 | Y95: Outflow to marine | AB95: None
B96: QGW15 | C96: Out | D96: Koksilah River | E96: =0.2*370 -> 74 | F96: 140 | G96: 10360 | H96: 1e-05 | I96: 495 | J96: 80 | M96: -528020.9455 | Y96: Outflow to surface waters | AB96: High to Koksilah River along SE border
B97: QGW16 | C97: Out | D97: Koksilah River | E97: =0.9*370 -> 333 | F97: 140 | G97: 46620 | H97: 1e-06 | I97: 210 | J97: 40 | M97: -280039.68 | Y97: Outflow to other AQ | AB97: High - possible MBR zone to downgradient aquifers
B98: QGW17 | C98: Out | D98: Koksilah River | E98: =2.1*370 -> 777 | F98: 140 | G98: 108780 | H98: 1e-09 | I98: 140 | J98: 60 | M98: -1470.20832 | Y98: Temporal variability | AB98: High, linked to precipitation trends
B99: QGW18 | C99: Zero | D99: N/A | E99: =0.4*370 -> 148 | F99: 200 | G99: 29600 | H99: 1e-09 | I99: 1 | J99: 0 | M99: 0
C100: Out | D100: N/A | E100: =0.2*370 -> 74 | F100: 200 | G100: 14800 | H100: 1e-08 | I100: 175 | J100: 60 | M100: -1600.226743 | W100: Groundwater Development
B101: QGW19 | C101: Zero | D101: N/A | E101: =0.6*370 -> 222 | F101: 200 | G101: 44400 | H101: 1e-09 | I101: 1 | J101: 0 | M101: 0 | Y101: Nearest BCMOE Observation Wells; distance; completion / relevance | AB101: Well #233; 3.6 km NE; completed in surficial AQ197; irrelevant Well #320; 4.8 km E; completed in surficial AQ197; irrelevant
B102: QGW20 | C102: Out | D102: N/A | E102: =0.3*370 -> 111 | F102: 200 | G102: 22200 | H102: 1e-07 | I102: 210 | J102: 60 | M102: -20002.83429 | Y102: Total Annual Water Use (m3/yr) as reported by Hatfield (2015) | AC102: SUMS
B103: QGW21 | C103: Out | D103: N/A | E103: =0.5*370 -> 185 | F103: 200 | G103: 37000 | H103: 1e-09 | I103: 80 | J103: 20 | M103: -291.708 | Z103: Industrial | AB103: 0 | AC103: Total Commercial and Industrial
B104: QGW22 | C104: Out | D104: N/A | E104: =0.6*370 -> 222 | F104: 200 | G104: 44400 | H104: 1e-06 | I104: 70 | J104: 20 | M104: -400056.6857 | Z104: Commercial | AB104: 0 | AC104: =AB103+AB104 -> 0
B105: QGW23 | C105: Out | D105: N/A | E105: =0.3*370 -> 111 | F105: 200 | G105: 22200 | H105: 1e-05 | I105: 70 | J105: 20 | M105: -2000283.429 | Z105: Domestic | AB105: 44348 | AC105: Total Irrigation
B106: QGW24 | C106: Out | D106: N/A | E106: =1.8*370 -> 666 | F106: 200 | G106: 133200 | H106: 1e-07 | I106: 165 | J106: 40 | M106: -101832.6109 | Z106: Irrigation from groundwater (Ministry of AGRICULTURE) | AB106: 882 | AC106: =AB106 -> 882
B107: QGW25 | C107: Out | D107: N/A | E107: =0.4*370 -> 148 | F107: 200 | G107: 29600 | H107: 1e-05 | I107: 310 | J107: 40 | M107: -1204471.742 | Z107: BCMOE Obs | AB107: 0
B108: QGW26 | C108: Out | D108: N/A | E108: =1*370 -> 370 | F108: 200 | G108: 74000 | H108: 1e-06 | I108: 120 | J108: 20 | M108: -388944 | Z108: Other | AB108: 0 | AC108: Total Domestic + Water Systems + Other
B109: QGW27 | C109: Out | D109: N/A | E109: =2.2*370 -> 814 | F109: 200 | G109: 162800 | H109: 1e-09 | I109: 185 | J109: 40 | M109: -1110.0672 | Z109: Water Supply Systems | AB109: 0 | AC109: =AB105+AB108+AB109 -> 44348
B110: QGW28 | C110: Out | D110: N/A | E110: =0.4*370 -> 148 | F110: 200 | G110: 29600 | H110: 1e-07 | I110: 460 | J110: 60 | M110: -12175.63826
B111: QGW29 | C111: Out | D111: N/A | E111: =6.7*370 -> 2479 | F111: 200 | G111: 495800 | H111: 1e-09 | I111: 505 | J111: 140 | M111: -4334.607588
B112: QGW30 | C112: Out | D112: Humes Creek | E112: =0.7*370 -> 259 | F112: 20 | G112: 5180 | H112: 1e-09 | I112: 220 | J112: 60 | M112: -44.55176727
B113: QGW31 | C113: Out | D113: Humes Creek | E113: =0.9*370 -> 333 | F113: 20 | G113: 6660 | H113: 1e-06 | I113: 175 | J113: 60 | M113: -72010.20343
B114: QGW32 | C114: Out | D114: Humes Creek | E114: =0.4*370 -> 148 | F114: 20 | G114: 2960 | H114: 1e-05 | I114: 1190 | J114: 20 | K114: - | L114: - | M114: -15688.49748
B115: QGW33 | C115: Out | D115: Humes Creek | E115: =6*370 -> 2220 | F115: 20 | G115: 44400 | H115: 1e-06 | I115: 350 | J115: 15 | K115: - | L115: - | M115: -60008.50286
B116: QGW34 | C116: Out | D116: Humes Creek | E116: =0.4*370 -> 148 | F116: 20 | G116: 2960 | H116: 1e-05 | I116: 1190 | J116: 20 | K116: - | L116: - | M116: -15688.49748
B117: QGW35 | C117: Out | D117: Humes Creek | E117: =4.5*370 -> 1665 | F117: 60 | G117: 99900 | H117: 1e-06 | I117: 155 | J117: 60 | K117: - | L117: - | M117: -1219527.639
B118: QGW36 | C118: In | D118: N/A | E118: =2.6*370 -> 962 | F118: 200 | G118: 192400 | H118: 1e-06 | I118: 180 | J118: 20 | K118: - | L118: - | M118: =(G118*H118*(J118/I118))*60*60*24*365 -> 674169.6
B119: Total | M119: =SUM(M82:M118) -> -14451680.46 | N119: =SUM(N82:N118) -> 0 | O119: =SUM(O82:O118) -> 0
B121: Surface Water Contributions | C121: Cold Water Creek? | D121: Observed Vertical Gradient | E121: Percent Permeable | F121: Length (m) | G121: Width (m) | H121: Flux (m/s) | I121: SW Flow (m3/yr) | L121: Comment
I122: Year 1 | J122: Year 2 | K122: Year 3
B123: Riverside Creek | C123: Unknown | D123: Downward | E123: 0.1 | F123: 1000 | G123: 2 | H123: 3e-05 | I123: =-(E123*F123*G123)*(H123*60*60*24*365) -> -189216 | L123: Creek is being fed by a pond that empties into the Koksilah River.
B124: Unknown Creek Name (south-east edge) | C124: Unknown | D124: Downward | E124: 0.1 | F124: 5200 | G124: 2 | H124: 3e-05 | I124: =-(E124*F124*G124)*(H124*60*60*24*365) -> -983923.2 | L124: Creek is being fed by wetlands that empties into the Koksilah River.
B125: Unknown Creek Name (south edge) | C125: Unknown | D125: Downward | E125: 0.1 | F125: 2900 | G125: 2 | H125: 3e-05 | I125: =-(E125*F125*G125)*(H125*60*60*24*365) -> -548726.4
B126: Upex Creek | C126: Unknown | D126: Zero | E126: 0 | F126: 3400 | G126: 2 | H126: 3e-05 | I126: =-(E126*F126*G126)*(H126*60*60*24*365) -> 0 | L126: Conveyance feature across the thick over burden.
B127: Batty's Creek | C127: Unknown | D127: Downward | E127: 0.1 | F127: 1400 | G127: 2 | H127: 3e-05 | I127: =-(E127*F127*G127)*(H127*60*60*24*365) -> -264902.4
B128: Total | I128: =SUM(I123:I127) -> -1986768 | J128: =SUM(J123:J123) -> 0 | K128: =SUM(K123:K123) -> 0
B130: Water Well Usage | C130: Water Well Usage Volume (m3/yr) | L130: Comments
C131: Year 1 | F131: Year 2 | I131: Year 3
C132: Total Volume Removed | D132: Adjustment Factor | E132: Adjusted Volume Removed | F132: Total Volume Removed | G132: Adjustment Factor | H132: Adjusted Volume Removed | I132: Total Volume Removed | J132: Adjustment Factor | K132: Adjusted Volume Removed
B133: Industrial | C133: =AB103 -> 0 | D133: 1 | E133: =C133*D133 -> 0 | L133: Assuming 100% consumptive
B134: Commercial | C134: 0 | D134: 1 | E134: =C134*D134 -> 0 | L134: Assuming 100% consumptive
B135: Domestic | C135: 44348 | D135: 1 | E135: 44348 | L135: Assuming 100% percent goes to septic beds
B136: Irrigation | C136: 882 | D136: 1 | E136: 882 | L136: Assuming that 100% of the water is taken from a surface water source.
B137: BCMOE Obs | C137: 0 | D137: 1 | E137: 0 | L137: Assuming 100% consumptive
B138: Other | C138: 0 | D138: 1 | E138: 0 | L138: Assuming 100% consumptive
B139: Water Supply Systems | C139: 0 | D139: 1 | E139: 0 | L139: Assuming 100% consumptive
B140: Total | E140: =-SUM(E133:E139) -> -45230 | H140: =-SUM(H133:H139) -> 0 | K140: =-SUM(K133:K139) -> 0

Sheet Bedrock 202
B1: CHM Aquifer Criteria: Aquifer #0202, North Shawnigan (Bedrock) | W1: TABLE C-1
B2: AQ tag | C2: 202 North Shawnigan | W2: CHM Aquifer Criteria: Aquifer #0202, North Shawnigan (Bedrock)
B3: Perimeter (km) | C3: 25.31
B4: Area (km2) | C4: 21 | W4: BCMOE Criteria
B5: Aquifer materials | C5: Bedrock | X5: AQ tag | AB5: 202 North Shawnigan
B6: Table C-4 Monthly Summary of AQ202 Water Budgets | Q6: Table C-3 Annual Summary of AQ202 Water Budgets | X6: AQ classification | AB6: IIB(10)
B7: Monthly Gains and Loses (m3) | C7: Average Year | Q7: Summary - 30 Year Average | X7: AQ type | AB7: BCMOE Classification = 6b (SLR Classification = 6a / 5a-5b-6b)
B8: Source | C8: Jan | D8: Feb | E8: Mar | F8: Apr | G8: May | H8: Jun | I8: Jul | J8: Aug | K8: Sep | L8: Oct | M8: Nov | N8: Dec | O8: Total | Q8: Gains and Losses | R8: Source | S8: Area (m2) | T8: Infiltration Rate | U8: Q (m3/yr) | X8: Location | AB8: Shawnigan Lake / Cobble Hill; north of Shwnigan Lake , bounded to NW by Koksilah River, includes Cobble Hill & Thain wetland
A9: =$C$7&B9 -> Average YearDirect Recharge to 202 | B9: Direct Recharge to 202 | C9: =$U$9*C55 -> 2213318.545 | D9: =$U$9*D55 -> 1441670.471 | E9: 1040411.874 | F9: 249855.9839 | G9: -300748.7822 | H9: -474257.6951 | I9: -462690.4342 | J9: -208210.6954 | K9: -69403.56513 | L9: 760930.1847 | M9: 2334706.287 | N9: 2275998.371 | O9: =SUM(C9:N9) -> 8801580.544 | Q9: Gain | R9: Direct Recharge to 202 | S9: 18884418.51 | T9: =U9/S9 -> 0.4660763336 | U9: =S58 -> 8801580.544 | X9: Perimeter (km) | AB9: 25.31
A10: =$C$7&B10 -> Average YearLeakage down from 201 | B10: Leakage down from 201 | C10: =$U$10*C56 -> 51336.9819 | D10: =$U$10*D56 -> 49435.6122 | E10: 55139.7213 | F10: 54505.9314 | G10: 57041.091 | H10: 54505.9314 | I10: 55139.7213 | J10: 53872.1415 | K10: 51336.9819 | L10: 51970.7718 | M10: 49435.6122 | N10: 50069.4021 | O10: =SUM(C10:N10) -> 633789.9 | Q10: Gain | R10: Leakage down from 201 | S10: =G129 -> 2112633 | T10: =F129 -> 0.3 | U10: =S10*T10 -> 633789.9 | X10: Area (km2) | AB10: 21
A11: Average YearLateral Ground Water Loss | B11: Lateral Ground Water Loss | C11: =$U$11*C56 -> -1372769.552 | D11: =$U$11*D56 -> -1321926.235 | E11: -1474456.185 | F11: -1457508.413 | G11: -1525299.502 | H11: -1457508.413 | I11: -1474456.185 | J11: -1440560.641 | K11: -1372769.552 | L11: -1389717.324 | M11: -1321926.235 | N11: -1338874.007 | O11: -16947772.24 | Q11: Loss | R11: Lateral Ground Water | S11: -- | T11: -- | U11: =SUMIF(M82:M128, "<0") -> -16947772.24 | X11: Aquifer materials | AB11: Bedrock
A12: Average YearLateral Ground Water Gain | B12: Lateral Ground Water Gain | C12: =$U$12*C56 -> 299353.1214 | D12: =$U$12*D56 -> 288265.9688 | E12: 321527.4267 | F12: 317831.7092 | G12: 332614.5794 | H12: 317831.7092 | I12: 321527.4267 | J12: 314135.9916 | K12: 299353.1214 | L12: 303048.839 | M12: 288265.9688 | N12: 291961.6863 | O12: 3695717.548 | Q12: Gain | R12: Lateral Ground Water | S12: -- | T12: -- | U12: =SUMIF(M82:M128, ">0") -> 3695717.548 | X12: Lithostratigraphic unit | AB12: Bonanza Group and Sicker Volcanics
A13: Average YearSurface Water Loss | B13: Surface Water Loss | C13: =$U$13*C57 -> 0 | D13: =$U$13*D57 -> 0 | E13: 0 | F13: 0 | G13: 0 | H13: 0 | I13: 0 | J13: 0 | K13: 0 | L13: 0 | M13: 0 | N13: 0 | O13: 0 | Q13: Loss | R13: Surface Water | S13: -- | T13: -- | U13: =SUMIF(I134:I136, "<0") -> 0 | X13: Productivity | AB13: Low
A14: Average YearSurface Water Gain | B14: Surface Water Gain | C14: =$U$14*C57 -> 258889.3729 | D14: =$U$14*D57 -> 227283.4281 | E14: 164179.3016 | F14: 79381.20583 | G14: 28146.69992 | H14: 11416.25689 | I14: 6779.915572 | J14: 2202.262124 | K14: 1851.602132 | L14: 16994.53843 | M14: 120106.1824 | N14: 255908.4341 | O14: 1173139.2 | Q14: Gain | R14: Surface Water | S14: -- | T14: -- | U14: =SUMIF(I134:I136, ">0") -> 1173139.2 | X14: Vulnerability | AB14: Moderate
A15: Average YearWell Water Usage | B15: Well Water Usage | C15: =C55*$U$15 -> -48245.45175 | D15: =D55*$U$15 -> -31425.22945 | E15: -22678.67902 | F15: -5446.308144 | G15: 6555.658649 | H15: 10337.76941 | I15: 10085.62869 | J15: 4538.532911 | K15: 1512.844304 | L15: -16586.59599 | M15: -50891.43619 | N15: -49611.7334 | O15: -191855 | Q15: Loss | R15: Water Usage | S15: -- | T15: -- | U15: =E149 -> -191855 | X15: Demand | AB15: Moderate
A16: Average YearNet Gain | B16: Net Gain | C16: =SUMIF(C9:C15, ">0") -> 2822898.021 | D16: 2006655.48 | E16: 1581258.323 | F16: 701574.8303 | G16: 424358.0289 | H16: 394091.6669 | I16: 393532.6923 | J16: 374748.9281 | K16: 354054.5498 | L16: 1132944.334 | M16: 2792514.05 | N16: 2873937.893 | O16: 15852568.8 | Q16: Net Gain | U16: =SUMIF(U9:U15, ">0") -> 14304227.19 | X16: Use | AB16: Multiple
A17: Average YearNet Loss | B17: Net Loss | C17: =SUMIF(C9:C15, "<0") -> -1421015.003 | D17: -1353351.464 | E17: -1497134.864 | F17: -1462954.721 | G17: -1826048.284 | H17: -1931766.108 | I17: -1937146.619 | J17: -1648771.336 | K17: -1442173.117 | L17: -1406303.92 | M17: -1372817.671 | N17: -1388485.741 | O17: -18687968.85 | Q17: Net Loss | U17: =SUMIF(U9:U15, "<0") -> -17139627.24
A18: Average YearNet Total (Gain - Loss) | B18: Net Total (Gain - Loss) | C18: =SUM(C16:C17) -> 1401883.018 | D18: 653304.0152 | E18: 84123.45923 | F18: -761379.8907 | G18: -1401690.255 | H18: -1537674.441 | I18: -1543613.927 | J18: -1274022.408 | K18: -1088118.567 | L18: -273359.586 | M18: 1419696.379 | N18: 1485452.153 | O18: -2835400.051 | Q18: Net Total (Gain - Loss) | U18: =SUM(U16:U17) -> -2835400.051 | W18: Location
X19: NTS 50000 | AB19: 092B/12
X20: TRIM 20000 | AB20: Straddles 092B.062 and 092B.072
X21: Lat / Long (Centre) | AB21: 48o40'36" / 123o38'28"
B22: Monthly Gains and Loses (m3) | C22: Hot/Dry (1989) | Q22: Summary - Hot/Dry (1989) | X22: UTM Zone 10 (Centre) | AB22: 452800E / 5391700N
B23: Source | C23: Jan | D23: Feb | E23: Mar | F23: Apr | G23: May | H23: Jun | I23: Jul | J23: Aug | K23: Sep | L23: Oct | M23: Nov | N23: Dec | O23: Total | Q23: Gains and Losses | R23: Source | S23: Area (m2) | T23: Infiltration Rate | U23: Q (m3/yr)
A24: =$C$22&B24 -> Hot/Dry (1989)Direct Recharge to 202 | B24: Direct Recharge to 202 | C24: =$U$24*C62 -> 1815468.939 | D24: =$U$24*D62 -> 1041053.477 | E24: 1618739.137 | F24: 97164.99118 | G24: -381719.6082 | H24: -485824.9559 | I24: -416421.3908 | J24: -173508.9128 | K24: -115672.6085 | L24: 294965.1518 | M24: 1157882.812 | N24: 1469042.129 | O24: =SUM(C24:N24) -> 5921169.16 | Q24: Gain | R24: Direct Recharge to 202 | S24: 18884418.51 | T24: =U24/S24 -> 0.3135478678 | U24: =R58 -> 5921169.16 | W24: Climate
A25: Hot/Dry (1989)Leakage down from 201 | B25: Leakage down from 201 | C25: =$U$25*C63 -> 51970.7718 | D25: =$U$25*D63 -> 48168.0324 | E25: 53238.3516 | F25: 52604.5617 | G25: 55139.7213 | H25: 53238.3516 | I25: 55139.7213 | J25: 54505.9314 | K25: 51970.7718 | L25: 53872.1415 | M25: 51336.9819 | N25: 52604.5617 | O25: =SUM(C25:N25) -> 633789.9 | Q25: Gain | R25: Leakage down from 201 | S25: =G129 -> 2112633 | T25: 0.3 | U25: =S25*T25 -> 633789.9 | X25: Nearest active EC weather station / distance / elevation | AB25: EC1017230 Shawnigan Lake / 750 m to southeast; EC1015136 Mill Bay SW1 / 4.5 km to east-southeast
A26: Hot/Dry (1989)Lateral Ground Water Loss | B26: Lateral Ground Water Loss | C26: =$U$26*C63 -> -1389717.324 | D26: =$U$26*D63 -> -1288030.69 | E26: -1423612.868 | F26: -1406665.096 | G26: -1474456.185 | H26: -1423612.868 | I26: -1474456.185 | J26: -1457508.413 | K26: -1389717.324 | L26: -1440560.641 | M26: -1372769.552 | N26: -1406665.096 | O26: -16947772.24 | Q26: Loss | R26: Lateral Ground Water | S26: -- | T26: -- | U26: =SUMIF(M82:M128, "<0") -> -16947772.24 | X26: IDF Curve | AB26: Unknown
A27: Hot/Dry (1989)Lateral Ground Water Gain | B27: Lateral Ground Water Gain | C27: =$U$27*C63 -> 303048.839 | D27: =$U$27*D63 -> 280874.5337 | E27: 310440.2741 | F27: 306744.5565 | G27: 321527.4267 | H27: 310440.2741 | I27: 321527.4267 | J27: 317831.7092 | K27: 303048.839 | L27: 314135.9916 | M27: 299353.1214 | N27: 306744.5565 | O27: 3695717.548 | Q27: Gain | R27: Lateral Ground Water | S27: -- | T27: -- | U27: =SUMIF(M82:M128, ">0") -> 3695717.548
A28: Hot/Dry (1989)Surface Water Loss | B28: Surface Water Loss | C28: =$U$28*C65 -> 0 | D28: =$U$28*D65 -> 0 | E28: 0 | F28: 0 | G28: 0 | H28: 0 | I28: 0 | J28: 0 | K28: 0 | L28: 0 | M28: 0 | N28: 0 | O28: 0 | Q28: Loss | R28: Surface Water | S28: -- | T28: -- | U28: =SUMIF(I134:I136, "<0") -> 0 | W28: Physiography
A29: Hot/Dry (1989)Surface Water Gain | B29: Surface Water Gain | C29: =$U$29*C65 -> 70388.352 | D29: =$U$29*D65 -> 76254.048 | E29: 87985.44 | F29: 93851.136 | G29: 105582.528 | H29: 117313.92 | I29: 129045.312 | J29: 134911.008 | K29: 117313.92 | L29: 93851.136 | M29: 82119.744 | N29: 64522.656 | O29: 1173139.2 | Q29: Gain | R29: Surface Water | S29: -- | T29: -- | U29: =SUMIF(I134:I136, ">0") -> 1173139.2 | X29: Physiographic zone | AB29: Straddles: Canadian Cordillera / Western System / Coastal Trough / Georgia Depression / Nanaimo Lowland & Canadian Cordillera / Western System / Outer Mountain Area / Insular Mountains / Vancouver Island Ranges
A30: Hot/Dry (1989)Well Water Usage | B30: Well Water Usage | C30: =$U$30*C65 -> -11511.3 | D30: =$U$30*D65 -> -12470.575 | E30: -14389.125 | F30: -15348.4 | G30: -17266.95 | H30: -19185.5 | I30: -21104.05 | J30: -22063.325 | K30: -19185.5 | L30: -15348.4 | M30: -13429.85 | N30: -10552.025 | O30: -191855 | Q30: Loss | R30: Water Usage | S30: -- | T30: -- | U30: =E149 -> -191855 | X30: Elevation range (m amsl) | AB30: 60 - 320 m amsl
A31: Hot/Dry (1989)Net Gain | B31: Net Gain | C31: =SUMIF(C24:C30, ">0") -> 2240876.902 | D31: 1446350.091 | E31: 2070403.203 | F31: 550365.2454 | G31: 482249.676 | H31: 480992.5457 | I31: 505712.46 | J31: 507248.6486 | K31: 472333.5308 | L31: 756824.4209 | M31: 1590692.659 | N31: 1892913.903 | O31: 12996963.28 | Q31: Net Gain | U31: =SUMIF(U24:U30, ">0") -> 11423815.81 | X31: Distance to marine | AB31: 4.3 km to east
A32: Hot/Dry (1989)Net Loss | B32: Net Loss | C32: =SUMIF(C24:C30, "<0") -> -1401228.624 | D32: -1300501.265 | E32: -1438001.993 | F32: -1422013.496 | G32: -1873442.743 | H32: -1928623.324 | I32: -1911981.626 | J32: -1653080.651 | K32: -1524575.432 | L32: -1455909.041 | M32: -1386199.402 | N32: -1417217.121 | O32: -18712774.72 | Q32: Net Loss | U32: =SUMIF(U24:U30, "<0") -> -17139627.24 | X32: Geomorphological setting | AB32: NE-trending series of low bedrock hills, flanked to south by deep moraine; North-central part of AQ hosts a NE-trending, elongated depression containing glaciofluvial/lacustrine materials
A33: Hot/Dry (1989)Net Total (Gain - Loss) | B33: Net Total (Gain - Loss) | C33: =SUM(C31:C32) -> 839648.2781 | D33: 145848.8255 | E33: 632401.2095 | F33: -871648.2508 | G33: -1391193.067 | H33: -1447630.779 | I33: -1406269.166 | J33: -1145832.002 | K33: -1052241.902 | L33: -699084.6198 | M33: 204493.2572 | N33: 475696.7816 | O33: -5715811.435 | Q33: Net Total (Gain - Loss) | U33: =SUM(U31:U32) -> -5715811.435 | X33: Topography | AB33: NE-trending line of low, sub-conical hills flanked to south by bench-like areas dropping to Shawnigan Lake; northeast area hosts large depression
X34: Terrain | AB34: Rolling along NW side of hills, rolling to undulating elsewhere , planar in NE depression
X35: Aspect | AB35: NW - SE trending, separated by NW line of sub-conical hills
X36: Slope | AB36: Generally convex to planar on and flanking hills, concave around central depression
B37: Monthly Gains and Loses (m3) | C37: Cold/Wet (1999) | Q37: Summary - Cold/Wet (1999) | X37: XS max grade (m/m) | AB37: 0.27 to east- northeast to west-southwest, near south end
B38: Source | C38: Jan | D38: Feb | E38: Mar | F38: Apr | G38: May | H38: Jun | I38: Jul | J38: Aug | K38: Sep | L38: Oct | M38: Nov | N38: Dec | O38: Total | Q38: Gains and Losses | R38: Source | S38: Area (m2) | T38: Infiltration Rate | U38: Q (m3/yr) | X38: Roughness coefficient | AB38: 0.60 (partly cleared, mainly coniferous cover)
A39: =$C$37&B39 -> Cold/Wet (1999)Direct Recharge to 202 | B39: Direct Recharge to 202 | C39: =$U$39*C69 -> 4107534.33 | D39: =$U$39*D69 -> 4158649.095 | E39: 1542299.059 | F39: -185076.1737 | G39: -150374.3911 | H39: -393286.8691 | I39: -508959.4776 | J39: -208210.6954 | K39: -92538.08684 | L39: 1458631.594 | M39: 2357407.762 | N39: 2520506.14 | O39: =SUM(C39:N39) -> 14606582.29 | Q39: Gain | R39: Direct Recharge to 202 | S39: 18884418.51 | T39: =U39/S39 -> 0.7734727058 | U39: =T58 -> 14606582.29
A40: Cold/Wet (1999)Leakage down from 201 | B40: Leakage down from 201 | C40: =$U$40*C70 -> 51336.9819 | D40: =$U$40*D70 -> 49435.6122 | E40: 55139.7213 | F40: 54505.9314 | G40: 57041.091 | H40: 54505.9314 | I40: 55139.7213 | J40: 53872.1415 | K40: 51336.9819 | L40: 51970.7718 | M40: 49435.6122 | N40: 50069.4021 | O40: =SUM(C40:N40) -> 633789.9 | Q40: Gain | R40: Leakage down from 201 | S40: =G129 -> 2112633 | T40: 0.3 | U40: =S40*T40 -> 633789.9 | W40: Geology
A41: Cold/Wet (1999)Lateral Ground Water Loss | B41: Lateral Ground Water Loss | C41: =$U$41*C70 -> -1372769.552 | D41: =$U$41*D70 -> -1321926.235 | E41: -1474456.185 | F41: -1457508.413 | G41: -1525299.502 | H41: -1457508.413 | I41: -1474456.185 | J41: -1440560.641 | K41: -1372769.552 | L41: -1389717.324 | M41: -1321926.235 | N41: -1338874.007 | O41: -16947772.24 | Q41: Loss | R41: Lateral Ground Water | S41: -- | T41: -- | U41: =SUMIF(M82:M128, "<0") -> -16947772.24 | X41: Terrane | AB41: Wrangellia / Overlap
A42: Cold/Wet (1999)Lateral Ground Water Gain | B42: Lateral Ground Water Gain | C42: =$U$42*C70 -> 299353.1214 | D42: =$U$42*D70 -> 288265.9688 | E42: 321527.4267 | F42: 317831.7092 | G42: 332614.5794 | H42: 317831.7092 | I42: 321527.4267 | J42: 314135.9916 | K42: 299353.1214 | L42: 303048.839 | M42: 288265.9688 | N42: 291961.6863 | O42: 3695717.548 | Q42: Gain | R42: Lateral Ground Water | S42: -- | T42: -- | U42: =SUMIF(M82:M128, ">0") -> 3695717.548 | X42: Bedrock (age ; formation ; lithology)
A43: Cold/Wet (1999)Surface Water Loss | B43: Surface Water Loss | C43: =$U$43*C71 -> 0 | D43: =$U$43*D71 -> 0 | E43: 0 | F43: 0 | G43: 0 | H43: 0 | I43: 0 | J43: 0 | K43: 0 | L43: 0 | M43: 0 | N43: 0 | O43: 0 | Q43: Loss | R43: Surface Water | S43: -- | T43: -- | U43: =SUMIF(I134:I136, "<0") -> 0 | Y43: Primary | AB43: Central NE-trending V belt = Devonian Sicker Group Volcanics (muDSiD); basaltic (70%)
A44: Cold/Wet (1999)Surface Water Gain | B44: Surface Water Gain | C44: =$U$44*C71 -> 258889.3729 | D44: =$U$44*D71 -> 227283.4281 | E44: 164179.3016 | F44: 79381.20583 | G44: 28146.69992 | H44: 11416.25689 | I44: 6779.915572 | J44: 2202.262124 | K44: 1851.602132 | L44: 16994.53843 | M44: 120106.1824 | N44: 255908.4341 | O44: 1173139.2 | Q44: Gain | R44: Surface Water | S44: -- | T44: -- | U44: =SUMIF(I134:I136, ">0") -> 1173139.2 | Y44: Secondary | AB44: E portion NE-trending central belt triangle = Triassic Karmutsen Volcanics (uTrVK); basaltic (15%)
A45: Cold/Wet (1999)Well Water Usage | B45: Well Water Usage | C45: =$U$45*C72 -> -11511.3 | D45: =$U$45*D72 -> -12470.575 | E45: -14389.125 | F45: -15348.4 | G45: -17266.95 | H45: -19185.5 | I45: -21104.05 | J45: -22063.325 | K45: -19185.5 | L45: -15348.4 | M45: -13429.85 | N45: -10552.025 | O45: -191855 | Q45: Loss | R45: Water Usage | S45: -- | T45: -- | U45: =E149 -> -191855 | Y45: Tertiary | AB45: North end = Upper Cretaceous Nanaimo Group (uKN); shale (5%); SSE corner = Jurassic Bonanza Group Volcanics (IJBca); andesitic (5%)
A46: Cold/Wet (1999)Net Gain | B46: Net Gain | C46: =SUMIF(C39:C45, ">0") -> 4717113.806 | D46: 4723634.104 | E46: 2083145.509 | F46: 451718.8464 | G46: 417802.3703 | H46: 383753.8974 | I46: 383447.0636 | J46: 370210.3952 | K46: 352541.7054 | L46: 1830645.743 | M46: 2815215.526 | N46: 3118445.663 | O46: 21647674.63 | Q46: Net Gain | U46: =SUMIF(U39:U45, ">0") -> 20109228.93 | Y46: Subsidiary | AB46: Central NE-trending zone = Carboniferous Buttle Lake Group (PnPBM); limestone (2.5%); NW corner = Jurassic Island Plutonic Suite (EMJgd); granodioritic (2.5%)
A47: Cold/Wet (1999)Net Loss | B47: Net Loss | C47: =SUMIF(C39:C45, "<0") -> -1384280.852 | D47: -1334396.81 | E47: -1488845.31 | F47: -1657932.987 | G47: -1692940.843 | H47: -1869980.782 | I47: -2004519.713 | J47: -1670834.661 | K47: -1484493.139 | L47: -1405065.724 | M47: -1335356.085 | N47: -1349426.032 | O47: -18678072.94 | Q47: Net Loss | U47: =SUMIF(U39:U45, "<0") -> -17139627.24 | X47: Structure | AB47: 2 major ENE faults cross centre of AQ - south = San Juan Fault / north = SJF splay. N-trending faults mapped in SW corner; NE end of AQ contains Wrangellia / Overlap terrane unconformity
A48: Cold/Wet (1999)Net Total (Gain - Loss) | B48: Net Total (Gain - Loss) | C48: =SUM(C46:C47) -> 3332832.954 | D48: 3389237.294 | E48: 594300.1985 | F48: -1206214.14 | G48: -1275138.473 | H48: -1486226.885 | I48: -1621072.649 | J48: -1300624.266 | K48: -1131951.433 | L48: 425580.019 | M48: 1479859.441 | N48: 1769019.631 | O48: 2969601.691 | Q48: Net Total (Gain - Loss) | U48: =SUM(U46:U47) -> 2969601.691 | X48: Surficial (formation; lithology; thickness) | AB48: Vashon Drift, morainal & colluvial / Capilano Formation, glaciofluvial/lacustrine in NE depression; silt-sand; shallow - moderate blankets & veneers (> 10 m)
X49: Surficial designation (1993) | AB49: Hilly areas = Cv/Cb/R; morainal blankets = dMb/Cb/R; NE depression = $LGp
X50: Soils (association; parent; texture; drainage; type; comments) | AB50: Hilly areas = RL5S5/gf (Rosewall/Shawnigan), colluvial-moraine veneers, rapid - good, O.HFP-shli & DU.DYB; Morainal blankets = S1vQ5RL5/ef (Shawnigan, Qualicum,Rosewall), morainal & glaciofluvial blankets, moderate to good, DU-DYB; NE depressional area = C1AR1/b (Cowichan, Arrowsmith), marine/lacustrine blankets, imperfect to poor, O.HG & T.M
Q51: Table C-2. Direct Recharge Calculation for AQ202 | X51: Restrictive layers | AB51: Yes - surface duric layers in Shawnigan soils / surface si-cy textures in Cowichan - Arrowsmith soils
B52: Table C-5 Monthly Coefficients used in Calculations for AQ202 | Q52: Direct Recharge Calculation | X52: Estimated permeability | AB52: Low - moderate @ surface from dominant M-LG / high at bedrock ct from dominant Cb-Cv
B53: Monthly Factors | C53: 30 Year Average | R53: Hot/Dry | S53: Average | T53: Cold/Wet
C54: Jan | D54: Feb | E54: Mar | F54: Apr | G54: May | H54: Jun | I54: Jul | J54: Aug | K54: Sep | L54: Oct | M54: Nov | N54: Dec | Q54: Surplus (mm) | R54: =SUM('Climate Dashboard'!AA42:AL42) -> 511.8903459 | S54: =SUM('Climate Dashboard'!C48:AL48)/3 -> 760.9044746 | T54: =SUM('Climate Dashboard'!AA54:AL54) -> 1262.752044 | W54: Hydrology
B55: Surplus Water | C55: ='Monthly Factors'!B16 -> 0.2514683055 | D55: ='Monthly Factors'!C16 -> 0.1637967708 | E55: ='Monthly Factors'!D16 -> 0.1182073911 | F55: ='Monthly Factors'!E16 -> 0.02838762682 | G55: ='Monthly Factors'!F16 -> -0.03416986083 | H55: ='Monthly Factors'!G16 -> -0.05388324207 | I55: ='Monthly Factors'!H16 -> -0.05256901665 | J55: ='Monthly Factors'!I16 -> -0.02365605749 | K55: ='Monthly Factors'!J16 -> -0.007885352498 | L55: ='Monthly Factors'!K16 -> 0.08645381144 | M55: ='Monthly Factors'!L16 -> 0.26525989 | N55: ='Monthly Factors'!M16 -> 0.2585897339 | Q55: Station Coeffiecient Factor | R55: 1.09 | S55: 1.09 | T55: 1.09 | X55: GW / SW basin coincidence | AB55: No
B56: Leakance/ Lateral Ground Water | C56: ='Monthly Factors'!B42 -> 0.081 | D56: ='Monthly Factors'!C42 -> 0.078 | E56: ='Monthly Factors'!D42 -> 0.087 | F56: ='Monthly Factors'!E42 -> 0.086 | G56: ='Monthly Factors'!F42 -> 0.09 | H56: ='Monthly Factors'!G42 -> 0.086 | I56: ='Monthly Factors'!H42 -> 0.087 | J56: ='Monthly Factors'!I42 -> 0.085 | K56: ='Monthly Factors'!J42 -> 0.081 | L56: ='Monthly Factors'!K42 -> 0.082 | M56: ='Monthly Factors'!L42 -> 0.078 | N56: ='Monthly Factors'!M42 -> 0.079 | Q56: Infiltration Coefficient | R56: 0.5619535446 | S56: 0.5619535446 | T56: 0.5619535446 | X56: Catchments | AB56: Koksilah / Shawnigan
B57: Surface Water | C57: ='Monthly Factors'!B26 -> 0.2206808646 | D57: ='Monthly Factors'!C26 -> 0.1937395222 | E57: ='Monthly Factors'!D26 -> 0.1399486963 | F57: ='Monthly Factors'!E26 -> 0.06766563237 | G57: ='Monthly Factors'!F26 -> 0.0239926344 | H57: ='Monthly Factors'!G26 -> 0.009731374491 | I57: ='Monthly Factors'!H26 -> 0.005779293346 | J57: ='Monthly Factors'!I26 -> 0.001877238544 | K57: ='Monthly Factors'!J26 -> 0.001578331141 | L57: ='Monthly Factors'!K26 -> 0.01448637845 | M57: ='Monthly Factors'!L26 -> 0.1023801629 | N57: ='Monthly Factors'!M26 -> 0.2181398713 | Q57: Area (m2) | R57: =S9 -> 18884418.51 | S57: =S9 -> 18884418.51 | T57: =S9 -> 18884418.51 | X57: Drainage regime | AB57: Radial
B58: Water Usage | C58: ='Monthly Factors'!B31 -> 0.06 | D58: ='Monthly Factors'!C31 -> 0.065 | E58: ='Monthly Factors'!D31 -> 0.075 | F58: ='Monthly Factors'!E31 -> 0.08 | G58: ='Monthly Factors'!F31 -> 0.09 | H58: ='Monthly Factors'!G31 -> 0.1 | I58: ='Monthly Factors'!H31 -> 0.11 | J58: ='Monthly Factors'!I31 -> 0.115 | K58: ='Monthly Factors'!J31 -> 0.1 | L58: ='Monthly Factors'!K31 -> 0.08 | M58: ='Monthly Factors'!L31 -> 0.07 | N58: ='Monthly Factors'!M31 -> 0.055 | Q58: Q (m3/yr) | R58: =(R54/1000)*R55*R56*R57 -> 5921169.16 | S58: =(S54/1000)*S55*S56*S57 -> 8801580.544 | T58: =(T54/1000)*T55*T56*T57 -> 14606582.29 | X58: Surface waters | AB58: Three watercourses & wetland chains (incl. Hartl CK), three small waterbodies (inc Cobble Hill Quarry Lake & Silver Mine lakes), radial drainage / north boundary formed by Koksilah River
Q59: Average Infiltration Rate | R59: =R58/R57 -> 0.3135478678 | S59: =S58/S57 -> 0.4660763336 | T59: =T58/T57 -> 0.7734727058 | X59: Runoff coefficient | AB59: ~15% cleared-agricultural / ~75% forested / 10% rural residential /moderate slope = 0.60
B60: Monthly Factors | C60: Hot/Dry (1989) | X60: Nearest Active EC hydrometric station; distance; type | AB60: EC 08HA003 Koksilah River @ Cowichan Station; 2.7 km NW; active realtime; + Shawnigan Creek @ Mill Bay; 4.5 km SE (inactive)
C61: Jan | D61: Feb | E61: Mar | F61: Apr | G61: May | H61: Jun | I61: Jul | J61: Aug | K61: Sep | L61: Oct | M61: Nov | N61: Dec | X61: Surface water diversions ; relevance | AB61: 22 within AQ boundaries, Koksilah & Hartl Ck, springs ; relevant
B62: Surplus Water | C62: ='Monthly Factors'!B11 -> 0.3066064978 | D62: ='Monthly Factors'!C11 -> 0.1758189048 | E62: ='Monthly Factors'!D11 -> 0.273381674 | F62: ='Monthly Factors'!E11 -> 0.01640976445 | G62: ='Monthly Factors'!F11 -> -0.06446693176 | H62: ='Monthly Factors'!G11 -> -0.08204882224 | I62: ='Monthly Factors'!H11 -> -0.07032756192 | J62: ='Monthly Factors'!I11 -> -0.0293031508 | K62: ='Monthly Factors'!J11 -> -0.01953543387 | L62: ='Monthly Factors'!K11 -> 0.04981535636 | M62: ='Monthly Factors'!L11 -> 0.195549693 | N62: ='Monthly Factors'!M11 -> 0.2481000101
B63: Leakance/ Lateral Ground Water | C63: ='Monthly Factors'!B43 -> 0.082 | D63: ='Monthly Factors'!C43 -> 0.076 | E63: ='Monthly Factors'!D43 -> 0.084 | F63: ='Monthly Factors'!E43 -> 0.083 | G63: ='Monthly Factors'!F43 -> 0.087 | H63: ='Monthly Factors'!G43 -> 0.084 | I63: ='Monthly Factors'!H43 -> 0.087 | J63: ='Monthly Factors'!I43 -> 0.086 | K63: ='Monthly Factors'!J43 -> 0.082 | L63: ='Monthly Factors'!K43 -> 0.085 | M63: ='Monthly Factors'!L43 -> 0.081 | N63: ='Monthly Factors'!M43 -> 0.083 | W63: Land Cover
B64: Surface Water | C64: ='Monthly Factors'!B26 -> 0.2206808646 | D64: ='Monthly Factors'!C26 -> 0.1937395222 | E64: ='Monthly Factors'!D26 -> 0.1399486963 | F64: ='Monthly Factors'!E26 -> 0.06766563237 | G64: ='Monthly Factors'!F26 -> 0.0239926344 | H64: ='Monthly Factors'!G26 -> 0.009731374491 | I64: ='Monthly Factors'!H26 -> 0.005779293346 | J64: ='Monthly Factors'!I26 -> 0.001877238544 | K64: ='Monthly Factors'!J26 -> 0.001578331141 | L64: ='Monthly Factors'!K26 -> 0.01448637845 | M64: ='Monthly Factors'!L26 -> 0.1023801629 | N64: ='Monthly Factors'!M26 -> 0.2181398713 | X64: Vegetation zone | AB64: Cgf-wC
B65: Water Usage | C65: ='Monthly Factors'!B31 -> 0.06 | D65: ='Monthly Factors'!C31 -> 0.065 | E65: ='Monthly Factors'!D31 -> 0.075 | F65: ='Monthly Factors'!E31 -> 0.08 | G65: ='Monthly Factors'!F31 -> 0.09 | H65: ='Monthly Factors'!G31 -> 0.1 | I65: ='Monthly Factors'!H31 -> 0.11 | J65: ='Monthly Factors'!I31 -> 0.115 | K65: ='Monthly Factors'!J31 -> 0.1 | L65: ='Monthly Factors'!K31 -> 0.08 | M65: ='Monthly Factors'!L31 -> 0.07 | N65: ='Monthly Factors'!M31 -> 0.055 | X65: Primary land uses | AB65: Forestry / agricultural / rural residential
X66: Degree of development | AB66: Low, mainly forestry & agricultural. Very low impervious cover
B67: Monthly Factors | C67: Cold/Wet (1999) | X67: Evapotranspiration potential | AB67: High
C68: Jan | D68: Feb | E68: Mar | F68: Apr | G68: May | H68: Jun | I68: Jul | J68: Aug | K68: Sep | L68: Oct | M68: Nov | N68: Dec | X68: Relative environmental sensitivity | AB68: Moderate
B69: Surplus Water | C69: ='Monthly Factors'!B21 -> 0.2812111861 | D69: ='Monthly Factors'!C21 -> 0.2847106197 | E69: ='Monthly Factors'!D21 -> 0.1055893178 | F69: ='Monthly Factors'!E21 -> -0.01267073776 | G69: ='Monthly Factors'!F21 -> -0.01029497443 | H69: ='Monthly Factors'!G21 -> -0.02692531773 | I69: ='Monthly Factors'!H21 -> -0.03484452883 | J69: ='Monthly Factors'!I21 -> -0.01425457998 | K69: ='Monthly Factors'!J21 -> -0.006335368879 | L69: ='Monthly Factors'!K21 -> 0.09986125195 | M69: ='Monthly Factors'!L21 -> 0.1613935222 | N69: ='Monthly Factors'!M21 -> 0.1725596098
B70: Leakance/ Lateral Ground Water | C70: ='Monthly Factors'!B44 -> 0.081 | D70: ='Monthly Factors'!C44 -> 0.078 | E70: ='Monthly Factors'!D44 -> 0.087 | F70: ='Monthly Factors'!E44 -> 0.086 | G70: ='Monthly Factors'!F44 -> 0.09 | H70: ='Monthly Factors'!G44 -> 0.086 | I70: ='Monthly Factors'!H44 -> 0.087 | J70: ='Monthly Factors'!I44 -> 0.085 | K70: ='Monthly Factors'!J44 -> 0.081 | L70: ='Monthly Factors'!K44 -> 0.082 | M70: ='Monthly Factors'!L44 -> 0.078 | N70: ='Monthly Factors'!M44 -> 0.079 | W70: Hydrogeology
B71: Surface Water | C71: ='Monthly Factors'!B26 -> 0.2206808646 | D71: ='Monthly Factors'!C26 -> 0.1937395222 | E71: ='Monthly Factors'!D26 -> 0.1399486963 | F71: ='Monthly Factors'!E26 -> 0.06766563237 | G71: ='Monthly Factors'!F26 -> 0.0239926344 | H71: ='Monthly Factors'!G26 -> 0.009731374491 | I71: ='Monthly Factors'!H26 -> 0.005779293346 | J71: ='Monthly Factors'!I26 -> 0.001877238544 | K71: ='Monthly Factors'!J26 -> 0.001578331141 | L71: ='Monthly Factors'!K26 -> 0.01448637845 | M71: ='Monthly Factors'!L26 -> 0.1023801629 | N71: ='Monthly Factors'!M26 -> 0.2181398713 | X71: Groundwater occurrence (primary / secondary) | AB71: Void infillings - bedrock fractures & faults, karst solution cavities
B72: Water Usage | C72: ='Monthly Factors'!B31 -> 0.06 | D72: ='Monthly Factors'!C31 -> 0.065 | E72: ='Monthly Factors'!D31 -> 0.075 | F72: ='Monthly Factors'!E31 -> 0.08 | G72: ='Monthly Factors'!F31 -> 0.09 | H72: ='Monthly Factors'!G31 -> 0.1 | I72: ='Monthly Factors'!H31 -> 0.11 | J72: ='Monthly Factors'!I31 -> 0.115 | K72: ='Monthly Factors'!J31 -> 0.1 | L72: ='Monthly Factors'!K31 -> 0.08 | M72: ='Monthly Factors'!L31 -> 0.07 | N72: ='Monthly Factors'!M31 -> 0.055 | X72: Primary porosity | AB72: Low
X73: Secondary porosity | AB73: Moderate (probable good open void space due to brittle rock & local karst solution cavities; elevated along SJF and splays)
X74: Confinement | AB74: Unconfined to semiconfined - assume bedrock fractures / karst cavities generally daylight to surface. Morainal blanket areas locally semi-confined by duric till blankets; WP = 0 - 53.3 m, avg 2.1 m
X75: Aquifer thickness | AB75: Bedrock aquifer / assume < 150 m
X76: Hydraulic anisotropy | AB76: High
B77: TABLE C-6 | X77: Hydraulic gradient | AB77: Moderate to high based on terrain
B78: Groundwater Impacts: Aquifer #0202, North Shawnigan (Bedrock) | X78: Storage potential | AB78: Low - moderate due to proximity / presence of large structures & brittle rocks
X79: Yield potential | AB79: Low - moderate; WP = 0.02 - 5.68 L/s / average 0.19 L/s
B80: Groundwater Flow | C80: Direction of Flow | D80: Source or Receptor of Water | E80: Length (m) | F80: Depth (m) | G80: Area (m) | H80: Hydraulic Conductivity (m/s) - K | I80: Distance (m) - dL | J80: Hydraulic Head (m) - dh | M80: GW Flow (m3/yr) | X80: Flow velocities | AB80: Moderate to high
J81: Year 1 | K81: Year 2 | L81: Year 3 | M81: Year 1 | N81: Year 2 | O81: Year 2 | X81: Flow directions | AB81: Radial, generally NW to Koksilah River or SE to Shawnigan Creek
B82: QGW1 | C82: Out | D82: N/A | E82: =1.2*357 -> 428.4 | F82: 200 | G82: =E82*F82 -> 85680 | H82: 1e-09 | I82: 150 | J82: 20 | M82: =-(G82*H82*(J82/I82))*60*60*24*365 -> -360.267264 | X82: Static water levels | AB82: WP = variable 0 - 81.7 m bgs / avg 8.4 m bgs
B83: QGW2 | C83: Out | D83: N/A | E83: =(2.7*357)/3 -> 321.3 | F83: 200 | G83: 64260 | H83: 1e-05 | I83: 150 | J83: 20 | M83: -2702004.48 | X83: Hydraulic connection with surface waters | AB83: High - likely provides baseflow to Koksilah River mainstem & tributaries + Hartl Creek mainstem & tributaries
B84: QGW3 | C84: Out | D84: N/A | E84: =0.5*357 -> 178.5 | F84: 200 | G84: 35700 | H84: 1e-06 | I84: 140 | J84: 20 | M84: -160833.6 | X84: Hydraulic connection to adjacent AQ
B85: QGW4 | C85: Out | D85: N/A | E85: =0.7*357 -> 249.9 | F85: 200 | G85: 49980 | H85: 1e-05 | I85: 140 | J85: 20 | M85: -2251670.4 | Y85: Over / Under | AB85: NE part overlain by surficial AQ201
B86: QGW5 | C86: N/A | D86: N/A | E86: =1.7*357 -> 606.9 | F86: 200 | G86: 121380 | H86: 1e-06 | I86: 1 | J86: 0 | M86: 0 | Y86: Upgradient | AB86: Upgradient contact with bedrock AQ 200 & undeveloped extension of AQ202
B87: QGW6 | C87: Out | D87: N/A | E87: =1.5*357 -> 535.5 | F87: 200 | G87: 107100 | H87: 1e-06 | I87: 205 | J87: 60 | M87: -988538.2244 | Y87: Downgradient | AB87: Downgradient contact with surficial AQ 199, surficial AQ 197, bedrock AQ 204, bedrock AQ207, bedrock AQ203, undeveloped extension to bedrock AQ 202
B88: QGW7 | C88: Out | D88: Koksilah River | E88: =0.5*357 -> 178.5 | F88: 40 | G88: 7140 | H88: 1e-06 | I88: 155 | J88: 80 | M88: -116215.2465 | X88: Vulnerability to surface contamination | AB88: Moderate to high
B89: QGW8 | C89: Out | D89: Koksilah River | E89: =0.3*357 -> 107.1 | F89: 40 | G89: 4284 | H89: 1e-05 | I89: 145 | J89: 80 | M89: -745380.5462 | X89: Recharge
B90: QGW9 | C90: Out | D90: Koksilah River | E90: =0.4*357 -> 142.8 | F90: 40 | G90: 5712 | H90: 1e-06 | I90: 155 | J90: 80 | M90: -92972.19716 | Y90: Vertical inflow | AB90: Mainly precipitation, limited snowmelt / irrigation / sewerage. Low from stream loss. Low from from overlying surficial AQ201
B91: QGW10 | C91: Out | D91: Koksilah River | E91: =0.3*357 -> 107.1 | F91: 40 | G91: 4284 | H91: 1e-05 | I91: 145 | J91: 80 | M91: -745380.5462 | Y91: Lateral inflow | AB91: Low - moderate lateral inflow from upgradient bedrock sources / possible increased K along thrust faults
B92: QGW11 | C92: Out | D92: Koksilah River | E92: =1.5*357 -> 535.5 | F92: 40 | G92: 21420 | H92: 1e-06 | I92: 125 | J92: 80 | M92: -432320.7168 | Y92: Temporal variability | AB92: High, linked to precipitation trends
B93: QGW12 | C93: In | D93: Koksilah River | E93: =0.3*357 -> 107.1 | F93: 40 | G93: 4284 | H93: 1e-05 | I93: -- | J93: -- | K93: -- | L93: -- | M93: =-'Bedrock 200'!M88 -> 1028717.192 | Y93: MBR | AB93: High from internal (Cobble Hill) and upgradient (northwest) rocky hills
B94: QGW13 | C94: Out | D94: Koksilah River | E94: =1.5*357 -> 535.5 | F94: 40 | G94: 21420 | H94: 1e-06 | I94: 195 | J94: 60 | M94: =-(G94*H94*(J94/I94))*60*60*24*365 -> -207846.4985 | X94: Discharge
B95: QGW14 | C95: In | D95: Koksilah River | E95: =0.4*357 -> 142.8 | F95: 40 | G95: 5712 | H95: 1e-05 | I95: -- | J95: -- | K95: -- | L95: -- | M95: =-'Bedrock 200'!M90 -> 1121953.846 | Y95: Evapotranspiration potential | AB95: High
B96: QGW15 | C96: Out | D96: Koksilah River | E96: =1.2*357 -> 428.4 | F96: 40 | G96: 17136 | H96: 1e-06 | I96: 320 | J96: 80 | M96: =-(G96*H96*(J96/I96))*60*60*24*365 -> -135100.224 | Y96: Outflow to marine | AB96: None
B97: QGW16 | C97: In | D97: Koksilah River | E97: =0.4*357 -> 142.8 | F97: 40 | G97: 5712 | H97: 1e-05 | I97: -- | J97: -- | K97: -- | L97: -- | M97: =-'Bedrock 200'!M92 -> 1545046.51 | Y97: Outflow to surface waters | AB97: High to Koksilah River along NW border & internally to Hartl Ck
B98: QGW17 | C98: Out | D98: Koksilah River | E98: =4.3*357 -> 1535.1 | F98: 40 | G98: 61404 | H98: 1e-06 | I98: 350 | J98: 60 | M98: =-(G98*H98*(J98/I98))*60*60*24*365 -> -331960.5504 | Y98: Outflow to other AQ | AB98: High - possible MBR zone to downgradient aquifers
B99: QGW18 | C99: Out | D99: Koksilah River | E99: =0.5*357 -> 178.5 | F99: 40 | G99: 7140 | H99: 1e-05 | I99: 110 | J99: 20 | M99: -409394.6182 | Y99: Temporal variability | AB99: High
B100: QGW19 | C100: Out | D100: Koksilah River | E100: =3.5*357 -> 1249.5 | F100: 40 | G100: 49980 | H100: 1e-06 | I100: 200 | J100: 80 | M100: -630467.712
B101: QGW20 | C101: Out | D101: Koksilah River | E101: =0.5*357 -> 178.5 | F101: 40 | G101: 7140 | H101: 1e-05 | I101: 735 | J101: 40 | M101: -122539.8857 | W101: Groundwater Development
B102: QGW21 | C102: Out | D102: Koksilah River | E102: =1*357 -> 357 | F102: 40 | G102: 14280 | H102: 1e-06 | I102: 250 | J102: 80 | M102: -144106.9056 | Y102: Nearest BCMOE Observation Wells; distance; completion / relevance | AB102: Well #320; 2.0 km ENE; completed in surficial AQ197; irrelevant
B103: QGW22 | C103: Out | D103: Koksilah River | E103: =0.6*357 -> 214.2 | F103: 40 | G103: 8568 | H103: 1e-09 | I103: 260 | J103: 60 | M103: -62.35394954 | Y103: Total Annual Water Use (m3/yr) as reported by Hatfield (2015) | AC103: SUMS
B104: QGW23 | C104: Out | D104: AQ 199 | E104: =0.3*357 -> 107.1 | F104: 200 | G104: 21420 | H104: 1e-08 | I104: 510 | J104: 60 | M104: -794.7072 | Z104: Industrial | AB104: 0 | AC104: Total Commercial and Industrial
B105: QGW24 | C105: Out | D105: AQ 199 | E105: =0.6*357 -> 214.2 | F105: 200 | G105: 42840 | H105: 1e-09 | I105: 600 | J105: 80 | M105: -180.133632 | Z105: Commercial | AB105: 7300 | AC105: =AB104+AB105 -> 7300
B106: QGW25 | C106: Out | D106: AQ 199 | E106: =0.4*357 -> 142.8 | F106: 200 | G106: 28560 | H106: 1e-08 | I106: 665 | J106: 100 | M106: -1354.388211 | Z106: Domestic | AB106: 110837 | AC106: Total Irrigation
B107: QGW26 | C107: Out | D107: AQ 199 | E107: =5.1*357 -> 1820.7 | F107: 200 | G107: 364140 | H107: 1e-09 | I107: 575 | J107: 100 | M107: -1997.133746 | Z107: Irrigation from groundwater (Ministry of AGRICULTURE) | AB107: 6458 | AC107: =AB107 -> 6458
B108: QGW27 | C108: Out | D108: AQ 197 | E108: =0.4*357 -> 142.8 | F108: 200 | G108: 28560 | H108: 1e-07 | I108: 235 | J108: 20 | M108: -7665.260936 | Z108: BCMOE Obs | AB108: 0
B109: QGW28 | C109: Out | D109: AQ 197 | E109: =0.8*357 -> 285.6 | F109: 200 | G109: 57120 | H109: 1e-09 | I109: 235 | J109: 20 | M109: -153.3052187 | Z109: Other | AB109: 10950 | AC109: Total Domestic + Water Systems + Other
B110: QGW29 | C110: Out | D110: AQ 197 | E110: =3.3*357 -> 1178.1 | F110: 200 | G110: 235620 | H110: 1e-07 | I110: 335 | J110: 100 | M110: -221806.3379 | Z110: Water Supply Systems | AB110: 56310 | AC110: =AB106+AB109+AB110 -> 178097
B111: QGW30 | C111: Out | D111: AQ 204 | E111: =3.6*357 -> 1285.2 | F111: 200 | G111: 257040 | H111: 1e-06 | I111: 525 | J111: 140 | M111: -2161603.584
B112: QGW31 | C112: Out | D112: AQ 204 | E112: =0.5*357 -> 178.5 | F112: 200 | G112: 35700 | H112: 1e-05 | I112: 150 | J112: 20 | M112: -1501113.6
B113: QGW32 | C113: Out | D113: AQ 204 | E113: =2.3*357 -> 821.1 | F113: 200 | G113: 164220 | H113: 1e-06 | I113: 555 | J113: 80 | K113: - | L113: - | M113: -746499.7362
B114: QGW33 | C114: Out | D114: AQ 204 | E114: =0.4*357 -> 142.8 | F114: 200 | G114: 28560 | H114: 1e-05 | I114: 100 | J114: 20 | K114: - | L114: - | M114: -1801336.32
B115: QGW34 | C115: Out | D115: AQ 204 | E115: =0.5*357 -> 178.5 | F115: 20 | G115: 3570 | H115: 1e-05 | I115: 1900 | J115: 40 | K115: - | L115: - | M115: -23701.79368
B116: QGW35 | C116: Out | D116: Shawnigan Creek | E116: =(1.1*357)/3 -> 130.9 | F116: 100 | G116: 13090 | H116: 1e-05 | I116: 315 | J116: 20 | K116: - | L116: - | M116: -262099.2
B117: QGW36 | C117: Out | D117: Shawnigan Creek | E117: =0.5*357 -> 178.5 | F117: 20 | G117: 3570 | H117: 1e-09 | I117: 65 | J117: 10 | K117: - | L117: - | M117: -17.32054154
B118: QGW37 | C118: Out | D118: Shawnigan Creek | E118: =0.5*357 -> 178.5 | F118: 20 | G118: 3570 | H118: 1e-08 | I118: 65 | J118: 10 | K118: - | L118: - | M118: -173.2054154
B119: QGW38 | C119: Out | D119: Shawnigan Creek | E119: =3.5*357 -> 1249.5 | F119: 20 | G119: 24990 | H119: 1e-09 | I119: 65 | J119: 10 | K119: - | L119: - | M119: -121.2437908
B120: QGW39 | C120: N/A | D120: AQ 203 | E120: =7*357 -> 2499 | F120: 200 | G120: 499800 | H120: 1e-09 | I120: 1 | J120: 0 | K120: - | L120: - | M120: 0
B121: QGW40 | C121: N/A | D121: AQ 203 | E121: =1.9*357 -> 678.3 | F121: 200 | G121: 135660 | H121: 1e-05 | I121: 1 | J121: 0 | K121: - | L121: - | M121: 0
B122: QGW41 | C122: N/A | D122: AQ 203 | E122: =1.4*357 -> 499.8 | F122: 200 | G122: 99960 | H122: 1e-06 | I122: 1 | J122: 0 | K122: - | L122: - | M122: 0
B123: QGW42 | C123: N/A | D123: AQ 203 | E123: =0.8*357 -> 285.6 | F123: 200 | G123: 57120 | H123: 0.0001 | I123: 1 | J123: 0 | K123: - | L123: - | M123: 0
B124: QGW43 | C124: N/A | D124: AQ 203 | E124: =0.8*357 -> 285.6 | F124: 200 | G124: 57120 | H124: 1e-06 | I124: 1 | J124: 0 | K124: - | L124: - | M124: 0
B125: QGW44 | C125: N/A | D125: AQ 203 | E125: =0.3*357 -> 107.1 | F125: 200 | G125: 21420 | H125: 0.0001 | I125: 1 | J125: 0 | K125: - | L125: - | M125: 0
B126: QGW45 | C126: N/A | D126: AQ 203 | E126: =0.6*357 -> 214.2 | F126: 200 | G126: 42840 | H126: 1e-06 | I126: 1 | J126: 0 | K126: - | L126: - | M126: 0
B127: QGW46 | C127: N/A | D127: AQ 203 | E127: =1*357 -> 357 | F127: 200 | G127: 71400 | H127: 1e-05 | I127: 1 | J127: 0 | K127: - | L127: - | M127: 0
B128: QGW47 | C128: N/A | D128: AQ 203 | E128: =0.3*357 -> 107.1 | F128: 200 | G128: 21420 | H128: 1e-09 | I128: 1 | J128: 0 | K128: - | L128: - | M128: 0
B129: QGW48 | C129: In | D129: Leakage from AQ 201 | E129: Leakance Factor (m/yr) = | F129: ='Surficial AQ 201'!F83 -> 0.3 | G129: ='Surficial AQ 201'!G83 -> 2112633 | H129: -- | I129: -- | J129: -- | M129: =F129*G129 -> 633789.9
B130: Total | M130: =SUM(M82:M129) -> -12618264.79
B132: Surface Water Contributions | C132: Cold Water Creek? | D132: Observed Vertical Gradient | E132: Percent Permeable | F132: Length (m) | G132: Width (m) | H132: Flux (m/s) | I132: SW Flow (m3/yr) | L132: Comment
I133: Year 1 | J133: Year 2 | K133: Year 3
B134: Haril Creek | C134: Unknown | D134: Downward | E134: 0.1 | F134: 3800 | G134: 2 | H134: 3e-05 | I134: =(E134*F134*G134)*(H134*60*60*24*365) -> 719020.8
B135: Timothy Brook | C135: Unknown | D135: Downward | E135: 0.1 | F135: 1100 | G135: 2 | H135: 3e-05 | I135: =(E135*F135*G135)*(H135*60*60*24*365) -> 208137.6
B136: Heather Bank Brook | C136: Unknown | D136: Downward | E136: 0.1 | F136: 1300 | G136: 2 | H136: 3e-05 | I136: =(E136*F136*G136)*(H136*60*60*24*365) -> 245980.8
B137: Total | I137: =SUM(I134:I136) -> 1173139.2 | J137: =SUM(J134:J136) -> 0 | K137: =SUM(K134:K136) -> 0
B139: Water Well Usage | C139: Water Well Usage Volume (m3/yr) | L139: Comments
C140: Year 1 | F140: Year 2 | I140: Year 3
C141: Total Volume Removed | D141: Adjustment Factor | E141: Adjusted Volume Removed | F141: Total Volume Removed | G141: Adjustment Factor | H141: Adjusted Volume Removed | I141: Total Volume Removed | J141: Adjustment Factor | K141: Adjusted Volume Removed
B142: Industrial | C142: =AB104 -> 0 | D142: 1 | E142: =C142*D142 -> 0 | L142: Assuming 100% consumptive
B143: Commercial | C143: 7300 | D143: 1 | E143: 7300 | L143: Assuming 100% consumptive
B144: Domestic | C144: 110837 | D144: 1 | E144: 110837 | L144: Assuming 100% consumptive
B145: Irrigation | C145: 6458 | D145: 1 | E145: 6458 | L145: Assuming 100% consumptive
B146: BCMOE Obs | C146: 0 | D146: 1 | E146: 0 | L146: Assuming 100% consumptive
B147: Other | C147: 10950 | D147: 1 | E147: 10950 | L147: Assuming 100% consumptive
B148: Water Supply Systems | C148: 56310 | D148: 1 | E148: 56310 | L148: Assuming 100% consumptive
B149: Total | E149: =-SUM(E142:E148) -> -191855 | H149: =-SUM(H142:H148) -> 0 | K149: =-SUM(K142:K148) -> 0

Sheet Bedrock 203
B1: CHM Aquifer Criteria: Aquifer #0203, Shawnigan Lake (Bedrock) | W1: TABLE D-1
B2: AQ tag | C2: 203 Shawnigan Lake | W2: CHM Aquifer Criteria: Aquifer #0203, Shawnigan Lake (Bedrock)
B3: Perimeter (km) | C3: 54
B4: Area (km2) | C4: 31 | W4: BCMOE Criteria
B5: Aquifer materials | C5: Bedrock | X5: AQ tag | AB5: 203 Shawnigan Lake
B6: Table D-4 Monthly Summary of AQ203 Water Budgets | Q6: Table D-3 Annual Summary of AQ203 Water Budgets | X6: AQ classification | AB6: IIA(12)
B7: Monthly Gains and Loses (m3) | C7: Average Year | Q7: Summary - 30 Year Average | X7: AQ type | AB7: BCMOE Classification = 6b (SLR Classification = 6b / 6a / 5b)
B8: Source | C8: Jan | D8: Feb | E8: Mar | F8: Apr | G8: May | H8: Jun | I8: Jul | J8: Aug | K8: Sep | L8: Oct | M8: Nov | N8: Dec | O8: Total | Q8: Gains and Losses | R8: Source | S8: Area (m2) | T8: Infiltration Rate | U8: Q (m3/yr) | X8: Location | AB8: Shawnigan Lake / Cobble Hill; Shawnigan Lake watershed basin
A9: =$C$7&B9 -> Average YearDirect Recharge to 203 | B9: Direct Recharge to 203 | C9: =C55*$U$9 -> 3906751.754 | D9: 2544707.653 | E9: 1836441.899 | F9: 441023.4151 | G9: -530854.8266 | H9: -837117.2266 | I9: -816699.7332 | J9: -367514.88 | K9: -122504.96 | L9: 1343125.842 | M9: 4121014.529 | N9: 4017388.571 | O9: =SUM(C9:N9) -> 15535762.04 | Q9: Gain | R9: Direct Recharge to 203 | S9: =10000*3101.68230523 -> 31016823.05 | T9: =U9/S9 -> 0.500881796 | U9: =S58 -> 15535762.04 | X9: Perimeter (km) | AB9: 54
A10: =$C$7&B10 -> Average YearLateral Ground Water | B10: Lateral Ground Water | C10: =C56*$U$10 -> -473.9807131 | D10: -456.4258719 | E10: -509.0903956 | F10: -503.2387819 | G10: -526.6452368 | H10: -503.2387819 | I10: -509.0903956 | J10: -497.3871681 | K10: -473.9807131 | L10: -479.8323269 | M10: -456.4258719 | N10: -462.2774857 | O10: =SUM(C10:N10) -> -5851.613743 | Q10: Loss | R10: Lateral Ground Water | S10: -- | T10: -- | U10: =SUMIF(M82:M117, "<0") -> -5851.613743 | X10: Area (km2) | AB10: 31
A11: Average YearLateral Ground Water | B11: Lateral Ground Water | C11: =C56*$U$11 -> 3074.319501 | D11: 2960.455815 | E11: 3302.046871 | F11: 3264.092309 | G11: 3415.910556 | H11: 3264.092309 | I11: 3302.046871 | J11: 3226.137748 | K11: 3074.319501 | L11: 3112.274062 | M11: 2960.455815 | N11: 2998.410377 | O11: 37954.56174 | Q11: Gain | R11: Lateral Ground Water | S11: -- | T11: -- | U11: =SUMIF(M82:M117, ">0") -> 37954.56174 | X11: Aquifer materials | AB11: Bedrock
A12: Average YearSurface Water | B12: Surface Water | C12: =C57*$U$12 -> -3605731.645 | D12: -3165533.757 | E12: -2286638.87 | F12: -1105597.046 | G12: -392018.5888 | H12: -159002.1184 | I12: -94428.58105 | J12: -30672.43024 | K12: -25788.54561 | L12: -236694.7099 | M12: -1672802.007 | N12: -3564214.046 | O12: -16339122.34 | Q12: Loss | R12: Surface Water | S12: -- | T12: -- | U12: =SUMIF(I122:I124, "<0") -> -16339122.34 | X12: Lithostratigraphic unit | AB12: Wark-Colquitz Gneiss & Bonanza Group
A13: Average YearSurface Water | B13: Surface Water | C13: =C57*$U$13 -> 0 | D13: 0 | E13: 0 | F13: 0 | G13: 0 | H13: 0 | I13: 0 | J13: 0 | K13: 0 | L13: 0 | M13: 0 | N13: 0 | O13: 0 | Q13: Gain | R13: Surface Water | S13: -- | T13: -- | U13: =SUMIF(I122:I124, ">0") -> 0 | X13: Productivity | AB13: Low
A14: Average YearWell Water Usage | B14: Well Water Usage | C14: =C58*$U$14 -> -29574.36 | D14: -32038.89 | E14: -36967.95 | F14: -39432.48 | G14: -44361.54 | H14: -49290.6 | I14: -54219.66 | J14: -56684.19 | K14: -49290.6 | L14: -39432.48 | M14: -34503.42 | N14: -27109.83 | O14: -492906 | Q14: Loss | R14: Well Water Usage | S14: -- | T14: -- | U14: =E137 -> -492906 | X14: Vulnerability | AB14: High
A15: Average YearNet Gain | B15: Net Gain | C15: =SUMIF(C9:C14, ">0") -> 3909826.073 | D15: =SUMIF(D9:D14, ">0") -> 2547668.109 | E15: 1839743.946 | F15: 444287.5074 | G15: 3415.910556 | H15: 3264.092309 | I15: 3302.046871 | J15: 3226.137748 | K15: 3074.319501 | L15: 1346238.116 | M15: 4123974.985 | N15: 4020386.982 | O15: 18248408.22 | Q15: Net Gain | U15: =SUMIF(U8:U14, ">0") -> 15573716.6 | X15: Demand | AB15: Moderate
A16: Average YearNet Loss | B16: Net Loss | C16: =SUMIF(C9:C14, "<0") -> -3635779.986 | D16: =SUMIF(D9:D14, "<0") -> -3198029.073 | E16: -2324115.911 | F16: -1145532.765 | G16: -967761.6006 | H16: -1045913.184 | I16: -965857.0647 | J16: -455368.8874 | K16: -198058.0863 | L16: -276607.0222 | M16: -1707761.853 | N16: -3591786.153 | O16: -19512571.58 | Q16: Net Loss | U16: =SUMIF(U8:U14, "<0") -> -16837879.96 | X16: Use | AB16: Multiple
A17: Average YearNet Total (Gain - Loss) | B17: Net Total (Gain - Loss) | C17: =SUM(C15:C16) -> 274046.0871 | D17: =SUM(D15:D16) -> -650360.964 | E17: -484371.9642 | F17: -701245.2572 | G17: -964345.6901 | H17: -1042649.091 | I17: -962555.0178 | J17: -452142.7496 | K17: -194983.7668 | L17: 1069631.094 | M17: 2416213.132 | N17: 428600.8284 | O17: -1264163.36 | Q17: Net Total (Gain - Loss) | U17: =SUM(U15:U16) -> -1264163.36
W18: Location
X19: NTS 50000 | AB19: 092B/12
X20: TRIM 20000 | AB20: Straddles 092B.062 & 092B.052
X21: Lat / Long (Centre) | AB21: 48o37'12" / 123o38'18"
B22: Monthly Gains and Loses (m3) | C22: Hot/Dry (1989) | Q22: Summary - Hot/Dry (1989) | X22: UTM Zone 10 (Centre) | AB22: 452960E / 5385390N
B23: Source | C23: Jan | D23: Feb | E23: Mar | F23: Apr | G23: May | H23: Jun | I23: Jul | J23: Aug | K23: Sep | L23: Oct | M23: Nov | N23: Dec | O23: Total | Q23: Gains and Losses | R23: Source | S23: Area (m2) | T23: Infiltration Rate | U23: Q (m3/yr)
A24: =$C$22&B24 -> Hot/Dry (1989)Direct Recharge to 203 | B24: Direct Recharge to 203 | C24: =$U$24*C62 -> 3204503.246 | D24: =$U$24*D62 -> 1837574.4 | E24: 2857253.412 | F24: 171506.944 | G24: -673777.2799 | H24: -857534.7199 | I24: -735029.7599 | J24: -306262.4 | K24: -204174.9333 | L24: 520646.0799 | M24: 2043791.082 | N24: 2593021.653 | O24: =SUM(C24:N24) -> 10451517.72 | Q24: Gain | R24: Direct Recharge to 203 | S24: =10000*3101.68230523 -> 31016823.05 | T24: =U24/S24 -> 0.3369628703 | U24: =R58 -> 10451517.72 | W24: Climate
A25: =$C$22&B25 -> Hot/Dry (1989)Lateral Ground Water | B25: Lateral Ground Water | C25: =$U$25*C63 -> -479.8323269 | D25: =$U$25*D63 -> -444.7226444 | E25: -491.5355544 | F25: -485.6839406 | G25: -509.0903956 | H25: -491.5355544 | I25: -509.0903956 | J25: -503.2387819 | K25: -479.8323269 | L25: -497.3871681 | M25: -473.9807131 | N25: -485.6839406 | O25: =SUM(C25:N25) -> -5851.613743 | Q25: Loss | R25: Lateral Ground Water | S25: -- | T25: -- | U25: =SUMIF(M97:M132, "<0") -> -5851.613743 | X25: Nearest active EC weather station / distance / elevation | AB25: EC1017230 Shawnigan Lake / NE corner of AQ ; EC1017563 Sooke Lake North / 1.9 km to southwest
A26: Hot/Dry (1989)Lateral Ground Water | B26: Lateral Ground Water | C26: =$U$26*C63 -> 4773.28644 | D26: =$U$26*D63 -> 4424.021578 | E26: 4889.70806 | F26: 4831.49725 | G26: 5064.340491 | H26: 4889.70806 | I26: 5064.340491 | J26: 5006.129681 | K26: 4773.28644 | L26: 4947.91887 | M26: 4715.075629 | N26: 4831.49725 | O26: 58210.81024 | Q26: Gain | R26: Lateral Ground Water | S26: -- | T26: -- | U26: =SUMIF(M97:M132, ">0") -> 58210.81024 | X26: IDF Curve | AB26: Unknown
A27: Hot/Dry (1989)Surface Water | B27: Surface Water | C27: =$U$27*C64 -> -3605731.645 | D27: =$U$27*D64 -> -3165533.757 | E27: -2286638.87 | F27: -1105597.046 | G27: -392018.5888 | H27: -159002.1184 | I27: -94428.58105 | J27: -30672.43024 | K27: -25788.54561 | L27: -236694.7099 | M27: -1672802.007 | N27: -3564214.046 | O27: -16339122.34 | Q27: Loss | R27: Surface Water | S27: -- | T27: -- | U27: =SUMIF(I122:I124, "<0") -> -16339122.34
A28: Hot/Dry (1989)Surface Water | B28: Surface Water | C28: =$U$28*C64 -> 0 | D28: =$U$28*D64 -> 0 | E28: 0 | F28: 0 | G28: 0 | H28: 0 | I28: 0 | J28: 0 | K28: 0 | L28: 0 | M28: 0 | N28: 0 | O28: 0 | Q28: Gain | R28: Surface Water | S28: -- | T28: -- | U28: =SUMIF(I122:I124, ">0") -> 0 | W28: Physiography
A29: Hot/Dry (1989)Well Water Usage | B29: Well Water Usage | C29: =$U$29*C65 -> -29574.36 | D29: =$U$29*D65 -> -32038.89 | E29: -36967.95 | F29: -39432.48 | G29: -44361.54 | H29: -49290.6 | I29: -54219.66 | J29: -56684.19 | K29: -49290.6 | L29: -39432.48 | M29: -34503.42 | N29: -27109.83 | O29: -492906 | Q29: Loss | R29: Well Water Usage | S29: -- | T29: -- | U29: =E137 -> -492906 | X29: Physiographic zone | AB29: Canadian Cordillera / Western System / Outer Mountain Area / Insular Mountains / Vancouver Island Ranges
A30: Hot/Dry (1989)Net Gain | B30: Net Gain | C30: =SUMIF(C24:C29, ">0") -> 3209276.533 | D30: =SUMIF(D24:D29, ">0") -> 1841998.421 | E30: 2862143.12 | F30: 176338.4412 | G30: 5064.340491 | H30: 4889.70806 | I30: 5064.340491 | J30: 5006.129681 | K30: 4773.28644 | L30: 525593.9988 | M30: 2048506.158 | N30: 2597853.15 | O30: 13286507.63 | Q30: Net Gain | U30: =SUMIF(U23:U29, ">0") -> 10509728.53 | X30: Elevation range (m amsl) | AB30: 120 - 580 m amsl
A31: Hot/Dry (1989)Net Loss | B31: Net Loss | C31: =SUMIF(C24:C29, "<0") -> -3635785.838 | D31: =SUMIF(D24:D29, "<0") -> -3198017.369 | E31: -2324098.356 | F31: -1145515.21 | G31: -1110666.499 | H31: -1066318.974 | I31: -884187.0914 | J31: -394122.259 | K31: -279733.9113 | L31: -276624.577 | M31: -1707779.407 | N31: -3591809.56 | O31: -19614659.05 | Q31: Net Loss | U31: =SUMIF(U23:U29, "<0") -> -16837879.96 | X31: Distance to marine | AB31: 4.4 km southeast to Findlayson Arm
A32: Hot/Dry (1989)Net Total (Gain - Loss) | B32: Net Total (Gain - Loss) | C32: =SUM(C30:C31) -> -426509.3049 | D32: =SUM(D30:D31) -> -1356018.948 | E32: 538044.7639 | F32: -969176.7686 | G32: -1105602.159 | H32: -1061429.266 | I32: -879122.7509 | J32: -389116.1293 | K32: -274960.6248 | L32: 248969.4218 | M32: 340726.7507 | N32: -993956.4095 | O32: -6328151.424 | Q32: Net Total (Gain - Loss) | U32: =SUM(U30:U31) -> -6328151.424 | X32: Geomorphological setting | AB32: Shawnigan Lake basin: linear, U-shaped valley, basal morainal blankets & veneers, lateral glaciofluvial terraces & kames, exposed higher areas
X33: Topography | AB33: U-shaped basin, overall drainage towards north-northwest
X34: Terrain | AB34: Undulating to hummocky & rugged at higher elevations; undulating to planar at lower elevations
X35: Aspect | AB35: Basinal centred on Shawnigan Lake: ENE and WSW at valley head and flanks, N to NE at north outflow
X36: Slope | AB36: Variable, planar-convex-concave depending on centripetal stream locations & subcatchment morphologies
B37: Monthly Gains and Loses (m3) | C37: Cold/Wet (1999) | Q37: Summary - Wet/Cold (1999) | X37: XS max grade (m/m) | AB37: 0.001 to N-S; max gradient = 0.14 west side, E-W
B38: Source | C38: Jan | D38: Feb | E38: Mar | F38: Apr | G38: May | H38: Jun | I38: Jul | J38: Aug | K38: Sep | L38: Oct | M38: Nov | N38: Dec | O38: Total | Q38: Gains and Losses | R38: Source | S38: Area (m2) | T38: Infiltration Rate | U38: Q (m3/yr) | X38: Roughness coefficient | AB38: 0.65 (partly cleared / coniferous cover)
A39: =$C$37&B39 -> Cold/Wet (1999)Direct Recharge to 203 | B39: Direct Recharge to 203 | C39: =$U$39*C55 -> 6483414.05 | D39: =$U$39*D55 -> 4223046.252 | E39: 3047650.315 | F39: 731896.3646 | G39: -880975.2599 | H39: -1389230.217 | I39: -1355346.554 | J39: -609905.9491 | K39: -203301.983 | L39: 2228972.175 | M39: 6838991.874 | N39: 6667020.366 | O39: =SUM(C39:N39) -> 25782231.43 | Q39: Gain | R39: Direct Recharge to 203 | S39: =10000*3101.68230523 -> 31016823.05 | T39: =U39/S39 -> 0.8312337917 | U39: =T58 -> 25782231.43
A40: =$C$37&B40 -> Cold/Wet (1999)Lateral Ground Water | B40: Lateral Ground Water | C40: =$U$40*C70 -> -442.1461876 | D40: =$U$40*D70 -> -425.7704029 | E40: -474.8977571 | F40: -469.4391622 | G40: -491.2735418 | H40: -469.4391622 | I40: -474.8977571 | J40: -463.9805673 | K40: -442.1461876 | L40: -447.6047825 | M40: -425.7704029 | N40: -431.2289978 | O40: =SUM(C40:N40) -> -5458.594909 | Q40: Loss | R40: Lateral Ground Water | S40: -- | T40: -- | U40: =SUMIF(M112:M156, "<0") -> -5458.594909 | W40: Geology
A41: Cold/Wet (1999)Lateral Ground Water | B41: Lateral Ground Water | C41: =$U$41*C70 -> 2600.338787 | D41: =$U$41*D70 -> 2504.029943 | E41: 2792.956475 | F41: 2760.853527 | G41: 2889.265319 | H41: 2760.853527 | I41: 2792.956475 | J41: 2728.750579 | K41: 2600.338787 | L41: 2632.441735 | M41: 2504.029943 | N41: 2536.132891 | O41: 32102.94799 | Q41: Gain | R41: Lateral Ground Water | S41: -- | T41: -- | U41: =SUMIF(M112:M156, ">0") -> 32102.94799 | X41: Terrane | AB41: Wrangellia
A42: Cold/Wet (1999)Surface Water | B42: Surface Water | C42: =$U$42*C71 -> -3605731.645 | D42: =$U$42*D71 -> -3165533.757 | E42: -2286638.87 | F42: -1105597.046 | G42: -392018.5888 | H42: -159002.1184 | I42: -94428.58105 | J42: -30672.43024 | K42: -25788.54561 | L42: -236694.7099 | M42: -1672802.007 | N42: -3564214.046 | O42: -16339122.34 | Q42: Loss | R42: Surface Water | S42: -- | T42: -- | U42: =SUMIF(I122:I124, "<0") -> -16339122.34 | X42: Bedrock (type ; age ; formation ; lithology)
A43: Cold/Wet (1999)Surface Water | B43: Surface Water | C43: =$U$43*C71 -> 0 | D43: =$U$43*D71 -> 0 | E43: 0 | F43: 0 | G43: 0 | H43: 0 | I43: 0 | J43: 0 | K43: 0 | L43: 0 | M43: 0 | N43: 0 | O43: 0 | Q43: Gain | R43: Surface Water | S43: -- | T43: -- | U43: =SUMIF(I122:I124, ">0") -> 0 | Y43: Primary | AB43: South 2/3 = Palaeozoic to Jurasssic Westcoast Crystalline Complex (Wark / Colquitz Gneiss) (PzJWg); variably gabbroic to granodioritic (65%)
A44: Cold/Wet (1999)Well Water Usage | B44: Well Water Usage | C44: =$U$44*C72 -> -29574.36 | D44: =$U$44*D72 -> -32038.89 | E44: -36967.95 | F44: -39432.48 | G44: -44361.54 | H44: -49290.6 | I44: -54219.66 | J44: -56684.19 | K44: -49290.6 | L44: -39432.48 | M44: -34503.42 | N44: -27109.83 | O44: -492906 | Q44: Loss | R44: Well Water Usage | S44: -- | T44: -- | U44: =E137 -> -492906 | Y44: Secondary | AB44: North 1/3 = Jurassic Bonanza Group Volcanics (IJBca); basaltic-andesitic (30%);
A45: Cold/Wet (1999)Net Gain | B45: Net Gain | C45: =SUMIF(C39:C44, ">0") -> 6486014.389 | D45: =SUMIF(D39:D44, ">0") -> 4225550.282 | E45: 3050443.272 | F45: 734657.2182 | G45: 2889.265319 | H45: 2760.853527 | I45: 2792.956475 | J45: 2728.750579 | K45: 2600.338787 | L45: 2231604.617 | M45: 6841495.904 | N45: 6669556.499 | O45: 30253094.34 | Q45: Net Gain | U45: =SUMIF(U38:U44, ">0") -> 25814334.38 | Y45: Tertiary | AB45: Small Middle-Upper Triasssic Quatsino Formation (uTrVQ) limestone wedge at contact on east side of Lake (5%)
A46: Cold/Wet (1999)Net Loss | B46: Net Loss | C46: =SUMIF(C39:C44, "<0") -> -3635748.152 | D46: =SUMIF(D39:D44, "<0") -> -3197998.417 | E46: -2324081.718 | F46: -1145498.965 | G46: -1317846.662 | H46: -1597992.375 | I46: -1504469.692 | J46: -697726.5499 | K46: -278823.2748 | L46: -276574.7946 | M46: -1707731.197 | N46: -3591755.105 | O46: -21276246.9 | Q46: Net Loss | U46: =SUMIF(U38:U44, "<0") -> -16837486.94 | X46: Structure | AB46: Several major, high-angle faults: (1) NE-trending Shawnigan Fault; follows Sooke Lk -> Lubbe Lake -> S Baldy Mountain Pass -> Mill Bay lineament; crosses AQ at southern third; BCGS = offsets PzJWg:IJBca contact; (2) NW-trending Spectacle Lake & Oliphant Faults; follow Spectacle Creek and Bamberton / Oliphant Lake lineaments; intersects AQ on SE side, does not appear to cross Shawnigan Fault; not mapped by BCGS; (3) N-trending Devereaux/Stebbings Fault swarm; follows south end of Shawnigan Creek lineament; intersects south end of AQ, does not seem to cross Shawnigan Fault; not mapped by BCGS; (4) Numerous other high-angle & low angle minor structures known at south end of AQ basin, variable strikes & dips, not mapped by BCGS
A47: Cold/Wet (1999)Net Total (Gain - Loss) | B47: Net Total (Gain - Loss) | C47: =SUM(C45:C46) -> 2850266.237 | D47: =SUM(D45:D46) -> 1027551.864 | E47: 726361.5537 | F47: -410841.7469 | G47: -1314957.397 | H47: -1595231.522 | I47: -1501676.736 | J47: -694997.7994 | K47: -276222.9361 | L47: 1955029.822 | M47: 5133764.707 | N47: 3077801.394 | O47: 8976847.442 | Q47: Net Total (Gain - Loss) | U47: =SUM(U45:U46) -> 8976847.442 | X47: Surficial (formation; lithology; thickness) | AB47: Capilano Formation glaciofluvial / Vashon Drift morainal; silt-sand-gravel; generally moderately shallow blankets (< 10 m); higher areas - mainly colluvial veneers; mid-elevations = morainal-glaciofluvial materials; basal areas = glaciofluvial & glaciolacustrine materials
X48: Surficial designation (1993) | AB48: Higher elevations = CbCv/R Mid-elevations =dMbvCbv/R & $dMbh/$oP/SGfg Lower elevations = $oP & $LGp
X49: Soils (association; parent; texture; drainage; type; comments) | AB49: Higher elevations = SL1S3/ef (Squally/Shawnigan), colluvial-moraine veneers, rapid, O.DYB-shli & DU.DYB; Mid-elevations = S3S1/e & D2S3RL5/Fe (Shawnigan / Dashwood/Rosewall), morainal & glaciofluvial blankets & veneers, moderate to good, DU-DYB; Low ares = Q/CH4 (Qualicum/Chemainus), marine/fluvialblankets, imperfect to poor, D.DYB & O.DYB
X50: Restrictive layers | AB50: Yes - surface duric layer in morainal areas
Q51: Table D-2. Direct Recharge Calculation for AQ203 | X51: Estimated permeability | AB51: Low-moderate @ surface in duric morainal areas / high in colluvial & bedrock areas
B52: Table D-5 Monthly Coefficients used in Calculations for AQ203 | R52: Direct Recharge Calculation
B53: Monthly Factors | C53: 30 Year Average | R53: Hot/Dry | S53: Average | T53: Cold/Wet | W53: Hydrology
C54: Jan | D54: Feb | E54: Mar | F54: Apr | G54: May | H54: Jun | I54: Jul | J54: Aug | K54: Sep | L54: Oct | M54: Nov | N54: Dec | Q54: Surplus (mm) | R54: =SUM('Climate Dashboard'!AA42:AL42) -> 511.8903459 | S54: =SUM('Climate Dashboard'!C48:AL48)/3 -> 760.9044746 | T54: =SUM('Climate Dashboard'!AA54:AL54) -> 1262.752044 | X54: GW / SW basin coincidence | AB54: Yes - Occupies lake area and headwaters of Shawnigan watershed
B55: Surplus Water | C55: ='Monthly Factors'!B16 -> 0.2514683055 | D55: ='Monthly Factors'!C16 -> 0.1637967708 | E55: ='Monthly Factors'!D16 -> 0.1182073911 | F55: ='Monthly Factors'!E16 -> 0.02838762682 | G55: ='Monthly Factors'!F16 -> -0.03416986083 | H55: ='Monthly Factors'!G16 -> -0.05388324207 | I55: ='Monthly Factors'!H16 -> -0.05256901665 | J55: ='Monthly Factors'!I16 -> -0.02365605749 | K55: ='Monthly Factors'!J16 -> -0.007885352498 | L55: ='Monthly Factors'!K16 -> 0.08645381144 | M55: ='Monthly Factors'!L16 -> 0.26525989 | N55: ='Monthly Factors'!M16 -> 0.2585897339 | Q55: Station Coeffiecient Factor | R55: 1.13 | S55: 1.13 | T55: 1.13 | X55: Catchments | AB55: Shawnigan & lower McGee
B56: Leakance/ Lateral Ground Water | C56: ='Monthly Factors'!B42 -> 0.081 | D56: ='Monthly Factors'!C42 -> 0.078 | E56: ='Monthly Factors'!D42 -> 0.087 | F56: ='Monthly Factors'!E42 -> 0.086 | G56: ='Monthly Factors'!F42 -> 0.09 | H56: ='Monthly Factors'!G42 -> 0.086 | I56: ='Monthly Factors'!H42 -> 0.087 | J56: ='Monthly Factors'!I42 -> 0.085 | K56: ='Monthly Factors'!J42 -> 0.081 | L56: ='Monthly Factors'!K42 -> 0.082 | M56: ='Monthly Factors'!L42 -> 0.078 | N56: ='Monthly Factors'!M42 -> 0.079 | Q56: Infiltration Coefficient | R56: 0.5825412273 | S56: 0.5825412273 | T56: 0.5825412273 | X56: Drainage regime | AB56: Centripetal, overall flow to north
B57: Surface Water | C57: ='Monthly Factors'!B26 -> 0.2206808646 | D57: ='Monthly Factors'!C26 -> 0.1937395222 | E57: ='Monthly Factors'!D26 -> 0.1399486963 | F57: ='Monthly Factors'!E26 -> 0.06766563237 | G57: ='Monthly Factors'!F26 -> 0.0239926344 | H57: ='Monthly Factors'!G26 -> 0.009731374491 | I57: ='Monthly Factors'!H26 -> 0.005779293346 | J57: ='Monthly Factors'!I26 -> 0.001877238544 | K57: ='Monthly Factors'!J26 -> 0.001578331141 | L57: ='Monthly Factors'!K26 -> 0.01448637845 | M57: ='Monthly Factors'!L26 -> 0.1023801629 | N57: ='Monthly Factors'!M26 -> 0.2181398713 | Q57: Area (m2) | R57: =S9 -> 31016823.05 | S57: =S9 -> 31016823.05 | T57: =S9 -> 31016823.05 | X57: Surface waters | AB57: Shawnigan Lake; Shawnigan / McGee Creeks; numerous small streams centred on Shawnigan Lake
B58: Water Usage | C58: ='Monthly Factors'!B31 -> 0.06 | D58: ='Monthly Factors'!C31 -> 0.065 | E58: ='Monthly Factors'!D31 -> 0.075 | F58: ='Monthly Factors'!E31 -> 0.08 | G58: ='Monthly Factors'!F31 -> 0.09 | H58: ='Monthly Factors'!G31 -> 0.1 | I58: ='Monthly Factors'!H31 -> 0.11 | J58: ='Monthly Factors'!I31 -> 0.115 | K58: ='Monthly Factors'!J31 -> 0.1 | L58: ='Monthly Factors'!K31 -> 0.08 | M58: ='Monthly Factors'!L31 -> 0.07 | N58: ='Monthly Factors'!M31 -> 0.055 | Q58: Q (m3/yr) | R58: =(R54/1000)*R55*R56*R57 -> 10451517.72 | S58: =(S54/1000)*S55*S56*S57 -> 15535762.04 | T58: =(T54/1000)*T55*T56*T57 -> 25782231.43 | X58: Runoff coefficient | AB58: ~60% cleared-forestry / ~30% forested / 10% rural residential / moderate slope = 0.60
Q59: Average Infiltration Rate | R59: =R58/R57 -> 0.3369628703 | S59: =S58/S57 -> 0.500881796 | T59: =T58/T57 -> 0.8312337917 | X59: Nearest Active EC hydrometric station; distance; type | AB59: Shawnigan Creek @ Mill Bay; 4.1 km E (inactive); EC 08HA003 Koksilah River @ Cowichan Station; 9.0 km NNW; active realtime;
B60: Monthly Factors | C60: Hot/Dry (1989) | X60: Surface water diversions ; relevance | AB60: 6 within south end of AQ area, numerous diversion licences on Shawnigan Lake; somewhat relevant
C61: Jan | D61: Feb | E61: Mar | F61: Apr | G61: May | H61: Jun | I61: Jul | J61: Aug | K61: Sep | L61: Oct | M61: Nov | N61: Dec
B62: Surplus Water | C62: ='Monthly Factors'!B11 -> 0.3066064978 | D62: ='Monthly Factors'!C11 -> 0.1758189048 | E62: ='Monthly Factors'!D11 -> 0.273381674 | F62: ='Monthly Factors'!E11 -> 0.01640976445 | G62: ='Monthly Factors'!F11 -> -0.06446693176 | H62: ='Monthly Factors'!G11 -> -0.08204882224 | I62: ='Monthly Factors'!H11 -> -0.07032756192 | J62: ='Monthly Factors'!I11 -> -0.0293031508 | K62: ='Monthly Factors'!J11 -> -0.01953543387 | L62: ='Monthly Factors'!K11 -> 0.04981535636 | M62: ='Monthly Factors'!L11 -> 0.195549693 | N62: ='Monthly Factors'!M11 -> 0.2481000101 | W62: Land Cover
B63: Leakance/ Lateral Ground Water | C63: ='Monthly Factors'!B43 -> 0.082 | D63: ='Monthly Factors'!C43 -> 0.076 | E63: ='Monthly Factors'!D43 -> 0.084 | F63: ='Monthly Factors'!E43 -> 0.083 | G63: ='Monthly Factors'!F43 -> 0.087 | H63: ='Monthly Factors'!G43 -> 0.084 | I63: ='Monthly Factors'!H43 -> 0.087 | J63: ='Monthly Factors'!I43 -> 0.086 | K63: ='Monthly Factors'!J43 -> 0.082 | L63: ='Monthly Factors'!K43 -> 0.085 | M63: ='Monthly Factors'!L43 -> 0.081 | N63: ='Monthly Factors'!M43 -> 0.083 | X63: Vegetation zone | AB63: CwH:a
B64: Surface Water | C64: ='Monthly Factors'!B26 -> 0.2206808646 | D64: ='Monthly Factors'!C26 -> 0.1937395222 | E64: ='Monthly Factors'!D26 -> 0.1399486963 | F64: ='Monthly Factors'!E26 -> 0.06766563237 | G64: ='Monthly Factors'!F26 -> 0.0239926344 | H64: ='Monthly Factors'!G26 -> 0.009731374491 | I64: ='Monthly Factors'!H26 -> 0.005779293346 | J64: ='Monthly Factors'!I26 -> 0.001877238544 | K64: ='Monthly Factors'!J26 -> 0.001578331141 | L64: ='Monthly Factors'!K26 -> 0.01448637845 | M64: ='Monthly Factors'!L26 -> 0.1023801629 | N64: ='Monthly Factors'!M26 -> 0.2181398713 | X64: Primary land uses | AB64: Cgf-wC
B65: Water Usage | C65: ='Monthly Factors'!B31 -> 0.06 | D65: ='Monthly Factors'!C31 -> 0.065 | E65: ='Monthly Factors'!D31 -> 0.075 | F65: ='Monthly Factors'!E31 -> 0.08 | G65: ='Monthly Factors'!F31 -> 0.09 | H65: ='Monthly Factors'!G31 -> 0.1 | I65: ='Monthly Factors'!H31 -> 0.11 | J65: ='Monthly Factors'!I31 -> 0.115 | K65: ='Monthly Factors'!J31 -> 0.1 | L65: ='Monthly Factors'!K31 -> 0.08 | M65: ='Monthly Factors'!L31 -> 0.07 | N65: ='Monthly Factors'!M31 -> 0.055 | X65: Degree of development | AB65: Shawnigan Lake village at NE corner; Highly developed throughout for forestry purposes. Extensive rural residential. Very low impervious cover
X66: Evapotranspiration potential | AB66: High
B67: Monthly Factors | C67: Cold/Wet (1999) | X67: Relative environmental sensitivity | AB67: High
C68: Jan | D68: Feb | E68: Mar | F68: Apr | G68: May | H68: Jun | I68: Jul | J68: Aug | K68: Sep | L68: Oct | M68: Nov | N68: Dec
B69: Surplus Water | C69: ='Monthly Factors'!B21 -> 0.2812111861 | D69: ='Monthly Factors'!C21 -> 0.2847106197 | E69: ='Monthly Factors'!D21 -> 0.1055893178 | F69: ='Monthly Factors'!E21 -> -0.01267073776 | G69: ='Monthly Factors'!F21 -> -0.01029497443 | H69: ='Monthly Factors'!G21 -> -0.02692531773 | I69: ='Monthly Factors'!H21 -> -0.03484452883 | J69: ='Monthly Factors'!I21 -> -0.01425457998 | K69: ='Monthly Factors'!J21 -> -0.006335368879 | L69: ='Monthly Factors'!K21 -> 0.09986125195 | M69: ='Monthly Factors'!L21 -> 0.1613935222 | N69: ='Monthly Factors'!M21 -> 0.1725596098 | W69: Hydrogeology
B70: Leakance/ Lateral Ground Water | C70: ='Monthly Factors'!B44 -> 0.081 | D70: ='Monthly Factors'!C44 -> 0.078 | E70: ='Monthly Factors'!D44 -> 0.087 | F70: ='Monthly Factors'!E44 -> 0.086 | G70: ='Monthly Factors'!F44 -> 0.09 | H70: ='Monthly Factors'!G44 -> 0.086 | I70: ='Monthly Factors'!H44 -> 0.087 | J70: ='Monthly Factors'!I44 -> 0.085 | K70: ='Monthly Factors'!J44 -> 0.081 | L70: ='Monthly Factors'!K44 -> 0.082 | M70: ='Monthly Factors'!L44 -> 0.078 | N70: ='Monthly Factors'!M44 -> 0.079 | X70: Groundwater occurrence (primary / secondary) | AB70: Void infillings - bedrock fractures & faults, karst solution cavities
B71: Surface Water | C71: ='Monthly Factors'!B26 -> 0.2206808646 | D71: ='Monthly Factors'!C26 -> 0.1937395222 | E71: ='Monthly Factors'!D26 -> 0.1399486963 | F71: ='Monthly Factors'!E26 -> 0.06766563237 | G71: ='Monthly Factors'!F26 -> 0.0239926344 | H71: ='Monthly Factors'!G26 -> 0.009731374491 | I71: ='Monthly Factors'!H26 -> 0.005779293346 | J71: ='Monthly Factors'!I26 -> 0.001877238544 | K71: ='Monthly Factors'!J26 -> 0.001578331141 | L71: ='Monthly Factors'!K26 -> 0.01448637845 | M71: ='Monthly Factors'!L26 -> 0.1023801629 | N71: ='Monthly Factors'!M26 -> 0.2181398713 | X71: Primary porosity | AB71: Low to negligible
B72: Water Usage | C72: ='Monthly Factors'!B31 -> 0.06 | D72: ='Monthly Factors'!C31 -> 0.065 | E72: ='Monthly Factors'!D31 -> 0.075 | F72: ='Monthly Factors'!E31 -> 0.08 | G72: ='Monthly Factors'!F31 -> 0.09 | H72: ='Monthly Factors'!G31 -> 0.1 | I72: ='Monthly Factors'!H31 -> 0.11 | J72: ='Monthly Factors'!I31 -> 0.115 | K72: ='Monthly Factors'!J31 -> 0.1 | L72: ='Monthly Factors'!K31 -> 0.08 | M72: ='Monthly Factors'!L31 -> 0.07 | N72: ='Monthly Factors'!M31 -> 0.055 | X72: Secondary porosity | AB72: Low to moderate in gneissic areas, higher in fractue zones & faults; low in volcanics areas due to ductile rock
X73: Confinement | AB73: Higher areas = Unconfined to semiconfined - assume bedrock fractures generally daylight to surface. Morainal blanket areas locally semi-confined by duric till blankets; WP = 0 - 59.7 m, avg 0.3 m
X74: Aquifer thickness | AB74: Bedrock aquifer / assume < 150 m
X75: Hydraulic anisotropy | AB75: High
X76: Hydraulic gradient | AB76: Moderate to high based on terrain
B77: TABLE D-6 | X77: Storage potential | AB77: Low - secondary voids only
B78: Groundwater Flow Components: Aquifer #0203, North Shawnigan (Bedrock) | X78: Yield potential | AB78: Low; WP = 0.01 - 4.42 L/s / average 0.19 L/s
X79: Flow velocities | AB79: Low - moderate
B80: Groundwater Flow | C80: Direction of Flow | D80: Source or Receptor of Water | E80: Length (m) | F80: Depth (m) | G80: Area (m) | H80: Hydraulic Conductivity (m/s) - K | I80: Distance (m) - dL | J80: Hydraulic Head (m) - dh | M80: GW Flow (m3/yr) | X80: Flow directions | AB80: Centripetal towards Shawnigan Lake / modified faults
J81: Year 1 | K81: Year 2 | L81: Year 3 | M81: Year 1 | N81: Year 2 | O81: Year 2 | X81: Static water levels | AB81: WP = variable 0 - 59.9 m bgs / avg 5.9 m bgs
B82: QGW1 | C82: Zero | D82: AQ 202 | E82: =0.9*476 -> 428.4 | F82: 200 | G82: =E82*F82 -> 85680 | H82: 1e-05 | I82: 1 | J82: 0 | M82: =-(G82*H82*(J82/I82))*60*60*24*365 -> 0 | X82: Hydraulic connection with surface waters | AB82: High
B83: QGW2 | C83: Zero | D83: AQ 202 | E83: =1.2*476 -> 571.2 | F83: 200 | G83: =E83*F83 -> 114240 | H83: 1e-06 | I83: 1 | J83: 0 | M83: =-(G83*H83*(J83/I83))*60*60*24*365 -> 0 | X83: Hydraulic connection to adjacent AQ
B84: QGW3 | C84: Zero | D84: AQ 202 | E84: =1.6*476 -> 761.6 | F84: 200 | G84: 152320 | H84: 0.0001 | I84: 1 | J84: 0 | M84: 0 | Y84: Over / Under | AB84: None
B85: QGW4 | C85: Zero | D85: AQ 202 | E85: =0.4*476 -> 190.4 | F85: 200 | G85: 38080 | H85: 1e-06 | I85: 1 | J85: 0 | M85: 0 | Y85: Upgradient | AB85: Upgradient contact with undeveloped west, south, & east extensions of bedrock AQ 203 (not in study area); bedrock AQ 202;
B86: QGW5 | C86: Zero | D86: N/A | E86: =1*476 -> 476 | F86: 200 | G86: 95200 | H86: 1e-05 | I86: 1 | J86: 0 | M86: 0 | Y86: Downgradient | AB86: Downgradient contact in NE quarter with bedrock AQ207
B87: QGW6 | C87: Zero | D87: N/A | E87: =2.4*476 -> 1142.4 | F87: 200 | G87: 228480 | H87: 1e-09 | I87: 1 | J87: 0 | M87: 0 | X87: Vulnerability to surface contamination | AB87: High
B88: QGW7 | C88: Zero | D88: N/A | E88: =0.3*476 -> 142.8 | F88: 200 | G88: 28560 | H88: 1e-08 | I88: 1 | J88: 0 | M88: 0 | X88: Recharge
B89: QGW8 | C89: Zero | D89: N/A | E89: =5.4*476 -> 2570.4 | F89: 200 | G89: 514080 | H89: 1e-09 | I89: 1 | J89: 0 | M89: 0 | Y89: Vertical inflow | AB89: Mainly precipitation, limited snowmelt / sewerage. Moderate to high from stream loss. Moderate irrigation return at north end (Shawnigan Lake School)
B90: QGW9 | C90: In | D90: N/A | E90: =0.3*476 -> 142.8 | F90: 200 | G90: 28560 | H90: 1e-07 | I90: 2200 | J90: 40 | M90: =(G90*H90*(J90/I90))*60*60*24*365 -> 1637.578473 | Y90: Lateral inflow | AB90: Low - moderate lateral inflow from upgradient bedrock sources (west = AQ203 extension / south & east from undeveloped MBR bedrock area (Malahat Ridge);
B91: QGW10 | C91: In | D91: N/A | E91: =1*476 -> 476 | F91: 200 | G91: 95200 | H91: 1e-09 | I91: 2200 | J91: 40 | M91: =(G91*H91*(J91/I91))*60*60*24*365 -> 54.58594909 | Y91: Temporal variability | AB91: High
B92: QGW11 | C92: In | D92: N/A | E92: =0.3*476 -> 142.8 | F92: 200 | G92: 28560 | H92: 1e-07 | I92: 2200 | J92: 40 | M92: =(G92*H92*(J92/I92))*60*60*24*365 -> 1637.578473 | Y92: MBR | AB92: High from surrounding rocky hills to the west, south, and east
B93: QGW12 | C93: Zero | D93: N/A | E93: =7.5*476 -> 3570 | F93: 200 | G93: 714000 | H93: 1e-09 | I93: 1 | J93: 0 | K93: - | L93: - | M93: 0 | X93: Discharge
B94: QGW13 | C94: Zero | D94: N/A | E94: =0.7*476 -> 333.2 | F94: 200 | G94: 66640 | H94: 1e-07 | I94: 1 | J94: 0 | M94: 0 | Y94: Evapotranspiration | AB94: High
B95: QGW14 | C95: Zero | D95: N/A | E95: =4*476 -> 1904 | F95: 200 | G95: 380800 | H95: 1e-09 | I95: 1 | J95: 0 | M95: 0 | Y95: Outflow to marine | AB95: None
B96: QGW15 | C96: In | D96: N/A | E96: =4*476 -> 1904 | F96: 200 | G96: 380800 | H96: 1e-08 | I96: 1410 | J96: 100 | M96: =(G96*H96*(J96/I96))*60*60*24*365 -> 8516.956596 | Y96: Outflow to surface waters | AB96: High to Shawnigan Lake & feeder streams
B97: QGW16 | C97: In | D97: N/A | E97: =1.8*476 -> 856.8 | F97: 200 | G97: 171360 | H97: 1e-09 | I97: 635 | J97: 40 | M97: =(G97*H97*(J97/I97))*60*60*24*365 -> 340.4100132 | Y97: Outflow to other AQ | AB97: Moderate in NE quarter to bedrock AQ 207
B98: QGW17 | C98: In | D98: N/A | E98: =0.3*476 -> 142.8 | F98: 200 | G98: 28560 | H98: 1e-07 | I98: 1015 | J98: 80 | M98: =(G98*H98*(J98/I98))*60*60*24*365 -> 7098.862345 | Y98: Temporal variability | AB98: High
B99: QGW18 | C99: Out | D99: N/A | E99: =2.4*476 -> 1142.4 | F99: 60 | G99: 68544 | H99: 1e-09 | I99: 220 | J99: 40 | M99: -393.0188335
B100: QGW19 | C100: Zero | D100: N/A | E100: =2.2*476 -> 1047.2 | F100: 200 | G100: 209440 | H100: 1e-09 | I100: 1 | J100: 0 | W100: Groundwater Development
B101: QGW20 | C101: Zero | D101: N/A | E101: =0.3*476 -> 142.8 | F101: 200 | G101: 28560 | H101: 1e-07 | I101: 1 | J101: 0 | M101: 0 | Y101: Nearest BCMOE Observation Wells; distance; completion / relevance | AB101: Well #320 = 5.3 m northeast of north end of AQ; completed in surficial materials; irrelevant
B102: QGW21 | C102: Zero | D102: N/A | E102: =1*476 -> 476 | F102: 200 | G102: 95200 | H102: 1e-09 | I102: 1 | J102: 0 | M102: 0 | Y102: Total Annual Water Use (m3/yr) as reported by Hatfield (2015) | AC102: SUMS
B103: QGW22 | C103: Zero | D103: N/A | E103: =6.5*476 -> 3094 | F103: 200 | G103: 618800 | H103: 1e-08 | I103: 1 | J103: 0 | M103: 0 | Z103: Industrial | AB103: 0 | AC103: Total Commercial and Industrial
B104: QGW23 | C104: Zero | D104: N/A | E104: =0.3*476 -> 142.8 | F104: 200 | G104: 28560 | H104: 1e-07 | I104: 1 | J104: 0 | M104: 0 | Z104: Commercial | AB104: 14600 | AC104: =AB103+AB104 -> 14600
B105: QGW24 | C105: Zero | D105: N/A | E105: =1.3*476 -> 618.8 | F105: 200 | G105: 123760 | H105: 1e-09 | I105: 1 | J105: 0 | M105: 0 | Z105: Domestic | AB105: 211827 | AC105: Total Irrigation
B106: QGW25 | C106: In | D106: N/A | E106: =1.6*476 -> 761.6 | F106: 200 | G106: 152320 | H106: 1e-09 | I106: 260 | J106: 40 | M106: =(G106*H106*(J106/I106))*60*60*24*365 -> 739.0097723 | Z106: Irrigation from groundwater (Hatfield) | AB106: 87428 | AC106: =AB106 -> 87428
B107: QGW26 | C107: Zero | D107: N/A | E107: =1.8*476 -> 856.8 | F107: 200 | G107: 171360 | H107: 1e-09 | I107: 1 | J107: 0 | M107: 0 | Z107: BCMOE Obs | AB107: 0
B108: QGW27 | C108: In | D108: N/A | E108: =0.6*476 -> 285.6 | F108: 200 | G108: 57120 | H108: 1e-07 | I108: 645 | J108: 60 | M108: =(G108*H108*(J108/I108))*60*60*24*365 -> 16756.61693 | Z108: Other | AB108: 29200 | AC108: Total Domestic + Water Systems + Other
B109: QGW28 | C109: In | D109: N/A | E109: =1.2*476 -> 571.2 | F109: 200 | G109: 114240 | H109: 1e-09 | I109: 645 | J109: 60 | M109: =(G109*H109*(J109/I109))*60*60*24*365 -> 335.1323386 | Z109: Water Supply Systems | AB109: 149851 | AC109: =AB105+AB108+AB109 -> 390878
B110: QGW29 | C110: In | D110: N/A | E110: =0.3*476 -> 142.8 | F110: 200 | G110: 28560 | H110: 1e-08 | I110: 645 | J110: 60 | M110: =(G110*H110*(J110/I110))*60*60*24*365 -> 837.8308465
B111: QGW30 | C111: Zero | D111: AQ 207 | E111: =5.3*476 -> 2522.8 | F111: 200 | G111: 504560 | H111: 1e-09 | I111: 1 | J111: 0 | M111: 0 | AC111: =AC104+AC106+AC109 -> 492906
B112: QGW31 | C112: Zero | D112: AQ 207 | E112: =0.3*476 -> 142.8 | F112: 200 | G112: 28560 | H112: 1e-08 | I112: 1 | J112: 0 | M112: 0
B113: QGW32 | C113: Zero | D113: AQ 207 | E113: =1.2*476 -> 571.2 | F113: 200 | G113: 114240 | H113: 1e-09 | I113: 1 | J113: 0 | M113: 0
B114: QGW33 | C114: Zero | D114: AQ 207 | E114: =0.3*476 -> 142.8 | F114: 200 | G114: 28560 | H114: 1e-08 | I114: 1 | J114: 0 | K114: - | L114: - | M114: 0
B115: QGW34 | C115: Zero | D115: AQ 207 | E115: =2*476 -> 952 | F115: 200 | G115: 190400 | H115: 1e-09 | I115: 1 | J115: 0 | K115: - | L115: - | M115: 0
B116: QGW35 | C116: Out | D116: AQ 207 | E116: =0.5*476 -> 238 | F116: 200 | G116: 47600 | H116: 1e-07 | I116: 550 | J116: 20 | K116: - | L116: - | M116: -5458.594909
B117: QGW36 | C117: Zero | D117: AQ 202 | E117: =6.5*476 -> 3094 | F117: 200 | G117: 618800 | H117: 1e-09 | I117: 1 | J117: 0 | K117: - | L117: - | M117: 0
B118: Total | M118: =SUM(M82:M117) -> 32102.94799
B120: Surface Water Contributions | C120: Cold Water Creek? | D120: Observed Vertical Gradient | E120: Percent Permeable | F120: Length (m) | G120: Width (m) | H120: Flux (m/s) | I120: SW Flow (m3/yr) | L120: Comment
I121: Year 1 | J121: Year 2 | K121: Year 3
B122: Major River Out | C122: -- | D122: Percent of Catchment Area = | E122: 0.33226 | F122: Infiltration Factor | G122: 0.58 | H122: 79778200 | I122: =E122*G122*-H122 -> -15374120.74 | L122: Average annual flow calculated from flow station down gradient of Shawnigan Lake. Assuming AQ203 takes up 33.26% of the creeks catchment area.
B123: McGee Creek | C123: Unknown | D123: Upward | E123: 0.1 | F123: 2800 | G123: 2 | H123: 3e-05 | I123: =-(E123*F123*G123)*(H123*60*60*24*365) -> -529804.8
B124: Van Horn Creek | C124: Unknown | D124: Upward | E124: 0.1 | F124: 2300 | G124: 2 | H124: 3e-05 | I124: =-(E124*F124*G124)*(H124*60*60*24*365) -> -435196.8
B125: Total | I125: =SUM(I122:I124) -> -16339122.34 | J125: =SUM(J122:J122) -> 0 | K125: =SUM(K122:K122) -> 0
B127: Water Well Usage | C127: Water Well Usage Volume (m3/yr) | L127: Comments
C128: Year 1 | F128: Year 2 | I128: Year 3
C129: Total Volume Removed | D129: Adjustment Factor | E129: Adjusted Volume Removed | F129: Total Volume Removed | G129: Adjustment Factor | H129: Adjusted Volume Removed | I129: Total Volume Removed | J129: Adjustment Factor | K129: Adjusted Volume Removed
B130: Industrial | C130: =AB103 -> 0 | D130: 1 | E130: =C130*D130 -> 0 | L130: Assuming 100% consumptive
B131: Commercial | C131: 14600 | D131: 1 | E131: =C131*D131 -> 14600 | L131: Assuming 100% consumptive
B132: Domestic | C132: 211827 | D132: 1 | E132: 211827 | L132: Assuming 100% consumptive
B133: Irrigation | C133: 87428 | D133: 1 | E133: 87428 | L133: Assuming 100% consumptive
B134: BCMOE Obs | C134: 0 | D134: 1 | E134: 0 | L134: Assuming 100% consumptive
B135: Other | C135: 29200 | D135: 1 | E135: 29200 | L135: Assuming 100% consumptive
B136: Water Supply Systems | C136: 149851 | D136: 1 | E136: 149851 | L136: Assuming 100% consumptive
B137: Total | E137: =-SUM(E130:E136) -> -492906 | H137: =-SUM(H130:H136) -> 0 | K137: =-SUM(K130:K136) -> 0

Sheet Bedrock 204
B1: CHM Aquifer Criteria: Aquifer #0204, Cobble Hill (Bedrock) | W1: TABLE E-1
B2: AQ tag | C2: 204 Cobble Hill | W2: CHM Aquifer Criteria: Aquifer #0204, Cobble Hill (Bedrock)
B3: Perimeter (km) | C3: 31.99
B4: Area (km2) | C4: 16.58 | W4: BCMOE Criteria
B5: Aquifer materials | C5: Bedrock | X5: AQ tag | AB5: 204 Cobble Hill
B6: Table E-4 Monthly Summary of AQ204 Water Budgets | Q6: Table E-3 Annual Summary of AQ204 Water Budgets | X6: AQ classification | AB6: IIB (11)
B7: Monthly Gains and Loses (m3) | C7: Average Year | Q7: Summary - 30 Year Average | X7: AQ type | AB7: BCMOE Classification = 6b (SLR Classification = 6b / 6a)
B8: Source | C8: Jan | D8: Feb | E8: Mar | F8: Apr | G8: May | H8: Jun | I8: Jul | J8: Aug | K8: Sep | L8: Oct | M8: Nov | N8: Dec | O8: Total | Q8: Gains and Losses | R8: Source | S8: Area (m2) | T8: Infiltration Rate | U8: Q (m3/yr) | X8: Location | AB8: Cobble Hill / Mill Bay
A9: =$C$7&B9 -> Average YearDirect Recharge to 204 | B9: Direct Recharge to 204 | C9: =C55*$U$9 -> 1041668.071 | D9: 678502.4694 | E9: 489655.6044 | F9: 117591.2981 | G9: -141543.2969 | H9: -223202.8912 | I9: -217758.9183 | J9: -97991.51322 | K9: -32663.83774 | L9: 358121.3737 | M9: 1098797.55 | N9: 1071167.473 | O9: =SUM(C9:N9) -> 4142343.382 | Q9: Gain | R9: Direct Recharge to 204 | S9: =1145.35034424*10000 -> 11453503.44 | T9: =U9/S9 -> 0.3616660529 | U9: =S58 -> 4142343.382 | X9: Perimeter (km) | AB9: 31.99
A10: =$C$7&B10 -> Average YearLeakage down from 197 | B10: Leakage down from 197 | C10: =C56*$U$10 -> 124571.173 | D10: 119957.4259 | E10: 133798.6673 | F10: 132260.7516 | G10: 138412.4145 | H10: 132260.7516 | I10: 133798.6673 | J10: 130722.8359 | K10: 124571.173 | L10: 126109.0887 | M10: 119957.4259 | N10: 121495.3416 | O10: =SUM(C10:N10) -> 1537915.716 | Q10: Gain | R10: Leakage down from 197 | S10: =G135 -> 5126385.721 | T10: =F135 -> 0.3 | U10: =M135 -> 1537915.716 | X10: Area (km2) | AB10: 16.58
A11: Average YearLateral Groundwater | B11: Lateral Groundwater | C11: =C56*$U$11 -> -1053505.451 | D11: -1014486.731 | E11: -1131542.892 | F11: -1118536.652 | G11: -1170561.613 | H11: -1118536.652 | I11: -1131542.892 | J11: -1105530.412 | K11: -1053505.451 | L11: -1066511.691 | M11: -1014486.731 | N11: -1027492.971 | O11: -13006240.14 | Q11: Loss | R11: Lateral Groundwater | S11: -- | T11: -- | U11: =SUMIF(M82:M134, "<0") -> -13006240.14 | X11: Aquifer materials | AB11: Bedrock
A12: Average YearLateral Groundwater | B12: Lateral Groundwater | C12: =C56*$U$12 -> 882924.8014 | D12: 850223.8828 | E12: 948326.6386 | F12: 937426.3324 | G12: 981027.5571 | H12: 937426.3324 | I12: 948326.6386 | J12: 926526.0262 | K12: 882924.8014 | L12: 893825.1076 | M12: 850223.8828 | N12: 861124.189 | O12: 10900306.19 | Q12: Gain | R12: Lateral Groundwater | S12: -- | T12: -- | U12: =SUMIF(M82:M134, ">0") -> 10900306.19 | X12: Lithostratigraphic unit | AB12: Lower to Middle Jurassic Island Intrusions
A13: Average YearSurface Water | B13: Surface Water | C13: =C57*$U$13 -> 0 | D13: 0 | E13: 0 | F13: 0 | G13: 0 | H13: 0 | I13: 0 | J13: 0 | K13: 0 | L13: 0 | M13: 0 | N13: 0 | O13: 0 | Q13: Loss | R13: Surface Water | S13: -- | T13: -- | U13: =SUMIF(I140:I142, "<0") -> 0 | X13: Productivity | AB13: Moderate
A14: Average YearSurface Water | B14: Surface Water | C14: =C57*$U$14 -> 215880.3319 | D14: 189525.0522 | E14: 136904.3531 | F14: 66193.68292 | G14: 23470.7159 | H14: 9519.685177 | I14: 5653.57476 | J14: 1836.402448 | K14: 1543.997262 | L14: 14171.25221 | M14: 100153.0585 | N14: 213394.6136 | O14: 978246.72 | Q14: Gain | R14: Surface Water | S14: -- | T14: -- | U14: =SUMIF(I140:I142, ">0") -> 978246.72 | X14: Vulnerability | AB14: Moderate
A15: Average YearWell Water Usage | B15: Well Water Usage | C15: =C58*$U$15 -> -36487.2 | D15: -39527.8 | E15: -45609 | F15: -48649.6 | G15: -54730.8 | H15: -60812 | I15: -66893.2 | J15: -69933.8 | K15: -60812 | L15: -48649.6 | M15: -42568.4 | N15: -33446.6 | O15: -608120 | Q15: Loss | R15: Water Usage | S15: -- | T15: -- | U15: =E155 -> -608120 | X15: Demand | AB15: Moderate
A16: Average YearNet Gain | B16: Net Gain | C16: =SUMIF(C9:C15, ">0") -> 2265044.377 | D16: =SUMIF(D9:D15, ">0") -> 1838208.83 | E16: 1708685.263 | F16: 1253472.065 | G16: 1142910.687 | H16: 1079206.769 | I16: 1087778.881 | J16: 1059085.265 | K16: 1009039.972 | L16: 1392226.822 | M16: 2169131.917 | N16: 2267181.617 | O16: 18271972.47 | Q16: Net Gain | U16: =SUMIF(U9:U15, ">0") -> 17558812.01 | X16: Use | AB16: Multiple
A17: Average YearNet Loss | B17: Net Loss | C17: =SUMIF(C9:C15, "<0") -> -1089992.651 | D17: =SUMIF(D9:D15, "<0") -> -1054014.531 | E17: -1177151.892 | F17: -1167186.252 | G17: -1366835.709 | H17: -1402551.543 | I17: -1416195.01 | J17: -1273455.725 | K17: -1146981.289 | L17: -1115161.291 | M17: -1057055.131 | N17: -1060939.571 | O17: -14327520.6 | Q17: Net Loss | U17: =SUMIF(U9:U15, "<0") -> -13614360.14
A18: Average YearNet Total (Gain - Loss) | B18: Net Total (Gain - Loss) | C18: =SUM(C16:C17) -> 1175051.726 | D18: =SUM(D16:D17) -> 784194.2994 | E18: 531533.3712 | F18: 86285.81305 | G18: -223925.0219 | H18: -323344.774 | I18: -328416.1297 | J18: -214370.4605 | K18: -137941.3173 | L18: 277065.5309 | M18: 1112076.786 | N18: 1206242.046 | O18: 3944451.87 | Q18: Net Total (Gain - Loss) | U18: =SUM(U16:U17) -> 3944451.87 | W18: Location
X19: NTS 50000 | AB19: 092B/12
X20: TRIM 20000 | AB20: Straddles 092B.062 & 092B.063
X21: Lat / Long (Centre) | AB21: 48o40'19" / 123o33'41"
B22: Monthly Gains and Loses (m3) | C22: Hot/Dry (1989) | Q22: Summary - Hot/Dry (1989) | X22: UTM Zone 10 (Centre) | AB22: 458655E / 5391148N
B23: Source | C23: Jan | D23: Feb | E23: Mar | F23: Apr | G23: May | H23: Jun | I23: Jul | J23: Aug | K23: Sep | L23: Oct | M23: Nov | N23: Dec | O23: Total | Q23: Gains and Losses | R23: Source | S23: Area (m2) | T23: Infiltration Rate | U23: Q (m3/yr)
A24: =$C$22&B24 -> Hot/Dry (1989)Direct Recharge to 204 | B24: Direct Recharge to 204 | C24: =C62*$U$24 -> 854425.6011 | D24: =D62*$U$24 -> 489957.5661 | E24: 761837.4131 | F24: 45729.37283 | G24: -179651.1076 | H24: -228646.8642 | I24: -195983.0264 | J24: -81659.59435 | K24: -54439.72956 | L24: 138821.3104 | M24: 544941.6929 | N24: 691384.5655 | O24: =SUM(C24:N24) -> 2786717.2 | Q24: Gain | R24: Direct Recharge to 204 | S24: =1145.35034424*10000 -> 11453503.44 | T24: =U24/S24 -> 0.2433069684 | U24: =R58 -> 2786717.2 | W24: Climate
A25: =$C$22&B25 -> Hot/Dry (1989)Leakage down from 197 | B25: Leakage down from 197 | C25: =C63*$U$25 -> 126109.0887 | D25: =D63*$U$25 -> 116881.5944 | E25: 129184.9202 | F25: 127647.0044 | G25: 133798.6673 | H25: 129184.9202 | I25: 133798.6673 | J25: 132260.7516 | K25: 126109.0887 | L25: 130722.8359 | M25: 124571.173 | N25: 127647.0044 | O25: =SUM(C25:N25) -> 1537915.716 | Q25: Gain | R25: Leakage down from 197 | S25: =G135 -> 5126385.721 | T25: =F135 -> 0.3 | U25: =M135 -> 1537915.716 | X25: Nearest active EC weather station / distance / elevation | AB25: EEC1015136 Mill Bay SW1 / 475 m to south EC1017230 Shawnigan Lake / 1.65 km to southwest
A26: Hot/Dry (1989)Lateral Groundwater | B26: Lateral Groundwater | C26: =C63*$U$26 -> -1066511.691 | D26: =D63*$U$26 -> -988474.2506 | E26: -1092524.172 | F26: -1079517.932 | G26: -1131542.892 | H26: -1092524.172 | I26: -1131542.892 | J26: -1118536.652 | K26: -1066511.691 | L26: -1105530.412 | M26: -1053505.451 | N26: -1079517.932 | O26: -13006240.14 | Q26: Loss | R26: Lateral Groundwater | S26: -- | T26: -- | U26: =SUMIF(M82:M134, "<0") -> -13006240.14 | X26: IDF Curve | AB26: Unknown
A27: Hot/Dry (1989)Lateral Groundwater | B27: Lateral Groundwater | C27: =C63*$U$27 -> 893825.1076 | D27: =D63*$U$27 -> 828423.2705 | E27: 915625.72 | F27: 904725.4138 | G27: 948326.6386 | H27: 915625.72 | I27: 948326.6386 | J27: 937426.3324 | K27: 893825.1076 | L27: 926526.0262 | M27: 882924.8014 | N27: 904725.4138 | O27: 10900306.19 | Q27: Gain | R27: Lateral Groundwater | S27: -- | T27: -- | U27: =SUMIF(M82:M134, ">0") -> 10900306.19
A28: Hot/Dry (1989)Surface Water | B28: Surface Water | C28: =$U$28*C64 -> 0 | D28: =$U$28*D64 -> 0 | E28: 0 | F28: 0 | G28: 0 | H28: 0 | I28: 0 | J28: 0 | K28: 0 | L28: 0 | M28: 0 | N28: 0 | O28: 0 | Q28: Loss | R28: Surface Water | S28: -- | T28: -- | U28: =SUMIF(I140:I142, "<0") -> 0 | W28: Physiography
A29: Hot/Dry (1989)Surface Water | B29: Surface Water | C29: =$U$29*C64 -> 215880.3319 | D29: =$U$29*D64 -> 189525.0522 | E29: 136904.3531 | F29: 66193.68292 | G29: 23470.7159 | H29: 9519.685177 | I29: 5653.57476 | J29: 1836.402448 | K29: 1543.997262 | L29: 14171.25221 | M29: 100153.0585 | N29: 213394.6136 | O29: 978246.72 | Q29: Gain | R29: Surface Water | S29: -- | T29: -- | U29: =SUMIF(I140:I142, ">0") -> 978246.72 | X29: Physiographic zone | AB29: Canadian Cordillera / Western System / Coastal Trough / Georgia Depression / Nanaimo Lowland
A30: Hot/Dry (1989)Well Water Usage | B30: Well Water Usage | C30: =C65*$U$30 -> -36487.2 | D30: =D65*$U$30 -> -39527.8 | E30: -45609 | F30: -48649.6 | G30: -54730.8 | H30: -60812 | I30: -66893.2 | J30: -69933.8 | K30: -60812 | L30: -48649.6 | M30: -42568.4 | N30: -33446.6 | O30: -608120 | Q30: Loss | R30: Water Usage | S30: -- | T30: -- | U30: =E155 -> -608120 | X30: Elevation range (m amsl) | AB30: 0 - 140 m amsl
A31: Hot/Dry (1989)Net Gain | B31: Net Gain | C31: =SUMIF(C24:C30, ">0") -> 2090240.129 | D31: 1624787.483 | E31: 1943552.406 | F31: 1144295.474 | G31: 1105596.022 | H31: 1054330.325 | I31: 1087778.881 | J31: 1071523.486 | K31: 1021478.194 | L31: 1210241.425 | M31: 1652590.726 | N31: 1937151.597 | O31: 16943566.15 | Q31: Net Gain | U31: =SUMIF(U24:U30, ">0") -> 16203185.83 | X31: Distance to marine | AB31: Abuts Mill Bay and Saanich Inlet along east edge
A32: Hot/Dry (1989)Net Loss | B32: Net Loss | C32: =SUMIF(C24:C30, "<0") -> -1102998.891 | D32: -1028002.051 | E32: -1138133.172 | F32: -1128167.532 | G32: -1365924.8 | H32: -1381983.036 | I32: -1394419.119 | J32: -1270130.046 | K32: -1181763.421 | L32: -1154180.012 | M32: -1096073.851 | N32: -1112964.532 | O32: -14354740.46 | Q32: Net Loss | U32: =SUMIF(U24:U30, "<0") -> -13614360.14 | X32: Geomorphological setting | AB32: West end = + east -central area = hilly terrain / bedrock dominated?; central and east portions = undulating glacial outwash fan
A33: Hot/Dry (1989)Net Total (Gain - Loss) | B33: Net Total (Gain - Loss) | C33: =SUM(C31:C32) -> 987241.238 | D33: =SUM(D31:D32) -> 596785.4326 | E33: 805419.2347 | F33: 16127.94247 | G33: -260328.7779 | H33: -327652.7105 | I33: -306640.2379 | J33: -198606.5599 | K33: -160285.2274 | L33: 56061.41284 | M33: 556516.8746 | N33: 824187.0658 | O33: 2588825.687 | Q33: Net Total (Gain - Loss) | U33: =SUM(U31:U32) -> 2588825.687 | X33: Topography | AB33: Isolated, NW-trending, elongated conical hills within a planar to undulating area east of Shawnigan Creek mainstem. Contains most of Shawnigan Creek's south-flowing tributaries
X34: Terrain | AB34: Undulating to hummocky at higher elevations; undulating to planar at lower elevations
X35: Aspect | AB35: West 3/4 = half-basinal, sloping to south and southwest towards Shawnigan Creek mainstem. East 1/4 = southwest, southeast, and northeast-facing slopes off elongated hill.
X36: Slope | AB36: West 3/4 = variable, planar-concave towards Shawnigan Creek; East 1/4 = generally convex, except within minor stream / tributary catchments
B37: Monthly Gains and Loses (m3) | C37: Cold/Wet (1999) | Q37: Summary - Wet/Cold (1999) | X37: XS max grade (m/m) | AB37: 0.035 to ESE towards Mill Bay / 0.057 east side SSE towards Mill Bay
B38: Source | C38: Jan | D38: Feb | E38: Mar | F38: Apr | G38: May | H38: Jun | I38: Jul | J38: Aug | K38: Sep | L38: Oct | M38: Nov | N38: Dec | O38: Total | Q38: Gains and Losses | R38: Source | S38: Area (m2) | T38: Infiltration Rate | U38: Q (m3/yr) | X38: Roughness coefficient | AB38: 0.65 (partly cleared / deciduous-coniferous cover)
A39: =$C$37&B39 -> Cold/Wet (1999)Direct Recharge to 204 | B39: Direct Recharge to 204 | C39: =C69*$U$39 -> 1933154.797 | D39: =D69*$U$39 -> 1957211.261 | E39: 725861.9369 | F39: -87103.5673 | G39: -70771.64843 | H39: -185095.0805 | I39: -239534.8101 | J39: -97991.51322 | K39: -43551.78365 | L39: 686484.9898 | M39: 1109481.689 | N39: 1186241.707 | O39: =SUM(C39:N39) -> 6874387.977 | Q39: Gain | R39: Direct Recharge to 204 | S39: =1145.35034424*10000 -> 11453503.44 | T39: =U39/S39 -> 0.6001995819 | U39: =T58 -> 6874387.977
A40: =$C$37&B40 -> Cold/Wet (1999)Leakage down from 197 | B40: Leakage down from 197 | C40: =C70*$U$40 -> 124571.173 | D40: =D70*$U$40 -> 119957.4259 | E40: 133798.6673 | F40: 132260.7516 | G40: 138412.4145 | H40: 132260.7516 | I40: 133798.6673 | J40: 130722.8359 | K40: 124571.173 | L40: 126109.0887 | M40: 119957.4259 | N40: 121495.3416 | O40: =SUM(C40:N40) -> 1537915.716 | Q40: Gain | R40: Leakage down from 197 | S40: =G135 -> 5126385.721 | T40: =F135 -> 0.3 | U40: =M135 -> 1537915.716 | W40: Geology
A41: Cold/Wet (1999)Lateral Groundwater | B41: Lateral Groundwater | C41: =C70*$U$41 -> -1053505.451 | D41: =D70*$U$41 -> -1014486.731 | E41: -1131542.892 | F41: -1118536.652 | G41: -1170561.613 | H41: -1118536.652 | I41: -1131542.892 | J41: -1105530.412 | K41: -1053505.451 | L41: -1066511.691 | M41: -1014486.731 | N41: -1027492.971 | O41: -13006240.14 | Q41: Loss | R41: Lateral Groundwater | S41: -- | T41: -- | U41: =SUMIF(M82:M134, "<0") -> -13006240.14 | X41: Terrane | AB41: Wrangellia / Overlap
A42: Cold/Wet (1999)Lateral Groundwater | B42: Lateral Groundwater | C42: =C70*$U$42 -> 882924.8014 | D42: =D70*$U$42 -> 850223.8828 | E42: 948326.6386 | F42: 937426.3324 | G42: 981027.5571 | H42: 937426.3324 | I42: 948326.6386 | J42: 926526.0262 | K42: 882924.8014 | L42: 893825.1076 | M42: 850223.8828 | N42: 861124.189 | O42: 10900306.19 | Q42: Gain | R42: Lateral Groundwater | S42: -- | T42: -- | U42: =SUMIF(M82:M134, ">0") -> 10900306.19 | X42: Bedrock (type ; age ; formation ; lithology)
A43: Cold/Wet (1999)Surface Water | B43: Surface Water | C43: =$U$43*C71 -> 0 | D43: =$U$43*D71 -> 0 | E43: 0 | F43: 0 | G43: 0 | H43: 0 | I43: 0 | J43: 0 | K43: 0 | L43: 0 | M43: 0 | N43: 0 | O43: 0 | Q43: Loss | R43: Surface Water | S43: -- | T43: -- | U43: =SUMIF(I140:I142, "<0") -> 0 | Y43: Primary | AB43: East / southeast 2/3 = Early to Middle Jurassic Island Plutonic Suite (EMJIgd); granodioritic intrusive rocks (65%)
A44: Cold/Wet (1999)Surface Water | B44: Surface Water | C44: =$U$44*C71 -> 215880.3319 | D44: =$U$44*D71 -> 189525.0522 | E44: 136904.3531 | F44: 66193.68292 | G44: 23470.7159 | H44: 9519.685177 | I44: 5653.57476 | J44: 1836.402448 | K44: 1543.997262 | L44: 14171.25221 | M44: 100153.0585 | N44: 213394.6136 | O44: 978246.72 | Q44: Gain | R44: Surface Water | S44: -- | T44: -- | U44: =SUMIF(I140:I142, ">0") -> 978246.72 | Y44: Secondary | AB44: Northwest 1/3 = Middle to Upper Devonian Sicker Group Duck Lake Volcanics (muDSiD); basaltic volcanic rocks (25%)
A45: Cold/Wet (1999)Well Water Usage | B45: Well Water Usage | C45: =C72*$U$45 -> -36487.2 | D45: =D72*$U$45 -> -39527.8 | E45: -45609 | F45: -48649.6 | G45: -54730.8 | H45: -60812 | I45: -66893.2 | J45: -69933.8 | K45: -60812 | L45: -48649.6 | M45: -42568.4 | N45: -33446.6 | O45: -608120 | Q45: Loss | R45: Water Usage | S45: -- | T45: -- | U45: =E155 -> -608120 | Y45: Tertiary | AB45: Southwest corner = Jurassic Bonanza Group Volcanics (IJBca); basaltic-andesitic (5%)
A46: Cold/Wet (1999)Net Gain | B46: Net Gain | C46: =SUMIF(C39:C45, ">0") -> 3156531.103 | D46: =SUMIF(D39:D45, ">0") -> 3116917.622 | E46: 1944891.596 | F46: 1135880.767 | G46: 1142910.687 | H46: 1079206.769 | I46: 1087778.881 | J46: 1059085.265 | K46: 1009039.972 | L46: 1720590.438 | M46: 2179816.056 | N46: 2382255.851 | O46: 21014905.01 | Q46: Net Gain | U46: =SUMIF(U39:U45, ">0") -> 20290856.6 | Y46: Subsidiary | AB46: Northeast corner / "peninsula" = Upper Cretaceous Nanaimo Group (uKN); shale (5%)
A47: Cold/Wet (1999)Net Loss | B47: Net Loss | C47: =SUMIF(C39:C45, "<0") -> -1089992.651 | D47: =SUMIF(D39:D45, "<0") -> -1054014.531 | E47: -1177151.892 | F47: -1254289.819 | G47: -1296064.061 | H47: -1364443.732 | I47: -1437970.902 | J47: -1273455.725 | K47: -1157869.235 | L47: -1115161.291 | M47: -1057055.131 | N47: -1060939.571 | O47: -14338408.54 | Q47: Net Loss | U47: =SUMIF(U39:U45, "<0") -> -13614360.14 | X47: Structure | AB47: East-northeast trending San Juan Fault crosses AQ; AQ south of SJF crossed by at least one west-northwest trending thrust fault that does not cross the SJF
A48: Cold/Wet (1999)Net Total (Gain - Loss) | B48: Net Total (Gain - Loss) | C48: =SUM(C46:C47) -> 2066538.452 | D48: =SUM(D46:D47) -> 2062903.091 | E48: 767739.7037 | F48: -118409.0524 | G48: -153153.3735 | H48: -285236.9633 | I48: -350192.0215 | J48: -214370.4605 | K48: -148829.2632 | L48: 605429.1469 | M48: 1122760.925 | N48: 1321316.28 | O48: 6676496.465 | Q48: Net Total (Gain - Loss) | U48: =SUM(U46:U47) -> 6676496.465 | X48: Surficial (formation; lithology; thickness) | AB48: Vashon Drift morainal; silt-sand; generally shallow to moderately deep blankets (3 - 10 m) / higher areas - locally colluvial veneers on steeper slopes at mid-elevations. Small blankets of Capilano Formation glaciolacustrine materials in morainal hollows & at west end within Shawnigan Creek mainstem area / Salish Formation fluvial blankets and veneers along Shawnigan Creek & tributaries
X49: Surficial designation (1993) | AB49: Generally dMbh/$LGP//sgFGf. isolated depressional areas = $Op
X50: Soils (association; parent; texture; drainage; type; comments) | AB50: Higher elevations = SE1v8DD1v1QU11/de (Somenos moraine / Dashwood marine / Quamichan fluvial); predominantly gravelly-sandy loam D.DYB Lower elevations centred on Mill Bay = FF1v8TT72/de (Finlayson & Tagner marine ). predominantly silty-clay loam GLE.DYB, stonefree
Q51: Table E-2. Direct Recharge Calculation for AQ204 | X51: Restrictive layers | AB51: Yes - surface duric layer in morainal areas; low permeability soils in silt-clay-rich areas
B52: Table E-5 Monthly Coefficients used in Calculations for AQ204 | R52: Direct Recharge Calculation | X52: Estimated permeability | AB52: Low-moderate @ surface in duric morainal areas / low in silt-clay rich areas
B53: Monthly Factors | C53: 30 Year Average | R53: Hot/Dry | S53: Average | T53: Cold/Wet
C54: Jan | D54: Feb | E54: Mar | F54: Apr | G54: May | H54: Jun | I54: Jul | J54: Aug | K54: Sep | L54: Oct | M54: Nov | N54: Dec | Q54: Surplus (mm) | R54: =SUM('Climate Dashboard'!AA42:AL42) -> 511.8903459 | S54: =SUM('Climate Dashboard'!C48:AL48)/3 -> 760.9044746 | T54: =SUM('Climate Dashboard'!AA54:AL54) -> 1262.752044 | W54: Hydrology
B55: Surplus Water | C55: ='Monthly Factors'!B16 -> 0.2514683055 | D55: ='Monthly Factors'!C16 -> 0.1637967708 | E55: ='Monthly Factors'!D16 -> 0.1182073911 | F55: ='Monthly Factors'!E16 -> 0.02838762682 | G55: ='Monthly Factors'!F16 -> -0.03416986083 | H55: ='Monthly Factors'!G16 -> -0.05388324207 | I55: ='Monthly Factors'!H16 -> -0.05256901665 | J55: ='Monthly Factors'!I16 -> -0.02365605749 | K55: ='Monthly Factors'!J16 -> -0.007885352498 | L55: ='Monthly Factors'!K16 -> 0.08645381144 | M55: ='Monthly Factors'!L16 -> 0.26525989 | N55: ='Monthly Factors'!M16 -> 0.2585897339 | Q55: Station Coeffiecient Factor | R55: 1.02 | S55: 1.02 | T55: 1.02 | X55: GW / SW basin coincidence | AB55: No - straddles catchment divide between Shawnigan Creek mainstem-tributaries and streams flowing direcrtly into Saanich Inlet. Occupies north side of Shawnigan Creek catchment only.
B56: Leakance/ Lateral Ground Water | C56: ='Monthly Factors'!B42 -> 0.081 | D56: ='Monthly Factors'!C42 -> 0.078 | E56: ='Monthly Factors'!D42 -> 0.087 | F56: ='Monthly Factors'!E42 -> 0.086 | G56: ='Monthly Factors'!F42 -> 0.09 | H56: ='Monthly Factors'!G42 -> 0.086 | I56: ='Monthly Factors'!H42 -> 0.087 | J56: ='Monthly Factors'!I42 -> 0.085 | K56: ='Monthly Factors'!J42 -> 0.081 | L56: ='Monthly Factors'!K42 -> 0.082 | M56: ='Monthly Factors'!L42 -> 0.078 | N56: ='Monthly Factors'!M42 -> 0.079 | Q56: Infiltration Coefficient | R56: 0.465990901 | S56: 0.465990901 | T56: 0.465990901 | X56: Catchments | AB56: Shawnigan Creek / Saanich inlet streams
B57: Surface Water | C57: ='Monthly Factors'!B26 -> 0.2206808646 | D57: ='Monthly Factors'!C26 -> 0.1937395222 | E57: ='Monthly Factors'!D26 -> 0.1399486963 | F57: ='Monthly Factors'!E26 -> 0.06766563237 | G57: ='Monthly Factors'!F26 -> 0.0239926344 | H57: ='Monthly Factors'!G26 -> 0.009731374491 | I57: ='Monthly Factors'!H26 -> 0.005779293346 | J57: ='Monthly Factors'!I26 -> 0.001877238544 | K57: ='Monthly Factors'!J26 -> 0.001578331141 | L57: ='Monthly Factors'!K26 -> 0.01448637845 | M57: ='Monthly Factors'!L26 -> 0.1023801629 | N57: ='Monthly Factors'!M26 -> 0.2181398713 | Q57: Area (m2) | R57: =S9 -> 11453503.44 | S57: =S9 -> 11453503.44 | T57: =S9 -> 11453503.44 | X57: Drainage regime | AB57: Dendritic within Shawnigan Creek catchment / radial in hilly areas
B58: Water Usage | C58: ='Monthly Factors'!B31 -> 0.06 | D58: ='Monthly Factors'!C31 -> 0.065 | E58: ='Monthly Factors'!D31 -> 0.075 | F58: ='Monthly Factors'!E31 -> 0.08 | G58: ='Monthly Factors'!F31 -> 0.09 | H58: ='Monthly Factors'!G31 -> 0.1 | I58: ='Monthly Factors'!H31 -> 0.11 | J58: ='Monthly Factors'!I31 -> 0.115 | K58: ='Monthly Factors'!J31 -> 0.1 | L58: ='Monthly Factors'!K31 -> 0.08 | M58: ='Monthly Factors'!L31 -> 0.07 | N58: ='Monthly Factors'!M31 -> 0.055 | Q58: Q (m3/yr) | R58: =(R54/1000)*R55*R56*R57 -> 2786717.2 | S58: =(S54/1000)*S55*S56*S57 -> 4142343.382 | T58: =(T54/1000)*T55*T56*T57 -> 6874387.977 | X58: Surface waters | AB58: Shawnigan Creek (along south border); six unnamed streams directly flowing into Saanich Inlet and/or Mill Bay
Q59: Average Infiltration Rate | R59: =R58/R57 -> 0.2433069684 | S59: =S58/S57 -> 0.3616660529 | T59: =T58/T57 -> 0.6001995819 | X59: Runoff coefficient | AB59: ~50% cleared-agricultural / ~30% forested / 20% rural residential / moderate slope = 0.55
B60: Monthly Factors | C60: Hot/Dry (1989) | X60: Nearest Active EC hydrometric station; distance; type | AB60: Shawnigan Creek @ Mill Bay; south border of AQ (inactive); EC 08HA003 Koksilah River @ Cowichan Station; 6.8 km NW; active realtime;
C61: Jan | D61: Feb | E61: Mar | F61: Apr | G61: May | H61: Jun | I61: Jul | J61: Aug | K61: Sep | L61: Oct | M61: Nov | N61: Dec | X61: Surface water diversions ; relevance | AB61: > 20 licences along Shawnigan Creek & south side of AQ / >15 within AQ along unnamed steams; Generally low relevancy due to high overburden thicknesses, elevated along incised sections of Shawnigan Creek
B62: Surplus Water | C62: ='Monthly Factors'!B11 -> 0.3066064978 | D62: ='Monthly Factors'!C11 -> 0.1758189048 | E62: ='Monthly Factors'!D11 -> 0.273381674 | F62: ='Monthly Factors'!E11 -> 0.01640976445 | G62: ='Monthly Factors'!F11 -> -0.06446693176 | H62: ='Monthly Factors'!G11 -> -0.08204882224 | I62: ='Monthly Factors'!H11 -> -0.07032756192 | J62: ='Monthly Factors'!I11 -> -0.0293031508 | K62: ='Monthly Factors'!J11 -> -0.01953543387 | L62: ='Monthly Factors'!K11 -> 0.04981535636 | M62: ='Monthly Factors'!L11 -> 0.195549693 | N62: ='Monthly Factors'!M11 -> 0.2481000101
B63: Leakance/ Lateral Ground Water | C63: ='Monthly Factors'!B43 -> 0.082 | D63: ='Monthly Factors'!C43 -> 0.076 | E63: ='Monthly Factors'!D43 -> 0.084 | F63: ='Monthly Factors'!E43 -> 0.083 | G63: ='Monthly Factors'!F43 -> 0.087 | H63: ='Monthly Factors'!G43 -> 0.084 | I63: ='Monthly Factors'!H43 -> 0.087 | J63: ='Monthly Factors'!I43 -> 0.086 | K63: ='Monthly Factors'!J43 -> 0.082 | L63: ='Monthly Factors'!K43 -> 0.085 | M63: ='Monthly Factors'!L43 -> 0.081 | N63: ='Monthly Factors'!M43 -> 0.083 | X63: Vegetation zone | AB63: Cgf-wC
B64: Surface Water | C64: ='Monthly Factors'!B26 -> 0.2206808646 | D64: ='Monthly Factors'!C26 -> 0.1937395222 | E64: ='Monthly Factors'!D26 -> 0.1399486963 | F64: ='Monthly Factors'!E26 -> 0.06766563237 | G64: ='Monthly Factors'!F26 -> 0.0239926344 | H64: ='Monthly Factors'!G26 -> 0.009731374491 | I64: ='Monthly Factors'!H26 -> 0.005779293346 | J64: ='Monthly Factors'!I26 -> 0.001877238544 | K64: ='Monthly Factors'!J26 -> 0.001578331141 | L64: ='Monthly Factors'!K26 -> 0.01448637845 | M64: ='Monthly Factors'!L26 -> 0.1023801629 | N64: ='Monthly Factors'!M26 -> 0.2181398713 | X64: Primary land uses | AB64: Cgf-wC
B65: Water Usage | C65: ='Monthly Factors'!B31 -> 0.06 | D65: ='Monthly Factors'!C31 -> 0.065 | E65: ='Monthly Factors'!D31 -> 0.075 | F65: ='Monthly Factors'!E31 -> 0.08 | G65: ='Monthly Factors'!F31 -> 0.09 | H65: ='Monthly Factors'!G31 -> 0.1 | I65: ='Monthly Factors'!H31 -> 0.11 | J65: ='Monthly Factors'!I31 -> 0.115 | K65: ='Monthly Factors'!J31 -> 0.1 | L65: ='Monthly Factors'!K31 -> 0.08 | M65: ='Monthly Factors'!L31 -> 0.07 | N65: ='Monthly Factors'!M31 -> 0.055 | X65: Degree of development | AB65: Extensive rural residential / agricultural development. Very low impervious cover
X66: Evapotranspiration potential | AB66: High
B67: Monthly Factors | C67: Cold/Wet (1999) | X67: Relative environmental sensitivity | AB67: Moderate in terrestrial areas, high along Shawnigan Creek corridor
C68: Jan | D68: Feb | E68: Mar | F68: Apr | G68: May | H68: Jun | I68: Jul | J68: Aug | K68: Sep | L68: Oct | M68: Nov | N68: Dec
B69: Surplus Water | C69: ='Monthly Factors'!B21 -> 0.2812111861 | D69: ='Monthly Factors'!C21 -> 0.2847106197 | E69: ='Monthly Factors'!D21 -> 0.1055893178 | F69: ='Monthly Factors'!E21 -> -0.01267073776 | G69: ='Monthly Factors'!F21 -> -0.01029497443 | H69: ='Monthly Factors'!G21 -> -0.02692531773 | I69: ='Monthly Factors'!H21 -> -0.03484452883 | J69: ='Monthly Factors'!I21 -> -0.01425457998 | K69: ='Monthly Factors'!J21 -> -0.006335368879 | L69: ='Monthly Factors'!K21 -> 0.09986125195 | M69: ='Monthly Factors'!L21 -> 0.1613935222 | N69: ='Monthly Factors'!M21 -> 0.1725596098 | W69: Hydrogeology
B70: Leakance/ Lateral Ground Water | C70: ='Monthly Factors'!B44 -> 0.081 | D70: ='Monthly Factors'!C44 -> 0.078 | E70: ='Monthly Factors'!D44 -> 0.087 | F70: ='Monthly Factors'!E44 -> 0.086 | G70: ='Monthly Factors'!F44 -> 0.09 | H70: ='Monthly Factors'!G44 -> 0.086 | I70: ='Monthly Factors'!H44 -> 0.087 | J70: ='Monthly Factors'!I44 -> 0.085 | K70: ='Monthly Factors'!J44 -> 0.081 | L70: ='Monthly Factors'!K44 -> 0.082 | M70: ='Monthly Factors'!L44 -> 0.078 | N70: ='Monthly Factors'!M44 -> 0.079 | X70: Groundwater occurrence (primary / secondary) | AB70: Void infillings - bedrock fractures & faults
B71: Surface Water | C71: ='Monthly Factors'!B26 -> 0.2206808646 | D71: ='Monthly Factors'!C26 -> 0.1937395222 | E71: ='Monthly Factors'!D26 -> 0.1399486963 | F71: ='Monthly Factors'!E26 -> 0.06766563237 | G71: ='Monthly Factors'!F26 -> 0.0239926344 | H71: ='Monthly Factors'!G26 -> 0.009731374491 | I71: ='Monthly Factors'!H26 -> 0.005779293346 | J71: ='Monthly Factors'!I26 -> 0.001877238544 | K71: ='Monthly Factors'!J26 -> 0.001578331141 | L71: ='Monthly Factors'!K26 -> 0.01448637845 | M71: ='Monthly Factors'!L26 -> 0.1023801629 | N71: ='Monthly Factors'!M26 -> 0.2181398713 | X71: Primary porosity | AB71: Low to negligible
B72: Water Usage | C72: ='Monthly Factors'!B31 -> 0.06 | D72: ='Monthly Factors'!C31 -> 0.065 | E72: ='Monthly Factors'!D31 -> 0.075 | F72: ='Monthly Factors'!E31 -> 0.08 | G72: ='Monthly Factors'!F31 -> 0.09 | H72: ='Monthly Factors'!G31 -> 0.1 | I72: ='Monthly Factors'!H31 -> 0.11 | J72: ='Monthly Factors'!I31 -> 0.115 | K72: ='Monthly Factors'!J31 -> 0.1 | L72: ='Monthly Factors'!K31 -> 0.08 | M72: ='Monthly Factors'!L31 -> 0.07 | N72: ='Monthly Factors'!M31 -> 0.055 | X72: Secondary porosity | AB72: Low to moderate in Sicker Volcanics & Island Intrusives area; higher in fractue zones & faults, especially along SJF; low in Bonanza Volcanics areas due to ductile rock
X73: Confinement | AB73: Morainal blanket areas locally semi-confined by duric till blankets; WP = 0 - 62.5, avg 3.0 m
X74: Aquifer thickness | AB74: Bedrock aquifer / assume < 150 m
X75: Hydraulic anisotropy | AB75: High
X76: Hydraulic gradient | AB76: Low to moderate based on terrain
B77: TABLE E-6 | X77: Storage potential | AB77: Low - secondary voids only
B78: Groundwater Flow Components: Aquifer #0204, Cobble Hill (Bedrock) | X78: Yield potential | AB78: Low-moderate; WP = 0.03 - 8.52 L/s / average 0.25 L/s
X79: Flow velocities | AB79: Low - moderate
B80: Groundwater Flow | C80: Direction of Flow | D80: Source or Receptor of Water | E80: Length (m) | F80: Depth (m) | G80: Area (m) | H80: Hydraulic Conductivity (m/s) - K | I80: Distance (m) - dL | J80: Hydraulic Head (m) - dh | M80: GW Flow (m3/yr) | X80: Flow directions | AB80: Generally south and southeast towards Shawnigan Creek and Mill Bay / Saanich Inlet. East edge flow possible to east towards Saanich Inlet (i.e. east of surface water divide)
J81: Year 1 | K81: Year 2 | L81: Year 3 | M81: Year 1 | N81: Year 2 | O81: Year 3 | X81: Static water levels | AB81: WP = variable 0 - 50.3 m bgs / avg 5.2 m bgs
B82: QGW1 | C82: Out | D82: Shawnigan Creek | E82: =1.5*345 -> 517.5 | F82: 80 | G82: =E82*F82 -> 41400 | H82: 1e-06 | I82: 315 | J82: 20 | M82: =-(G82*H82*(J82/I82))*60*60*24*365 -> -82894.62857 | X82: Hydraulic connection with surface waters | AB82: Generally low to moderate due to deep overburden cover, high in areas where Shawnigan Creek is deeply incised
B83: QGW2 | C83: Out | D83: Shawnigan Creek | E83: =0.6*345 -> 207 | F83: 80 | G83: =E83*F83 -> 16560 | H83: 5e-05 | I83: 345 | J83: 40 | M83: =-(G83*H83*(J83/I83))*60*60*24*365 -> -3027456 | X83: Hydraulic connection to adjacent AQ
B84: QGW3 | C84: Out | D84: Shawnigan Creek | E84: =5*345 -> 1725 | F84: 80 | G84: 138000 | H84: 1e-09 | I84: 255 | J84: 40 | M84: -682.6616471 | Y84: Over / Under | AB84: North 1/4 partly overlain by surficial AQ197
B85: QGW4 | C85: In | D85: Shawnigan Creek | E85: =0.5*345 -> 172.5 | F85: 80 | G85: 13800 | H85: 1e-08 | I85: -- | J85: -- | M85: =-'Bedrock 207'!M119 -> 112.58352 | Y85: Upgradient | AB85: Upgradient contact to north with undeveloped extension of bedrock AQ204; upgradient contact to west with bedrock AQ202; cross-gradient? contacts along south border with bedrock AQ207, surficial AQ 205, & surficial AQ206
B86: QGW5 | C86: Out | D86: Shawnigan Creek | E86: =0.5*345 -> 172.5 | F86: 80 | G86: 13800 | H86: 1e-09 | I86: 215 | J86: 20 | M86: -40.48342326 | Y86: Downgradient | AB86: None - discharge to marine
B87: QGW6 | C87: In | D87: Shawnigan Creek | E87: =0.7*345 -> 241.5 | F87: 80 | G87: 19320 | H87: 1e-07 | I87: -- | J87: -- | M87: =-'Bedrock 207'!M118 -> 72.0534528 | X87: Vulnerability to surface contamination | AB87: Low-moderate due to deep overburden cover
B88: QGW7 | C88: Out | D88: Shawnigan Creek | E88: =0.5*345 -> 172.5 | F88: 20 | G88: 3450 | H88: 1e-09 | I88: 765 | J88: 10 | M88: -1.422211765 | X88: Recharge
B89: QGW8 | C89: Out | D89: Shawnigan Creek | E89: =5.3*345 -> 1828.5 | F89: 20 | G89: 36570 | H89: 1e-06 | I89: 765 | J89: 10 | M89: -15075.44471 | Y89: Vertical inflow | AB89: Moderate recharge from Shawnigan Creek stream losses in deeply incised areas. Limited recharge from precipitation / irrigation-sewerage return due to deep overburden cover. Negligible recharge from snowmelt due to low elevation
B90: QGW9 | C90: In | D90: Shawnigan Creek | E90: =0.5*345 -> 172.5 | F90: 20 | G90: 3450 | H90: 0.0001 | I90: -- | J90: -- | M90: =-'Bedrock 207'!M116 -> 500371.2 | Y90: Lateral inflow | AB90: Low - moderate lateral inflow from upgradient bedrock sources
B91: QGW10 | C91: Out | D91: Shawnigan Creek | E91: =3.5*3454 -> 12089 | F91: 20 | G91: 241780 | H91: 1e-06 | I91: 620 | J91: 20 | M91: -245960.4542 | Y91: Temporal variability | AB91: Low - moderate due to deep overburden cover
B92: QGW11 | C92: In | D92: Shawnigan Creek | E92: =0.5*345 -> 172.5 | F92: 20 | G92: 3450 | H92: 0.0001 | I92: -- | J92: -- | M92: =-'Bedrock 207'!M110 -> 16564.01214 | Y92: MBR | AB92: Moderate at west end of AQ only from Cobble Hill
B93: QGW12 | C93: Out | D93: Shawnigan Creek | E93: =3.4*345 -> 1173 | F93: 20 | G93: 23460 | H93: 1e-06 | I93: 150 | J93: 20 | K93: - | L93: - | M93: -98644.608 | X93: Discharge
B94: QGW13 | C94: Out | D94: Ocean | E94: =0.4*345 -> 138 | F94: 60 | G94: 8280 | H94: 0.0001 | I94: 240 | J94: 20 | M94: -2175984 | Y94: Evapotranspiration | AB94: High
B95: QGW14 | C95: Out | D95: Ocean | E95: =4*345 -> 1380 | F95: 60 | G95: 82800 | H95: 1e-06 | I95: 315 | J95: 40 | M95: -331578.5143 | Y95: Outflow to marine | AB95: Low-moderate - may be below base of Saanich Inlet due to deep overburden cover
B96: QGW15 | C96: Out | D96: Ocean | E96: =4.8*345 -> 1656 | F96: 80 | G96: 132480 | H96: 1e-06 | I96: 260 | J96: 40 | M96: -642752.1969 | Y96: Outflow to surface waters | AB96: High to Shawnigan Creek & tributaries in deeply incised areas
B97: QGW16 | C97: Out | D97: Ocean | E97: =0.5*345 -> 172.5 | F97: 80 | G97: 13800 | H97: 1e-05 | I97: 360 | J97: 40 | M97: -483552 | Y97: Outflow to other AQ | AB97: None
B98: QGW17 | C98: Out | D98: Ocean | E98: =1.8*345 -> 621 | F98: 80 | G98: 49680 | H98: 1e-06 | I98: 1090 | J98: 80 | M98: -114987.7783 | Y98: Temporal variability | AB98: Low - moderate due to deep overburden cover
B99: QGW18 | C99: Out | D99: Ocean | E99: =0.3*345 -> 103.5 | F99: 80 | G99: 8280 | H99: 1e-05 | I99: 105 | J99: 20 | M99: -497367.7714
B100: QGW19 | C100: Out | D100: Ocean | E100: =2.7*345 -> 931.5 | F100: 80 | G100: 74520 | H100: 1e-06 | I100: 850 | J100: 40 | M100: -110591.1868 | W100: Groundwater Development
B101: QGW20 | C101: Zero | D101: Ocean | E101: =0.4*345 -> 138 | F101: 60 | G101: 8280 | H101: 1e-05 | I101: 1 | J101: 0 | M101: 0 | Y101: Nearest BCMOE Observation Wells; distance; completion / relevance | AB101: Well #345 = within pocket created by AQ's northeast "horn; Well #320 = 500 m east of north end of AQ; both completed in surficial materials; irrelevant
B102: QGW21 | C102: Out | D102: Ocean | E102: =0.8*345 -> 276 | F102: 60 | G102: 16560 | H102: 1e-06 | I102: 205 | J102: 40 | M102: -101899.7385 | Y102: Total Annual Water Use (m3/yr) as reported by Hatfield (2015) | AC102: SUMS
B103: QGW22 | C103: Out | D103: Ocean | E103: =0.2*345 -> 69 | F103: 60 | G103: 4140 | H103: 1e-07 | I103: 145 | J103: 40 | M103: -3601.62869 | Z103: Industrial | AB103: 36500 | AC103: Total Commercial and Industrial
B104: QGW22b | C104: Out | D104: Ocean | E104: =7.5*345 -> 2587.5 | F104: 60 | G104: 155250 | H104: 1e-09 | I104: 210 | J104: 60 | M104: -1398.846857 | Z104: Commercial | AB104: 25550 | AC104: =AB103+AB104 -> 62050
B105: QGW23 | C105: Out | D105: Ocean | E105: =4.5*345 -> 1552.5 | F105: 200 | G105: 310500 | H105: 1e-09 | I105: 455 | J105: 60 | M105: =-(G105*H104*(J105/I105))*60*60*24*365 -> -1291.243253 | Z105: Domestic | AB105: 263671 | AC105: Total Irrigation
B106: QGW24 | C106: Out | D106: Under AQ 197 | E106: =0.5*345 -> 172.5 | F106: 200 | G106: 34500 | H106: 1e-07 | I106: 175 | J106: 20 | M106: =-(G106*H105*(J106/I106))*60*60*24*365 -> -124.3419429 | Z106: Irrigation from groundwater (Ministry of AGRICULTURE) | AB106: 236911 | AC106: =AB106 -> 236911
B107: QGW25 | C107: In | D107: Under AQ 197 | E107: =4.4*345 -> 1518 | F107: 200 | G107: 303600 | H107: 1e-09 | I107: 445 | J107: 40 | M107: =(G107*H106*(J107/I107))*60*60*24*365 -> 86061.38966 | Z107: BCMOE Obs | AB107: 0
B108: QGW26 | C108: Out | D108: Under AQ 197 | E108: =0.5*345 -> 172.5 | F108: 200 | G108: 34500 | H108: 1e-07 | I108: 215 | J108: 20 | M108: =-(G108*H107*(J108/I108))*60*60*24*365 -> -101.2085581 | Z108: Other | AB108: 29200 | AC108: Total Domestic + Water Systems + Other
B109: QGW27 | C109: In | D109: Under AQ 197 | E109: =5.4*345 -> 1863 | F109: 200 | G109: 372600 | H109: 1e-09 | I109: 1345 | J109: 6 | M109: =(G109*H108*(J109/I109))*60*60*24*365 -> 5241.775584 | Z109: Water Supply Systems | AB109: 16288 | AC109: =AB105+AB108+AB109 -> 309159
B110: QGW28 | C110: In | D110: Under AQ 197 | E110: =0.4*345 -> 138 | F110: 200 | G110: 27600 | H110: 1e-07 | I110: 145 | J110: 40 | M110: =(G110*H109*(J110/I110))*60*60*24*365 -> 240.1085793
B111: QGW29 | C111: In | D111: Under AQ 197 | E111: =1.8*345 -> 621 | F111: 200 | G111: 124200 | H111: 1e-06 | I111: 205 | J111: 40 | M111: =(G111*H110*(J111/I111))*60*60*24*365 -> 76424.8039
B112: QGW30 | C112: Zero | D112: Under AQ 197 | E112: =0.3*345 -> 103.5 | F112: 200 | G112: 20700 | H112: 1e-05 | I112: 1 | J112: 0 | M112: =(G112*H112*(J112/I112))*60*60*24*365 -> 0
B113: QGW31 | C113: Zero | D113: Under AQ 197 | E113: =1.5*345 -> 517.5 | F113: 200 | G113: 103500 | H113: 1e-06 | I113: 1 | J113: 0 | M113: =-(G113*H113*(J113/I113))*60*60*24*365 -> 0
B114: QGW32 | C114: Out | D114: Under AQ 197 | E114: =1.2*345 -> 414 | F114: 200 | G114: 82800 | H114: 5e-05 | I114: 515 | J114: 20 | K114: - | L114: - | M114: =-(G114*H114*(J114/I114))*60*60*24*365 -> -5070253.981
B115: QGW33 | C115: In | D115: Under AQ 197 | E115: =3.5*345 -> 1207.5 | F115: 200 | G115: 241500 | H115: 1e-06 | I115: 505 | J115: 20 | K115: - | L115: - | M115: =(G115*H115*(J115/I115))*60*60*24*365 -> 301621.5446
B116: QGW34 | C116: Zero | D116: Under AQ 197 | E116: =0.5*345 -> 172.5 | F116: 200 | G116: 34500 | H116: 1e-05 | I116: 1 | J116: 0 | K116: - | L116: - | M116: =-(G116*H116*(J116/I116))*60*60*24*365 -> 0
B117: QGW35 | C117: In | D117: Under AQ 197 | E117: =2*345 -> 690 | F117: 200 | G117: 138000 | H117: 1e-06 | I117: 845 | J117: 40 | K117: - | L117: - | M117: =(G117*H117*(J117/I117))*60*60*24*365 -> 206010.3195
B118: QGW36 | C118: In | D118: Under AQ 197 | E118: =0.3*345 -> 103.5 | F118: 200 | G118: 20700 | H118: 1e-05 | I118: 845 | J118: 40 | M118: 309015.4793
B119: QGW37 | C119: In | D119: Under AQ 197 | E119: =0.7*345 -> 241.5 | F119: 200 | G119: 48300 | H119: 1e-06 | I119: 845 | J119: 40 | M119: 72103.61183
B120: QGW38 | C120: In | D120: Under AQ 197 | E120: =0.2*345 -> 69 | F120: 200 | G120: 13800 | H120: 1e-05 | I120: 845 | J120: 40 | M120: 206010.3195
B121: QGW39 | C121: In | D121: Under AQ 197 | E121: =1.9*345 -> 655.5 | F121: 200 | G121: 131100 | H121: 1e-06 | I121: 185 | J121: 20 | M121: 446958.8757
B122: QGW40 | C122: In | D122: Under AQ 197 | E122: =0.3*345 -> 103.5 | F122: 200 | G122: 20700 | H122: 1e-05 | I122: 185 | J122: 20 | M122: 705724.5405
B123: QGW41 | C123: In | D123: Under AQ 197 | E123: =1*345 -> 345 | F123: 200 | G123: 69000 | H123: 1e-06 | I123: 185 | J123: 20 | M123: 235241.5135
B124: QGW42 | C124: In | D124: Under AQ 197 | E124: =0.3*345 -> 103.5 | F124: 200 | G124: 20700 | H124: 1e-05 | I124: 185 | J124: 20 | M124: 705724.5405
B125: QGW43 | C125: In | D125: Under AQ 197 | E125: =0.9*345 -> 310.5 | F125: 200 | G125: 62100 | H125: 1e-06 | I125: 185 | J125: 20 | M125: 211717.3622
B126: QGW44 | C126: In | D126: Under AQ 197 | E126: =0.4*345 -> 138 | F126: 200 | G126: 27600 | H126: 0.0001 | I126: 1010 | J126: 20 | M126: 1723551.683
B127: QGW45 & 47 | C127: In | D127: AQ 202 (QGW30) | E127: ='Bedrock 202'!E111 -> 1285.2 | F127: ='Bedrock 202'!F111 -> 200 | G127: ='Bedrock 202'!G111 -> 257040 | H127: ='Bedrock 202'!H111 -> 1e-06 | I127: ='Bedrock 202'!I111 -> 525 | J127: ='Bedrock 202'!J111 -> 140 | K127: ='Bedrock 202'!K111 -> 0 | L127: ='Bedrock 202'!L111 -> 0 | M127: =-'Bedrock 202'!M111 -> 2161603.584
B128: QGW46 | C128: Zero | D128: N/A | E128: =0.4*345 -> 138 | F128: 200 | G128: 27600 | H128: 1e-05 | I128: 1 | J128: 0 | M128: =-(G128*H128*(J128/I128))*60*60*24*365 -> 0
B129: QGW48 | C129: In | D129: AQ 202 (QGW31) | E129: ='Bedrock 202'!E112 -> 178.5 | F129: ='Bedrock 202'!F112 -> 200 | G129: ='Bedrock 202'!G112 -> 35700 | H129: ='Bedrock 202'!H112 -> 1e-05 | I129: ='Bedrock 202'!I112 -> 150 | J129: ='Bedrock 202'!J112 -> 20 | K129: ='Bedrock 202'!K112 -> 0 | L129: ='Bedrock 202'!L112 -> 0 | M129: =-'Bedrock 202'!M112 -> 1501113.6 | N129: ='Bedrock 202'!N112 -> 0 | O129: ='Bedrock 202'!O112 -> 0
B130: QGW49 | C130: In | D130: AQ 202 (QGW32) | E130: ='Bedrock 202'!E113 -> 821.1 | F130: ='Bedrock 202'!F113 -> 200 | G130: ='Bedrock 202'!G113 -> 164220 | H130: ='Bedrock 202'!H113 -> 1e-06 | I130: ='Bedrock 202'!I113 -> 555 | J130: ='Bedrock 202'!J113 -> 80 | K130: ='Bedrock 202'!K113 -> - | L130: ='Bedrock 202'!L113 -> - | M130: =-'Bedrock 202'!M113 -> 746499.7362
B131: QGW50 | C131: In | D131: AQ 197 | E131: ='Surficial AQ 197'!E92 -> 750 | F131: ='Surficial AQ 197'!F92 -> 10 | G131: ='Surficial AQ 197'!G92 -> 7500 | H131: ='Surficial AQ 197'!H92 -> 1e-05 | I131: ='Surficial AQ 197'!I92 -> 680 | J131: ='Surficial AQ 197'!J92 -> 10 | M131: =-'Surficial AQ 197'!M92 -> 34782.35294
B132: QGW51 | C132: In | D132: AQ 197 | E132: ='Surficial AQ 197'!E93 -> 625 | F132: ='Surficial AQ 197'!F93 -> 10 | G132: ='Surficial AQ 197'!G93 -> 6250 | H132: ='Surficial AQ 197'!H93 -> 1e-05 | I132: ='Surficial AQ 197'!I93 -> 600 | J132: ='Surficial AQ 197'!J93 -> 5 | M132: =-'Surficial AQ 197'!M93 -> 16425
B133: QGW52 | C133: In | D133: AQ 197 | E133: ='Surficial AQ 197'!E94 -> 150 | F133: ='Surficial AQ 197'!F94 -> 10 | G133: ='Surficial AQ 197'!G94 -> 1500 | H133: ='Surficial AQ 197'!H94 -> 1e-06 | I133: ='Surficial AQ 197'!I94 -> 600 | J133: ='Surficial AQ 197'!J94 -> 5 | M133: =-'Surficial AQ 197'!M94 -> 394.2
B134: QGW53 | C134: In | D134: AQ 197 | E134: ='Surficial AQ 197'!E95 -> 750 | F134: ='Surficial AQ 197'!F95 -> 10 | G134: ='Surficial AQ 197'!G95 -> 7500 | H134: ='Surficial AQ 197'!H95 -> 0.0001 | I134: ='Surficial AQ 197'!I95 -> 1500 | J134: ='Surficial AQ 197'!J95 -> 40 | M134: =-'Surficial AQ 197'!M95 -> 630720
B135: QGW54 | C135: In | D135: Leakage from AQ 197 | E135: Leakance Factor (m/yr) = | F135: ='Surficial AQ 197'!T10 -> 0.3 | G135: ='Surficial AQ 197'!S10 -> 5126385.721 | H135: -- | I135: -- | J135: -- | M135: =F135*G135 -> 1537915.716
B136: Total | M136: =SUM(M82:M135) -> -568018.2325
B138: Surface Water Contributions | C138: Cold Water Creek? | D138: Observed Vertical Gradient | E138: Percent Permeable | F138: Length (m) | G138: Width (m) | H138: Flux (m/s) | I138: SW Flow (m3/yr) | L138: Comment
I139: Year 1 | J139: Year 2 | K139: Year 3
B140: Nott Creek | C140: Unknown | D140: Downward | E140: 0.1 | F140: 870 | G140: 2 | H140: 3e-05 | I140: =(E140*F140*G140)*(H140*60*60*24*365) -> 164617.92
B141: Eddy Kilman Creek | C141: Unknown | D141: Downward | E141: 0.1 | F141: 3700 | G141: 2 | H141: 3e-05 | I141: =(E141*F141*G141)*(H141*60*60*24*365) -> 700099.2
B142: Prellwire Creek | C142: Unknown | D142: Downward | E142: 0.1 | F142: 600 | G142: 2 | H142: 3e-05 | I142: =(E142*F142*G142)*(H142*60*60*24*365) -> 113529.6
B143: Total | I143: =SUM(I140:I142) -> 978246.72 | J143: =SUM(J140:J142) -> 0 | K143: =SUM(K140:K142) -> 0
B145: Water Well Usage | C145: Water Well Usage Volume (m3/yr) | L145: Comments
C146: Year 1 | F146: Year 2 | I146: Year 3
C147: Total Volume Removed | D147: Adjustment Factor | E147: Adjusted Volume Removed | F147: Total Volume Removed | G147: Adjustment Factor | H147: Adjusted Volume Removed | I147: Total Volume Removed | J147: Adjustment Factor | K147: Adjusted Volume Removed
B148: Industrial | C148: =AB103 -> 36500 | D148: 1 | E148: =C148*D148 -> 36500 | L148: Assuming 100% consumptive
B149: Commercial | C149: 25550 | D149: 1 | E149: 25550 | L149: Assuming 100% consumptive
B150: Domestic | C150: 263671 | D150: 1 | E150: 263671 | L150: Assuming 100% consumptive
B151: Irrigation | C151: 236911 | D151: 1 | E151: 236911 | L151: Assuming 100% consumptive
B152: BCMOE Obs | C152: 0 | D152: 1 | E152: 0 | L152: Assuming 100% consumptive
B153: Other | C153: 29200 | D153: 1 | E153: 29200
B154: Water Supply Systems | C154: 16288 | D154: 1 | E154: 16288
B155: Total | E155: =-SUM(E148:E154) -> -608120 | H155: =-SUM(H148:H154) -> 0 | K155: =-SUM(K148:K154) -> 0

Sheet Bedrock 207
B1: CHM Aquifer Criteria: Aquifer #0207, Bamberton (Bedrock) | W1: TABLE F-1
B2: AQ tag | C2: 207 Bamberton | W2: CHM Aquifer Criteria: Aquifer #0207, Bamberton (Bedrock)
B3: Perimeter (km) | C3: 38.03
B4: Area (km2) | C4: 25.1 (probably larger since bedrock zone below surficial AQ205 has not been defined as part of AQ 207) | W4: BCMOE Criteria
B5: Aquifer materials | C5: Bedrock / Bonanza Group & Lower to Middle Island Intrusions | X5: AQ tag | AB5: 207 Bamberton
B6: Table F-4 Monthly Summary of AQ207 Water Budgets | Q6: Table F-3 Annual Summary of AQ207 Water Budgets | X6: AQ classification | AB6: IIB (12)
B7: Monthly Gains and Loses (m3) | C7: Average Year | Q7: Summary - 30 Year Average | X7: AQ type | AB7: BCMOE Classsification = 6b (SLR Classification = 6a / 6b)
B8: Source | C8: Jan | D8: Feb | E8: Mar | F8: Apr | G8: May | H8: Jun | I8: Jul | J8: Aug | K8: Sep | L8: Oct | M8: Nov | N8: Dec | O8: Total | Q8: Gains and Losses | R8: Source | S8: Area (m2) | T8: Infiltration Rate | U8: Q (m3/yr) | X8: Location | AB8: Mill Bay / Shawnigan Lake
A9: =$C$7&B9 -> Average YearDirect Recharge to 207 | B9: Direct Recharge to 207 | C9: =C55*$U$9 -> 2427822.701 | D9: 1581390.218 | E9: 1141243.573 | F9: 274070.8205 | G9: -329895.9033 | H9: -520220.4629 | I9: -507532.159 | J9: -228389.4715 | K9: -76129.82384 | L9: 834675.8674 | M9: 2560974.757 | N9: 2496577.153 | O9: =SUM(C9:N9) -> 9654587.269 | Q9: Gain | R9: Direct Recharge to 207 | S9: =2253.00408525*10000 -> 22530040.85 | T9: =U9/S9 -> 0.4285206286 | U9: =S58 -> 9654587.269 | X9: Perimeter (km) | AB9: 38.03
A10: =$C$7&B10 -> Average YearLeakage down from 205 | B10: Leakage down from 205 | C10: =C56*$U$10 -> 44204.80384 | D10: 42567.58888 | E10: 47479.23376 | F10: 46933.49544 | G10: 49116.44871 | H10: 46933.49544 | I10: 47479.23376 | J10: 46387.75712 | K10: 44204.80384 | L10: 44750.54216 | M10: 42567.58888 | N10: 43113.3272 | O10: =SUM(C10:N10) -> 545738.319 | Q10: Gain | R10: Leakage down from 205 | S10: =H125 -> 2728691.595 | T10: =G125 -> 0.2 | U10: =M125 -> 545738.319 | X10: Area (km2) | AB10: 25.1 (probably larger since bedrock zone below surficial AQ205 has not been defined as part of AQ 207)
A11: Average YearLeakage down from 206 | B11: Leakage down from 206 | C11: =C56*$U$11 -> 62536.3112 | D11: 60220.15152 | E11: 67168.63054 | F11: 66396.57732 | G11: 69484.79022 | H11: 66396.57732 | I11: 67168.63054 | J11: 65624.52409 | K11: 62536.3112 | L11: 63308.36442 | M11: 60220.15152 | N11: 60992.20475 | O11: 772053.2246 | Q11: Gain | R11: Leakage down from 206 | S11: =H126 -> 2573510.749 | T11: =G126 -> 0.3 | U11: =M126 -> 772053.2246 | X11: Aquifer materials | AB11: Bedrock / Bonanza Group & Lower to Middle Island Intrusions
A12: Average YearLateral Groundwater | B12: Lateral Groundwater | C12: =C56*$U$12 -> -767521.3442 | D12: -739094.6278 | E12: -824374.7772 | F12: -814899.205 | G12: -852801.4936 | H12: -814899.205 | I12: -824374.7772 | J12: -805423.6329 | K12: -767521.3442 | L12: -776996.9164 | M12: -739094.6278 | N12: -748570.1999 | O12: -9475572.151 | Q12: Loss | R12: Lateral Groundwater | S12: -- | T12: -- | U12: =SUMIF(M82:M124, "<0") -> -9475572.151 | X12: Productivity | AB12: Moderate
A13: Average YearLateral Groundwater | B13: Lateral Groundwater | C13: =C57*$U$13 -> 6735.873782 | D13: 5913.539314 | E13: 4271.674193 | F13: 2065.367833 | G13: 732.3306319 | H13: 297.0321438 | I13: 176.4022024 | J13: 57.29922219 | K13: 48.17562852 | L13: 442.1698139 | M13: 3124.964442 | N13: 6658.31468 | O13: 30523.14389 | Q13: Gain | R13: Lateral Groundwater | S13: -- | T13: -- | U13: =SUMIF(M82:M124, ">0") -> 30523.14389 | X13: Vulnerability | AB13: Moderate
A14: Average YearSurface Water | B14: Surface Water | C14: =C57*$U$14 -> 0 | D14: 0 | E14: 0 | F14: 0 | G14: 0 | H14: 0 | I14: 0 | J14: 0 | K14: 0 | L14: 0 | M14: 0 | N14: 0 | O14: 0 | Q14: Loss | R14: Surface Water | S14: -- | T14: -- | U14: =SUMIF(I131:I134, "<0") -> 0 | X14: Demand | AB14: Moderate
A15: Average YearSurface Water | B15: Surface Water | C15: =C57*$U$15 -> 395850.2025 | D15: 347523.6933 | E15: 251035.4482 | F15: 121376.4244 | G15: 43037.21214 | H15: 17455.82504 | I15: 10366.70962 | J15: 3367.329828 | K15: 2831.159389 | L15: 25985.19747 | M15: 183646.2272 | N15: 391292.2509 | O15: 1793767.68 | Q15: Gain | R15: Surface Water | S15: -- | T15: -- | U15: =SUMIF(I131:I134, ">0") -> 1793767.68 | X15: Use | AB15: Multiple
A16: Average YearWater Supply Systems | B16: Water Supply Systems | C16: =C58*$U$16 -> -24783.42 | D16: -26848.705 | E16: -30979.275 | F16: -33044.56 | G16: -37175.13 | H16: -41305.7 | I16: -45436.27 | J16: -47501.555 | K16: -41305.7 | L16: -33044.56 | M16: -28913.99 | N16: -22718.135 | O16: -413057 | Q16: Loss | R16: Water Usage | S16: -- | T16: -- | U16: =E147 -> -413057
A17: Average YearNet Gain | B17: Net Gain | C17: =SUMIF(C9:C16, ">0") -> 2937149.892 | D17: =SUMIF(D9:D16, ">0") -> 2037615.191 | E17: 1511198.56 | F17: 510842.6855 | G17: 162370.7817 | H17: 131082.9299 | I17: 125190.9761 | J17: =SUMIF(J9:J16, ">0") -> 115436.9103 | K17: 109620.4501 | L17: 969162.1412 | M17: 2850533.689 | N17: =SUMIF(N9:N16, ">0") -> 2998633.251 | O17: 14458837.46 | Q17: Net Gain | U17: =SUMIF(U9:U16, ">0") -> 12796669.64 | W17: Location
A18: Average YearNet Loss | B18: Net Loss | C18: =SUMIF(C9:C16, "<0") -> -792304.7642 | D18: =SUMIF(D9:D16, "<0") -> -765943.3328 | E18: -855354.0522 | F18: -847943.765 | G18: -1219872.527 | H18: -1376425.368 | I18: -1377343.206 | J18: =SUMIF(J9:J16, "<0") -> -1081314.659 | K18: -884956.8681 | L18: -810041.4764 | M18: -768008.6178 | N18: =SUMIF(N9:N16, "<0") -> -771288.3349 | O18: -11550796.97 | Q18: Net Loss | U18: =SUMIF(U9:U16, "<0") -> -9888629.151 | X18: NTS 50000 | AB18: 092B/12
A19: Average YearNet Total (Gain - Loss) | B19: Net Total (Gain - Loss) | C19: =SUM(C17:C18) -> 2144845.128 | D19: =SUM(D17:D18) -> 1271671.858 | E19: 655844.508 | F19: -337101.0795 | G19: -1057501.745 | H19: -1245342.438 | I19: -1252152.23 | J19: -965877.7491 | K19: -775336.418 | L19: 159120.6648 | M19: 2082525.071 | N19: 2227344.916 | O19: 2908040.486 | Q19: Net Total (Gain - Loss) | U19: =SUM(U17:U18) -> 2908040.486 | X19: TRIM 20000 | AB19: Straddles 092B.062 & 092B.063
X20: Lat / Long (Centre) | AB20: 48o38'20" / 123o34'43"
X21: UTM Zone 10 (Centre) | AB21: 457397E / 5387490N
B22: Monthly Gains and Loses (m3) | C22: Hot/Dry (1989) | Q22: Summary - Hot/Dry (1989)
B23: Source | C23: Jan | D23: Feb | E23: Mar | F23: Apr | G23: May | H23: Jun | I23: Jul | J23: Aug | K23: Sep | L23: Oct | M23: Nov | N23: Dec | O23: Total | Q23: Gains and Losses | R23: Source | S23: Area (m2) | T23: Infiltration Rate | U23: Q (m3/yr) | W23: Climate
A24: =$C$22&B24 -> Hot/Dry (1989)Direct Recharge to 207 | B24: Direct Recharge to 207 | C24: =C62*$U$24 -> 1991415.431 | D24: =D62*$U$24 -> 1141947.358 | E24: 1775619.525 | F24: 106581.7534 | G24: -418714.0311 | H24: -532908.7669 | I24: -456778.9431 | J24: -190324.5596 | K24: -126883.0397 | L24: 323551.7513 | M24: 1270099.228 | N24: 1611414.605 | O24: =SUM(C24:N24) -> 6495020.31 | Q24: Gain | R24: Direct Recharge to 207 | S24: =2253.00408525*10000 -> 22530040.85 | T24: =U24/S24 -> 0.288282669 | U24: =R58 -> 6495020.31 | X24: Nearest active EC weather station / distance / elevation | AB24: AQ Contains EEC1015136 Mill Bay SW1 at its north end EC1017230 Shawnigan Lake adjacent to AQ's northwest side EC104820 Malahat 2.2 km to the south
A25: =$C$22&B25 -> Hot/Dry (1989)Leakage down from 205 | B25: Leakage down from 205 | C25: =C63*$U$25 -> 44750.54216 | D25: =D63*$U$25 -> 41476.11225 | E25: 45842.0188 | F25: 45296.28048 | G25: 47479.23376 | H25: 45842.0188 | I25: 47479.23376 | J25: 46933.49544 | K25: 44750.54216 | L25: 46387.75712 | M25: 44204.80384 | N25: 45296.28048 | O25: =SUM(C25:N25) -> 545738.319 | Q25: Gain | R25: Leakage down from 205 | S25: =H140 -> 0 | T25: =G140 -> 0 | U25: =M125 -> 545738.319 | X25: IDF Curve | AB25: Unknown
A26: Hot/Dry (1989)Leakage down from 206 | B26: Leakage down from 206 | C26: =C63*$U$26 -> 63308.36442 | D26: =D63*$U$26 -> 58676.04507 | E26: 64852.47087 | F26: 64080.41764 | G26: 67168.63054 | H26: 64852.47087 | I26: 67168.63054 | J26: 66396.57732 | K26: 63308.36442 | L26: 65624.52409 | M26: 62536.3112 | N26: 64080.41764 | O26: 772053.2246 | Q26: Gain | R26: Leakage down from 206 | S26: =H141 -> 0 | T26: =G141 -> 0 | U26: =M126 -> 772053.2246
A27: Hot/Dry (1989)Lateral Groundwater | B27: Lateral Groundwater | C27: =C63*$U$27 -> -776996.9164 | D27: =D63*$U$27 -> -720143.4835 | E27: -795948.0607 | F27: -786472.4886 | G27: -824374.7772 | H27: -795948.0607 | I27: -824374.7772 | J27: -814899.205 | K27: -776996.9164 | L27: -805423.6329 | M27: -767521.3442 | N27: -786472.4886 | O27: -9475572.151 | Q27: Loss | R27: Lateral Groundwater | S27: -- | T27: -- | U27: =SUMIF(M82:M124, "<0") -> -9475572.151 | W27: Physiography
A28: Hot/Dry (1989)Lateral Groundwater | B28: Lateral Groundwater | C28: =C63*$U$28 -> 2502.897799 | D28: =D63*$U$28 -> 2319.758935 | E28: 2563.944086 | F28: 2533.420943 | G28: 2655.513518 | H28: 2563.944086 | I28: 2655.513518 | J28: 2624.990374 | K28: 2502.897799 | L28: 2594.46723 | M28: 2472.374655 | N28: 2533.420943 | O28: 30523.14389 | Q28: Gain | R28: Lateral Groundwater | S28: -- | T28: -- | U28: =SUMIF(M82:M124, ">0") -> 30523.14389 | X28: Physiographic zone | AB28: Canadian Cordillera / Western System / Outer Mountain Area / Insular Mountains / Vancouver Island Ranges
A29: Hot/Dry (1989)Surface Water | B29: Surface Water | C29: =C64*$U$29 -> 0 | D29: =D64*$U$29 -> 0 | E29: 0 | F29: 0 | G29: 0 | H29: 0 | I29: 0 | J29: 0 | K29: 0 | L29: 0 | M29: 0 | N29: 0 | O29: 0 | Q29: Loss | R29: Surface Water | S29: -- | T29: -- | U29: =SUMIF(I131:I134, "<0") -> 0 | X29: Elevation range (m amsl) | AB29: 0 - 360 m amsl
A30: Hot/Dry (1989)Surface Water | B30: Surface Water | C30: =C64*$U$30 -> 395850.2025 | D30: =D64*$U$30 -> 347523.6933 | E30: 251035.4482 | F30: 121376.4244 | G30: 43037.21214 | H30: 17455.82504 | I30: 10366.70962 | J30: 3367.329828 | K30: 2831.159389 | L30: 25985.19747 | M30: 183646.2272 | N30: 391292.2509 | O30: 1793767.68 | Q30: Gain | R30: Surface Water | S30: -- | T30: -- | U30: =SUMIF(I131:I134, ">0") -> 1793767.68 | X30: Distance to marine | AB30: Abuts Mill Bay and Saanich Inlet along east edge
A31: Hot/Dry (1989)Water Supply Systems | B31: Water Supply Systems | C31: =$U$31*C65 -> -24783.42 | D31: =$U$31*D65 -> -26848.705 | E31: -30979.275 | F31: -33044.56 | G31: -37175.13 | H31: -41305.7 | I31: -45436.27 | J31: -47501.555 | K31: -41305.7 | L31: -33044.56 | M31: -28913.99 | N31: -22718.135 | O31: -413057 | Q31: Loss | R31: Water Usage | S31: -- | T31: -- | U31: =E147 -> -413057 | X31: Geomorphological setting | AB31: Northeast-facing flank of Malahat Ridge, containing several NW-trending, elongated hills. Large morainal blanket with subordinate colluvial component in steeper areas. North end of AQ adjacent to Mill Bay = glaciofluvial outwash fan?
A32: Hot/Dry (1989)Net Gain | B32: Net Gain | C32: =SUMIF(C24:C31, ">0") -> 2497827.438 | D32: =SUMIF(D24:D31, ">0") -> 1591942.967 | E32: 2139913.407 | F32: 339868.2968 | G32: 160340.59 | H32: 130714.2588 | I32: 127670.0874 | J32: =SUMIF(J24:J31, ">0") -> 119322.393 | K32: =SUMIF(K24:K31, ">0") -> 113392.9638 | L32: =SUMIF(L24:L31, ">0") -> 464143.6972 | M32: =SUMIF(M24:M31, ">0") -> 1562958.945 | N32: =SUMIF(N24:N31, ">0") -> 2114616.975 | O32: 11362712.02 | Q32: Net Gain | U32: =SUMIF(U24:U31, ">0") -> 9637102.678 | X32: Topography | AB32: Broad, northwest-trending sidehill containing elongated domes, bisected by a northeast-trending, V- to U-shaped valley lineament running from the south side of Old Baldy Mountain towards Mill Bay (Shawnigan Lake Fault trace)
A33: Hot/Dry (1989)Net Loss | B33: Net Loss | C33: =SUMIF(C24:C31, "<0") -> -801780.3364 | D33: =SUMIF(D24:D31, "<0") -> -746992.1885 | E33: -826927.3357 | F33: -819517.0486 | G33: -1280263.938 | H33: -1370162.528 | I33: -1326589.99 | J33: =SUMIF(J24:J31, "<0") -> -1052725.32 | K33: =SUMIF(K24:K31, "<0") -> -945185.6561 | L33: =SUMIF(L24:L31, "<0") -> -838468.1929 | M33: =SUMIF(M24:M31, "<0") -> -796435.3342 | N33: =SUMIF(N24:N31, "<0") -> -809190.6236 | O33: -11614238.49 | Q33: Net Loss | U33: =SUMIF(U24:U31, "<0") -> -9888629.151 | X33: Terrain | AB33: Undulating to hummocky at higher elevations; undulating at lower elevations. Common short ravines at southeast corner into Saanich Inlet
A34: Hot/Dry (1989)Net Total (Gain - Loss) | B34: Net Total (Gain - Loss) | C34: =SUM(C32:C33) -> 1696047.101 | D34: =SUM(D32:D33) -> 844950.7787 | E34: 1312986.072 | F34: -479648.7517 | G34: -1119923.348 | H34: -1239448.269 | I34: -1198919.903 | J34: -933402.9267 | K34: -831792.6924 | L34: -374324.4956 | M34: 766523.6105 | N34: 1305426.351 | O34: -251526.4732 | Q34: Net Total (Gain - Loss) | U34: =SUM(U32:U33) -> -251526.4732 | X34: Aspect | AB34: Overall slope towards the northeast and Saanich Inlet / Mill Bay. Local areas in southeast protion with elongated hills have radial aspects.
X35: Slope | AB35: Generally variably moderate to steep (convex & radial), apart from around Mill Bay area (low to moderate concave)
X36: XS max grade (m/m) | AB36: 0.066 ENE from Old Baldy Mopuntain towards Mill Bay
B37: Monthly Gains and Loses (m3) | C37: Cold/Wet (1999) | Q37: Summary - Wet/Cold (1999) | X37: Roughness coefficient | AB37: 0.60 (generally coniferous cover with extensive logged areas)
B38: Source | C38: Jan | D38: Feb | E38: Mar | F38: Apr | G38: May | H38: Jun | I38: Jul | J38: Aug | K38: Sep | L38: Oct | M38: Nov | N38: Dec | O38: Total | Q38: Gains and Losses | R38: Source | S38: Area (m2) | T38: Infiltration Rate | U38: Q (m3/yr)
A39: =$C$37&B39 -> Cold/Wet (1999)Direct Recharge to 207 | B39: Direct Recharge to 207 | C39: =C69*$U$39 -> 4505616.741 | D39: =D69*$U$39 -> 4561685.303 | E39: 1691771.244 | F39: -203012.8636 | G39: -164947.9517 | H39: -431402.3351 | I39: -558285.3749 | J39: -228389.4715 | K39: -101506.4318 | L39: 1599995.131 | M39: 2585876.35 | N39: 2764781.436 | O39: =SUM(C39:N39) -> 16022181.78 | Q39: Gain | R39: Direct Recharge to 207 | S39: =2253.00408525*10000 -> 22530040.85 | T39: =U39/S39 -> 0.71114748 | U39: =T58 -> 16022181.78 | W39: Geology
A40: =$C$37&B40 -> Cold/Wet (1999)Leakage down from 205 | B40: Leakage down from 205 | C40: =C70*$U$40 -> 44204.80384 | D40: =D70*$U$40 -> 42567.58888 | E40: 47479.23376 | F40: 46933.49544 | G40: 49116.44871 | H40: 46933.49544 | I40: 47479.23376 | J40: 46387.75712 | K40: 44204.80384 | L40: 44750.54216 | M40: 42567.58888 | N40: 43113.3272 | O40: =SUM(C40:N40) -> 545738.319 | Q40: Gain | R40: Leakage down from 205 | S40: =H178 -> 0 | T40: =G178 -> 0 | U40: =M125 -> 545738.319 | X40: Terrane | AB40: Wrangellia
A41: Cold/Wet (1999)Leakage down from 206 | B41: Leakage down from 206 | C41: =C70*$U$41 -> 62536.3112 | D41: =D70*$U$41 -> 60220.15152 | E41: 67168.63054 | F41: 66396.57732 | G41: 69484.79022 | H41: 66396.57732 | I41: 67168.63054 | J41: 65624.52409 | K41: 62536.3112 | L41: 63308.36442 | M41: 60220.15152 | N41: 60992.20475 | O41: 772053.2246 | Q41: Gain | R41: Leakage down from 206 | S41: =H179 -> 0 | T41: =G179 -> 0 | U41: =M126 -> 772053.2246 | X41: Bedrock (type ; age ; formation ; lithology)
A42: Cold/Wet (1999)Lateral Groundwater | B42: Lateral Groundwater | C42: =C70*$U$42 -> -767521.3442 | D42: =D70*$U$42 -> -739094.6278 | E42: -824374.7772 | F42: -814899.205 | G42: -852801.4936 | H42: -814899.205 | I42: -824374.7772 | J42: -805423.6329 | K42: -767521.3442 | L42: -776996.9164 | M42: -739094.6278 | N42: -748570.1999 | O42: -9475572.151 | Q42: Loss | R42: Lateral Groundwater | S42: -- | T42: -- | U42: =SUMIF(M82:M124, "<0") -> -9475572.151 | Y42: Primary | AB42: Southwest half = Jurassic Bonanza Group Volcanics (IJBca); basaltic-andesitic (60%) - suspected more lithologies present than identified by BCGS - (limestone?)
A43: Cold/Wet (1999)Lateral Groundwater | B43: Lateral Groundwater | C43: =C70*$U$43 -> 2472.374655 | D43: =D70*$U$43 -> 2380.805223 | E43: 2655.513518 | F43: 2624.990374 | G43: 2747.08295 | H43: 2624.990374 | I43: 2655.513518 | J43: 2594.46723 | K43: 2472.374655 | L43: 2502.897799 | M43: 2380.805223 | N43: 2411.328367 | O43: 30523.14389 | Q43: Gain | R43: Lateral Groundwater | S43: -- | T43: -- | U43: =SUMIF(M82:M124, ">0") -> 30523.14389 | Y43: Secondary | AB43: East / southeast 2/3 = Early to Middle Jurassic Island Plutonic Suite (EMJIgd); granodioritic intrusive rocks (40%)
A44: Cold/Wet (1999)Surface Water | B44: Surface Water | C44: =C71*$U$44 -> 0 | D44: =D71*$U$44 -> 0 | E44: 0 | F44: 0 | G44: 0 | H44: 0 | I44: 0 | J44: 0 | K44: 0 | L44: 0 | M44: 0 | N44: 0 | O44: 0 | Q44: Loss | R44: Surface Water | S44: -- | T44: -- | U44: =SUMIF(I131:I134, "<0") -> 0 | X44: Structure | AB44: Northeast-trending Shawnigan Fault bisects AQ, only mapped 1/2 across AQ but suspected to reach Mill Bay shoreline; Assumed fracture zones along Bonanza Group / Island Intrusions contact zone due to rock competency contrasts; possible NNW-trending fault zone west of surficial AQ 205 (strong lineament) within Bonanza Volcanics
A45: Cold/Wet (1999)Surface Water | B45: Surface Water | C45: =C71*$U$45 -> 395850.2025 | D45: =D71*$U$45 -> 347523.6933 | E45: 251035.4482 | F45: 121376.4244 | G45: 43037.21214 | H45: 17455.82504 | I45: 10366.70962 | J45: 3367.329828 | K45: 2831.159389 | L45: 25985.19747 | M45: 183646.2272 | N45: 391292.2509 | O45: 1793767.68 | Q45: Gain | R45: Surface Water | S45: -- | T45: -- | U45: =SUMIF(I131:I134, ">0") -> 1793767.68 | X45: Surficial (formation; lithology; thickness) | AB45: Primarily Vashon Drift morainal; silt-sand; generally shallow to moderately deep blankets and veneers (> 10 m). Local colluvial veneers on steeper slopes at mid-elevations. Capilano Formation glaciofluvial blankets adjacent to Mill Bay. Capilano glaciolacustrine blanket in northwest corner (northeast of Old Baldy Mountain). Salish Formation fluvial blankets and veneers along Handysen and Hollings Creeks
A46: Cold/Wet (1999)Water Supply Systems | B46: Water Supply Systems | C46: =$U$46*C72 -> -24783.42 | D46: =$U$46*D72 -> -26848.705 | E46: -30979.275 | F46: -33044.56 | G46: -37175.13 | H46: -41305.7 | I46: -45436.27 | J46: -47501.555 | K46: -41305.7 | L46: -33044.56 | M46: -28913.99 | N46: -22718.135 | O46: -413057 | Q46: Loss | R46: Water Usage | S46: -- | T46: -- | U46: =E147 -> -413057 | X46: Surficial designation (1993) | AB46: Generally dMb/Cb//R; isolated depressional area in northwest corner (northeast of Old Baldy Mountain) = $LGp
A47: Cold/Wet (1999)Net Gain | B47: Net Gain | C47: =SUMIF(C39:C46, ">0") -> 5010680.433 | D47: =SUMIF(D39:D46, ">0") -> 5014377.542 | E47: 2060110.07 | F47: 237331.4875 | G47: 164385.534 | H47: 133410.8882 | I47: 127670.0874 | J47: =SUMIF(J39:J46, ">0") -> 117974.0783 | K47: =SUMIF(K39:K46, ">0") -> 112044.6491 | L47: =SUMIF(L39:L46, ">0") -> 1736542.133 | M47: =SUMIF(M39:M46, ">0") -> 2874691.123 | N47: =SUMIF(N39:N46, ">0") -> 3262590.547 | O47: 20851808.57 | Q47: Net Gain | U47: =SUMIF(U39:U46, ">0") -> 19164264.14 | X47: Soils (association; parent; texture; drainage; type; comments) | AB47: Mainly SE5v8RJ52/fe (Somenos moraine / Ragbark colluvium). gravelly-sandy loam, DU.DYB / O.DYB.shli; Area around Mill Bay = DD1w/de and QU1w/ce ( Dashwood Creek marine / Quamichan fluvial, gravelly-sandy loam, DU.DYB; Area in northwest corner (northeast of Old Baldy Mountain) = CH78AR12/b (Chemainus fluvial), loam, O.DYB, stonefree
A48: Cold/Wet (1999)Net Loss | B48: Net Loss | C48: =SUMIF(C39:C46, "<0") -> -792304.7642 | D48: =SUMIF(D39:D46, "<0") -> -765943.3328 | E48: -855354.0522 | F48: -1050956.629 | G48: -1054924.575 | H48: -1287607.24 | I48: -1428096.422 | J48: =SUMIF(J39:J46, "<0") -> -1081314.659 | K48: =SUMIF(K39:K46, "<0") -> -910333.476 | L48: =SUMIF(L39:L46, "<0") -> -810041.4764 | M48: =SUMIF(M39:M46, "<0") -> -768008.6178 | N48: =SUMIF(N39:N46, "<0") -> -771288.3349 | O48: -11576173.58 | Q48: Net Loss | U48: =SUMIF(U39:U46, "<0") -> -9888629.151 | X48: Restrictive layers | AB48: Yes - surface duric layer in Somenos (morainal) and Dashwood Creek (marine) areas
A49: Cold/Wet (1999)Net Total (Gain - Loss) | B49: Net Total (Gain - Loss) | C49: =SUM(C47:C48) -> 4218375.669 | D49: =SUM(D47:D48) -> 4248434.209 | E49: 1204756.017 | F49: -813625.1411 | G49: -890539.0413 | H49: -1154196.352 | I49: -1300426.335 | J49: -963340.5811 | K49: -798288.827 | L49: 926500.6566 | M49: 2106682.505 | N49: 2491302.212 | O49: 9275634.992 | Q49: Net Total (Gain - Loss) | U49: =SUM(U47:U48) -> 9275634.992 | X49: Estimated permeability | AB49: Low - moderate @ surface in duric morainal areas ; higher in colluvial fluvial areas
Q51: Table F-2. Direct Recharge Calculation for AQ207 | W51: Hydrology
B52: Table F-5 Monthly Coefficients used in Calculations for AQ207 | R52: Direct Recharge Calculation | X52: GW / SW basin coincidence | AB52: No - straddles catchment divide between Shawnigan Creek mainstem & tributaries (including Hollings and handeysen Creeks) and streams flowing direcrtly into Saanich Inlet. Occupies south side of Shawnigan Creek catchment only
B53: Monthly Factors | C53: 30 Year Average | R53: Hot/Dry | S53: Average | T53: Cold/Wet | X53: Catchments | AB53: Shawnigan Creek / Saanich inlet streams
C54: Jan | D54: Feb | E54: Mar | F54: Apr | G54: May | H54: Jun | I54: Jul | J54: Aug | K54: Sep | L54: Oct | M54: Nov | N54: Dec | Q54: Surplus (mm) | R54: =SUM('Climate Dashboard'!AA42:AL42) -> 511.8903459 | S54: =SUM('Climate Dashboard'!C48:AL48)/3 -> 760.9044746 | T54: =SUM('Climate Dashboard'!AA54:AL54) -> 1262.752044 | X54: Drainage regime | AB54: Dendritic within Shawnigan Creek catchment / radial in hilly areas
B55: Surplus Water | C55: ='Monthly Factors'!B16 -> 0.2514683055 | D55: ='Monthly Factors'!C16 -> 0.1637967708 | E55: ='Monthly Factors'!D16 -> 0.1182073911 | F55: ='Monthly Factors'!E16 -> 0.02838762682 | G55: ='Monthly Factors'!F16 -> -0.03416986083 | H55: ='Monthly Factors'!G16 -> -0.05388324207 | I55: ='Monthly Factors'!H16 -> -0.05256901665 | J55: ='Monthly Factors'!I16 -> -0.02365605749 | K55: ='Monthly Factors'!J16 -> -0.007885352498 | L55: ='Monthly Factors'!K16 -> 0.08645381144 | M55: ='Monthly Factors'!L16 -> 0.26525989 | N55: ='Monthly Factors'!M16 -> 0.2585897339 | Q55: Station Coeffiecient Factor | R55: 1.06 | S55: 1.06 | T55: 1.06 | X55: Surface waters | AB55: Shawnigan Creek (along north border); Hollings and Handysen Creeks (tributaries of Shawnigan Creek), Malahat and Bamberton-John's Creeks (flowing directly flowing into Saanich Inlet at southeast corner of AQ)
B56: Leakance/ Lateral Ground Water | C56: ='Monthly Factors'!B42 -> 0.081 | D56: ='Monthly Factors'!C42 -> 0.078 | E56: ='Monthly Factors'!D42 -> 0.087 | F56: ='Monthly Factors'!E42 -> 0.086 | G56: ='Monthly Factors'!F42 -> 0.09 | H56: ='Monthly Factors'!G42 -> 0.086 | I56: ='Monthly Factors'!H42 -> 0.087 | J56: ='Monthly Factors'!I42 -> 0.085 | K56: ='Monthly Factors'!J42 -> 0.081 | L56: ='Monthly Factors'!K42 -> 0.082 | M56: ='Monthly Factors'!L42 -> 0.078 | N56: ='Monthly Factors'!M42 -> 0.079 | Q56: Infiltration Coefficient | R56: 0.5312950015 | S56: 0.5312950015 | T56: 0.5312950015 | X56: Runoff coefficient | AB56: ~65% cleared-forested / ~20% forested / 15% rural residential / moderate slope = 0.55
B57: Surface Water | C57: ='Monthly Factors'!B26 -> 0.2206808646 | D57: ='Monthly Factors'!C26 -> 0.1937395222 | E57: ='Monthly Factors'!D26 -> 0.1399486963 | F57: ='Monthly Factors'!E26 -> 0.06766563237 | G57: ='Monthly Factors'!F26 -> 0.0239926344 | H57: ='Monthly Factors'!G26 -> 0.009731374491 | I57: ='Monthly Factors'!H26 -> 0.005779293346 | J57: ='Monthly Factors'!I26 -> 0.001877238544 | K57: ='Monthly Factors'!J26 -> 0.001578331141 | L57: ='Monthly Factors'!K26 -> 0.01448637845 | M57: ='Monthly Factors'!L26 -> 0.1023801629 | N57: ='Monthly Factors'!M26 -> 0.2181398713 | Q57: Area (m2) | R57: =S9 -> 22530040.85 | S57: =S9 -> 22530040.85 | T57: =S9 -> 22530040.85 | X57: Nearest Active EC hydrometric station; distance; type | AB57: Shawnigan Creek @ Mill Bay; notheast corner of AQ (inactive); EC 08HA003 Koksilah River @ Cowichan Station; 7.4 km NW; active realtime;
B58: Water Usage | C58: ='Monthly Factors'!B31 -> 0.06 | D58: ='Monthly Factors'!C31 -> 0.065 | E58: ='Monthly Factors'!D31 -> 0.075 | F58: ='Monthly Factors'!E31 -> 0.08 | G58: ='Monthly Factors'!F31 -> 0.09 | H58: ='Monthly Factors'!G31 -> 0.1 | I58: ='Monthly Factors'!H31 -> 0.11 | J58: ='Monthly Factors'!I31 -> 0.115 | K58: ='Monthly Factors'!J31 -> 0.1 | L58: ='Monthly Factors'!K31 -> 0.08 | M58: ='Monthly Factors'!L31 -> 0.07 | N58: ='Monthly Factors'!M31 -> 0.055 | Q58: Q (m3/yr) | R58: =(R54/1000)*R55*R56*R57 -> 6495020.31 | S58: =(S54/1000)*S55*S56*S57 -> 9654587.269 | T58: =(T54/1000)*T55*T56*T57 -> 16022181.78 | X58: Surface water diversions ; relevance | AB58: > 30 licences along Hollings, Handeysen, & Shawnigan Creeks @ north part of AQ / >5 within AQ along unnamed steams; 7 along Malahat & Bamberton-John's Creeks at southeast end of AQ. Moderate to high relevancy due to low-moderate overburden thicknesses
Q59: Average Infiltration Rate | R59: =R58/R57 -> 0.288282669 | S59: =S58/S57 -> 0.4285206286 | T59: =T58/T57 -> 0.71114748
B60: Monthly Factors | C60: Hot/Dry (1989) | W60: Land Cover
C61: Jan | D61: Feb | E61: Mar | F61: Apr | G61: May | H61: Jun | I61: Jul | J61: Aug | K61: Sep | L61: Oct | M61: Nov | N61: Dec | X61: Vegetation zone | AB61: Cgf-wC
B62: Surplus Water | C62: ='Monthly Factors'!B11 -> 0.3066064978 | D62: ='Monthly Factors'!C11 -> 0.1758189048 | E62: ='Monthly Factors'!D11 -> 0.273381674 | F62: ='Monthly Factors'!E11 -> 0.01640976445 | G62: ='Monthly Factors'!F11 -> -0.06446693176 | H62: ='Monthly Factors'!G11 -> -0.08204882224 | I62: ='Monthly Factors'!H11 -> -0.07032756192 | J62: ='Monthly Factors'!I11 -> -0.0293031508 | K62: ='Monthly Factors'!J11 -> -0.01953543387 | L62: ='Monthly Factors'!K11 -> 0.04981535636 | M62: ='Monthly Factors'!L11 -> 0.195549693 | N62: ='Monthly Factors'!M11 -> 0.2481000101 | X62: Primary land uses | AB62: Forestry, rural residential
B63: Leakance/ Lateral Ground Water | C63: ='Monthly Factors'!B43 -> 0.082 | D63: ='Monthly Factors'!C43 -> 0.076 | E63: ='Monthly Factors'!D43 -> 0.084 | F63: ='Monthly Factors'!E43 -> 0.083 | G63: ='Monthly Factors'!F43 -> 0.087 | H63: ='Monthly Factors'!G43 -> 0.084 | I63: ='Monthly Factors'!H43 -> 0.087 | J63: ='Monthly Factors'!I43 -> 0.086 | K63: ='Monthly Factors'!J43 -> 0.082 | L63: ='Monthly Factors'!K43 -> 0.085 | M63: ='Monthly Factors'!L43 -> 0.081 | N63: ='Monthly Factors'!M43 -> 0.083 | X63: Degree of development | AB63: Extensive forestry clearing / localized rural residential & commercial development at northeast corner at Mill Bay. Generally very low impervious cover, elevated in developed area at Mill Bay
B64: Surface Water | C64: ='Monthly Factors'!B26 -> 0.2206808646 | D64: ='Monthly Factors'!C26 -> 0.1937395222 | E64: ='Monthly Factors'!D26 -> 0.1399486963 | F64: ='Monthly Factors'!E26 -> 0.06766563237 | G64: ='Monthly Factors'!F26 -> 0.0239926344 | H64: ='Monthly Factors'!G26 -> 0.009731374491 | I64: ='Monthly Factors'!H26 -> 0.005779293346 | J64: ='Monthly Factors'!I26 -> 0.001877238544 | K64: ='Monthly Factors'!J26 -> 0.001578331141 | L64: ='Monthly Factors'!K26 -> 0.01448637845 | M64: ='Monthly Factors'!L26 -> 0.1023801629 | N64: ='Monthly Factors'!M26 -> 0.2181398713 | X64: Evapotranspiration potential | AB64: Cgf-wC
B65: Water Usage | C65: ='Monthly Factors'!B31 -> 0.06 | D65: ='Monthly Factors'!C31 -> 0.065 | E65: ='Monthly Factors'!D31 -> 0.075 | F65: ='Monthly Factors'!E31 -> 0.08 | G65: ='Monthly Factors'!F31 -> 0.09 | H65: ='Monthly Factors'!G31 -> 0.1 | I65: ='Monthly Factors'!H31 -> 0.11 | J65: ='Monthly Factors'!I31 -> 0.115 | K65: ='Monthly Factors'!J31 -> 0.1 | L65: ='Monthly Factors'!K31 -> 0.08 | M65: ='Monthly Factors'!L31 -> 0.07 | N65: ='Monthly Factors'!M31 -> 0.055 | X65: Relative environmental sensitivity | AB65: Moderate in terrestrial areas, high along Hollings/Handeysen/Shawnigan Creek corridors
B67: Monthly Factors | C67: Cold/Wet (1999) | W67: Hydrogeology
C68: Jan | D68: Feb | E68: Mar | F68: Apr | G68: May | H68: Jun | I68: Jul | J68: Aug | K68: Sep | L68: Oct | M68: Nov | N68: Dec | X68: Groundwater occurrence (primary / secondary) | AB68: Void infillings - bedrock fractures & faults
B69: Surplus Water | C69: ='Monthly Factors'!B21 -> 0.2812111861 | D69: ='Monthly Factors'!C21 -> 0.2847106197 | E69: ='Monthly Factors'!D21 -> 0.1055893178 | F69: ='Monthly Factors'!E21 -> -0.01267073776 | G69: ='Monthly Factors'!F21 -> -0.01029497443 | H69: ='Monthly Factors'!G21 -> -0.02692531773 | I69: ='Monthly Factors'!H21 -> -0.03484452883 | J69: ='Monthly Factors'!I21 -> -0.01425457998 | K69: ='Monthly Factors'!J21 -> -0.006335368879 | L69: ='Monthly Factors'!K21 -> 0.09986125195 | M69: ='Monthly Factors'!L21 -> 0.1613935222 | N69: ='Monthly Factors'!M21 -> 0.1725596098 | X69: Primary porosity | AB69: Low to negligible
B70: Leakance/ Lateral Ground Water | C70: ='Monthly Factors'!B44 -> 0.081 | D70: ='Monthly Factors'!C44 -> 0.078 | E70: ='Monthly Factors'!D44 -> 0.087 | F70: ='Monthly Factors'!E44 -> 0.086 | G70: ='Monthly Factors'!F44 -> 0.09 | H70: ='Monthly Factors'!G44 -> 0.086 | I70: ='Monthly Factors'!H44 -> 0.087 | J70: ='Monthly Factors'!I44 -> 0.085 | K70: ='Monthly Factors'!J44 -> 0.081 | L70: ='Monthly Factors'!K44 -> 0.082 | M70: ='Monthly Factors'!L44 -> 0.078 | N70: ='Monthly Factors'!M44 -> 0.079 | X70: Secondary porosity | AB70: Moderate in Island Intrusives areas; higher in fracture zones & faults, especially along & south of Shawnigan Fault; low in Bonanza Volcanics areas due to ductile rock
B71: Surface Water | C71: ='Monthly Factors'!B26 -> 0.2206808646 | D71: ='Monthly Factors'!C26 -> 0.1937395222 | E71: ='Monthly Factors'!D26 -> 0.1399486963 | F71: ='Monthly Factors'!E26 -> 0.06766563237 | G71: ='Monthly Factors'!F26 -> 0.0239926344 | H71: ='Monthly Factors'!G26 -> 0.009731374491 | I71: ='Monthly Factors'!H26 -> 0.005779293346 | J71: ='Monthly Factors'!I26 -> 0.001877238544 | K71: ='Monthly Factors'!J26 -> 0.001578331141 | L71: ='Monthly Factors'!K26 -> 0.01448637845 | M71: ='Monthly Factors'!L26 -> 0.1023801629 | N71: ='Monthly Factors'!M26 -> 0.2181398713 | X71: Confinement | AB71: Morainal blanket areas locally semi-confined by duric till blankets; WP = 0 - 64.3, avg 4.6 m
B72: Water Usage | C72: ='Monthly Factors'!B31 -> 0.06 | D72: ='Monthly Factors'!C31 -> 0.065 | E72: ='Monthly Factors'!D31 -> 0.075 | F72: ='Monthly Factors'!E31 -> 0.08 | G72: ='Monthly Factors'!F31 -> 0.09 | H72: ='Monthly Factors'!G31 -> 0.1 | I72: ='Monthly Factors'!H31 -> 0.11 | J72: ='Monthly Factors'!I31 -> 0.115 | K72: ='Monthly Factors'!J31 -> 0.1 | L72: ='Monthly Factors'!K31 -> 0.08 | M72: ='Monthly Factors'!L31 -> 0.07 | N72: ='Monthly Factors'!M31 -> 0.055 | X72: Aquifer thickness | AB72: Bedrock aquifer / assume < 150 m
X73: Hydraulic anisotropy | AB73: High
X74: Hydraulic gradient | AB74: Moderate to high based on terrain
X75: Storage potential | AB75: Low - secondary voids only
X76: Yield potential | AB76: Low-moderate; WP = 0.02 - 12.62 L/s / average 0.25 L/s
B77: TABLE F-6 | X77: Flow velocities | AB77: Low - moderate
B78: Groundwater Flow Components: Aquifer #0207, Bamberton (Bedrock) | X78: Flow directions | AB78: Northwest half of AQ (i.e. NW of surface water divide) = notheast towards Shawnigan Creek and Mill Bay / Saanich Inlet. Southeast half of AQ (i.e. SE of surface water divide) = radial flow possible to southeast and towards Saanich Inlet
X79: Static water levels | AB79: WP = variable 0 - 61 m bgs / avg 7.6 m bgs
B80: Groundwater Flow | C80: Direction of Flow | D80: Source or Receptor of Water | E80: Length (m) | F80: Depth (m) | G80: Area (m) | H80: Hydraulic Conductivity (m/s) - K | I80: Distance (m) - dL | J80: Hydraulic Head (m) - dh | M80: GW Flow (m3/yr) | X80: Hydraulic connection with surface waters | AB80: Generally moderate to high due to shallow overburden cover & deeply incised creeks / lower in areas with thick overburden (near Mill Bay)
J81: Year 1 | K81: Year 2 | L81: Year 3 | M81: Year 1 | N81: Year 2 | O81: Year 3 | X81: Hydraulic connection to adjacent AQ
B82: QGW1 | C82: Zero | D82: AQ 202 | E82: =2*476 -> 952 | F82: 20 | G82: =E82*F82 -> 19040 | H82: 1e-05 | I82: 1 | J82: 0 | M82: =-(G82*H82*(J82/I82))*60*60*24*365 -> 0 | Y82: Over / Under | AB82: North portion overlain by surficial AQ 205 and surficial AQ206
B83: QGW2 | C83: Out | D83: AQ 202 | E83: =0.6*476 -> 285.6 | F83: 20 | G83: =E83*F83 -> 5712 | H83: 1e-09 | I83: 340 | J83: 20 | M83: =-(G83*H83*(J83/I83))*60*60*24*365 -> -10.596096 | Y83: Upgradient | AB83: Upgradient contact at northwest corner with bedrock AQ202.Upgradient contact with bedrock AQ203, may receive recharge across sw divide from Shawnigan Fault; cross-gradient? contact along noth border with bedrock AQ204
B84: QGW3 | C84: Out | D84: AQ 202 | E84: =0.3*476 -> 142.8 | F84: 20 | G84: 2856 | H84: 1e-08 | I84: 545 | J84: 20 | M84: -33.05204257 | Y84: Downgradient | AB84: None - discharge to marine
B85: QGW4 | C85: Out | D85: AQ 202 | E85: =1.1*476 -> 523.6 | F85: 20 | G85: 10472 | H85: 1e-09 | I85: 545 | J85: 20 | M85: -12.11908228 | X85: Vulnerability to surface contamination | AB85: Low-moderate due to variably thick overburden cover
B86: QGW5 | C86: Zero | D86: AQ 203 | E86: =2.8*476 -> 1332.8 | F86: 200 | G86: 266560 | H86: 1e-09 | I86: 1 | J86: 0 | M86: 0 | X86: Recharge
B87: QGW6 | C87: In | D87: AQ 203 | E87: =0.3*476 -> 142.8 | F87: 200 | G87: 28560 | H87: 1e-07 | I87: -- | J87: -- | M87: =-'Bedrock 203'!M116 -> 5458.594909 | Y87: Vertical inflow | AB87: High recharge from precipitation, subordinate from snowmelt due to high elevations. Moderate to high recharge at north end from overlying surficial AQ 205 & surficial AQ 206. Moderate recharge from Hollings/Handysen/Shawnigan Creek stream losses in deeply incised areas. Low-moderate recharge from irrigation-sewerage return due to low degree of urban / agricultural development
B88: QGW7 | C88: Zero | D88: AQ 203 | E88: =1.7*476 -> 809.2 | F88: 200 | G88: 161840 | H88: 1e-09 | I88: 1 | J88: 0 | M88: 0 | Y88: Lateral inflow | AB88: Low - moderate lateral inflow from upgradient bedrock sources
B89: QGW8 | C89: Zero | D89: AQ 203 | E89: =0.3*476 -> 142.8 | F89: 200 | G89: 28560 | H89: 1e-08 | I89: 1 | J89: 0 | M89: 0 | Y89: Temporal variability | AB89: Moderate to high due to vaiable overburden cover
B90: QGW9 | C90: Zero | D90: AQ 203 | E90: =1.4*476 -> 666.4 | F90: 200 | G90: 133280 | H90: 1e-09 | I90: 1 | J90: 0 | M90: 0 | Y90: MBR | AB90: Moderate - high along south and southwest borders of AQ from Malahat Ridge rocky hills
B91: QGW10 | C91: Zero | D91: AQ 203 | E91: =0.2*476 -> 95.2 | F91: 200 | G91: 19040 | H91: 1e-08 | I91: 1 | J91: 0 | M91: 0 | X91: Discharge
B92: QGW11 | C92: Zero | D92: AQ 203 | E92: =3.9*476 -> 1856.4 | F92: 200 | G92: 371280 | H92: 1e-09 | I92: 1 | J92: 0 | M92: 0 | Y92: Evapotranspiration | AB92: High
B93: QGW12 | C93: Zero | D93: N/A | E93: =2*476 -> 952 | F93: 200 | G93: 190400 | H93: 1e-09 | I93: 1 | J93: 0 | K93: - | L93: - | M93: 0 | Y93: Outflow to marine | AB93: Moderate to high due to variable overburden cover & high elevations
B94: QGW13 | C94: In | D94: N/A | E94: =0.5*476 -> 238 | F94: 200 | G94: 47600 | H94: 1e-07 | I94: 610 | J94: 60 | M94: =(G94*H94*(J94/I94))*60*60*24*365 -> 14765.0518 | Y94: Outflow to surface waters | AB94: High to Hollings/Handeysen/Shawnigan/Malahat/Bamberton-John's Creeks & tributaries in deeply incised areas
B95: QGW14 | C95: In | D95: N/A | E95: =3.8*476 -> 1808.8 | F95: 200 | G95: 361760 | H95: 1e-09 | I95: 590 | J95: 100 | M95: 1933.637858 | Y95: Outflow to other AQ | AB95: None
B96: QGW15 | C96: In | D96: N/A | E96: =0.7*476 -> 333.2 | F96: 200 | G96: 66640 | H96: 1e-08 | I96: 640 | J96: 100 | M96: 3283.686 | Y96: Temporal variability | AB96: Moderate to high due to variable overburden cover, low in deep overburden area adjacent to Mill Bay
B97: QGW16 | C97: In | D97: N/A | E97: =1.3*476 -> 618.8 | F97: 200 | G97: 123760 | H97: 1e-09 | I97: 995 | J97: 40 | M97: 156.900316
B98: QGW17 | C98: In | D98: N/A | E98: =0.3*476 -> 142.8 | F98: 200 | G98: 28560 | H98: 1e-08 | I98: 870 | J98: 40 | M98: 414.1003034 | W98: Groundwater Development
B99: QGW18 | C99: In | D99: N/A | E99: =6*476 -> 2856 | F99: 200 | G99: 571200 | H99: 1e-09 | I99: 500 | J99: 60 | M99: 2161.603584 | Y99: Nearest BCMOE Observation Wells; distance; completion / relevance | AB99: Well #345 = 2.5 km northeast of AQ; completed in surficial materials; irrelevant
B100: QGW19 | C100: Out | D100: N/A | E100: =0.7*476 -> 333.2 | F100: 200 | G100: 66640 | H100: 1e-07 | I100: 1280 | J100: 40 | M100: -6567.372 | Y100: Total Annual Water Use (m3/yr) as reported by Hatfield (2015) | AC100: SUMS
B101: QGW20 | C101: In | D101: N/A | E101: =4.5*476 -> 2142 | F101: 200 | G101: 428400 | H101: 1e-09 | I101: 230 | J101: 40 | M101: =(G101*H101*(J101/I101))*60*60*24*365 -> 2349.569113 | Z101: Industrial | AB101: 14600 | AC101: Total Commercial and Industrial
B102: QGW21 | C102: Out | D102: Ocean | E102: =0.2*476 -> 95.2 | F102: 100 | G102: 9520 | H102: 1e-08 | I102: 335 | J102: 40 | M102: -358.4748896 | Z102: Commercial | AB102: 32850 | AC102: =AB101+AB102 -> 47450
B103: QGW22 | C103: Out | D103: Ocean | E103: =2.4*476 -> 1142.4 | F103: 100 | G103: 114240 | H103: 1e-09 | I103: 790 | J103: 100 | M103: -456.0345114 | Z103: Domestic | AB103: 194146 | AC103: Total Irrigation
B104: QGW23 | C104: Out | D104: Ocean | E104: =0.2*476 -> 95.2 | F104: 100 | G104: 9520 | H104: 1e-08 | I104: 635 | J104: 60 | M104: -283.675011 | Z104: Irrigation from groundwater (Ministry of AGRICULTURE) | AB104: 100596 | AC104: =AB104 -> 100596
B105: QGW24 | C105: Out | D105: Ocean | E105: =1.3*476 -> 618.8 | F105: 100 | G105: 61880 | H105: 1e-09 | I105: 625 | J105: 12 | M105: -37.46779546 | Z105: BCMOE Obs | AB105: 0
B106: QGW25 | C106: Out | D106: Ocean | E106: =9.4*476 -> 4474.4 | F106: 100 | G106: 447440 | H106: 1e-06 | I106: 545 | J106: 80 | M106: -2071261.334 | Z106: Other | AB106: 40150 | AC106: Total Domestic + Water Systems + Other
B107: QGW26 | C107: Out | D107: Ocean | E107: =0.3*476 -> 142.8 | F107: 100 | G107: 14280 | H107: 0.0001 | I107: 570 | J107: 20 | M107: -1580119.579 | Z107: Water Supply Systems | AB107: 30715 | AC107: =AB103+AB106+AB107 -> 265011
B108: QGW27 | C108: Out | D108: Ocean | E108: =0.8*476 -> 380.8 | F108: 100 | G108: 38080 | H108: 1e-05 | I108: 75 | J108: 20 | M108: -3202375.68
B109: QGW28 | C109: Out | D109: Shawnigan Creek | E109: =2.2*476 -> 1047.2 | F109: 20 | G109: 20944 | H109: 1e-06 | I109: 75 | J109: 20 | M109: =-(G109*H108*(J109/I109))*60*60*24*365 -> -1761306.624
B110: QGW29 | C110: Out | D110: Shawnigan Creek | E110: =0.4*476 -> 190.4 | F110: 20 | G110: 3808 | H110: 0.0001 | I110: 145 | J110: 20 | M110: =-(G110*H109*(J110/I110))*60*60*24*365 -> -16564.01214
B111: QGW30 | C111: Out | D111: Shawnigan Creek | E111: =0.3*476 -> 142.8 | F111: 20 | G111: 2856 | H111: 1e-05 | I111: 130 | J111: 20 | M111: =-(G111*H111*(J111/I111))*60*60*24*365 -> -138564.3323
B112: QGW31 | C112: Out | D112: Shawnigan Creek | E112: =0.2*476 -> 95.2 | F112: 20 | G112: 1904 | H112: 1e-05 | I112: 370 | J112: 20 | M112: -32456.51027
B113: QGW32 | C113: Out | D113: Shawnigan Creek | E113: =1.5*476 -> 714 | F113: 20 | G113: 14280 | H113: 1e-06 | I113: 205 | J113: 20 | K113: - | L113: - | M113: -43935.0322
B114: QGW33 | C114: Out | D114: Shawnigan Creek | E114: =0.2*476 -> 95.2 | F114: 20 | G114: 1904 | H114: 1e-05 | I114: 225 | J114: 20 | K114: - | L114: - | M114: -53372.928
B115: QGW34 | C115: Out | D115: Shawnigan Creek | E115: =0.9*476 -> 428.4 | F115: 20 | G115: 8568 | H115: 1e-06 | I115: 520 | J115: 40 | K115: - | L115: - | M115: -20784.64985
B116: QGW35 | C116: Out | D116: Shawnigan Creek | E116: =0.2*476 -> 95.2 | F116: 20 | G116: 1904 | H116: 0.0001 | I116: 240 | J116: 20 | K116: - | L116: - | M116: -500371.2
B117: QGW36 | C117: Out | D117: Shawnigan Creek | E117: =4*476 -> 1904 | F117: 20 | G117: 38080 | H117: 1e-06 | I117: 260 | J117: 10 | M117: -46188.11077
B118: QGW37 | C118: Out | D118: Shawnigan Creek | E118: =1.5*476 -> 714 | F118: 20 | G118: 14280 | H118: 1e-09 | I118: 125 | J118: 20 | M118: -72.0534528
B119: QGW38 | C119: Out | D119: Shawnigan Creek | E119: =0.3*476 -> 142.8 | F119: 20 | G119: 2856 | H119: 1e-08 | I119: 320 | J119: 40 | M119: -112.58352
B120: QGW39 | C120: Out | D120: Shawnigan Creek | E120: =0.8*476 -> 380.8 | F120: 20 | G120: 7616 | H120: 1e-09 | I120: 140 | J120: 20 | M120: -34.311168
B121: QGW40 | C121: Out | D121: Shawnigan Creek | E121: =0.3*476 -> 142.8 | F121: 20 | G121: 2856 | H121: 1e-08 | I121: 435 | J121: 20 | M121: -41.41003034
B122: QGW41 | C122: Out | D122: Shawnigan Creek | E122: =1.5*476 -> 714 | F122: 20 | G122: 14280 | H122: 1e-09 | I122: 85 | J122: 20 | M122: -105.96096
B123: QGW42 | C123: Out | D123: Shawnigan Creek | E123: =0.5*476 -> 238 | F123: 20 | G123: 4760 | H123: 1e-08 | I123: 245 | J123: 20 | M123: -122.5398857
B124: QGW43 | C124: Out | D124: Shawnigan Creek | E124: =1*476 -> 476 | F124: 20 | G124: 9520 | H124: 1e-09 | I124: 245 | J124: 20 | M124: -24.50797714
B125: QGW44 | C125: In | D125: AQ 205 | E125: Leakage from 205 | F125: Leakance Factor (m/yr) = | G125: ='Surficial AQ 205'!F84 -> 0.2 | H125: ='Surficial AQ 205'!G84 -> 2728691.595 | I125: -- | J125: -- | K125: -- | M125: =G125*H125 -> 545738.319
B126: QGW45 | C126: In | D126: AQ 206 | E126: Leakage from 206 | F126: Leakance Factor (m/yr) = | G126: ='Surficial AQ 206'!F84 -> 0.3 | H126: ='Surficial AQ 206'!G84 -> 2573510.749 | I126: -- | J126: -- | M126: =G126*H126 -> 772053.2246
B127: Total | M127: =SUM(M82:M126) -> -8127257.464
B129: Surface Water Contributions | C129: Cold Water Creek? | D129: Observed Vertical Gradient | E129: Percent Permeable | F129: Length (m) | G129: Width (m) | H129: Flux (m/s) | I129: SW Flow (m3/yr) | L129: Comment
I130: Year 1 | J130: Year 2 | K130: Year 3
B131: Hollings Creek | C131: Unknown | D131: Downward | E131: 0.1 | F131: 5000 | G131: 2 | H131: 3e-05 | I131: =(E131*F131*G131)*(H131*60*60*24*365) -> 946080 | L131: A portion of Hollings Creek runs over a thick layer of overburden therefore those sections are considered to be conveyance features.
B132: Handysen Creek | C132: Unknown | D132: Downward | E132: 0 | F132: 2200 | G132: 2 | H132: 3e-05 | I132: =(E132*F132*G132)*(H132*60*60*24*365) -> 0
B133: Unnamed creek | C133: Unknown | D133: Zero | E133: 0.1 | F133: 480 | G133: 2 | H133: 3e-05 | I133: =(E133*F133*G133)*(H133*60*60*24*365) -> 90823.68 | L133: Over a thick layer of overburden therefore it is considered a conveyance feature.
B134: Johns Creek | C134: Unknown | D134: Downward | E134: 0.1 | F134: 4000 | G134: 2 | H134: 3e-05 | I134: =(E134*F134*G134)*(H134*60*60*24*365) -> 756864
B135: Total | I135: =SUM(I131:I134) -> 1793767.68 | J135: =SUM(J134:J134) -> 0 | K135: =SUM(K134:K134) -> 0
B137: Water Well Usage | C137: Water Well Usage Volume (m3/yr) | L137: Comments
C138: Year 1 | F138: Year 2 | I138: Year 3
C139: Total Volume Removed | D139: Adjustment Factor | E139: Adjusted Volume Removed | F139: Total Volume Removed | G139: Adjustment Factor | H139: Adjusted Volume Removed | I139: Total Volume Removed | J139: Adjustment Factor | K139: Adjusted Volume Removed
B140: Industrial | C140: =AB101 -> 14600 | D140: 1 | E140: =C140*D140 -> 14600 | L140: Assuming 100% consumptive
B141: Commercial | C141: 32850 | D141: 1 | E141: =C141*D141 -> 32850 | L141: Assuming 100% consumptive
B142: Domestic | C142: 194146 | D142: 1 | E142: 194146 | L142: Assuming 100% consumptive
B143: Irrigation | C143: 100596 | D143: 1 | E143: 100596 | L143: Assuming 100% consumptive
B144: BCMOE Obs | C144: 0 | D144: 1 | E144: 0 | L144: Assuming 100% consumptive
B145: Other | C145: 40150 | D145: 1 | E145: 40150 | L145: Assuming 100% consumptive
B146: Water Supply Systems | C146: 30715 | D146: 1 | E146: 30715 | L146: Assuming 100% consumptive
B147: Total | C147: =-SUM(C140:C146) -> -413057 | E147: =-SUM(E140:E146) -> -413057 | H147: =-SUM(H140:H146) -> 0 | K147: =-SUM(K140:K146) -> 0

Sheet Surficial AQ 197
B1: CHM Aquifer Criteria: Aquifer #0197, Cherry Point (Surficial) | W1: TABLE G-1
B2: AQ tag | C2: 197 Cherry Point | W2: CHM Aquifer Criteria: Aquifer #0197, Cherry Point (Surficial)
B3: Perimeter (km) | C3: 42.05
B4: Area (km2) | C4: 39.48 | W4: BCMOE Criteria
B5: Aquifer materials | C5: Sand and gravel | X5: AQ tag | AB5: 197 Cherry Point
B6: Table G-4 Monthly Summary of AQ197 Water Budgets | Q6: Table G-3 Annual Summary of AQ197 Water Budgets | X6: AQ classification | AB6: IIC (11)
B7: Monthly Gains and Loses (m3) - | C7: Average Year | Q7: Summary - 30 Year Average | X7: AQ type | AB7: BCMOE Classification = 4b (SLR Classification = 4a / 4b / 4c)
C8: Jan | D8: Feb | E8: Mar | F8: Apr | G8: May | H8: Jun | I8: Jul | J8: Aug | K8: Sep | L8: Oct | M8: Nov | N8: Dec | O8: Total | Q8: Gains and Losses | R8: Source | S8: Area (m2) | T8: Infiltration Rate | U8: Q (m3/yr) | X8: Location | AB8: Cowichan Bay / Cobble Hill
A9: =$C$7&B9 -> Average YearDirect Recharge to 197 | B9: =R9 -> Direct Recharge to 197 | C9: =C55*$U$9 -> 2702771.616 | D9: 1760481.354 | E9: 1270488.465 | F9: 305109.1146 | G9: -367256.3419 | H9: -579135.0006 | I9: -565009.7567 | J9: -254254.3905 | K9: -84751.46351 | L9: 929202.2199 | M9: 2851003.033 | N9: 2779312.453 | O9: =SUM(C9:N9) -> 10747961.3 | Q9: Gain | R9: Direct Recharge to 197 | S9: =10000*(2920.58172234+14.58) -> 29351617.22 | T9: =U9/S9 -> 0.3661795267 | U9: =D75 -> 10747961.3 | X9: Perimeter (km) | AB9: 42.05
A10: Average YearLeakage down to 204 | B10: Leakage down to 204 | C10: =C56*$U$10 -> -124571.173 | D10: -119957.4259 | E10: -133798.6673 | F10: -132260.7516 | G10: -138412.4145 | H10: -132260.7516 | I10: -133798.6673 | J10: -130722.8359 | K10: -124571.173 | L10: -126109.0887 | M10: -119957.4259 | N10: -121495.3416 | O10: =SUM(C10:N10) -> -1537915.716 | Q10: Loss | R10: Leakage down to 204 | S10: =10000*512.638572067 -> 5126385.721 | T10: 0.3 | U10: =-S10*T10 -> -1537915.716 | X10: Area (km2) | AB10: 39.48
A11: Average YearLeakage down to 198 | B11: Leakage down to 198 | C11: =C56*$U$11 -> -40499.86236 | D11: -38999.86746 | E11: -43499.85217 | F11: -42999.85387 | G11: -44999.84707 | H11: -42999.85387 | I11: -43499.85217 | J11: -42499.85557 | K11: -40499.86236 | L11: -40999.86066 | M11: -38999.86746 | N11: -39499.86576 | O11: -499998.3008 | Q11: Loss | R11: Leakage down to 198 | S11: =10000*499.99830078 -> 4999983.008 | T11: 0.1 | U11: =-S11*T11 -> -499998.3008 | X11: Aquifer materials | AB11: Sand and gravel
A12: Average YearLeakage to depth | B12: Leakage to depth | C12: =C56*$U$12 -> -155724.5128 | D12: -149956.9383 | E12: -167259.6619 | F12: -165337.1371 | G12: -173027.2365 | H12: -165337.1371 | I12: -167259.6619 | J12: -163414.6122 | K12: -155724.5128 | L12: -157647.0377 | M12: -149956.9383 | N12: -151879.4631 | O12: -1922524.849 | Q12: Loss | R12: Leakage to depth | S12: =S9-S10-S11 -> 19225248.49 | T12: 0.1 | U12: =-S12*T12 -> -1922524.849 | X12: Lithostratographic unit | AB12: Vashon Drift
A13: Average YearLateral Groundwater | B13: Lateral Groundwater | C13: =C56*$U$13 -> -476398.7346 | D13: -458754.3371 | E13: -511687.5298 | F13: -505806.0639 | G13: -529331.9274 | H13: -505806.0639 | I13: -511687.5298 | J13: -499924.5981 | K13: -476398.7346 | L13: -482280.2005 | M13: -458754.3371 | N13: -464635.8029 | O13: -5881465.86 | Q13: Loss | R13: Lateral Groundwater | S13: -- | T13: -- | U13: =SUMIF(M83:M95,"<0") -> -5881465.86 | X13: Productivity | AB13: Moderate
A14: Average YearLateral Groundwater | B14: Lateral Groundwater | C14: =C56*$U$14 -> 22005.50523 | D14: 21190.48652 | E14: 23635.54265 | F14: 23363.86975 | G14: 24450.56137 | H14: 23363.86975 | I14: 23635.54265 | J14: 23092.19685 | K14: 22005.50523 | L14: 22277.17813 | M14: 21190.48652 | N14: 21462.15942 | O14: 271672.9041 | Q14: Gain | R14: Lateral Groundwater | S14: -- | T14: -- | U14: =SUMIF(M83:M95,">0") -> 271672.9041 | X14: Vulnerability | AB14: Low
A15: Average YearSurface Water | B15: Surface Water | C15: =C57*$U$15 -> -163597.9412 | D15: -143625.4431 | E15: -103748.5449 | F15: -50162.74594 | G15: -17786.52444 | H15: -7214.186126 | I15: -4284.37914 | J15: -1391.658318 | K15: -1170.068486 | L15: -10739.22605 | M15: -75897.76256 | N15: -161714.2198 | O15: -741332.7 | Q15: Loss | R15: Surface Water | S15: -- | T15: -- | U15: =SUMIF(I100,"<0") -> -741332.7 | X15: Demand | AB15: Moderate
A16: Average YearSurface Water | B16: Surface Water | C16: =C57*$U$16 -> 0 | D16: 0 | E16: 0 | F16: 0 | G16: 0 | H16: 0 | I16: 0 | J16: 0 | K16: 0 | L16: 0 | M16: 0 | N16: 0 | O16: 0 | Q16: Gain | R16: Surface Water | S16: -- | T16: -- | U16: =SUMIF(I100,">0") -> 0 | X16: Use | AB16: Multiple
A17: Average YearWater Usage | B17: Water Usage | C17: =C58*$U$17 -> -274594.86 | D17: -297477.765 | E17: -343243.575 | F17: -366126.48 | G17: -411892.29 | H17: -457658.1 | I17: -503423.91 | J17: -526306.815 | K17: -457658.1 | L17: -366126.48 | M17: -320360.67 | N17: -251711.955 | O17: -4576581 | Q17: Loss | R17: Water Usage | S17: -- | T17: -- | U17: =E113 -> -4576581
A18: Average YearNet Gain | B18: =Q18 -> Net Gain | C18: =SUMIF(C9:C17, ">0") -> 2724777.121 | D18: 1781671.84 | E18: 1294124.008 | F18: 328472.9843 | G18: 24450.56137 | H18: 23363.86975 | I18: 23635.54265 | J18: 23092.19685 | K18: 22005.50523 | L18: 951479.398 | M18: 2872193.519 | N18: 2800774.613 | O18: 12870041.16 | Q18: Net Gain | U18: =SUMIF(U9:U17, ">0") -> 11019634.21 | W18: Location
A19: Average YearNet Loss | B19: =Q19 -> Net Loss | C19: =SUMIF(C9:C17, "<0") -> -1235387.084 | D19: -1208771.777 | E19: -1303237.831 | F19: -1262693.032 | G19: -1682706.582 | H19: -1890411.093 | I19: -1928963.757 | J19: -1618514.766 | K19: -1340773.915 | L19: -1183901.894 | M19: -1163927.001 | N19: -1190936.648 | O19: -17010225.38 | Q19: Net Loss | U19: =SUMIF(U9:U17, "<0") -> -15159818.43 | X19: NTS 50000 | AB19: Mostly within 092B/12, north end within 092B/13
